Workbook

Sheet Cover
C29: DISCLAIMER:
C30: 1. NO WARRANTIES NetMetaXL (HEREINAFTER CALLED "THIS PROGRAM") IS PROVIDED FREE OF CHARGE AND “AS IS” WITHOUT ANY WARRANTY WHATSOEVER. YOU ASSUME ALL RISKS AND RESPONSIBILITIES FOR SELECTION OF THIS PROGRAM TO ACHIEVE YOUR INTENDED RESULTS, AND FOR THE INSTALLATION OF, USE OF AND RESULTS OBTAINED FROM THIS PROGRAM. THE CREATORS OF THIS PROGRAM MAKE NO WARRANTY THAT THIS PROGRAM WILL BE ERROR FREE OR FREE FROM INTERRUPTION OR FAILURE. TO THE MAXIMUM EXTENT PERMITTED BY APPLICABLE LAW, THE CREATORS OF THIS PROGRAM DISCLAIMS ALL WARRANTIES, EITHER EXPRESS OR IMPLIED, INCLUDING BUT NOT LIMITED TO, WARRANTIES OR REPRESENTATIONS OF WORKMANSHIP, SUITABILITY OR FITNESS FOR A PARTICULAR PURPOSE, DURABILITY, AND NON INFRINGEMENT WITH RESPECT TO THIS PROGRAM. WITHOUT LIMITING THE GENERALITY OF THE FOREGOING, THE CREATORS OF THIS PROGRAM DO NOT WARRANT THAT THIS PROGRAM WILL MEET ALL OF YOUR NEEDS OR THAT OPERATION OF THIS PROGRAM WILL BE ERROR-FREE. THE CREATORS OF THIS PROGRAM EXPRESSLY DISCLAIMS ANY EXPRESS OR IMPLIED WARRANTY REGARDING SYSTEM AND/OR SOFTWARE AVAILABILITY, ACCESSIBILITY, OR PERFORMANCE. THE CREATORS OF THIS PROGRAM RESERVES THE RIGHT TO REVISE THIS PROGRAM AND TO MAKE CHANGES THEREIN FROM TIME TO TIME WITHOUT OBLIGATION TO NOTIFY ANY PERSON OR ORGANISATION OF SUCH REVISION OR CHANGES. 2. LIMITATIONS ON LIABILITY TO THE MAXIMUM EXTENT PERMITTED BY APPLICABLE LAW, IN NO EVENT WILL THE CREATORS OF THIS PROGRAM OR ITS SUPPLIERS OR LICENSORS BE LIABLE FOR ANY DAMAGES WHATSOEVER (INCLUDING, WITHOUT LIMITATION, DAMAGES FOR LOSS OF BUSINESS PROFITS, BUSINESS INTERRUPTION, LOSS OF BUSINESS INFORMATION, LOSS OF GOODWILL; WORK STOPPAGE; HARDWARE OR SOFTWARE FAILURE, OR OTHER PECUNIARY LOSS) ARISING OUT OF THE USE OR INABILITY TO USE THIS PROGRAM. YOU ASSUME THE ENTIRE COST OF ANY DAMAGE RESULTING FROM YOUR USE OF THIS PROGRAM AND THE INFORMATION CONTAINED IN OR COMPILED BY THIS PROGRAM. 3. GENERAL THE TERM OF THIS AGREEMENT SHALL CONTINUE FROM THE DATE OF ACCEPTANCE TO THE DATE AT WHICH YOU REMOVE THIS PROGRAM FROM YOUR COMPUTER. SECTION 2 HEREIN SHALL SURVIVE TERMINATION OF THIS AGREEMENT.

Sheet Winbugs Settings
P2: Vague
P3: Informative
B8: WinBUGS Settings
C9: Burn In Runs | D9: 1000 | F9: Enter the number of "Burn In" runs and Model Runs
C10: Model Runs | D10: 1000
C11: Include Trace for OR | D11: TRUE | F11: Select "True" to monitor; Convergence traces for OR and RR and/or Gelman Rubin traces for OR and RR
C12: Include Gelman Rubin for OR | D12: TRUE
B13: Inits Ranges
C14: Low Range for Inits (Random and Fixed Effects) | D14: 0 | F14: Inits and SD are randomly selected between a low and high value. These low and high values can be entered here
C15: High range for Inits (Random and Fixed Effects) | D15: 2
C16: Low range for SD/VAR (Random Effects) | D16: 1
C17: High range for SD/VAR (Random Effects) | D17: 2
B18: Program Settings
C19: Winbugs Directory | D19: C:\Program Files\WinBUGS14\ | F19: Enter the path for the WinBUGS program or click folder to open Explorer window
C20: Data directory | D20: C:\WinBUGS data\ | F20: Enter the path for the results and data files that excel generates click folder to open Explorer window
C21: Results Directoty | D21: C:\WinBUGS Results\
C22: Fixed Effects Results File Name | D22: Fixed Effect Results | F22: Enter the name of the results files
C23: Random Effects Results File Name | D23: Random Effect Results
C24: Fixed Effects Model File Name | D24: Fixed Effect Model
C25: Random Effects Model File Name | D25: Random Effect Model
C26: Data Table File Name | D26: Data Table
C27: Data table List File Name | D27: Data List
C28: Fixed Effects Inits File name | D28: Fixed Effect Inits
C29: Random Effects Inits File name | D29: Random Effect Inits
C30: Include date/time Stamp | D30: TRUE | F30: Uniquely labels each set of results with date/time of analysis

Sheet DATA Input
C2: =COUNTIF(D7:D56,"<>") -> 15 | D2: Number of Studies
C3: =COUNTIF(E5:AH5,"<>") -> 5 | D3: Number of Treatments | E3: Treatments
C4: =COUNTIF(F7:F56,"<>") -> 11 | D4: Number of Treatment 1 Studies | E4: 1 | G4: =E4+1 -> 2 | I4: =G4+1 -> 3 | K4: =I4+1 -> 4 | M4: =K4+1 -> 5 | O4: =M4+1 -> 6 | Q4: =O4+1 -> 7 | S4: =Q4+1 -> 8 | U4: =S4+1 -> 9 | W4: =U4+1 -> 10 | Y4: =W4+1 -> 11 | AA4: =Y4+1 -> 12 | AC4: =AA4+1 -> 13 | AE4: =AC4+1 -> 14 | AG4: =AE4+1 -> 15
C5: Study # | D5: Treatment Name | E5: placebo | G5: warfarin-adjusted | I5: aspirin | K5: warfarin-fixed | M5: aspirin+warfarin
D6: Study Name | E6: # of Events | F6: # of Patients | G6: # of Events | H6: # of Patients | I6: # of Events | J6: # of Patients | K6: # of Events | L6: # of Patients | M6: # of Events | N6: # of Patients | O6: # of Events | P6: # of Patients | Q6: # of Events | R6: # of Patients | S6: # of Events | T6: # of Patients | U6: # of Events | V6: # of Patients | W6: # of Events | X6: # of Patients | Y6: # of Events | Z6: # of Patients | AA6: # of Events | AB6: # of Patients | AC6: # of Events | AD6: # of Patients | AE6: # of Events | AF6: # of Patients | AG6: # of Events | AH6: # of Patients
C7: 1 | D7: AFASAK | E7: 19 | F7: 336 | G7: 9 | H7: 335 | I7: 16 | J7: 336
C8: 2 | D8: SPAF | E8: 19 | F8: 211 | G8: 8 | H8: 210 | I8: 25 | J8: 552
C9: 3 | D9: BAATAF | E9: 13 | F9: 208 | G9: 3 | H9: 212
C10: 4 | D10: CAFA | E10: 9 | F10: 191 | G10: 6 | H10: 187
C11: 5 | D11: SPINAF | E11: 23 | F11: 290 | G11: 7 | H11: 281
C12: 6 | D12: EAFT-1 | E12: 50 | F12: 214 | G12: 20 | H12: 225 | I12: 49 | J12: 230
C13: 7 | D13: EAFT-2 | E13: 40 | F13: 164 | I13: 39 | J13: 174
C14: 8 | D14: ESPS-2 | E14: 23 | F14: 107 | I14: 17 | J14: 104
C15: 9 | D15: LASAF | E15: 6 | F15: 182 | I15: 5 | J15: 194
C16: 10 | D16: UK-TIA | E16: 8 | F16: 30 | I16: 8 | J16: 34
C17: 11 | D17: SPAF-2 | G17: 19 | H17: 358 | I17: 21 | J17: 357
C18: 12 | D18: AFASAK-2 | G18: 11 | H18: 170 | I18: 9 | J18: 169 | K18: 14 | L18: 167 | M18: 11 | N18: 171
C19: 13 | D19: PATAF | G19: 3 | H19: 131 | I19: 4 | J19: 141 | K19: 4 | L19: 122
C20: 14 | D20: SPAF-3 | G20: 14 | H20: 523 | M20: 48 | N20: 521
C21: 15 | D21: MWNAF | E21: 1 | F21: 153 | K21: 5 | L21: 150
C22: 16
C23: 17
C24: 18
C25: 19
C26: 20
C27: 21
C28: 22
C29: 23
C30: 24
C31: 25
C32: 26
C33: 27
C34: 28
C35: 29
C36: 30
C37: 31
C38: 32
C39: 33
C40: 34
C41: 35
C42: 36
C43: 37
C44: 38
C45: 39
C46: 40
C47: 41
C48: 42
C49: 43
C50: 44
C51: 45
C52: 46
C53: 47
C54: 48
C55: 49
C56: 50
C57: =MIN(patient_totals) -> 439 | D57: =SUM(patient_totals) -> 8140 | E57: =IF(SUM(F7:F56)=0,"",SUM(F7:F56)) -> 2086 | G57: =IF(SUM(H7:H56)=0,"",SUM(H7:H56)) -> 2632 | I57: =IF(SUM(J7:J56)=0,"",SUM(J7:J56)) -> 2291 | K57: =IF(SUM(L7:L56)=0,"",SUM(L7:L56)) -> 439 | M57: =IF(SUM(N7:N56)=0,"",SUM(N7:N56)) -> 692 | O57: =IF(SUM(P7:P56)=0,"",SUM(P7:P56)) ->  | Q57: =IF(SUM(R7:R56)=0,"",SUM(R7:R56)) ->  | S57: =IF(SUM(T7:T56)=0,"",SUM(T7:T56)) ->  | U57: =IF(SUM(V7:V56)=0,"",SUM(V7:V56)) ->  | W57: =IF(SUM(X7:X56)=0,"",SUM(X7:X56)) ->  | Y57: =IF(SUM(Z7:Z56)=0,"",SUM(Z7:Z56)) ->  | AA57: =IF(SUM(AB7:AB56)=0,"",SUM(AB7:AB56)) ->  | AC57: =IF(SUM(AD7:AD56)=0,"",SUM(AD7:AD56)) ->  | AE57: =IF(SUM(AF7:AF56)=0,"",SUM(AF7:AF56)) ->  | AG57: =IF(SUM(AH7:AH56)=0,"",SUM(AH7:AH56)) -> 

Sheet Diagram Data (hidden)
B3: Max LogORs
B4: =MAX(B5:B53) -> 0.6304709315 | C4: Study # | D4: Treatment Arms | E4: Comparisons | F4: 1 | G4: 2 | H4: 3 | I4: 4 | J4: 5 | K4: 6 | L4: 7 | M4: 8 | N4: 9 | O4: 10 | P4: 11 | Q4: 12 | R4: 13 | S4: 14 | T4: 15
B5: 0.6304709315 | C5: =IF('WINBUGS data'!F17<>"",'WINBUGS data'!F17,"") -> 1 | D5: =IFERROR(INDEX('WINBUGS data'!$F$17:$ZZ$65,MATCH(C5,'WINBUGS data'!$F$17:$F$65,0),MATCH("na[]",'WINBUGS data'!$F$16:$ZZ$16,0)),"") -> 3 | E5: =CONCATENATE(IF(ISNUMBER(F5),F5,""),IF(ISNUMBER(G5),","&G5,""),IF(ISNUMBER(H5),","&H5,""),IF(ISNUMBER(I5),","&I5,""),IF(ISNUMBER(J5),","&J5,""),IF(ISNUMBER(K5),","&K5,""),IF(ISNUMBER(L5),","&L5,""),IF(ISNUMBER(M5),","&M5,""),IF(ISNUMBER(N5),","&N5,""),IF(ISNUMBER(O5),","&O5,""),IF(ISNUMBER(P5),","&P5,""),IF(ISNUMBER(Q5),","&Q5,""),IF(ISNUMBER(R5),","&R5,""),IF(ISNUMBER(S5),","&S5,""),IF(ISNUMBER(T5),","&T5,"")) -> 1,2,3 | F5: =IFERROR(INDEX('WINBUGS data'!$F$17:$ZZ$65,MATCH($C5,'WINBUGS data'!$F$17:$F$65,0),MATCH("t[,"&F$4 &"]",'WINBUGS data'!$F$16:$ZZ$16,0)),"") -> 1 | G5: =IFERROR(INDEX('WINBUGS data'!$F$17:$ZZ$65,MATCH($C5,'WINBUGS data'!$F$17:$F$65,0),MATCH("t[,"&G$4 &"]",'WINBUGS data'!$F$16:$ZZ$16,0)),"") -> 2 | H5: =IFERROR(INDEX('WINBUGS data'!$F$17:$ZZ$65,MATCH($C5,'WINBUGS data'!$F$17:$F$65,0),MATCH("t[,"&H$4 &"]",'WINBUGS data'!$F$16:$ZZ$16,0)),"") -> 3 | I5: =IFERROR(INDEX('WINBUGS data'!$F$17:$ZZ$65,MATCH($C5,'WINBUGS data'!$F$17:$F$65,0),MATCH("t[,"&I$4 &"]",'WINBUGS data'!$F$16:$ZZ$16,0)),"") -> NA | J5: =IFERROR(INDEX('WINBUGS data'!$F$17:$ZZ$65,MATCH($C5,'WINBUGS data'!$F$17:$F$65,0),MATCH("t[,"&J$4 &"]",'WINBUGS data'!$F$16:$ZZ$16,0)),"") -> NA | K5: =IFERROR(INDEX('WINBUGS data'!$F$17:$ZZ$65,MATCH($C5,'WINBUGS data'!$F$17:$F$65,0),MATCH("t[,"&K$4 &"]",'WINBUGS data'!$F$16:$ZZ$16,0)),"") ->  | L5: =IFERROR(INDEX('WINBUGS data'!$F$17:$ZZ$65,MATCH($C5,'WINBUGS data'!$F$17:$F$65,0),MATCH("t[,"&L$4 &"]",'WINBUGS data'!$F$16:$ZZ$16,0)),"") ->  | M5: =IFERROR(INDEX('WINBUGS data'!$F$17:$ZZ$65,MATCH($C5,'WINBUGS data'!$F$17:$F$65,0),MATCH("t[,"&M$4 &"]",'WINBUGS data'!$F$16:$ZZ$16,0)),"") ->  | N5: =IFERROR(INDEX('WINBUGS data'!$F$17:$ZZ$65,MATCH($C5,'WINBUGS data'!$F$17:$F$65,0),MATCH("t[,"&N$4 &"]",'WINBUGS data'!$F$16:$ZZ$16,0)),"") ->  | O5: =IFERROR(INDEX('WINBUGS data'!$F$17:$ZZ$65,MATCH($C5,'WINBUGS data'!$F$17:$F$65,0),MATCH("t[,"&O$4 &"]",'WINBUGS data'!$F$16:$ZZ$16,0)),"") ->  | P5: =IFERROR(INDEX('WINBUGS data'!$F$17:$ZZ$65,MATCH($C5,'WINBUGS data'!$F$17:$F$65,0),MATCH("t[,"&P$4 &"]",'WINBUGS data'!$F$16:$ZZ$16,0)),"") ->  | Q5: =IFERROR(INDEX('WINBUGS data'!$F$17:$ZZ$65,MATCH($C5,'WINBUGS data'!$F$17:$F$65,0),MATCH("t[,"&Q$4 &"]",'WINBUGS data'!$F$16:$ZZ$16,0)),"") ->  | R5: =IFERROR(INDEX('WINBUGS data'!$F$17:$ZZ$65,MATCH($C5,'WINBUGS data'!$F$17:$F$65,0),MATCH("t[,"&R$4 &"]",'WINBUGS data'!$F$16:$ZZ$16,0)),"") ->  | S5: =IFERROR(INDEX('WINBUGS data'!$F$17:$ZZ$65,MATCH($C5,'WINBUGS data'!$F$17:$F$65,0),MATCH("t[,"&S$4 &"]",'WINBUGS data'!$F$16:$ZZ$16,0)),"") ->  | T5: =IFERROR(INDEX('WINBUGS data'!$F$17:$ZZ$65,MATCH($C5,'WINBUGS data'!$F$17:$F$65,0),MATCH("t[,"&T$4 &"]",'WINBUGS data'!$F$16:$ZZ$16,0)),"") -> 
B6: 0.441832751 | C6: =IF('WINBUGS data'!F18<>"",'WINBUGS data'!F18,"") -> 2 | D6: =IFERROR(INDEX('WINBUGS data'!$F$17:$ZZ$65,MATCH(C6,'WINBUGS data'!$F$17:$F$65,0),MATCH("na[]",'WINBUGS data'!$F$16:$ZZ$16,0)),"") -> 3 | E6: =CONCATENATE(IF(ISNUMBER(F6),F6,""),IF(ISNUMBER(G6),","&G6,""),IF(ISNUMBER(H6),","&H6,""),IF(ISNUMBER(I6),","&I6,""),IF(ISNUMBER(J6),","&J6,""),IF(ISNUMBER(K6),","&K6,""),IF(ISNUMBER(L6),","&L6,""),IF(ISNUMBER(M6),","&M6,""),IF(ISNUMBER(N6),","&N6,""),IF(ISNUMBER(O6),","&O6,""),IF(ISNUMBER(P6),","&P6,""),IF(ISNUMBER(Q6),","&Q6,""),IF(ISNUMBER(R6),","&R6,""),IF(ISNUMBER(S6),","&S6,""),IF(ISNUMBER(T6),","&T6,"")) -> 1,2,3 | F6: =IFERROR(INDEX('WINBUGS data'!$F$17:$ZZ$65,MATCH($C6,'WINBUGS data'!$F$17:$F$65,0),MATCH("t[,"&F$4 &"]",'WINBUGS data'!$F$16:$ZZ$16,0)),"") -> 1 | G6: =IFERROR(INDEX('WINBUGS data'!$F$17:$ZZ$65,MATCH($C6,'WINBUGS data'!$F$17:$F$65,0),MATCH("t[,"&G$4 &"]",'WINBUGS data'!$F$16:$ZZ$16,0)),"") -> 2 | H6: =IFERROR(INDEX('WINBUGS data'!$F$17:$ZZ$65,MATCH($C6,'WINBUGS data'!$F$17:$F$65,0),MATCH("t[,"&H$4 &"]",'WINBUGS data'!$F$16:$ZZ$16,0)),"") -> 3 | I6: =IFERROR(INDEX('WINBUGS data'!$F$17:$ZZ$65,MATCH($C6,'WINBUGS data'!$F$17:$F$65,0),MATCH("t[,"&I$4 &"]",'WINBUGS data'!$F$16:$ZZ$16,0)),"") -> NA | J6: =IFERROR(INDEX('WINBUGS data'!$F$17:$ZZ$65,MATCH($C6,'WINBUGS data'!$F$17:$F$65,0),MATCH("t[,"&J$4 &"]",'WINBUGS data'!$F$16:$ZZ$16,0)),"") -> NA | K6: =IFERROR(INDEX('WINBUGS data'!$F$17:$ZZ$65,MATCH($C6,'WINBUGS data'!$F$17:$F$65,0),MATCH("t[,"&K$4 &"]",'WINBUGS data'!$F$16:$ZZ$16,0)),"") ->  | L6: =IFERROR(INDEX('WINBUGS data'!$F$17:$ZZ$65,MATCH($C6,'WINBUGS data'!$F$17:$F$65,0),MATCH("t[,"&L$4 &"]",'WINBUGS data'!$F$16:$ZZ$16,0)),"") ->  | M6: =IFERROR(INDEX('WINBUGS data'!$F$17:$ZZ$65,MATCH($C6,'WINBUGS data'!$F$17:$F$65,0),MATCH("t[,"&M$4 &"]",'WINBUGS data'!$F$16:$ZZ$16,0)),"") ->  | N6: =IFERROR(INDEX('WINBUGS data'!$F$17:$ZZ$65,MATCH($C6,'WINBUGS data'!$F$17:$F$65,0),MATCH("t[,"&N$4 &"]",'WINBUGS data'!$F$16:$ZZ$16,0)),"") ->  | O6: =IFERROR(INDEX('WINBUGS data'!$F$17:$ZZ$65,MATCH($C6,'WINBUGS data'!$F$17:$F$65,0),MATCH("t[,"&O$4 &"]",'WINBUGS data'!$F$16:$ZZ$16,0)),"") ->  | P6: =IFERROR(INDEX('WINBUGS data'!$F$17:$ZZ$65,MATCH($C6,'WINBUGS data'!$F$17:$F$65,0),MATCH("t[,"&P$4 &"]",'WINBUGS data'!$F$16:$ZZ$16,0)),"") ->  | Q6: =IFERROR(INDEX('WINBUGS data'!$F$17:$ZZ$65,MATCH($C6,'WINBUGS data'!$F$17:$F$65,0),MATCH("t[,"&Q$4 &"]",'WINBUGS data'!$F$16:$ZZ$16,0)),"") ->  | R6: =IFERROR(INDEX('WINBUGS data'!$F$17:$ZZ$65,MATCH($C6,'WINBUGS data'!$F$17:$F$65,0),MATCH("t[,"&R$4 &"]",'WINBUGS data'!$F$16:$ZZ$16,0)),"") ->  | S6: =IFERROR(INDEX('WINBUGS data'!$F$17:$ZZ$65,MATCH($C6,'WINBUGS data'!$F$17:$F$65,0),MATCH("t[,"&S$4 &"]",'WINBUGS data'!$F$16:$ZZ$16,0)),"") ->  | T6: =IFERROR(INDEX('WINBUGS data'!$F$17:$ZZ$65,MATCH($C6,'WINBUGS data'!$F$17:$F$65,0),MATCH("t[,"&T$4 &"]",'WINBUGS data'!$F$16:$ZZ$16,0)),"") -> 
B7: 0.320626229 | C7: =IF('WINBUGS data'!F19<>"",'WINBUGS data'!F19,"") -> 3 | D7: =IFERROR(INDEX('WINBUGS data'!$F$17:$ZZ$65,MATCH(C7,'WINBUGS data'!$F$17:$F$65,0),MATCH("na[]",'WINBUGS data'!$F$16:$ZZ$16,0)),"") -> 2 | E7: 1,2 | F7: =IFERROR(INDEX('WINBUGS data'!$F$17:$ZZ$65,MATCH($C7,'WINBUGS data'!$F$17:$F$65,0),MATCH("t[,"&F$4 &"]",'WINBUGS data'!$F$16:$ZZ$16,0)),"") -> 1 | G7: =IFERROR(INDEX('WINBUGS data'!$F$17:$ZZ$65,MATCH($C7,'WINBUGS data'!$F$17:$F$65,0),MATCH("t[,"&G$4 &"]",'WINBUGS data'!$F$16:$ZZ$16,0)),"") -> 2 | H7: =IFERROR(INDEX('WINBUGS data'!$F$17:$ZZ$65,MATCH($C7,'WINBUGS data'!$F$17:$F$65,0),MATCH("t[,"&H$4 &"]",'WINBUGS data'!$F$16:$ZZ$16,0)),"") -> NA | I7: =IFERROR(INDEX('WINBUGS data'!$F$17:$ZZ$65,MATCH($C7,'WINBUGS data'!$F$17:$F$65,0),MATCH("t[,"&I$4 &"]",'WINBUGS data'!$F$16:$ZZ$16,0)),"") -> NA | J7: =IFERROR(INDEX('WINBUGS data'!$F$17:$ZZ$65,MATCH($C7,'WINBUGS data'!$F$17:$F$65,0),MATCH("t[,"&J$4 &"]",'WINBUGS data'!$F$16:$ZZ$16,0)),"") -> NA | K7: =IFERROR(INDEX('WINBUGS data'!$F$17:$ZZ$65,MATCH($C7,'WINBUGS data'!$F$17:$F$65,0),MATCH("t[,"&K$4 &"]",'WINBUGS data'!$F$16:$ZZ$16,0)),"") ->  | L7: =IFERROR(INDEX('WINBUGS data'!$F$17:$ZZ$65,MATCH($C7,'WINBUGS data'!$F$17:$F$65,0),MATCH("t[,"&L$4 &"]",'WINBUGS data'!$F$16:$ZZ$16,0)),"") ->  | M7: =IFERROR(INDEX('WINBUGS data'!$F$17:$ZZ$65,MATCH($C7,'WINBUGS data'!$F$17:$F$65,0),MATCH("t[,"&M$4 &"]",'WINBUGS data'!$F$16:$ZZ$16,0)),"") ->  | N7: =IFERROR(INDEX('WINBUGS data'!$F$17:$ZZ$65,MATCH($C7,'WINBUGS data'!$F$17:$F$65,0),MATCH("t[,"&N$4 &"]",'WINBUGS data'!$F$16:$ZZ$16,0)),"") ->  | O7: =IFERROR(INDEX('WINBUGS data'!$F$17:$ZZ$65,MATCH($C7,'WINBUGS data'!$F$17:$F$65,0),MATCH("t[,"&O$4 &"]",'WINBUGS data'!$F$16:$ZZ$16,0)),"") ->  | P7: =IFERROR(INDEX('WINBUGS data'!$F$17:$ZZ$65,MATCH($C7,'WINBUGS data'!$F$17:$F$65,0),MATCH("t[,"&P$4 &"]",'WINBUGS data'!$F$16:$ZZ$16,0)),"") ->  | Q7: =IFERROR(INDEX('WINBUGS data'!$F$17:$ZZ$65,MATCH($C7,'WINBUGS data'!$F$17:$F$65,0),MATCH("t[,"&Q$4 &"]",'WINBUGS data'!$F$16:$ZZ$16,0)),"") ->  | R7: =IFERROR(INDEX('WINBUGS data'!$F$17:$ZZ$65,MATCH($C7,'WINBUGS data'!$F$17:$F$65,0),MATCH("t[,"&R$4 &"]",'WINBUGS data'!$F$16:$ZZ$16,0)),"") ->  | S7: =IFERROR(INDEX('WINBUGS data'!$F$17:$ZZ$65,MATCH($C7,'WINBUGS data'!$F$17:$F$65,0),MATCH("t[,"&S$4 &"]",'WINBUGS data'!$F$16:$ZZ$16,0)),"") ->  | T7: =IFERROR(INDEX('WINBUGS data'!$F$17:$ZZ$65,MATCH($C7,'WINBUGS data'!$F$17:$F$65,0),MATCH("t[,"&T$4 &"]",'WINBUGS data'!$F$16:$ZZ$16,0)),"") -> 
B8: 0.320626229 | C8: =IF('WINBUGS data'!F20<>"",'WINBUGS data'!F20,"") -> 4 | D8: =IFERROR(INDEX('WINBUGS data'!$F$17:$ZZ$65,MATCH(C8,'WINBUGS data'!$F$17:$F$65,0),MATCH("na[]",'WINBUGS data'!$F$16:$ZZ$16,0)),"") -> 2 | E8: 1,2 | F8: =IFERROR(INDEX('WINBUGS data'!$F$17:$ZZ$65,MATCH($C8,'WINBUGS data'!$F$17:$F$65,0),MATCH("t[,"&F$4 &"]",'WINBUGS data'!$F$16:$ZZ$16,0)),"") -> 1 | G8: =IFERROR(INDEX('WINBUGS data'!$F$17:$ZZ$65,MATCH($C8,'WINBUGS data'!$F$17:$F$65,0),MATCH("t[,"&G$4 &"]",'WINBUGS data'!$F$16:$ZZ$16,0)),"") -> 2 | H8: =IFERROR(INDEX('WINBUGS data'!$F$17:$ZZ$65,MATCH($C8,'WINBUGS data'!$F$17:$F$65,0),MATCH("t[,"&H$4 &"]",'WINBUGS data'!$F$16:$ZZ$16,0)),"") -> NA | I8: =IFERROR(INDEX('WINBUGS data'!$F$17:$ZZ$65,MATCH($C8,'WINBUGS data'!$F$17:$F$65,0),MATCH("t[,"&I$4 &"]",'WINBUGS data'!$F$16:$ZZ$16,0)),"") -> NA | J8: =IFERROR(INDEX('WINBUGS data'!$F$17:$ZZ$65,MATCH($C8,'WINBUGS data'!$F$17:$F$65,0),MATCH("t[,"&J$4 &"]",'WINBUGS data'!$F$16:$ZZ$16,0)),"") -> NA | K8: =IFERROR(INDEX('WINBUGS data'!$F$17:$ZZ$65,MATCH($C8,'WINBUGS data'!$F$17:$F$65,0),MATCH("t[,"&K$4 &"]",'WINBUGS data'!$F$16:$ZZ$16,0)),"") ->  | L8: =IFERROR(INDEX('WINBUGS data'!$F$17:$ZZ$65,MATCH($C8,'WINBUGS data'!$F$17:$F$65,0),MATCH("t[,"&L$4 &"]",'WINBUGS data'!$F$16:$ZZ$16,0)),"") ->  | M8: =IFERROR(INDEX('WINBUGS data'!$F$17:$ZZ$65,MATCH($C8,'WINBUGS data'!$F$17:$F$65,0),MATCH("t[,"&M$4 &"]",'WINBUGS data'!$F$16:$ZZ$16,0)),"") ->  | N8: =IFERROR(INDEX('WINBUGS data'!$F$17:$ZZ$65,MATCH($C8,'WINBUGS data'!$F$17:$F$65,0),MATCH("t[,"&N$4 &"]",'WINBUGS data'!$F$16:$ZZ$16,0)),"") ->  | O8: =IFERROR(INDEX('WINBUGS data'!$F$17:$ZZ$65,MATCH($C8,'WINBUGS data'!$F$17:$F$65,0),MATCH("t[,"&O$4 &"]",'WINBUGS data'!$F$16:$ZZ$16,0)),"") ->  | P8: =IFERROR(INDEX('WINBUGS data'!$F$17:$ZZ$65,MATCH($C8,'WINBUGS data'!$F$17:$F$65,0),MATCH("t[,"&P$4 &"]",'WINBUGS data'!$F$16:$ZZ$16,0)),"") ->  | Q8: =IFERROR(INDEX('WINBUGS data'!$F$17:$ZZ$65,MATCH($C8,'WINBUGS data'!$F$17:$F$65,0),MATCH("t[,"&Q$4 &"]",'WINBUGS data'!$F$16:$ZZ$16,0)),"") ->  | R8: =IFERROR(INDEX('WINBUGS data'!$F$17:$ZZ$65,MATCH($C8,'WINBUGS data'!$F$17:$F$65,0),MATCH("t[,"&R$4 &"]",'WINBUGS data'!$F$16:$ZZ$16,0)),"") ->  | S8: =IFERROR(INDEX('WINBUGS data'!$F$17:$ZZ$65,MATCH($C8,'WINBUGS data'!$F$17:$F$65,0),MATCH("t[,"&S$4 &"]",'WINBUGS data'!$F$16:$ZZ$16,0)),"") ->  | T8: =IFERROR(INDEX('WINBUGS data'!$F$17:$ZZ$65,MATCH($C8,'WINBUGS data'!$F$17:$F$65,0),MATCH("t[,"&T$4 &"]",'WINBUGS data'!$F$16:$ZZ$16,0)),"") -> 
B9: 0.3635906279 | C9: =IF('WINBUGS data'!F21<>"",'WINBUGS data'!F21,"") -> 5 | D9: =IFERROR(INDEX('WINBUGS data'!$F$17:$ZZ$65,MATCH(C9,'WINBUGS data'!$F$17:$F$65,0),MATCH("na[]",'WINBUGS data'!$F$16:$ZZ$16,0)),"") -> 2 | E9: 1,2 | F9: =IFERROR(INDEX('WINBUGS data'!$F$17:$ZZ$65,MATCH($C9,'WINBUGS data'!$F$17:$F$65,0),MATCH("t[,"&F$4 &"]",'WINBUGS data'!$F$16:$ZZ$16,0)),"") -> 1 | G9: =IFERROR(INDEX('WINBUGS data'!$F$17:$ZZ$65,MATCH($C9,'WINBUGS data'!$F$17:$F$65,0),MATCH("t[,"&G$4 &"]",'WINBUGS data'!$F$16:$ZZ$16,0)),"") -> 2 | H9: =IFERROR(INDEX('WINBUGS data'!$F$17:$ZZ$65,MATCH($C9,'WINBUGS data'!$F$17:$F$65,0),MATCH("t[,"&H$4 &"]",'WINBUGS data'!$F$16:$ZZ$16,0)),"") -> NA | I9: =IFERROR(INDEX('WINBUGS data'!$F$17:$ZZ$65,MATCH($C9,'WINBUGS data'!$F$17:$F$65,0),MATCH("t[,"&I$4 &"]",'WINBUGS data'!$F$16:$ZZ$16,0)),"") -> NA | J9: =IFERROR(INDEX('WINBUGS data'!$F$17:$ZZ$65,MATCH($C9,'WINBUGS data'!$F$17:$F$65,0),MATCH("t[,"&J$4 &"]",'WINBUGS data'!$F$16:$ZZ$16,0)),"") -> NA | K9: =IFERROR(INDEX('WINBUGS data'!$F$17:$ZZ$65,MATCH($C9,'WINBUGS data'!$F$17:$F$65,0),MATCH("t[,"&K$4 &"]",'WINBUGS data'!$F$16:$ZZ$16,0)),"") ->  | L9: =IFERROR(INDEX('WINBUGS data'!$F$17:$ZZ$65,MATCH($C9,'WINBUGS data'!$F$17:$F$65,0),MATCH("t[,"&L$4 &"]",'WINBUGS data'!$F$16:$ZZ$16,0)),"") ->  | M9: =IFERROR(INDEX('WINBUGS data'!$F$17:$ZZ$65,MATCH($C9,'WINBUGS data'!$F$17:$F$65,0),MATCH("t[,"&M$4 &"]",'WINBUGS data'!$F$16:$ZZ$16,0)),"") ->  | N9: =IFERROR(INDEX('WINBUGS data'!$F$17:$ZZ$65,MATCH($C9,'WINBUGS data'!$F$17:$F$65,0),MATCH("t[,"&N$4 &"]",'WINBUGS data'!$F$16:$ZZ$16,0)),"") ->  | O9: =IFERROR(INDEX('WINBUGS data'!$F$17:$ZZ$65,MATCH($C9,'WINBUGS data'!$F$17:$F$65,0),MATCH("t[,"&O$4 &"]",'WINBUGS data'!$F$16:$ZZ$16,0)),"") ->  | P9: =IFERROR(INDEX('WINBUGS data'!$F$17:$ZZ$65,MATCH($C9,'WINBUGS data'!$F$17:$F$65,0),MATCH("t[,"&P$4 &"]",'WINBUGS data'!$F$16:$ZZ$16,0)),"") ->  | Q9: =IFERROR(INDEX('WINBUGS data'!$F$17:$ZZ$65,MATCH($C9,'WINBUGS data'!$F$17:$F$65,0),MATCH("t[,"&Q$4 &"]",'WINBUGS data'!$F$16:$ZZ$16,0)),"") ->  | R9: =IFERROR(INDEX('WINBUGS data'!$F$17:$ZZ$65,MATCH($C9,'WINBUGS data'!$F$17:$F$65,0),MATCH("t[,"&R$4 &"]",'WINBUGS data'!$F$16:$ZZ$16,0)),"") ->  | S9: =IFERROR(INDEX('WINBUGS data'!$F$17:$ZZ$65,MATCH($C9,'WINBUGS data'!$F$17:$F$65,0),MATCH("t[,"&S$4 &"]",'WINBUGS data'!$F$16:$ZZ$16,0)),"") ->  | T9: =IFERROR(INDEX('WINBUGS data'!$F$17:$ZZ$65,MATCH($C9,'WINBUGS data'!$F$17:$F$65,0),MATCH("t[,"&T$4 &"]",'WINBUGS data'!$F$16:$ZZ$16,0)),"") -> 
B10: 0.4037106633 | C10: =IF('WINBUGS data'!F22<>"",'WINBUGS data'!F22,"") -> 6 | D10: =IFERROR(INDEX('WINBUGS data'!$F$17:$ZZ$65,MATCH(C10,'WINBUGS data'!$F$17:$F$65,0),MATCH("na[]",'WINBUGS data'!$F$16:$ZZ$16,0)),"") -> 3 | E10: 1,2,3 | F10: =IFERROR(INDEX('WINBUGS data'!$F$17:$ZZ$65,MATCH($C10,'WINBUGS data'!$F$17:$F$65,0),MATCH("t[,"&F$4 &"]",'WINBUGS data'!$F$16:$ZZ$16,0)),"") -> 1 | G10: =IFERROR(INDEX('WINBUGS data'!$F$17:$ZZ$65,MATCH($C10,'WINBUGS data'!$F$17:$F$65,0),MATCH("t[,"&G$4 &"]",'WINBUGS data'!$F$16:$ZZ$16,0)),"") -> 2 | H10: =IFERROR(INDEX('WINBUGS data'!$F$17:$ZZ$65,MATCH($C10,'WINBUGS data'!$F$17:$F$65,0),MATCH("t[,"&H$4 &"]",'WINBUGS data'!$F$16:$ZZ$16,0)),"") -> 3 | I10: =IFERROR(INDEX('WINBUGS data'!$F$17:$ZZ$65,MATCH($C10,'WINBUGS data'!$F$17:$F$65,0),MATCH("t[,"&I$4 &"]",'WINBUGS data'!$F$16:$ZZ$16,0)),"") -> NA | J10: =IFERROR(INDEX('WINBUGS data'!$F$17:$ZZ$65,MATCH($C10,'WINBUGS data'!$F$17:$F$65,0),MATCH("t[,"&J$4 &"]",'WINBUGS data'!$F$16:$ZZ$16,0)),"") -> NA | K10: =IFERROR(INDEX('WINBUGS data'!$F$17:$ZZ$65,MATCH($C10,'WINBUGS data'!$F$17:$F$65,0),MATCH("t[,"&K$4 &"]",'WINBUGS data'!$F$16:$ZZ$16,0)),"") ->  | L10: =IFERROR(INDEX('WINBUGS data'!$F$17:$ZZ$65,MATCH($C10,'WINBUGS data'!$F$17:$F$65,0),MATCH("t[,"&L$4 &"]",'WINBUGS data'!$F$16:$ZZ$16,0)),"") ->  | M10: =IFERROR(INDEX('WINBUGS data'!$F$17:$ZZ$65,MATCH($C10,'WINBUGS data'!$F$17:$F$65,0),MATCH("t[,"&M$4 &"]",'WINBUGS data'!$F$16:$ZZ$16,0)),"") ->  | N10: =IFERROR(INDEX('WINBUGS data'!$F$17:$ZZ$65,MATCH($C10,'WINBUGS data'!$F$17:$F$65,0),MATCH("t[,"&N$4 &"]",'WINBUGS data'!$F$16:$ZZ$16,0)),"") ->  | O10: =IFERROR(INDEX('WINBUGS data'!$F$17:$ZZ$65,MATCH($C10,'WINBUGS data'!$F$17:$F$65,0),MATCH("t[,"&O$4 &"]",'WINBUGS data'!$F$16:$ZZ$16,0)),"") ->  | P10: =IFERROR(INDEX('WINBUGS data'!$F$17:$ZZ$65,MATCH($C10,'WINBUGS data'!$F$17:$F$65,0),MATCH("t[,"&P$4 &"]",'WINBUGS data'!$F$16:$ZZ$16,0)),"") ->  | Q10: =IFERROR(INDEX('WINBUGS data'!$F$17:$ZZ$65,MATCH($C10,'WINBUGS data'!$F$17:$F$65,0),MATCH("t[,"&Q$4 &"]",'WINBUGS data'!$F$16:$ZZ$16,0)),"") ->  | R10: =IFERROR(INDEX('WINBUGS data'!$F$17:$ZZ$65,MATCH($C10,'WINBUGS data'!$F$17:$F$65,0),MATCH("t[,"&R$4 &"]",'WINBUGS data'!$F$16:$ZZ$16,0)),"") ->  | S10: =IFERROR(INDEX('WINBUGS data'!$F$17:$ZZ$65,MATCH($C10,'WINBUGS data'!$F$17:$F$65,0),MATCH("t[,"&S$4 &"]",'WINBUGS data'!$F$16:$ZZ$16,0)),"") ->  | T10: =IFERROR(INDEX('WINBUGS data'!$F$17:$ZZ$65,MATCH($C10,'WINBUGS data'!$F$17:$F$65,0),MATCH("t[,"&T$4 &"]",'WINBUGS data'!$F$16:$ZZ$16,0)),"") -> 
B11: 0.4182328284 | C11: =IF('WINBUGS data'!F23<>"",'WINBUGS data'!F23,"") -> 7 | D11: =IFERROR(INDEX('WINBUGS data'!$F$17:$ZZ$65,MATCH(C11,'WINBUGS data'!$F$17:$F$65,0),MATCH("na[]",'WINBUGS data'!$F$16:$ZZ$16,0)),"") -> 2 | E11: 1,3 | F11: =IFERROR(INDEX('WINBUGS data'!$F$17:$ZZ$65,MATCH($C11,'WINBUGS data'!$F$17:$F$65,0),MATCH("t[,"&F$4 &"]",'WINBUGS data'!$F$16:$ZZ$16,0)),"") -> 1 | G11: =IFERROR(INDEX('WINBUGS data'!$F$17:$ZZ$65,MATCH($C11,'WINBUGS data'!$F$17:$F$65,0),MATCH("t[,"&G$4 &"]",'WINBUGS data'!$F$16:$ZZ$16,0)),"") -> 3 | H11: =IFERROR(INDEX('WINBUGS data'!$F$17:$ZZ$65,MATCH($C11,'WINBUGS data'!$F$17:$F$65,0),MATCH("t[,"&H$4 &"]",'WINBUGS data'!$F$16:$ZZ$16,0)),"") -> NA | I11: =IFERROR(INDEX('WINBUGS data'!$F$17:$ZZ$65,MATCH($C11,'WINBUGS data'!$F$17:$F$65,0),MATCH("t[,"&I$4 &"]",'WINBUGS data'!$F$16:$ZZ$16,0)),"") -> NA | J11: =IFERROR(INDEX('WINBUGS data'!$F$17:$ZZ$65,MATCH($C11,'WINBUGS data'!$F$17:$F$65,0),MATCH("t[,"&J$4 &"]",'WINBUGS data'!$F$16:$ZZ$16,0)),"") -> NA | K11: =IFERROR(INDEX('WINBUGS data'!$F$17:$ZZ$65,MATCH($C11,'WINBUGS data'!$F$17:$F$65,0),MATCH("t[,"&K$4 &"]",'WINBUGS data'!$F$16:$ZZ$16,0)),"") ->  | L11: =IFERROR(INDEX('WINBUGS data'!$F$17:$ZZ$65,MATCH($C11,'WINBUGS data'!$F$17:$F$65,0),MATCH("t[,"&L$4 &"]",'WINBUGS data'!$F$16:$ZZ$16,0)),"") ->  | M11: =IFERROR(INDEX('WINBUGS data'!$F$17:$ZZ$65,MATCH($C11,'WINBUGS data'!$F$17:$F$65,0),MATCH("t[,"&M$4 &"]",'WINBUGS data'!$F$16:$ZZ$16,0)),"") ->  | N11: =IFERROR(INDEX('WINBUGS data'!$F$17:$ZZ$65,MATCH($C11,'WINBUGS data'!$F$17:$F$65,0),MATCH("t[,"&N$4 &"]",'WINBUGS data'!$F$16:$ZZ$16,0)),"") ->  | O11: =IFERROR(INDEX('WINBUGS data'!$F$17:$ZZ$65,MATCH($C11,'WINBUGS data'!$F$17:$F$65,0),MATCH("t[,"&O$4 &"]",'WINBUGS data'!$F$16:$ZZ$16,0)),"") ->  | P11: =IFERROR(INDEX('WINBUGS data'!$F$17:$ZZ$65,MATCH($C11,'WINBUGS data'!$F$17:$F$65,0),MATCH("t[,"&P$4 &"]",'WINBUGS data'!$F$16:$ZZ$16,0)),"") ->  | Q11: =IFERROR(INDEX('WINBUGS data'!$F$17:$ZZ$65,MATCH($C11,'WINBUGS data'!$F$17:$F$65,0),MATCH("t[,"&Q$4 &"]",'WINBUGS data'!$F$16:$ZZ$16,0)),"") ->  | R11: =IFERROR(INDEX('WINBUGS data'!$F$17:$ZZ$65,MATCH($C11,'WINBUGS data'!$F$17:$F$65,0),MATCH("t[,"&R$4 &"]",'WINBUGS data'!$F$16:$ZZ$16,0)),"") ->  | S11: =IFERROR(INDEX('WINBUGS data'!$F$17:$ZZ$65,MATCH($C11,'WINBUGS data'!$F$17:$F$65,0),MATCH("t[,"&S$4 &"]",'WINBUGS data'!$F$16:$ZZ$16,0)),"") ->  | T11: =IFERROR(INDEX('WINBUGS data'!$F$17:$ZZ$65,MATCH($C11,'WINBUGS data'!$F$17:$F$65,0),MATCH("t[,"&T$4 &"]",'WINBUGS data'!$F$16:$ZZ$16,0)),"") -> 
B12: 0.2682639956 | C12: =IF('WINBUGS data'!F24<>"",'WINBUGS data'!F24,"") -> 8 | D12: =IFERROR(INDEX('WINBUGS data'!$F$17:$ZZ$65,MATCH(C12,'WINBUGS data'!$F$17:$F$65,0),MATCH("na[]",'WINBUGS data'!$F$16:$ZZ$16,0)),"") -> 2 | E12: 1,3 | F12: =IFERROR(INDEX('WINBUGS data'!$F$17:$ZZ$65,MATCH($C12,'WINBUGS data'!$F$17:$F$65,0),MATCH("t[,"&F$4 &"]",'WINBUGS data'!$F$16:$ZZ$16,0)),"") -> 1 | G12: =IFERROR(INDEX('WINBUGS data'!$F$17:$ZZ$65,MATCH($C12,'WINBUGS data'!$F$17:$F$65,0),MATCH("t[,"&G$4 &"]",'WINBUGS data'!$F$16:$ZZ$16,0)),"") -> 3 | H12: =IFERROR(INDEX('WINBUGS data'!$F$17:$ZZ$65,MATCH($C12,'WINBUGS data'!$F$17:$F$65,0),MATCH("t[,"&H$4 &"]",'WINBUGS data'!$F$16:$ZZ$16,0)),"") -> NA | I12: =IFERROR(INDEX('WINBUGS data'!$F$17:$ZZ$65,MATCH($C12,'WINBUGS data'!$F$17:$F$65,0),MATCH("t[,"&I$4 &"]",'WINBUGS data'!$F$16:$ZZ$16,0)),"") -> NA | J12: =IFERROR(INDEX('WINBUGS data'!$F$17:$ZZ$65,MATCH($C12,'WINBUGS data'!$F$17:$F$65,0),MATCH("t[,"&J$4 &"]",'WINBUGS data'!$F$16:$ZZ$16,0)),"") -> NA | K12: =IFERROR(INDEX('WINBUGS data'!$F$17:$ZZ$65,MATCH($C12,'WINBUGS data'!$F$17:$F$65,0),MATCH("t[,"&K$4 &"]",'WINBUGS data'!$F$16:$ZZ$16,0)),"") ->  | L12: =IFERROR(INDEX('WINBUGS data'!$F$17:$ZZ$65,MATCH($C12,'WINBUGS data'!$F$17:$F$65,0),MATCH("t[,"&L$4 &"]",'WINBUGS data'!$F$16:$ZZ$16,0)),"") ->  | M12: =IFERROR(INDEX('WINBUGS data'!$F$17:$ZZ$65,MATCH($C12,'WINBUGS data'!$F$17:$F$65,0),MATCH("t[,"&M$4 &"]",'WINBUGS data'!$F$16:$ZZ$16,0)),"") ->  | N12: =IFERROR(INDEX('WINBUGS data'!$F$17:$ZZ$65,MATCH($C12,'WINBUGS data'!$F$17:$F$65,0),MATCH("t[,"&N$4 &"]",'WINBUGS data'!$F$16:$ZZ$16,0)),"") ->  | O12: =IFERROR(INDEX('WINBUGS data'!$F$17:$ZZ$65,MATCH($C12,'WINBUGS data'!$F$17:$F$65,0),MATCH("t[,"&O$4 &"]",'WINBUGS data'!$F$16:$ZZ$16,0)),"") ->  | P12: =IFERROR(INDEX('WINBUGS data'!$F$17:$ZZ$65,MATCH($C12,'WINBUGS data'!$F$17:$F$65,0),MATCH("t[,"&P$4 &"]",'WINBUGS data'!$F$16:$ZZ$16,0)),"") ->  | Q12: =IFERROR(INDEX('WINBUGS data'!$F$17:$ZZ$65,MATCH($C12,'WINBUGS data'!$F$17:$F$65,0),MATCH("t[,"&Q$4 &"]",'WINBUGS data'!$F$16:$ZZ$16,0)),"") ->  | R12: =IFERROR(INDEX('WINBUGS data'!$F$17:$ZZ$65,MATCH($C12,'WINBUGS data'!$F$17:$F$65,0),MATCH("t[,"&R$4 &"]",'WINBUGS data'!$F$16:$ZZ$16,0)),"") ->  | S12: =IFERROR(INDEX('WINBUGS data'!$F$17:$ZZ$65,MATCH($C12,'WINBUGS data'!$F$17:$F$65,0),MATCH("t[,"&S$4 &"]",'WINBUGS data'!$F$16:$ZZ$16,0)),"") ->  | T12: =IFERROR(INDEX('WINBUGS data'!$F$17:$ZZ$65,MATCH($C12,'WINBUGS data'!$F$17:$F$65,0),MATCH("t[,"&T$4 &"]",'WINBUGS data'!$F$16:$ZZ$16,0)),"") -> 
B13: 0.2564799786 | C13: =IF('WINBUGS data'!F25<>"",'WINBUGS data'!F25,"") -> 9 | D13: =IFERROR(INDEX('WINBUGS data'!$F$17:$ZZ$65,MATCH(C13,'WINBUGS data'!$F$17:$F$65,0),MATCH("na[]",'WINBUGS data'!$F$16:$ZZ$16,0)),"") -> 2 | E13: 1,3 | F13: =IFERROR(INDEX('WINBUGS data'!$F$17:$ZZ$65,MATCH($C13,'WINBUGS data'!$F$17:$F$65,0),MATCH("t[,"&F$4 &"]",'WINBUGS data'!$F$16:$ZZ$16,0)),"") -> 1 | G13: =IFERROR(INDEX('WINBUGS data'!$F$17:$ZZ$65,MATCH($C13,'WINBUGS data'!$F$17:$F$65,0),MATCH("t[,"&G$4 &"]",'WINBUGS data'!$F$16:$ZZ$16,0)),"") -> 3 | H13: =IFERROR(INDEX('WINBUGS data'!$F$17:$ZZ$65,MATCH($C13,'WINBUGS data'!$F$17:$F$65,0),MATCH("t[,"&H$4 &"]",'WINBUGS data'!$F$16:$ZZ$16,0)),"") -> NA | I13: =IFERROR(INDEX('WINBUGS data'!$F$17:$ZZ$65,MATCH($C13,'WINBUGS data'!$F$17:$F$65,0),MATCH("t[,"&I$4 &"]",'WINBUGS data'!$F$16:$ZZ$16,0)),"") -> NA | J13: =IFERROR(INDEX('WINBUGS data'!$F$17:$ZZ$65,MATCH($C13,'WINBUGS data'!$F$17:$F$65,0),MATCH("t[,"&J$4 &"]",'WINBUGS data'!$F$16:$ZZ$16,0)),"") -> NA | K13: =IFERROR(INDEX('WINBUGS data'!$F$17:$ZZ$65,MATCH($C13,'WINBUGS data'!$F$17:$F$65,0),MATCH("t[,"&K$4 &"]",'WINBUGS data'!$F$16:$ZZ$16,0)),"") ->  | L13: =IFERROR(INDEX('WINBUGS data'!$F$17:$ZZ$65,MATCH($C13,'WINBUGS data'!$F$17:$F$65,0),MATCH("t[,"&L$4 &"]",'WINBUGS data'!$F$16:$ZZ$16,0)),"") ->  | M13: =IFERROR(INDEX('WINBUGS data'!$F$17:$ZZ$65,MATCH($C13,'WINBUGS data'!$F$17:$F$65,0),MATCH("t[,"&M$4 &"]",'WINBUGS data'!$F$16:$ZZ$16,0)),"") ->  | N13: =IFERROR(INDEX('WINBUGS data'!$F$17:$ZZ$65,MATCH($C13,'WINBUGS data'!$F$17:$F$65,0),MATCH("t[,"&N$4 &"]",'WINBUGS data'!$F$16:$ZZ$16,0)),"") ->  | O13: =IFERROR(INDEX('WINBUGS data'!$F$17:$ZZ$65,MATCH($C13,'WINBUGS data'!$F$17:$F$65,0),MATCH("t[,"&O$4 &"]",'WINBUGS data'!$F$16:$ZZ$16,0)),"") ->  | P13: =IFERROR(INDEX('WINBUGS data'!$F$17:$ZZ$65,MATCH($C13,'WINBUGS data'!$F$17:$F$65,0),MATCH("t[,"&P$4 &"]",'WINBUGS data'!$F$16:$ZZ$16,0)),"") ->  | Q13: =IFERROR(INDEX('WINBUGS data'!$F$17:$ZZ$65,MATCH($C13,'WINBUGS data'!$F$17:$F$65,0),MATCH("t[,"&Q$4 &"]",'WINBUGS data'!$F$16:$ZZ$16,0)),"") ->  | R13: =IFERROR(INDEX('WINBUGS data'!$F$17:$ZZ$65,MATCH($C13,'WINBUGS data'!$F$17:$F$65,0),MATCH("t[,"&R$4 &"]",'WINBUGS data'!$F$16:$ZZ$16,0)),"") ->  | S13: =IFERROR(INDEX('WINBUGS data'!$F$17:$ZZ$65,MATCH($C13,'WINBUGS data'!$F$17:$F$65,0),MATCH("t[,"&S$4 &"]",'WINBUGS data'!$F$16:$ZZ$16,0)),"") ->  | T13: =IFERROR(INDEX('WINBUGS data'!$F$17:$ZZ$65,MATCH($C13,'WINBUGS data'!$F$17:$F$65,0),MATCH("t[,"&T$4 &"]",'WINBUGS data'!$F$16:$ZZ$16,0)),"") -> 
B14: 0.1762792468 | C14: =IF('WINBUGS data'!F26<>"",'WINBUGS data'!F26,"") -> 10 | D14: =IFERROR(INDEX('WINBUGS data'!$F$17:$ZZ$65,MATCH(C14,'WINBUGS data'!$F$17:$F$65,0),MATCH("na[]",'WINBUGS data'!$F$16:$ZZ$16,0)),"") -> 2 | E14: 1,3 | F14: =IFERROR(INDEX('WINBUGS data'!$F$17:$ZZ$65,MATCH($C14,'WINBUGS data'!$F$17:$F$65,0),MATCH("t[,"&F$4 &"]",'WINBUGS data'!$F$16:$ZZ$16,0)),"") -> 1 | G14: =IFERROR(INDEX('WINBUGS data'!$F$17:$ZZ$65,MATCH($C14,'WINBUGS data'!$F$17:$F$65,0),MATCH("t[,"&G$4 &"]",'WINBUGS data'!$F$16:$ZZ$16,0)),"") -> 3 | H14: =IFERROR(INDEX('WINBUGS data'!$F$17:$ZZ$65,MATCH($C14,'WINBUGS data'!$F$17:$F$65,0),MATCH("t[,"&H$4 &"]",'WINBUGS data'!$F$16:$ZZ$16,0)),"") -> NA | I14: =IFERROR(INDEX('WINBUGS data'!$F$17:$ZZ$65,MATCH($C14,'WINBUGS data'!$F$17:$F$65,0),MATCH("t[,"&I$4 &"]",'WINBUGS data'!$F$16:$ZZ$16,0)),"") -> NA | J14: =IFERROR(INDEX('WINBUGS data'!$F$17:$ZZ$65,MATCH($C14,'WINBUGS data'!$F$17:$F$65,0),MATCH("t[,"&J$4 &"]",'WINBUGS data'!$F$16:$ZZ$16,0)),"") -> NA | K14: =IFERROR(INDEX('WINBUGS data'!$F$17:$ZZ$65,MATCH($C14,'WINBUGS data'!$F$17:$F$65,0),MATCH("t[,"&K$4 &"]",'WINBUGS data'!$F$16:$ZZ$16,0)),"") ->  | L14: =IFERROR(INDEX('WINBUGS data'!$F$17:$ZZ$65,MATCH($C14,'WINBUGS data'!$F$17:$F$65,0),MATCH("t[,"&L$4 &"]",'WINBUGS data'!$F$16:$ZZ$16,0)),"") ->  | M14: =IFERROR(INDEX('WINBUGS data'!$F$17:$ZZ$65,MATCH($C14,'WINBUGS data'!$F$17:$F$65,0),MATCH("t[,"&M$4 &"]",'WINBUGS data'!$F$16:$ZZ$16,0)),"") ->  | N14: =IFERROR(INDEX('WINBUGS data'!$F$17:$ZZ$65,MATCH($C14,'WINBUGS data'!$F$17:$F$65,0),MATCH("t[,"&N$4 &"]",'WINBUGS data'!$F$16:$ZZ$16,0)),"") ->  | O14: =IFERROR(INDEX('WINBUGS data'!$F$17:$ZZ$65,MATCH($C14,'WINBUGS data'!$F$17:$F$65,0),MATCH("t[,"&O$4 &"]",'WINBUGS data'!$F$16:$ZZ$16,0)),"") ->  | P14: =IFERROR(INDEX('WINBUGS data'!$F$17:$ZZ$65,MATCH($C14,'WINBUGS data'!$F$17:$F$65,0),MATCH("t[,"&P$4 &"]",'WINBUGS data'!$F$16:$ZZ$16,0)),"") ->  | Q14: =IFERROR(INDEX('WINBUGS data'!$F$17:$ZZ$65,MATCH($C14,'WINBUGS data'!$F$17:$F$65,0),MATCH("t[,"&Q$4 &"]",'WINBUGS data'!$F$16:$ZZ$16,0)),"") ->  | R14: =IFERROR(INDEX('WINBUGS data'!$F$17:$ZZ$65,MATCH($C14,'WINBUGS data'!$F$17:$F$65,0),MATCH("t[,"&R$4 &"]",'WINBUGS data'!$F$16:$ZZ$16,0)),"") ->  | S14: =IFERROR(INDEX('WINBUGS data'!$F$17:$ZZ$65,MATCH($C14,'WINBUGS data'!$F$17:$F$65,0),MATCH("t[,"&S$4 &"]",'WINBUGS data'!$F$16:$ZZ$16,0)),"") ->  | T14: =IFERROR(INDEX('WINBUGS data'!$F$17:$ZZ$65,MATCH($C14,'WINBUGS data'!$F$17:$F$65,0),MATCH("t[,"&T$4 &"]",'WINBUGS data'!$F$16:$ZZ$16,0)),"") -> 
B15: 0.3962925673 | C15: =IF('WINBUGS data'!F27<>"",'WINBUGS data'!F27,"") -> 11 | D15: =IFERROR(INDEX('WINBUGS data'!$F$17:$ZZ$65,MATCH(C15,'WINBUGS data'!$F$17:$F$65,0),MATCH("na[]",'WINBUGS data'!$F$16:$ZZ$16,0)),"") -> 2 | E15: 2,3 | F15: =IFERROR(INDEX('WINBUGS data'!$F$17:$ZZ$65,MATCH($C15,'WINBUGS data'!$F$17:$F$65,0),MATCH("t[,"&F$4 &"]",'WINBUGS data'!$F$16:$ZZ$16,0)),"") -> 2 | G15: =IFERROR(INDEX('WINBUGS data'!$F$17:$ZZ$65,MATCH($C15,'WINBUGS data'!$F$17:$F$65,0),MATCH("t[,"&G$4 &"]",'WINBUGS data'!$F$16:$ZZ$16,0)),"") -> 3 | H15: =IFERROR(INDEX('WINBUGS data'!$F$17:$ZZ$65,MATCH($C15,'WINBUGS data'!$F$17:$F$65,0),MATCH("t[,"&H$4 &"]",'WINBUGS data'!$F$16:$ZZ$16,0)),"") -> NA | I15: =IFERROR(INDEX('WINBUGS data'!$F$17:$ZZ$65,MATCH($C15,'WINBUGS data'!$F$17:$F$65,0),MATCH("t[,"&I$4 &"]",'WINBUGS data'!$F$16:$ZZ$16,0)),"") -> NA | J15: =IFERROR(INDEX('WINBUGS data'!$F$17:$ZZ$65,MATCH($C15,'WINBUGS data'!$F$17:$F$65,0),MATCH("t[,"&J$4 &"]",'WINBUGS data'!$F$16:$ZZ$16,0)),"") -> NA | K15: =IFERROR(INDEX('WINBUGS data'!$F$17:$ZZ$65,MATCH($C15,'WINBUGS data'!$F$17:$F$65,0),MATCH("t[,"&K$4 &"]",'WINBUGS data'!$F$16:$ZZ$16,0)),"") ->  | L15: =IFERROR(INDEX('WINBUGS data'!$F$17:$ZZ$65,MATCH($C15,'WINBUGS data'!$F$17:$F$65,0),MATCH("t[,"&L$4 &"]",'WINBUGS data'!$F$16:$ZZ$16,0)),"") ->  | M15: =IFERROR(INDEX('WINBUGS data'!$F$17:$ZZ$65,MATCH($C15,'WINBUGS data'!$F$17:$F$65,0),MATCH("t[,"&M$4 &"]",'WINBUGS data'!$F$16:$ZZ$16,0)),"") ->  | N15: =IFERROR(INDEX('WINBUGS data'!$F$17:$ZZ$65,MATCH($C15,'WINBUGS data'!$F$17:$F$65,0),MATCH("t[,"&N$4 &"]",'WINBUGS data'!$F$16:$ZZ$16,0)),"") ->  | O15: =IFERROR(INDEX('WINBUGS data'!$F$17:$ZZ$65,MATCH($C15,'WINBUGS data'!$F$17:$F$65,0),MATCH("t[,"&O$4 &"]",'WINBUGS data'!$F$16:$ZZ$16,0)),"") ->  | P15: =IFERROR(INDEX('WINBUGS data'!$F$17:$ZZ$65,MATCH($C15,'WINBUGS data'!$F$17:$F$65,0),MATCH("t[,"&P$4 &"]",'WINBUGS data'!$F$16:$ZZ$16,0)),"") ->  | Q15: =IFERROR(INDEX('WINBUGS data'!$F$17:$ZZ$65,MATCH($C15,'WINBUGS data'!$F$17:$F$65,0),MATCH("t[,"&Q$4 &"]",'WINBUGS data'!$F$16:$ZZ$16,0)),"") ->  | R15: =IFERROR(INDEX('WINBUGS data'!$F$17:$ZZ$65,MATCH($C15,'WINBUGS data'!$F$17:$F$65,0),MATCH("t[,"&R$4 &"]",'WINBUGS data'!$F$16:$ZZ$16,0)),"") ->  | S15: =IFERROR(INDEX('WINBUGS data'!$F$17:$ZZ$65,MATCH($C15,'WINBUGS data'!$F$17:$F$65,0),MATCH("t[,"&S$4 &"]",'WINBUGS data'!$F$16:$ZZ$16,0)),"") ->  | T15: =IFERROR(INDEX('WINBUGS data'!$F$17:$ZZ$65,MATCH($C15,'WINBUGS data'!$F$17:$F$65,0),MATCH("t[,"&T$4 &"]",'WINBUGS data'!$F$16:$ZZ$16,0)),"") -> 
B16: 0.1541506797 | C16: =IF('WINBUGS data'!F28<>"",'WINBUGS data'!F28,"") -> 12 | D16: =IFERROR(INDEX('WINBUGS data'!$F$17:$ZZ$65,MATCH(C16,'WINBUGS data'!$F$17:$F$65,0),MATCH("na[]",'WINBUGS data'!$F$16:$ZZ$16,0)),"") -> 4 | E16: 2,3,4,5 | F16: =IFERROR(INDEX('WINBUGS data'!$F$17:$ZZ$65,MATCH($C16,'WINBUGS data'!$F$17:$F$65,0),MATCH("t[,"&F$4 &"]",'WINBUGS data'!$F$16:$ZZ$16,0)),"") -> 2 | G16: =IFERROR(INDEX('WINBUGS data'!$F$17:$ZZ$65,MATCH($C16,'WINBUGS data'!$F$17:$F$65,0),MATCH("t[,"&G$4 &"]",'WINBUGS data'!$F$16:$ZZ$16,0)),"") -> 3 | H16: =IFERROR(INDEX('WINBUGS data'!$F$17:$ZZ$65,MATCH($C16,'WINBUGS data'!$F$17:$F$65,0),MATCH("t[,"&H$4 &"]",'WINBUGS data'!$F$16:$ZZ$16,0)),"") -> 4 | I16: =IFERROR(INDEX('WINBUGS data'!$F$17:$ZZ$65,MATCH($C16,'WINBUGS data'!$F$17:$F$65,0),MATCH("t[,"&I$4 &"]",'WINBUGS data'!$F$16:$ZZ$16,0)),"") -> 5 | J16: =IFERROR(INDEX('WINBUGS data'!$F$17:$ZZ$65,MATCH($C16,'WINBUGS data'!$F$17:$F$65,0),MATCH("t[,"&J$4 &"]",'WINBUGS data'!$F$16:$ZZ$16,0)),"") -> NA | K16: =IFERROR(INDEX('WINBUGS data'!$F$17:$ZZ$65,MATCH($C16,'WINBUGS data'!$F$17:$F$65,0),MATCH("t[,"&K$4 &"]",'WINBUGS data'!$F$16:$ZZ$16,0)),"") ->  | L16: =IFERROR(INDEX('WINBUGS data'!$F$17:$ZZ$65,MATCH($C16,'WINBUGS data'!$F$17:$F$65,0),MATCH("t[,"&L$4 &"]",'WINBUGS data'!$F$16:$ZZ$16,0)),"") ->  | M16: =IFERROR(INDEX('WINBUGS data'!$F$17:$ZZ$65,MATCH($C16,'WINBUGS data'!$F$17:$F$65,0),MATCH("t[,"&M$4 &"]",'WINBUGS data'!$F$16:$ZZ$16,0)),"") ->  | N16: =IFERROR(INDEX('WINBUGS data'!$F$17:$ZZ$65,MATCH($C16,'WINBUGS data'!$F$17:$F$65,0),MATCH("t[,"&N$4 &"]",'WINBUGS data'!$F$16:$ZZ$16,0)),"") ->  | O16: =IFERROR(INDEX('WINBUGS data'!$F$17:$ZZ$65,MATCH($C16,'WINBUGS data'!$F$17:$F$65,0),MATCH("t[,"&O$4 &"]",'WINBUGS data'!$F$16:$ZZ$16,0)),"") ->  | P16: =IFERROR(INDEX('WINBUGS data'!$F$17:$ZZ$65,MATCH($C16,'WINBUGS data'!$F$17:$F$65,0),MATCH("t[,"&P$4 &"]",'WINBUGS data'!$F$16:$ZZ$16,0)),"") ->  | Q16: =IFERROR(INDEX('WINBUGS data'!$F$17:$ZZ$65,MATCH($C16,'WINBUGS data'!$F$17:$F$65,0),MATCH("t[,"&Q$4 &"]",'WINBUGS data'!$F$16:$ZZ$16,0)),"") ->  | R16: =IFERROR(INDEX('WINBUGS data'!$F$17:$ZZ$65,MATCH($C16,'WINBUGS data'!$F$17:$F$65,0),MATCH("t[,"&R$4 &"]",'WINBUGS data'!$F$16:$ZZ$16,0)),"") ->  | S16: =IFERROR(INDEX('WINBUGS data'!$F$17:$ZZ$65,MATCH($C16,'WINBUGS data'!$F$17:$F$65,0),MATCH("t[,"&S$4 &"]",'WINBUGS data'!$F$16:$ZZ$16,0)),"") ->  | T16: =IFERROR(INDEX('WINBUGS data'!$F$17:$ZZ$65,MATCH($C16,'WINBUGS data'!$F$17:$F$65,0),MATCH("t[,"&T$4 &"]",'WINBUGS data'!$F$16:$ZZ$16,0)),"") -> 
C17: =IF('WINBUGS data'!F29<>"",'WINBUGS data'!F29,"") -> 13 | D17: =IFERROR(INDEX('WINBUGS data'!$F$17:$ZZ$65,MATCH(C17,'WINBUGS data'!$F$17:$F$65,0),MATCH("na[]",'WINBUGS data'!$F$16:$ZZ$16,0)),"") -> 3 | E17: 2,3,4 | F17: =IFERROR(INDEX('WINBUGS data'!$F$17:$ZZ$65,MATCH($C17,'WINBUGS data'!$F$17:$F$65,0),MATCH("t[,"&F$4 &"]",'WINBUGS data'!$F$16:$ZZ$16,0)),"") -> 2 | G17: =IFERROR(INDEX('WINBUGS data'!$F$17:$ZZ$65,MATCH($C17,'WINBUGS data'!$F$17:$F$65,0),MATCH("t[,"&G$4 &"]",'WINBUGS data'!$F$16:$ZZ$16,0)),"") -> 3 | H17: =IFERROR(INDEX('WINBUGS data'!$F$17:$ZZ$65,MATCH($C17,'WINBUGS data'!$F$17:$F$65,0),MATCH("t[,"&H$4 &"]",'WINBUGS data'!$F$16:$ZZ$16,0)),"") -> 4 | I17: =IFERROR(INDEX('WINBUGS data'!$F$17:$ZZ$65,MATCH($C17,'WINBUGS data'!$F$17:$F$65,0),MATCH("t[,"&I$4 &"]",'WINBUGS data'!$F$16:$ZZ$16,0)),"") -> NA | J17: =IFERROR(INDEX('WINBUGS data'!$F$17:$ZZ$65,MATCH($C17,'WINBUGS data'!$F$17:$F$65,0),MATCH("t[,"&J$4 &"]",'WINBUGS data'!$F$16:$ZZ$16,0)),"") -> NA | K17: =IFERROR(INDEX('WINBUGS data'!$F$17:$ZZ$65,MATCH($C17,'WINBUGS data'!$F$17:$F$65,0),MATCH("t[,"&K$4 &"]",'WINBUGS data'!$F$16:$ZZ$16,0)),"") ->  | L17: =IFERROR(INDEX('WINBUGS data'!$F$17:$ZZ$65,MATCH($C17,'WINBUGS data'!$F$17:$F$65,0),MATCH("t[,"&L$4 &"]",'WINBUGS data'!$F$16:$ZZ$16,0)),"") ->  | M17: =IFERROR(INDEX('WINBUGS data'!$F$17:$ZZ$65,MATCH($C17,'WINBUGS data'!$F$17:$F$65,0),MATCH("t[,"&M$4 &"]",'WINBUGS data'!$F$16:$ZZ$16,0)),"") ->  | N17: =IFERROR(INDEX('WINBUGS data'!$F$17:$ZZ$65,MATCH($C17,'WINBUGS data'!$F$17:$F$65,0),MATCH("t[,"&N$4 &"]",'WINBUGS data'!$F$16:$ZZ$16,0)),"") ->  | O17: =IFERROR(INDEX('WINBUGS data'!$F$17:$ZZ$65,MATCH($C17,'WINBUGS data'!$F$17:$F$65,0),MATCH("t[,"&O$4 &"]",'WINBUGS data'!$F$16:$ZZ$16,0)),"") ->  | P17: =IFERROR(INDEX('WINBUGS data'!$F$17:$ZZ$65,MATCH($C17,'WINBUGS data'!$F$17:$F$65,0),MATCH("t[,"&P$4 &"]",'WINBUGS data'!$F$16:$ZZ$16,0)),"") ->  | Q17: =IFERROR(INDEX('WINBUGS data'!$F$17:$ZZ$65,MATCH($C17,'WINBUGS data'!$F$17:$F$65,0),MATCH("t[,"&Q$4 &"]",'WINBUGS data'!$F$16:$ZZ$16,0)),"") ->  | R17: =IFERROR(INDEX('WINBUGS data'!$F$17:$ZZ$65,MATCH($C17,'WINBUGS data'!$F$17:$F$65,0),MATCH("t[,"&R$4 &"]",'WINBUGS data'!$F$16:$ZZ$16,0)),"") ->  | S17: =IFERROR(INDEX('WINBUGS data'!$F$17:$ZZ$65,MATCH($C17,'WINBUGS data'!$F$17:$F$65,0),MATCH("t[,"&S$4 &"]",'WINBUGS data'!$F$16:$ZZ$16,0)),"") ->  | T17: =IFERROR(INDEX('WINBUGS data'!$F$17:$ZZ$65,MATCH($C17,'WINBUGS data'!$F$17:$F$65,0),MATCH("t[,"&T$4 &"]",'WINBUGS data'!$F$16:$ZZ$16,0)),"") -> 
C18: =IF('WINBUGS data'!F30<>"",'WINBUGS data'!F30,"") -> 14 | D18: =IFERROR(INDEX('WINBUGS data'!$F$17:$ZZ$65,MATCH(C18,'WINBUGS data'!$F$17:$F$65,0),MATCH("na[]",'WINBUGS data'!$F$16:$ZZ$16,0)),"") -> 2 | E18: 2,5 | F18: =IFERROR(INDEX('WINBUGS data'!$F$17:$ZZ$65,MATCH($C18,'WINBUGS data'!$F$17:$F$65,0),MATCH("t[,"&F$4 &"]",'WINBUGS data'!$F$16:$ZZ$16,0)),"") -> 2 | G18: =IFERROR(INDEX('WINBUGS data'!$F$17:$ZZ$65,MATCH($C18,'WINBUGS data'!$F$17:$F$65,0),MATCH("t[,"&G$4 &"]",'WINBUGS data'!$F$16:$ZZ$16,0)),"") -> 5 | H18: =IFERROR(INDEX('WINBUGS data'!$F$17:$ZZ$65,MATCH($C18,'WINBUGS data'!$F$17:$F$65,0),MATCH("t[,"&H$4 &"]",'WINBUGS data'!$F$16:$ZZ$16,0)),"") -> NA | I18: =IFERROR(INDEX('WINBUGS data'!$F$17:$ZZ$65,MATCH($C18,'WINBUGS data'!$F$17:$F$65,0),MATCH("t[,"&I$4 &"]",'WINBUGS data'!$F$16:$ZZ$16,0)),"") -> NA | J18: =IFERROR(INDEX('WINBUGS data'!$F$17:$ZZ$65,MATCH($C18,'WINBUGS data'!$F$17:$F$65,0),MATCH("t[,"&J$4 &"]",'WINBUGS data'!$F$16:$ZZ$16,0)),"") -> NA | K18: =IFERROR(INDEX('WINBUGS data'!$F$17:$ZZ$65,MATCH($C18,'WINBUGS data'!$F$17:$F$65,0),MATCH("t[,"&K$4 &"]",'WINBUGS data'!$F$16:$ZZ$16,0)),"") ->  | L18: =IFERROR(INDEX('WINBUGS data'!$F$17:$ZZ$65,MATCH($C18,'WINBUGS data'!$F$17:$F$65,0),MATCH("t[,"&L$4 &"]",'WINBUGS data'!$F$16:$ZZ$16,0)),"") ->  | M18: =IFERROR(INDEX('WINBUGS data'!$F$17:$ZZ$65,MATCH($C18,'WINBUGS data'!$F$17:$F$65,0),MATCH("t[,"&M$4 &"]",'WINBUGS data'!$F$16:$ZZ$16,0)),"") ->  | N18: =IFERROR(INDEX('WINBUGS data'!$F$17:$ZZ$65,MATCH($C18,'WINBUGS data'!$F$17:$F$65,0),MATCH("t[,"&N$4 &"]",'WINBUGS data'!$F$16:$ZZ$16,0)),"") ->  | O18: =IFERROR(INDEX('WINBUGS data'!$F$17:$ZZ$65,MATCH($C18,'WINBUGS data'!$F$17:$F$65,0),MATCH("t[,"&O$4 &"]",'WINBUGS data'!$F$16:$ZZ$16,0)),"") ->  | P18: =IFERROR(INDEX('WINBUGS data'!$F$17:$ZZ$65,MATCH($C18,'WINBUGS data'!$F$17:$F$65,0),MATCH("t[,"&P$4 &"]",'WINBUGS data'!$F$16:$ZZ$16,0)),"") ->  | Q18: =IFERROR(INDEX('WINBUGS data'!$F$17:$ZZ$65,MATCH($C18,'WINBUGS data'!$F$17:$F$65,0),MATCH("t[,"&Q$4 &"]",'WINBUGS data'!$F$16:$ZZ$16,0)),"") ->  | R18: =IFERROR(INDEX('WINBUGS data'!$F$17:$ZZ$65,MATCH($C18,'WINBUGS data'!$F$17:$F$65,0),MATCH("t[,"&R$4 &"]",'WINBUGS data'!$F$16:$ZZ$16,0)),"") ->  | S18: =IFERROR(INDEX('WINBUGS data'!$F$17:$ZZ$65,MATCH($C18,'WINBUGS data'!$F$17:$F$65,0),MATCH("t[,"&S$4 &"]",'WINBUGS data'!$F$16:$ZZ$16,0)),"") ->  | T18: =IFERROR(INDEX('WINBUGS data'!$F$17:$ZZ$65,MATCH($C18,'WINBUGS data'!$F$17:$F$65,0),MATCH("t[,"&T$4 &"]",'WINBUGS data'!$F$16:$ZZ$16,0)),"") -> 
C19: =IF('WINBUGS data'!F31<>"",'WINBUGS data'!F31,"") -> 15 | D19: =IFERROR(INDEX('WINBUGS data'!$F$17:$ZZ$65,MATCH(C19,'WINBUGS data'!$F$17:$F$65,0),MATCH("na[]",'WINBUGS data'!$F$16:$ZZ$16,0)),"") -> 2 | E19: 1,4 | F19: =IFERROR(INDEX('WINBUGS data'!$F$17:$ZZ$65,MATCH($C19,'WINBUGS data'!$F$17:$F$65,0),MATCH("t[,"&F$4 &"]",'WINBUGS data'!$F$16:$ZZ$16,0)),"") -> 1 | G19: =IFERROR(INDEX('WINBUGS data'!$F$17:$ZZ$65,MATCH($C19,'WINBUGS data'!$F$17:$F$65,0),MATCH("t[,"&G$4 &"]",'WINBUGS data'!$F$16:$ZZ$16,0)),"") -> 4 | H19: =IFERROR(INDEX('WINBUGS data'!$F$17:$ZZ$65,MATCH($C19,'WINBUGS data'!$F$17:$F$65,0),MATCH("t[,"&H$4 &"]",'WINBUGS data'!$F$16:$ZZ$16,0)),"") -> NA | I19: =IFERROR(INDEX('WINBUGS data'!$F$17:$ZZ$65,MATCH($C19,'WINBUGS data'!$F$17:$F$65,0),MATCH("t[,"&I$4 &"]",'WINBUGS data'!$F$16:$ZZ$16,0)),"") -> NA | J19: =IFERROR(INDEX('WINBUGS data'!$F$17:$ZZ$65,MATCH($C19,'WINBUGS data'!$F$17:$F$65,0),MATCH("t[,"&J$4 &"]",'WINBUGS data'!$F$16:$ZZ$16,0)),"") -> NA | K19: =IFERROR(INDEX('WINBUGS data'!$F$17:$ZZ$65,MATCH($C19,'WINBUGS data'!$F$17:$F$65,0),MATCH("t[,"&K$4 &"]",'WINBUGS data'!$F$16:$ZZ$16,0)),"") ->  | L19: =IFERROR(INDEX('WINBUGS data'!$F$17:$ZZ$65,MATCH($C19,'WINBUGS data'!$F$17:$F$65,0),MATCH("t[,"&L$4 &"]",'WINBUGS data'!$F$16:$ZZ$16,0)),"") ->  | M19: =IFERROR(INDEX('WINBUGS data'!$F$17:$ZZ$65,MATCH($C19,'WINBUGS data'!$F$17:$F$65,0),MATCH("t[,"&M$4 &"]",'WINBUGS data'!$F$16:$ZZ$16,0)),"") ->  | N19: =IFERROR(INDEX('WINBUGS data'!$F$17:$ZZ$65,MATCH($C19,'WINBUGS data'!$F$17:$F$65,0),MATCH("t[,"&N$4 &"]",'WINBUGS data'!$F$16:$ZZ$16,0)),"") ->  | O19: =IFERROR(INDEX('WINBUGS data'!$F$17:$ZZ$65,MATCH($C19,'WINBUGS data'!$F$17:$F$65,0),MATCH("t[,"&O$4 &"]",'WINBUGS data'!$F$16:$ZZ$16,0)),"") ->  | P19: =IFERROR(INDEX('WINBUGS data'!$F$17:$ZZ$65,MATCH($C19,'WINBUGS data'!$F$17:$F$65,0),MATCH("t[,"&P$4 &"]",'WINBUGS data'!$F$16:$ZZ$16,0)),"") ->  | Q19: =IFERROR(INDEX('WINBUGS data'!$F$17:$ZZ$65,MATCH($C19,'WINBUGS data'!$F$17:$F$65,0),MATCH("t[,"&Q$4 &"]",'WINBUGS data'!$F$16:$ZZ$16,0)),"") ->  | R19: =IFERROR(INDEX('WINBUGS data'!$F$17:$ZZ$65,MATCH($C19,'WINBUGS data'!$F$17:$F$65,0),MATCH("t[,"&R$4 &"]",'WINBUGS data'!$F$16:$ZZ$16,0)),"") ->  | S19: =IFERROR(INDEX('WINBUGS data'!$F$17:$ZZ$65,MATCH($C19,'WINBUGS data'!$F$17:$F$65,0),MATCH("t[,"&S$4 &"]",'WINBUGS data'!$F$16:$ZZ$16,0)),"") ->  | T19: =IFERROR(INDEX('WINBUGS data'!$F$17:$ZZ$65,MATCH($C19,'WINBUGS data'!$F$17:$F$65,0),MATCH("t[,"&T$4 &"]",'WINBUGS data'!$F$16:$ZZ$16,0)),"") -> 
C20: =IF('WINBUGS data'!F32<>"",'WINBUGS data'!F32,"") ->  | D20: =IFERROR(INDEX('WINBUGS data'!$F$17:$ZZ$65,MATCH(C20,'WINBUGS data'!$F$17:$F$65,0),MATCH("na[]",'WINBUGS data'!$F$16:$ZZ$16,0)),"") ->  | F20: =IFERROR(INDEX('WINBUGS data'!$F$17:$ZZ$65,MATCH($C20,'WINBUGS data'!$F$17:$F$65,0),MATCH("t[,"&F$4 &"]",'WINBUGS data'!$F$16:$ZZ$16,0)),"") ->  | G20: =IFERROR(INDEX('WINBUGS data'!$F$17:$ZZ$65,MATCH($C20,'WINBUGS data'!$F$17:$F$65,0),MATCH("t[,"&G$4 &"]",'WINBUGS data'!$F$16:$ZZ$16,0)),"") ->  | H20: =IFERROR(INDEX('WINBUGS data'!$F$17:$ZZ$65,MATCH($C20,'WINBUGS data'!$F$17:$F$65,0),MATCH("t[,"&H$4 &"]",'WINBUGS data'!$F$16:$ZZ$16,0)),"") ->  | I20: =IFERROR(INDEX('WINBUGS data'!$F$17:$ZZ$65,MATCH($C20,'WINBUGS data'!$F$17:$F$65,0),MATCH("t[,"&I$4 &"]",'WINBUGS data'!$F$16:$ZZ$16,0)),"") ->  | J20: =IFERROR(INDEX('WINBUGS data'!$F$17:$ZZ$65,MATCH($C20,'WINBUGS data'!$F$17:$F$65,0),MATCH("t[,"&J$4 &"]",'WINBUGS data'!$F$16:$ZZ$16,0)),"") ->  | K20: =IFERROR(INDEX('WINBUGS data'!$F$17:$ZZ$65,MATCH($C20,'WINBUGS data'!$F$17:$F$65,0),MATCH("t[,"&K$4 &"]",'WINBUGS data'!$F$16:$ZZ$16,0)),"") ->  | L20: =IFERROR(INDEX('WINBUGS data'!$F$17:$ZZ$65,MATCH($C20,'WINBUGS data'!$F$17:$F$65,0),MATCH("t[,"&L$4 &"]",'WINBUGS data'!$F$16:$ZZ$16,0)),"") ->  | M20: =IFERROR(INDEX('WINBUGS data'!$F$17:$ZZ$65,MATCH($C20,'WINBUGS data'!$F$17:$F$65,0),MATCH("t[,"&M$4 &"]",'WINBUGS data'!$F$16:$ZZ$16,0)),"") ->  | N20: =IFERROR(INDEX('WINBUGS data'!$F$17:$ZZ$65,MATCH($C20,'WINBUGS data'!$F$17:$F$65,0),MATCH("t[,"&N$4 &"]",'WINBUGS data'!$F$16:$ZZ$16,0)),"") ->  | O20: =IFERROR(INDEX('WINBUGS data'!$F$17:$ZZ$65,MATCH($C20,'WINBUGS data'!$F$17:$F$65,0),MATCH("t[,"&O$4 &"]",'WINBUGS data'!$F$16:$ZZ$16,0)),"") ->  | P20: =IFERROR(INDEX('WINBUGS data'!$F$17:$ZZ$65,MATCH($C20,'WINBUGS data'!$F$17:$F$65,0),MATCH("t[,"&P$4 &"]",'WINBUGS data'!$F$16:$ZZ$16,0)),"") ->  | Q20: =IFERROR(INDEX('WINBUGS data'!$F$17:$ZZ$65,MATCH($C20,'WINBUGS data'!$F$17:$F$65,0),MATCH("t[,"&Q$4 &"]",'WINBUGS data'!$F$16:$ZZ$16,0)),"") ->  | R20: =IFERROR(INDEX('WINBUGS data'!$F$17:$ZZ$65,MATCH($C20,'WINBUGS data'!$F$17:$F$65,0),MATCH("t[,"&R$4 &"]",'WINBUGS data'!$F$16:$ZZ$16,0)),"") ->  | S20: =IFERROR(INDEX('WINBUGS data'!$F$17:$ZZ$65,MATCH($C20,'WINBUGS data'!$F$17:$F$65,0),MATCH("t[,"&S$4 &"]",'WINBUGS data'!$F$16:$ZZ$16,0)),"") ->  | T20: =IFERROR(INDEX('WINBUGS data'!$F$17:$ZZ$65,MATCH($C20,'WINBUGS data'!$F$17:$F$65,0),MATCH("t[,"&T$4 &"]",'WINBUGS data'!$F$16:$ZZ$16,0)),"") -> 
C21: =IF('WINBUGS data'!F33<>"",'WINBUGS data'!F33,"") ->  | D21: =IFERROR(INDEX('WINBUGS data'!$F$17:$ZZ$65,MATCH(C21,'WINBUGS data'!$F$17:$F$65,0),MATCH("na[]",'WINBUGS data'!$F$16:$ZZ$16,0)),"") ->  | F21: =IFERROR(INDEX('WINBUGS data'!$F$17:$ZZ$65,MATCH($C21,'WINBUGS data'!$F$17:$F$65,0),MATCH("t[,"&F$4 &"]",'WINBUGS data'!$F$16:$ZZ$16,0)),"") ->  | G21: =IFERROR(INDEX('WINBUGS data'!$F$17:$ZZ$65,MATCH($C21,'WINBUGS data'!$F$17:$F$65,0),MATCH("t[,"&G$4 &"]",'WINBUGS data'!$F$16:$ZZ$16,0)),"") ->  | H21: =IFERROR(INDEX('WINBUGS data'!$F$17:$ZZ$65,MATCH($C21,'WINBUGS data'!$F$17:$F$65,0),MATCH("t[,"&H$4 &"]",'WINBUGS data'!$F$16:$ZZ$16,0)),"") ->  | I21: =IFERROR(INDEX('WINBUGS data'!$F$17:$ZZ$65,MATCH($C21,'WINBUGS data'!$F$17:$F$65,0),MATCH("t[,"&I$4 &"]",'WINBUGS data'!$F$16:$ZZ$16,0)),"") ->  | J21: =IFERROR(INDEX('WINBUGS data'!$F$17:$ZZ$65,MATCH($C21,'WINBUGS data'!$F$17:$F$65,0),MATCH("t[,"&J$4 &"]",'WINBUGS data'!$F$16:$ZZ$16,0)),"") ->  | K21: =IFERROR(INDEX('WINBUGS data'!$F$17:$ZZ$65,MATCH($C21,'WINBUGS data'!$F$17:$F$65,0),MATCH("t[,"&K$4 &"]",'WINBUGS data'!$F$16:$ZZ$16,0)),"") ->  | L21: =IFERROR(INDEX('WINBUGS data'!$F$17:$ZZ$65,MATCH($C21,'WINBUGS data'!$F$17:$F$65,0),MATCH("t[,"&L$4 &"]",'WINBUGS data'!$F$16:$ZZ$16,0)),"") ->  | M21: =IFERROR(INDEX('WINBUGS data'!$F$17:$ZZ$65,MATCH($C21,'WINBUGS data'!$F$17:$F$65,0),MATCH("t[,"&M$4 &"]",'WINBUGS data'!$F$16:$ZZ$16,0)),"") ->  | N21: =IFERROR(INDEX('WINBUGS data'!$F$17:$ZZ$65,MATCH($C21,'WINBUGS data'!$F$17:$F$65,0),MATCH("t[,"&N$4 &"]",'WINBUGS data'!$F$16:$ZZ$16,0)),"") ->  | O21: =IFERROR(INDEX('WINBUGS data'!$F$17:$ZZ$65,MATCH($C21,'WINBUGS data'!$F$17:$F$65,0),MATCH("t[,"&O$4 &"]",'WINBUGS data'!$F$16:$ZZ$16,0)),"") ->  | P21: =IFERROR(INDEX('WINBUGS data'!$F$17:$ZZ$65,MATCH($C21,'WINBUGS data'!$F$17:$F$65,0),MATCH("t[,"&P$4 &"]",'WINBUGS data'!$F$16:$ZZ$16,0)),"") ->  | Q21: =IFERROR(INDEX('WINBUGS data'!$F$17:$ZZ$65,MATCH($C21,'WINBUGS data'!$F$17:$F$65,0),MATCH("t[,"&Q$4 &"]",'WINBUGS data'!$F$16:$ZZ$16,0)),"") ->  | R21: =IFERROR(INDEX('WINBUGS data'!$F$17:$ZZ$65,MATCH($C21,'WINBUGS data'!$F$17:$F$65,0),MATCH("t[,"&R$4 &"]",'WINBUGS data'!$F$16:$ZZ$16,0)),"") ->  | S21: =IFERROR(INDEX('WINBUGS data'!$F$17:$ZZ$65,MATCH($C21,'WINBUGS data'!$F$17:$F$65,0),MATCH("t[,"&S$4 &"]",'WINBUGS data'!$F$16:$ZZ$16,0)),"") ->  | T21: =IFERROR(INDEX('WINBUGS data'!$F$17:$ZZ$65,MATCH($C21,'WINBUGS data'!$F$17:$F$65,0),MATCH("t[,"&T$4 &"]",'WINBUGS data'!$F$16:$ZZ$16,0)),"") -> 
C22: =IF('WINBUGS data'!F34<>"",'WINBUGS data'!F34,"") ->  | D22: =IFERROR(INDEX('WINBUGS data'!$F$17:$ZZ$65,MATCH(C22,'WINBUGS data'!$F$17:$F$65,0),MATCH("na[]",'WINBUGS data'!$F$16:$ZZ$16,0)),"") ->  | F22: =IFERROR(INDEX('WINBUGS data'!$F$17:$ZZ$65,MATCH($C22,'WINBUGS data'!$F$17:$F$65,0),MATCH("t[,"&F$4 &"]",'WINBUGS data'!$F$16:$ZZ$16,0)),"") ->  | G22: =IFERROR(INDEX('WINBUGS data'!$F$17:$ZZ$65,MATCH($C22,'WINBUGS data'!$F$17:$F$65,0),MATCH("t[,"&G$4 &"]",'WINBUGS data'!$F$16:$ZZ$16,0)),"") ->  | H22: =IFERROR(INDEX('WINBUGS data'!$F$17:$ZZ$65,MATCH($C22,'WINBUGS data'!$F$17:$F$65,0),MATCH("t[,"&H$4 &"]",'WINBUGS data'!$F$16:$ZZ$16,0)),"") ->  | I22: =IFERROR(INDEX('WINBUGS data'!$F$17:$ZZ$65,MATCH($C22,'WINBUGS data'!$F$17:$F$65,0),MATCH("t[,"&I$4 &"]",'WINBUGS data'!$F$16:$ZZ$16,0)),"") ->  | J22: =IFERROR(INDEX('WINBUGS data'!$F$17:$ZZ$65,MATCH($C22,'WINBUGS data'!$F$17:$F$65,0),MATCH("t[,"&J$4 &"]",'WINBUGS data'!$F$16:$ZZ$16,0)),"") ->  | K22: =IFERROR(INDEX('WINBUGS data'!$F$17:$ZZ$65,MATCH($C22,'WINBUGS data'!$F$17:$F$65,0),MATCH("t[,"&K$4 &"]",'WINBUGS data'!$F$16:$ZZ$16,0)),"") ->  | L22: =IFERROR(INDEX('WINBUGS data'!$F$17:$ZZ$65,MATCH($C22,'WINBUGS data'!$F$17:$F$65,0),MATCH("t[,"&L$4 &"]",'WINBUGS data'!$F$16:$ZZ$16,0)),"") ->  | M22: =IFERROR(INDEX('WINBUGS data'!$F$17:$ZZ$65,MATCH($C22,'WINBUGS data'!$F$17:$F$65,0),MATCH("t[,"&M$4 &"]",'WINBUGS data'!$F$16:$ZZ$16,0)),"") ->  | N22: =IFERROR(INDEX('WINBUGS data'!$F$17:$ZZ$65,MATCH($C22,'WINBUGS data'!$F$17:$F$65,0),MATCH("t[,"&N$4 &"]",'WINBUGS data'!$F$16:$ZZ$16,0)),"") ->  | O22: =IFERROR(INDEX('WINBUGS data'!$F$17:$ZZ$65,MATCH($C22,'WINBUGS data'!$F$17:$F$65,0),MATCH("t[,"&O$4 &"]",'WINBUGS data'!$F$16:$ZZ$16,0)),"") ->  | P22: =IFERROR(INDEX('WINBUGS data'!$F$17:$ZZ$65,MATCH($C22,'WINBUGS data'!$F$17:$F$65,0),MATCH("t[,"&P$4 &"]",'WINBUGS data'!$F$16:$ZZ$16,0)),"") ->  | Q22: =IFERROR(INDEX('WINBUGS data'!$F$17:$ZZ$65,MATCH($C22,'WINBUGS data'!$F$17:$F$65,0),MATCH("t[,"&Q$4 &"]",'WINBUGS data'!$F$16:$ZZ$16,0)),"") ->  | R22: =IFERROR(INDEX('WINBUGS data'!$F$17:$ZZ$65,MATCH($C22,'WINBUGS data'!$F$17:$F$65,0),MATCH("t[,"&R$4 &"]",'WINBUGS data'!$F$16:$ZZ$16,0)),"") ->  | S22: =IFERROR(INDEX('WINBUGS data'!$F$17:$ZZ$65,MATCH($C22,'WINBUGS data'!$F$17:$F$65,0),MATCH("t[,"&S$4 &"]",'WINBUGS data'!$F$16:$ZZ$16,0)),"") ->  | T22: =IFERROR(INDEX('WINBUGS data'!$F$17:$ZZ$65,MATCH($C22,'WINBUGS data'!$F$17:$F$65,0),MATCH("t[,"&T$4 &"]",'WINBUGS data'!$F$16:$ZZ$16,0)),"") -> 
C23: =IF('WINBUGS data'!F35<>"",'WINBUGS data'!F35,"") ->  | D23: =IFERROR(INDEX('WINBUGS data'!$F$17:$ZZ$65,MATCH(C23,'WINBUGS data'!$F$17:$F$65,0),MATCH("na[]",'WINBUGS data'!$F$16:$ZZ$16,0)),"") ->  | F23: =IFERROR(INDEX('WINBUGS data'!$F$17:$ZZ$65,MATCH($C23,'WINBUGS data'!$F$17:$F$65,0),MATCH("t[,"&F$4 &"]",'WINBUGS data'!$F$16:$ZZ$16,0)),"") ->  | G23: =IFERROR(INDEX('WINBUGS data'!$F$17:$ZZ$65,MATCH($C23,'WINBUGS data'!$F$17:$F$65,0),MATCH("t[,"&G$4 &"]",'WINBUGS data'!$F$16:$ZZ$16,0)),"") ->  | H23: =IFERROR(INDEX('WINBUGS data'!$F$17:$ZZ$65,MATCH($C23,'WINBUGS data'!$F$17:$F$65,0),MATCH("t[,"&H$4 &"]",'WINBUGS data'!$F$16:$ZZ$16,0)),"") ->  | I23: =IFERROR(INDEX('WINBUGS data'!$F$17:$ZZ$65,MATCH($C23,'WINBUGS data'!$F$17:$F$65,0),MATCH("t[,"&I$4 &"]",'WINBUGS data'!$F$16:$ZZ$16,0)),"") ->  | J23: =IFERROR(INDEX('WINBUGS data'!$F$17:$ZZ$65,MATCH($C23,'WINBUGS data'!$F$17:$F$65,0),MATCH("t[,"&J$4 &"]",'WINBUGS data'!$F$16:$ZZ$16,0)),"") ->  | K23: =IFERROR(INDEX('WINBUGS data'!$F$17:$ZZ$65,MATCH($C23,'WINBUGS data'!$F$17:$F$65,0),MATCH("t[,"&K$4 &"]",'WINBUGS data'!$F$16:$ZZ$16,0)),"") ->  | L23: =IFERROR(INDEX('WINBUGS data'!$F$17:$ZZ$65,MATCH($C23,'WINBUGS data'!$F$17:$F$65,0),MATCH("t[,"&L$4 &"]",'WINBUGS data'!$F$16:$ZZ$16,0)),"") ->  | M23: =IFERROR(INDEX('WINBUGS data'!$F$17:$ZZ$65,MATCH($C23,'WINBUGS data'!$F$17:$F$65,0),MATCH("t[,"&M$4 &"]",'WINBUGS data'!$F$16:$ZZ$16,0)),"") ->  | N23: =IFERROR(INDEX('WINBUGS data'!$F$17:$ZZ$65,MATCH($C23,'WINBUGS data'!$F$17:$F$65,0),MATCH("t[,"&N$4 &"]",'WINBUGS data'!$F$16:$ZZ$16,0)),"") ->  | O23: =IFERROR(INDEX('WINBUGS data'!$F$17:$ZZ$65,MATCH($C23,'WINBUGS data'!$F$17:$F$65,0),MATCH("t[,"&O$4 &"]",'WINBUGS data'!$F$16:$ZZ$16,0)),"") ->  | P23: =IFERROR(INDEX('WINBUGS data'!$F$17:$ZZ$65,MATCH($C23,'WINBUGS data'!$F$17:$F$65,0),MATCH("t[,"&P$4 &"]",'WINBUGS data'!$F$16:$ZZ$16,0)),"") ->  | Q23: =IFERROR(INDEX('WINBUGS data'!$F$17:$ZZ$65,MATCH($C23,'WINBUGS data'!$F$17:$F$65,0),MATCH("t[,"&Q$4 &"]",'WINBUGS data'!$F$16:$ZZ$16,0)),"") ->  | R23: =IFERROR(INDEX('WINBUGS data'!$F$17:$ZZ$65,MATCH($C23,'WINBUGS data'!$F$17:$F$65,0),MATCH("t[,"&R$4 &"]",'WINBUGS data'!$F$16:$ZZ$16,0)),"") ->  | S23: =IFERROR(INDEX('WINBUGS data'!$F$17:$ZZ$65,MATCH($C23,'WINBUGS data'!$F$17:$F$65,0),MATCH("t[,"&S$4 &"]",'WINBUGS data'!$F$16:$ZZ$16,0)),"") ->  | T23: =IFERROR(INDEX('WINBUGS data'!$F$17:$ZZ$65,MATCH($C23,'WINBUGS data'!$F$17:$F$65,0),MATCH("t[,"&T$4 &"]",'WINBUGS data'!$F$16:$ZZ$16,0)),"") -> 
C24: =IF('WINBUGS data'!F36<>"",'WINBUGS data'!F36,"") ->  | D24: =IFERROR(INDEX('WINBUGS data'!$F$17:$ZZ$65,MATCH(C24,'WINBUGS data'!$F$17:$F$65,0),MATCH("na[]",'WINBUGS data'!$F$16:$ZZ$16,0)),"") ->  | F24: =IFERROR(INDEX('WINBUGS data'!$F$17:$ZZ$65,MATCH($C24,'WINBUGS data'!$F$17:$F$65,0),MATCH("t[,"&F$4 &"]",'WINBUGS data'!$F$16:$ZZ$16,0)),"") ->  | G24: =IFERROR(INDEX('WINBUGS data'!$F$17:$ZZ$65,MATCH($C24,'WINBUGS data'!$F$17:$F$65,0),MATCH("t[,"&G$4 &"]",'WINBUGS data'!$F$16:$ZZ$16,0)),"") ->  | H24: =IFERROR(INDEX('WINBUGS data'!$F$17:$ZZ$65,MATCH($C24,'WINBUGS data'!$F$17:$F$65,0),MATCH("t[,"&H$4 &"]",'WINBUGS data'!$F$16:$ZZ$16,0)),"") ->  | I24: =IFERROR(INDEX('WINBUGS data'!$F$17:$ZZ$65,MATCH($C24,'WINBUGS data'!$F$17:$F$65,0),MATCH("t[,"&I$4 &"]",'WINBUGS data'!$F$16:$ZZ$16,0)),"") ->  | J24: =IFERROR(INDEX('WINBUGS data'!$F$17:$ZZ$65,MATCH($C24,'WINBUGS data'!$F$17:$F$65,0),MATCH("t[,"&J$4 &"]",'WINBUGS data'!$F$16:$ZZ$16,0)),"") ->  | K24: =IFERROR(INDEX('WINBUGS data'!$F$17:$ZZ$65,MATCH($C24,'WINBUGS data'!$F$17:$F$65,0),MATCH("t[,"&K$4 &"]",'WINBUGS data'!$F$16:$ZZ$16,0)),"") ->  | L24: =IFERROR(INDEX('WINBUGS data'!$F$17:$ZZ$65,MATCH($C24,'WINBUGS data'!$F$17:$F$65,0),MATCH("t[,"&L$4 &"]",'WINBUGS data'!$F$16:$ZZ$16,0)),"") ->  | M24: =IFERROR(INDEX('WINBUGS data'!$F$17:$ZZ$65,MATCH($C24,'WINBUGS data'!$F$17:$F$65,0),MATCH("t[,"&M$4 &"]",'WINBUGS data'!$F$16:$ZZ$16,0)),"") ->  | N24: =IFERROR(INDEX('WINBUGS data'!$F$17:$ZZ$65,MATCH($C24,'WINBUGS data'!$F$17:$F$65,0),MATCH("t[,"&N$4 &"]",'WINBUGS data'!$F$16:$ZZ$16,0)),"") ->  | O24: =IFERROR(INDEX('WINBUGS data'!$F$17:$ZZ$65,MATCH($C24,'WINBUGS data'!$F$17:$F$65,0),MATCH("t[,"&O$4 &"]",'WINBUGS data'!$F$16:$ZZ$16,0)),"") ->  | P24: =IFERROR(INDEX('WINBUGS data'!$F$17:$ZZ$65,MATCH($C24,'WINBUGS data'!$F$17:$F$65,0),MATCH("t[,"&P$4 &"]",'WINBUGS data'!$F$16:$ZZ$16,0)),"") ->  | Q24: =IFERROR(INDEX('WINBUGS data'!$F$17:$ZZ$65,MATCH($C24,'WINBUGS data'!$F$17:$F$65,0),MATCH("t[,"&Q$4 &"]",'WINBUGS data'!$F$16:$ZZ$16,0)),"") ->  | R24: =IFERROR(INDEX('WINBUGS data'!$F$17:$ZZ$65,MATCH($C24,'WINBUGS data'!$F$17:$F$65,0),MATCH("t[,"&R$4 &"]",'WINBUGS data'!$F$16:$ZZ$16,0)),"") ->  | S24: =IFERROR(INDEX('WINBUGS data'!$F$17:$ZZ$65,MATCH($C24,'WINBUGS data'!$F$17:$F$65,0),MATCH("t[,"&S$4 &"]",'WINBUGS data'!$F$16:$ZZ$16,0)),"") ->  | T24: =IFERROR(INDEX('WINBUGS data'!$F$17:$ZZ$65,MATCH($C24,'WINBUGS data'!$F$17:$F$65,0),MATCH("t[,"&T$4 &"]",'WINBUGS data'!$F$16:$ZZ$16,0)),"") -> 
C25: =IF('WINBUGS data'!F37<>"",'WINBUGS data'!F37,"") ->  | D25: =IFERROR(INDEX('WINBUGS data'!$F$17:$ZZ$65,MATCH(C25,'WINBUGS data'!$F$17:$F$65,0),MATCH("na[]",'WINBUGS data'!$F$16:$ZZ$16,0)),"") ->  | F25: =IFERROR(INDEX('WINBUGS data'!$F$17:$ZZ$65,MATCH($C25,'WINBUGS data'!$F$17:$F$65,0),MATCH("t[,"&F$4 &"]",'WINBUGS data'!$F$16:$ZZ$16,0)),"") ->  | G25: =IFERROR(INDEX('WINBUGS data'!$F$17:$ZZ$65,MATCH($C25,'WINBUGS data'!$F$17:$F$65,0),MATCH("t[,"&G$4 &"]",'WINBUGS data'!$F$16:$ZZ$16,0)),"") ->  | H25: =IFERROR(INDEX('WINBUGS data'!$F$17:$ZZ$65,MATCH($C25,'WINBUGS data'!$F$17:$F$65,0),MATCH("t[,"&H$4 &"]",'WINBUGS data'!$F$16:$ZZ$16,0)),"") ->  | I25: =IFERROR(INDEX('WINBUGS data'!$F$17:$ZZ$65,MATCH($C25,'WINBUGS data'!$F$17:$F$65,0),MATCH("t[,"&I$4 &"]",'WINBUGS data'!$F$16:$ZZ$16,0)),"") ->  | J25: =IFERROR(INDEX('WINBUGS data'!$F$17:$ZZ$65,MATCH($C25,'WINBUGS data'!$F$17:$F$65,0),MATCH("t[,"&J$4 &"]",'WINBUGS data'!$F$16:$ZZ$16,0)),"") ->  | K25: =IFERROR(INDEX('WINBUGS data'!$F$17:$ZZ$65,MATCH($C25,'WINBUGS data'!$F$17:$F$65,0),MATCH("t[,"&K$4 &"]",'WINBUGS data'!$F$16:$ZZ$16,0)),"") ->  | L25: =IFERROR(INDEX('WINBUGS data'!$F$17:$ZZ$65,MATCH($C25,'WINBUGS data'!$F$17:$F$65,0),MATCH("t[,"&L$4 &"]",'WINBUGS data'!$F$16:$ZZ$16,0)),"") ->  | M25: =IFERROR(INDEX('WINBUGS data'!$F$17:$ZZ$65,MATCH($C25,'WINBUGS data'!$F$17:$F$65,0),MATCH("t[,"&M$4 &"]",'WINBUGS data'!$F$16:$ZZ$16,0)),"") ->  | N25: =IFERROR(INDEX('WINBUGS data'!$F$17:$ZZ$65,MATCH($C25,'WINBUGS data'!$F$17:$F$65,0),MATCH("t[,"&N$4 &"]",'WINBUGS data'!$F$16:$ZZ$16,0)),"") ->  | O25: =IFERROR(INDEX('WINBUGS data'!$F$17:$ZZ$65,MATCH($C25,'WINBUGS data'!$F$17:$F$65,0),MATCH("t[,"&O$4 &"]",'WINBUGS data'!$F$16:$ZZ$16,0)),"") ->  | P25: =IFERROR(INDEX('WINBUGS data'!$F$17:$ZZ$65,MATCH($C25,'WINBUGS data'!$F$17:$F$65,0),MATCH("t[,"&P$4 &"]",'WINBUGS data'!$F$16:$ZZ$16,0)),"") ->  | Q25: =IFERROR(INDEX('WINBUGS data'!$F$17:$ZZ$65,MATCH($C25,'WINBUGS data'!$F$17:$F$65,0),MATCH("t[,"&Q$4 &"]",'WINBUGS data'!$F$16:$ZZ$16,0)),"") ->  | R25: =IFERROR(INDEX('WINBUGS data'!$F$17:$ZZ$65,MATCH($C25,'WINBUGS data'!$F$17:$F$65,0),MATCH("t[,"&R$4 &"]",'WINBUGS data'!$F$16:$ZZ$16,0)),"") ->  | S25: =IFERROR(INDEX('WINBUGS data'!$F$17:$ZZ$65,MATCH($C25,'WINBUGS data'!$F$17:$F$65,0),MATCH("t[,"&S$4 &"]",'WINBUGS data'!$F$16:$ZZ$16,0)),"") ->  | T25: =IFERROR(INDEX('WINBUGS data'!$F$17:$ZZ$65,MATCH($C25,'WINBUGS data'!$F$17:$F$65,0),MATCH("t[,"&T$4 &"]",'WINBUGS data'!$F$16:$ZZ$16,0)),"") -> 
C26: =IF('WINBUGS data'!F38<>"",'WINBUGS data'!F38,"") ->  | D26: =IFERROR(INDEX('WINBUGS data'!$F$17:$ZZ$65,MATCH(C26,'WINBUGS data'!$F$17:$F$65,0),MATCH("na[]",'WINBUGS data'!$F$16:$ZZ$16,0)),"") ->  | F26: =IFERROR(INDEX('WINBUGS data'!$F$17:$ZZ$65,MATCH($C26,'WINBUGS data'!$F$17:$F$65,0),MATCH("t[,"&F$4 &"]",'WINBUGS data'!$F$16:$ZZ$16,0)),"") ->  | G26: =IFERROR(INDEX('WINBUGS data'!$F$17:$ZZ$65,MATCH($C26,'WINBUGS data'!$F$17:$F$65,0),MATCH("t[,"&G$4 &"]",'WINBUGS data'!$F$16:$ZZ$16,0)),"") ->  | H26: =IFERROR(INDEX('WINBUGS data'!$F$17:$ZZ$65,MATCH($C26,'WINBUGS data'!$F$17:$F$65,0),MATCH("t[,"&H$4 &"]",'WINBUGS data'!$F$16:$ZZ$16,0)),"") ->  | I26: =IFERROR(INDEX('WINBUGS data'!$F$17:$ZZ$65,MATCH($C26,'WINBUGS data'!$F$17:$F$65,0),MATCH("t[,"&I$4 &"]",'WINBUGS data'!$F$16:$ZZ$16,0)),"") ->  | J26: =IFERROR(INDEX('WINBUGS data'!$F$17:$ZZ$65,MATCH($C26,'WINBUGS data'!$F$17:$F$65,0),MATCH("t[,"&J$4 &"]",'WINBUGS data'!$F$16:$ZZ$16,0)),"") ->  | K26: =IFERROR(INDEX('WINBUGS data'!$F$17:$ZZ$65,MATCH($C26,'WINBUGS data'!$F$17:$F$65,0),MATCH("t[,"&K$4 &"]",'WINBUGS data'!$F$16:$ZZ$16,0)),"") ->  | L26: =IFERROR(INDEX('WINBUGS data'!$F$17:$ZZ$65,MATCH($C26,'WINBUGS data'!$F$17:$F$65,0),MATCH("t[,"&L$4 &"]",'WINBUGS data'!$F$16:$ZZ$16,0)),"") ->  | M26: =IFERROR(INDEX('WINBUGS data'!$F$17:$ZZ$65,MATCH($C26,'WINBUGS data'!$F$17:$F$65,0),MATCH("t[,"&M$4 &"]",'WINBUGS data'!$F$16:$ZZ$16,0)),"") ->  | N26: =IFERROR(INDEX('WINBUGS data'!$F$17:$ZZ$65,MATCH($C26,'WINBUGS data'!$F$17:$F$65,0),MATCH("t[,"&N$4 &"]",'WINBUGS data'!$F$16:$ZZ$16,0)),"") ->  | O26: =IFERROR(INDEX('WINBUGS data'!$F$17:$ZZ$65,MATCH($C26,'WINBUGS data'!$F$17:$F$65,0),MATCH("t[,"&O$4 &"]",'WINBUGS data'!$F$16:$ZZ$16,0)),"") ->  | P26: =IFERROR(INDEX('WINBUGS data'!$F$17:$ZZ$65,MATCH($C26,'WINBUGS data'!$F$17:$F$65,0),MATCH("t[,"&P$4 &"]",'WINBUGS data'!$F$16:$ZZ$16,0)),"") ->  | Q26: =IFERROR(INDEX('WINBUGS data'!$F$17:$ZZ$65,MATCH($C26,'WINBUGS data'!$F$17:$F$65,0),MATCH("t[,"&Q$4 &"]",'WINBUGS data'!$F$16:$ZZ$16,0)),"") ->  | R26: =IFERROR(INDEX('WINBUGS data'!$F$17:$ZZ$65,MATCH($C26,'WINBUGS data'!$F$17:$F$65,0),MATCH("t[,"&R$4 &"]",'WINBUGS data'!$F$16:$ZZ$16,0)),"") ->  | S26: =IFERROR(INDEX('WINBUGS data'!$F$17:$ZZ$65,MATCH($C26,'WINBUGS data'!$F$17:$F$65,0),MATCH("t[,"&S$4 &"]",'WINBUGS data'!$F$16:$ZZ$16,0)),"") ->  | T26: =IFERROR(INDEX('WINBUGS data'!$F$17:$ZZ$65,MATCH($C26,'WINBUGS data'!$F$17:$F$65,0),MATCH("t[,"&T$4 &"]",'WINBUGS data'!$F$16:$ZZ$16,0)),"") -> 
C27: =IF('WINBUGS data'!F39<>"",'WINBUGS data'!F39,"") ->  | D27: =IFERROR(INDEX('WINBUGS data'!$F$17:$ZZ$65,MATCH(C27,'WINBUGS data'!$F$17:$F$65,0),MATCH("na[]",'WINBUGS data'!$F$16:$ZZ$16,0)),"") ->  | F27: =IFERROR(INDEX('WINBUGS data'!$F$17:$ZZ$65,MATCH($C27,'WINBUGS data'!$F$17:$F$65,0),MATCH("t[,"&F$4 &"]",'WINBUGS data'!$F$16:$ZZ$16,0)),"") ->  | G27: =IFERROR(INDEX('WINBUGS data'!$F$17:$ZZ$65,MATCH($C27,'WINBUGS data'!$F$17:$F$65,0),MATCH("t[,"&G$4 &"]",'WINBUGS data'!$F$16:$ZZ$16,0)),"") ->  | H27: =IFERROR(INDEX('WINBUGS data'!$F$17:$ZZ$65,MATCH($C27,'WINBUGS data'!$F$17:$F$65,0),MATCH("t[,"&H$4 &"]",'WINBUGS data'!$F$16:$ZZ$16,0)),"") ->  | I27: =IFERROR(INDEX('WINBUGS data'!$F$17:$ZZ$65,MATCH($C27,'WINBUGS data'!$F$17:$F$65,0),MATCH("t[,"&I$4 &"]",'WINBUGS data'!$F$16:$ZZ$16,0)),"") ->  | J27: =IFERROR(INDEX('WINBUGS data'!$F$17:$ZZ$65,MATCH($C27,'WINBUGS data'!$F$17:$F$65,0),MATCH("t[,"&J$4 &"]",'WINBUGS data'!$F$16:$ZZ$16,0)),"") ->  | K27: =IFERROR(INDEX('WINBUGS data'!$F$17:$ZZ$65,MATCH($C27,'WINBUGS data'!$F$17:$F$65,0),MATCH("t[,"&K$4 &"]",'WINBUGS data'!$F$16:$ZZ$16,0)),"") ->  | L27: =IFERROR(INDEX('WINBUGS data'!$F$17:$ZZ$65,MATCH($C27,'WINBUGS data'!$F$17:$F$65,0),MATCH("t[,"&L$4 &"]",'WINBUGS data'!$F$16:$ZZ$16,0)),"") ->  | M27: =IFERROR(INDEX('WINBUGS data'!$F$17:$ZZ$65,MATCH($C27,'WINBUGS data'!$F$17:$F$65,0),MATCH("t[,"&M$4 &"]",'WINBUGS data'!$F$16:$ZZ$16,0)),"") ->  | N27: =IFERROR(INDEX('WINBUGS data'!$F$17:$ZZ$65,MATCH($C27,'WINBUGS data'!$F$17:$F$65,0),MATCH("t[,"&N$4 &"]",'WINBUGS data'!$F$16:$ZZ$16,0)),"") ->  | O27: =IFERROR(INDEX('WINBUGS data'!$F$17:$ZZ$65,MATCH($C27,'WINBUGS data'!$F$17:$F$65,0),MATCH("t[,"&O$4 &"]",'WINBUGS data'!$F$16:$ZZ$16,0)),"") ->  | P27: =IFERROR(INDEX('WINBUGS data'!$F$17:$ZZ$65,MATCH($C27,'WINBUGS data'!$F$17:$F$65,0),MATCH("t[,"&P$4 &"]",'WINBUGS data'!$F$16:$ZZ$16,0)),"") ->  | Q27: =IFERROR(INDEX('WINBUGS data'!$F$17:$ZZ$65,MATCH($C27,'WINBUGS data'!$F$17:$F$65,0),MATCH("t[,"&Q$4 &"]",'WINBUGS data'!$F$16:$ZZ$16,0)),"") ->  | R27: =IFERROR(INDEX('WINBUGS data'!$F$17:$ZZ$65,MATCH($C27,'WINBUGS data'!$F$17:$F$65,0),MATCH("t[,"&R$4 &"]",'WINBUGS data'!$F$16:$ZZ$16,0)),"") ->  | S27: =IFERROR(INDEX('WINBUGS data'!$F$17:$ZZ$65,MATCH($C27,'WINBUGS data'!$F$17:$F$65,0),MATCH("t[,"&S$4 &"]",'WINBUGS data'!$F$16:$ZZ$16,0)),"") ->  | T27: =IFERROR(INDEX('WINBUGS data'!$F$17:$ZZ$65,MATCH($C27,'WINBUGS data'!$F$17:$F$65,0),MATCH("t[,"&T$4 &"]",'WINBUGS data'!$F$16:$ZZ$16,0)),"") -> 
C28: =IF('WINBUGS data'!F40<>"",'WINBUGS data'!F40,"") ->  | D28: =IFERROR(INDEX('WINBUGS data'!$F$17:$ZZ$65,MATCH(C28,'WINBUGS data'!$F$17:$F$65,0),MATCH("na[]",'WINBUGS data'!$F$16:$ZZ$16,0)),"") ->  | F28: =IFERROR(INDEX('WINBUGS data'!$F$17:$ZZ$65,MATCH($C28,'WINBUGS data'!$F$17:$F$65,0),MATCH("t[,"&F$4 &"]",'WINBUGS data'!$F$16:$ZZ$16,0)),"") ->  | G28: =IFERROR(INDEX('WINBUGS data'!$F$17:$ZZ$65,MATCH($C28,'WINBUGS data'!$F$17:$F$65,0),MATCH("t[,"&G$4 &"]",'WINBUGS data'!$F$16:$ZZ$16,0)),"") ->  | H28: =IFERROR(INDEX('WINBUGS data'!$F$17:$ZZ$65,MATCH($C28,'WINBUGS data'!$F$17:$F$65,0),MATCH("t[,"&H$4 &"]",'WINBUGS data'!$F$16:$ZZ$16,0)),"") ->  | I28: =IFERROR(INDEX('WINBUGS data'!$F$17:$ZZ$65,MATCH($C28,'WINBUGS data'!$F$17:$F$65,0),MATCH("t[,"&I$4 &"]",'WINBUGS data'!$F$16:$ZZ$16,0)),"") ->  | J28: =IFERROR(INDEX('WINBUGS data'!$F$17:$ZZ$65,MATCH($C28,'WINBUGS data'!$F$17:$F$65,0),MATCH("t[,"&J$4 &"]",'WINBUGS data'!$F$16:$ZZ$16,0)),"") ->  | K28: =IFERROR(INDEX('WINBUGS data'!$F$17:$ZZ$65,MATCH($C28,'WINBUGS data'!$F$17:$F$65,0),MATCH("t[,"&K$4 &"]",'WINBUGS data'!$F$16:$ZZ$16,0)),"") ->  | L28: =IFERROR(INDEX('WINBUGS data'!$F$17:$ZZ$65,MATCH($C28,'WINBUGS data'!$F$17:$F$65,0),MATCH("t[,"&L$4 &"]",'WINBUGS data'!$F$16:$ZZ$16,0)),"") ->  | M28: =IFERROR(INDEX('WINBUGS data'!$F$17:$ZZ$65,MATCH($C28,'WINBUGS data'!$F$17:$F$65,0),MATCH("t[,"&M$4 &"]",'WINBUGS data'!$F$16:$ZZ$16,0)),"") ->  | N28: =IFERROR(INDEX('WINBUGS data'!$F$17:$ZZ$65,MATCH($C28,'WINBUGS data'!$F$17:$F$65,0),MATCH("t[,"&N$4 &"]",'WINBUGS data'!$F$16:$ZZ$16,0)),"") ->  | O28: =IFERROR(INDEX('WINBUGS data'!$F$17:$ZZ$65,MATCH($C28,'WINBUGS data'!$F$17:$F$65,0),MATCH("t[,"&O$4 &"]",'WINBUGS data'!$F$16:$ZZ$16,0)),"") ->  | P28: =IFERROR(INDEX('WINBUGS data'!$F$17:$ZZ$65,MATCH($C28,'WINBUGS data'!$F$17:$F$65,0),MATCH("t[,"&P$4 &"]",'WINBUGS data'!$F$16:$ZZ$16,0)),"") ->  | Q28: =IFERROR(INDEX('WINBUGS data'!$F$17:$ZZ$65,MATCH($C28,'WINBUGS data'!$F$17:$F$65,0),MATCH("t[,"&Q$4 &"]",'WINBUGS data'!$F$16:$ZZ$16,0)),"") ->  | R28: =IFERROR(INDEX('WINBUGS data'!$F$17:$ZZ$65,MATCH($C28,'WINBUGS data'!$F$17:$F$65,0),MATCH("t[,"&R$4 &"]",'WINBUGS data'!$F$16:$ZZ$16,0)),"") ->  | S28: =IFERROR(INDEX('WINBUGS data'!$F$17:$ZZ$65,MATCH($C28,'WINBUGS data'!$F$17:$F$65,0),MATCH("t[,"&S$4 &"]",'WINBUGS data'!$F$16:$ZZ$16,0)),"") ->  | T28: =IFERROR(INDEX('WINBUGS data'!$F$17:$ZZ$65,MATCH($C28,'WINBUGS data'!$F$17:$F$65,0),MATCH("t[,"&T$4 &"]",'WINBUGS data'!$F$16:$ZZ$16,0)),"") -> 
C29: =IF('WINBUGS data'!F41<>"",'WINBUGS data'!F41,"") ->  | D29: =IFERROR(INDEX('WINBUGS data'!$F$17:$ZZ$65,MATCH(C29,'WINBUGS data'!$F$17:$F$65,0),MATCH("na[]",'WINBUGS data'!$F$16:$ZZ$16,0)),"") ->  | F29: =IFERROR(INDEX('WINBUGS data'!$F$17:$ZZ$65,MATCH($C29,'WINBUGS data'!$F$17:$F$65,0),MATCH("t[,"&F$4 &"]",'WINBUGS data'!$F$16:$ZZ$16,0)),"") ->  | G29: =IFERROR(INDEX('WINBUGS data'!$F$17:$ZZ$65,MATCH($C29,'WINBUGS data'!$F$17:$F$65,0),MATCH("t[,"&G$4 &"]",'WINBUGS data'!$F$16:$ZZ$16,0)),"") ->  | H29: =IFERROR(INDEX('WINBUGS data'!$F$17:$ZZ$65,MATCH($C29,'WINBUGS data'!$F$17:$F$65,0),MATCH("t[,"&H$4 &"]",'WINBUGS data'!$F$16:$ZZ$16,0)),"") ->  | I29: =IFERROR(INDEX('WINBUGS data'!$F$17:$ZZ$65,MATCH($C29,'WINBUGS data'!$F$17:$F$65,0),MATCH("t[,"&I$4 &"]",'WINBUGS data'!$F$16:$ZZ$16,0)),"") ->  | J29: =IFERROR(INDEX('WINBUGS data'!$F$17:$ZZ$65,MATCH($C29,'WINBUGS data'!$F$17:$F$65,0),MATCH("t[,"&J$4 &"]",'WINBUGS data'!$F$16:$ZZ$16,0)),"") ->  | K29: =IFERROR(INDEX('WINBUGS data'!$F$17:$ZZ$65,MATCH($C29,'WINBUGS data'!$F$17:$F$65,0),MATCH("t[,"&K$4 &"]",'WINBUGS data'!$F$16:$ZZ$16,0)),"") ->  | L29: =IFERROR(INDEX('WINBUGS data'!$F$17:$ZZ$65,MATCH($C29,'WINBUGS data'!$F$17:$F$65,0),MATCH("t[,"&L$4 &"]",'WINBUGS data'!$F$16:$ZZ$16,0)),"") ->  | M29: =IFERROR(INDEX('WINBUGS data'!$F$17:$ZZ$65,MATCH($C29,'WINBUGS data'!$F$17:$F$65,0),MATCH("t[,"&M$4 &"]",'WINBUGS data'!$F$16:$ZZ$16,0)),"") ->  | N29: =IFERROR(INDEX('WINBUGS data'!$F$17:$ZZ$65,MATCH($C29,'WINBUGS data'!$F$17:$F$65,0),MATCH("t[,"&N$4 &"]",'WINBUGS data'!$F$16:$ZZ$16,0)),"") ->  | O29: =IFERROR(INDEX('WINBUGS data'!$F$17:$ZZ$65,MATCH($C29,'WINBUGS data'!$F$17:$F$65,0),MATCH("t[,"&O$4 &"]",'WINBUGS data'!$F$16:$ZZ$16,0)),"") ->  | P29: =IFERROR(INDEX('WINBUGS data'!$F$17:$ZZ$65,MATCH($C29,'WINBUGS data'!$F$17:$F$65,0),MATCH("t[,"&P$4 &"]",'WINBUGS data'!$F$16:$ZZ$16,0)),"") ->  | Q29: =IFERROR(INDEX('WINBUGS data'!$F$17:$ZZ$65,MATCH($C29,'WINBUGS data'!$F$17:$F$65,0),MATCH("t[,"&Q$4 &"]",'WINBUGS data'!$F$16:$ZZ$16,0)),"") ->  | R29: =IFERROR(INDEX('WINBUGS data'!$F$17:$ZZ$65,MATCH($C29,'WINBUGS data'!$F$17:$F$65,0),MATCH("t[,"&R$4 &"]",'WINBUGS data'!$F$16:$ZZ$16,0)),"") ->  | S29: =IFERROR(INDEX('WINBUGS data'!$F$17:$ZZ$65,MATCH($C29,'WINBUGS data'!$F$17:$F$65,0),MATCH("t[,"&S$4 &"]",'WINBUGS data'!$F$16:$ZZ$16,0)),"") ->  | T29: =IFERROR(INDEX('WINBUGS data'!$F$17:$ZZ$65,MATCH($C29,'WINBUGS data'!$F$17:$F$65,0),MATCH("t[,"&T$4 &"]",'WINBUGS data'!$F$16:$ZZ$16,0)),"") -> 
C30: =IF('WINBUGS data'!F42<>"",'WINBUGS data'!F42,"") ->  | D30: =IFERROR(INDEX('WINBUGS data'!$F$17:$ZZ$65,MATCH(C30,'WINBUGS data'!$F$17:$F$65,0),MATCH("na[]",'WINBUGS data'!$F$16:$ZZ$16,0)),"") ->  | F30: =IFERROR(INDEX('WINBUGS data'!$F$17:$ZZ$65,MATCH($C30,'WINBUGS data'!$F$17:$F$65,0),MATCH("t[,"&F$4 &"]",'WINBUGS data'!$F$16:$ZZ$16,0)),"") ->  | G30: =IFERROR(INDEX('WINBUGS data'!$F$17:$ZZ$65,MATCH($C30,'WINBUGS data'!$F$17:$F$65,0),MATCH("t[,"&G$4 &"]",'WINBUGS data'!$F$16:$ZZ$16,0)),"") ->  | H30: =IFERROR(INDEX('WINBUGS data'!$F$17:$ZZ$65,MATCH($C30,'WINBUGS data'!$F$17:$F$65,0),MATCH("t[,"&H$4 &"]",'WINBUGS data'!$F$16:$ZZ$16,0)),"") ->  | I30: =IFERROR(INDEX('WINBUGS data'!$F$17:$ZZ$65,MATCH($C30,'WINBUGS data'!$F$17:$F$65,0),MATCH("t[,"&I$4 &"]",'WINBUGS data'!$F$16:$ZZ$16,0)),"") ->  | J30: =IFERROR(INDEX('WINBUGS data'!$F$17:$ZZ$65,MATCH($C30,'WINBUGS data'!$F$17:$F$65,0),MATCH("t[,"&J$4 &"]",'WINBUGS data'!$F$16:$ZZ$16,0)),"") ->  | K30: =IFERROR(INDEX('WINBUGS data'!$F$17:$ZZ$65,MATCH($C30,'WINBUGS data'!$F$17:$F$65,0),MATCH("t[,"&K$4 &"]",'WINBUGS data'!$F$16:$ZZ$16,0)),"") ->  | L30: =IFERROR(INDEX('WINBUGS data'!$F$17:$ZZ$65,MATCH($C30,'WINBUGS data'!$F$17:$F$65,0),MATCH("t[,"&L$4 &"]",'WINBUGS data'!$F$16:$ZZ$16,0)),"") ->  | M30: =IFERROR(INDEX('WINBUGS data'!$F$17:$ZZ$65,MATCH($C30,'WINBUGS data'!$F$17:$F$65,0),MATCH("t[,"&M$4 &"]",'WINBUGS data'!$F$16:$ZZ$16,0)),"") ->  | N30: =IFERROR(INDEX('WINBUGS data'!$F$17:$ZZ$65,MATCH($C30,'WINBUGS data'!$F$17:$F$65,0),MATCH("t[,"&N$4 &"]",'WINBUGS data'!$F$16:$ZZ$16,0)),"") ->  | O30: =IFERROR(INDEX('WINBUGS data'!$F$17:$ZZ$65,MATCH($C30,'WINBUGS data'!$F$17:$F$65,0),MATCH("t[,"&O$4 &"]",'WINBUGS data'!$F$16:$ZZ$16,0)),"") ->  | P30: =IFERROR(INDEX('WINBUGS data'!$F$17:$ZZ$65,MATCH($C30,'WINBUGS data'!$F$17:$F$65,0),MATCH("t[,"&P$4 &"]",'WINBUGS data'!$F$16:$ZZ$16,0)),"") ->  | Q30: =IFERROR(INDEX('WINBUGS data'!$F$17:$ZZ$65,MATCH($C30,'WINBUGS data'!$F$17:$F$65,0),MATCH("t[,"&Q$4 &"]",'WINBUGS data'!$F$16:$ZZ$16,0)),"") ->  | R30: =IFERROR(INDEX('WINBUGS data'!$F$17:$ZZ$65,MATCH($C30,'WINBUGS data'!$F$17:$F$65,0),MATCH("t[,"&R$4 &"]",'WINBUGS data'!$F$16:$ZZ$16,0)),"") ->  | S30: =IFERROR(INDEX('WINBUGS data'!$F$17:$ZZ$65,MATCH($C30,'WINBUGS data'!$F$17:$F$65,0),MATCH("t[,"&S$4 &"]",'WINBUGS data'!$F$16:$ZZ$16,0)),"") ->  | T30: =IFERROR(INDEX('WINBUGS data'!$F$17:$ZZ$65,MATCH($C30,'WINBUGS data'!$F$17:$F$65,0),MATCH("t[,"&T$4 &"]",'WINBUGS data'!$F$16:$ZZ$16,0)),"") -> 
C31: =IF('WINBUGS data'!F43<>"",'WINBUGS data'!F43,"") ->  | D31: =IFERROR(INDEX('WINBUGS data'!$F$17:$ZZ$65,MATCH(C31,'WINBUGS data'!$F$17:$F$65,0),MATCH("na[]",'WINBUGS data'!$F$16:$ZZ$16,0)),"") ->  | F31: =IFERROR(INDEX('WINBUGS data'!$F$17:$ZZ$65,MATCH($C31,'WINBUGS data'!$F$17:$F$65,0),MATCH("t[,"&F$4 &"]",'WINBUGS data'!$F$16:$ZZ$16,0)),"") ->  | G31: =IFERROR(INDEX('WINBUGS data'!$F$17:$ZZ$65,MATCH($C31,'WINBUGS data'!$F$17:$F$65,0),MATCH("t[,"&G$4 &"]",'WINBUGS data'!$F$16:$ZZ$16,0)),"") ->  | H31: =IFERROR(INDEX('WINBUGS data'!$F$17:$ZZ$65,MATCH($C31,'WINBUGS data'!$F$17:$F$65,0),MATCH("t[,"&H$4 &"]",'WINBUGS data'!$F$16:$ZZ$16,0)),"") ->  | I31: =IFERROR(INDEX('WINBUGS data'!$F$17:$ZZ$65,MATCH($C31,'WINBUGS data'!$F$17:$F$65,0),MATCH("t[,"&I$4 &"]",'WINBUGS data'!$F$16:$ZZ$16,0)),"") ->  | J31: =IFERROR(INDEX('WINBUGS data'!$F$17:$ZZ$65,MATCH($C31,'WINBUGS data'!$F$17:$F$65,0),MATCH("t[,"&J$4 &"]",'WINBUGS data'!$F$16:$ZZ$16,0)),"") ->  | K31: =IFERROR(INDEX('WINBUGS data'!$F$17:$ZZ$65,MATCH($C31,'WINBUGS data'!$F$17:$F$65,0),MATCH("t[,"&K$4 &"]",'WINBUGS data'!$F$16:$ZZ$16,0)),"") ->  | L31: =IFERROR(INDEX('WINBUGS data'!$F$17:$ZZ$65,MATCH($C31,'WINBUGS data'!$F$17:$F$65,0),MATCH("t[,"&L$4 &"]",'WINBUGS data'!$F$16:$ZZ$16,0)),"") ->  | M31: =IFERROR(INDEX('WINBUGS data'!$F$17:$ZZ$65,MATCH($C31,'WINBUGS data'!$F$17:$F$65,0),MATCH("t[,"&M$4 &"]",'WINBUGS data'!$F$16:$ZZ$16,0)),"") ->  | N31: =IFERROR(INDEX('WINBUGS data'!$F$17:$ZZ$65,MATCH($C31,'WINBUGS data'!$F$17:$F$65,0),MATCH("t[,"&N$4 &"]",'WINBUGS data'!$F$16:$ZZ$16,0)),"") ->  | O31: =IFERROR(INDEX('WINBUGS data'!$F$17:$ZZ$65,MATCH($C31,'WINBUGS data'!$F$17:$F$65,0),MATCH("t[,"&O$4 &"]",'WINBUGS data'!$F$16:$ZZ$16,0)),"") ->  | P31: =IFERROR(INDEX('WINBUGS data'!$F$17:$ZZ$65,MATCH($C31,'WINBUGS data'!$F$17:$F$65,0),MATCH("t[,"&P$4 &"]",'WINBUGS data'!$F$16:$ZZ$16,0)),"") ->  | Q31: =IFERROR(INDEX('WINBUGS data'!$F$17:$ZZ$65,MATCH($C31,'WINBUGS data'!$F$17:$F$65,0),MATCH("t[,"&Q$4 &"]",'WINBUGS data'!$F$16:$ZZ$16,0)),"") ->  | R31: =IFERROR(INDEX('WINBUGS data'!$F$17:$ZZ$65,MATCH($C31,'WINBUGS data'!$F$17:$F$65,0),MATCH("t[,"&R$4 &"]",'WINBUGS data'!$F$16:$ZZ$16,0)),"") ->  | S31: =IFERROR(INDEX('WINBUGS data'!$F$17:$ZZ$65,MATCH($C31,'WINBUGS data'!$F$17:$F$65,0),MATCH("t[,"&S$4 &"]",'WINBUGS data'!$F$16:$ZZ$16,0)),"") ->  | T31: =IFERROR(INDEX('WINBUGS data'!$F$17:$ZZ$65,MATCH($C31,'WINBUGS data'!$F$17:$F$65,0),MATCH("t[,"&T$4 &"]",'WINBUGS data'!$F$16:$ZZ$16,0)),"") -> 
C32: =IF('WINBUGS data'!F44<>"",'WINBUGS data'!F44,"") ->  | D32: =IFERROR(INDEX('WINBUGS data'!$F$17:$ZZ$65,MATCH(C32,'WINBUGS data'!$F$17:$F$65,0),MATCH("na[]",'WINBUGS data'!$F$16:$ZZ$16,0)),"") ->  | F32: =IFERROR(INDEX('WINBUGS data'!$F$17:$ZZ$65,MATCH($C32,'WINBUGS data'!$F$17:$F$65,0),MATCH("t[,"&F$4 &"]",'WINBUGS data'!$F$16:$ZZ$16,0)),"") ->  | G32: =IFERROR(INDEX('WINBUGS data'!$F$17:$ZZ$65,MATCH($C32,'WINBUGS data'!$F$17:$F$65,0),MATCH("t[,"&G$4 &"]",'WINBUGS data'!$F$16:$ZZ$16,0)),"") ->  | H32: =IFERROR(INDEX('WINBUGS data'!$F$17:$ZZ$65,MATCH($C32,'WINBUGS data'!$F$17:$F$65,0),MATCH("t[,"&H$4 &"]",'WINBUGS data'!$F$16:$ZZ$16,0)),"") ->  | I32: =IFERROR(INDEX('WINBUGS data'!$F$17:$ZZ$65,MATCH($C32,'WINBUGS data'!$F$17:$F$65,0),MATCH("t[,"&I$4 &"]",'WINBUGS data'!$F$16:$ZZ$16,0)),"") ->  | J32: =IFERROR(INDEX('WINBUGS data'!$F$17:$ZZ$65,MATCH($C32,'WINBUGS data'!$F$17:$F$65,0),MATCH("t[,"&J$4 &"]",'WINBUGS data'!$F$16:$ZZ$16,0)),"") ->  | K32: =IFERROR(INDEX('WINBUGS data'!$F$17:$ZZ$65,MATCH($C32,'WINBUGS data'!$F$17:$F$65,0),MATCH("t[,"&K$4 &"]",'WINBUGS data'!$F$16:$ZZ$16,0)),"") ->  | L32: =IFERROR(INDEX('WINBUGS data'!$F$17:$ZZ$65,MATCH($C32,'WINBUGS data'!$F$17:$F$65,0),MATCH("t[,"&L$4 &"]",'WINBUGS data'!$F$16:$ZZ$16,0)),"") ->  | M32: =IFERROR(INDEX('WINBUGS data'!$F$17:$ZZ$65,MATCH($C32,'WINBUGS data'!$F$17:$F$65,0),MATCH("t[,"&M$4 &"]",'WINBUGS data'!$F$16:$ZZ$16,0)),"") ->  | N32: =IFERROR(INDEX('WINBUGS data'!$F$17:$ZZ$65,MATCH($C32,'WINBUGS data'!$F$17:$F$65,0),MATCH("t[,"&N$4 &"]",'WINBUGS data'!$F$16:$ZZ$16,0)),"") ->  | O32: =IFERROR(INDEX('WINBUGS data'!$F$17:$ZZ$65,MATCH($C32,'WINBUGS data'!$F$17:$F$65,0),MATCH("t[,"&O$4 &"]",'WINBUGS data'!$F$16:$ZZ$16,0)),"") ->  | P32: =IFERROR(INDEX('WINBUGS data'!$F$17:$ZZ$65,MATCH($C32,'WINBUGS data'!$F$17:$F$65,0),MATCH("t[,"&P$4 &"]",'WINBUGS data'!$F$16:$ZZ$16,0)),"") ->  | Q32: =IFERROR(INDEX('WINBUGS data'!$F$17:$ZZ$65,MATCH($C32,'WINBUGS data'!$F$17:$F$65,0),MATCH("t[,"&Q$4 &"]",'WINBUGS data'!$F$16:$ZZ$16,0)),"") ->  | R32: =IFERROR(INDEX('WINBUGS data'!$F$17:$ZZ$65,MATCH($C32,'WINBUGS data'!$F$17:$F$65,0),MATCH("t[,"&R$4 &"]",'WINBUGS data'!$F$16:$ZZ$16,0)),"") ->  | S32: =IFERROR(INDEX('WINBUGS data'!$F$17:$ZZ$65,MATCH($C32,'WINBUGS data'!$F$17:$F$65,0),MATCH("t[,"&S$4 &"]",'WINBUGS data'!$F$16:$ZZ$16,0)),"") ->  | T32: =IFERROR(INDEX('WINBUGS data'!$F$17:$ZZ$65,MATCH($C32,'WINBUGS data'!$F$17:$F$65,0),MATCH("t[,"&T$4 &"]",'WINBUGS data'!$F$16:$ZZ$16,0)),"") -> 
C33: =IF('WINBUGS data'!F45<>"",'WINBUGS data'!F45,"") ->  | D33: =IFERROR(INDEX('WINBUGS data'!$F$17:$ZZ$65,MATCH(C33,'WINBUGS data'!$F$17:$F$65,0),MATCH("na[]",'WINBUGS data'!$F$16:$ZZ$16,0)),"") ->  | F33: =IFERROR(INDEX('WINBUGS data'!$F$17:$ZZ$65,MATCH($C33,'WINBUGS data'!$F$17:$F$65,0),MATCH("t[,"&F$4 &"]",'WINBUGS data'!$F$16:$ZZ$16,0)),"") ->  | G33: =IFERROR(INDEX('WINBUGS data'!$F$17:$ZZ$65,MATCH($C33,'WINBUGS data'!$F$17:$F$65,0),MATCH("t[,"&G$4 &"]",'WINBUGS data'!$F$16:$ZZ$16,0)),"") ->  | H33: =IFERROR(INDEX('WINBUGS data'!$F$17:$ZZ$65,MATCH($C33,'WINBUGS data'!$F$17:$F$65,0),MATCH("t[,"&H$4 &"]",'WINBUGS data'!$F$16:$ZZ$16,0)),"") ->  | I33: =IFERROR(INDEX('WINBUGS data'!$F$17:$ZZ$65,MATCH($C33,'WINBUGS data'!$F$17:$F$65,0),MATCH("t[,"&I$4 &"]",'WINBUGS data'!$F$16:$ZZ$16,0)),"") ->  | J33: =IFERROR(INDEX('WINBUGS data'!$F$17:$ZZ$65,MATCH($C33,'WINBUGS data'!$F$17:$F$65,0),MATCH("t[,"&J$4 &"]",'WINBUGS data'!$F$16:$ZZ$16,0)),"") ->  | K33: =IFERROR(INDEX('WINBUGS data'!$F$17:$ZZ$65,MATCH($C33,'WINBUGS data'!$F$17:$F$65,0),MATCH("t[,"&K$4 &"]",'WINBUGS data'!$F$16:$ZZ$16,0)),"") ->  | L33: =IFERROR(INDEX('WINBUGS data'!$F$17:$ZZ$65,MATCH($C33,'WINBUGS data'!$F$17:$F$65,0),MATCH("t[,"&L$4 &"]",'WINBUGS data'!$F$16:$ZZ$16,0)),"") ->  | M33: =IFERROR(INDEX('WINBUGS data'!$F$17:$ZZ$65,MATCH($C33,'WINBUGS data'!$F$17:$F$65,0),MATCH("t[,"&M$4 &"]",'WINBUGS data'!$F$16:$ZZ$16,0)),"") ->  | N33: =IFERROR(INDEX('WINBUGS data'!$F$17:$ZZ$65,MATCH($C33,'WINBUGS data'!$F$17:$F$65,0),MATCH("t[,"&N$4 &"]",'WINBUGS data'!$F$16:$ZZ$16,0)),"") ->  | O33: =IFERROR(INDEX('WINBUGS data'!$F$17:$ZZ$65,MATCH($C33,'WINBUGS data'!$F$17:$F$65,0),MATCH("t[,"&O$4 &"]",'WINBUGS data'!$F$16:$ZZ$16,0)),"") ->  | P33: =IFERROR(INDEX('WINBUGS data'!$F$17:$ZZ$65,MATCH($C33,'WINBUGS data'!$F$17:$F$65,0),MATCH("t[,"&P$4 &"]",'WINBUGS data'!$F$16:$ZZ$16,0)),"") ->  | Q33: =IFERROR(INDEX('WINBUGS data'!$F$17:$ZZ$65,MATCH($C33,'WINBUGS data'!$F$17:$F$65,0),MATCH("t[,"&Q$4 &"]",'WINBUGS data'!$F$16:$ZZ$16,0)),"") ->  | R33: =IFERROR(INDEX('WINBUGS data'!$F$17:$ZZ$65,MATCH($C33,'WINBUGS data'!$F$17:$F$65,0),MATCH("t[,"&R$4 &"]",'WINBUGS data'!$F$16:$ZZ$16,0)),"") ->  | S33: =IFERROR(INDEX('WINBUGS data'!$F$17:$ZZ$65,MATCH($C33,'WINBUGS data'!$F$17:$F$65,0),MATCH("t[,"&S$4 &"]",'WINBUGS data'!$F$16:$ZZ$16,0)),"") ->  | T33: =IFERROR(INDEX('WINBUGS data'!$F$17:$ZZ$65,MATCH($C33,'WINBUGS data'!$F$17:$F$65,0),MATCH("t[,"&T$4 &"]",'WINBUGS data'!$F$16:$ZZ$16,0)),"") -> 
C34: =IF('WINBUGS data'!F46<>"",'WINBUGS data'!F46,"") ->  | D34: =IFERROR(INDEX('WINBUGS data'!$F$17:$ZZ$65,MATCH(C34,'WINBUGS data'!$F$17:$F$65,0),MATCH("na[]",'WINBUGS data'!$F$16:$ZZ$16,0)),"") ->  | F34: =IFERROR(INDEX('WINBUGS data'!$F$17:$ZZ$65,MATCH($C34,'WINBUGS data'!$F$17:$F$65,0),MATCH("t[,"&F$4 &"]",'WINBUGS data'!$F$16:$ZZ$16,0)),"") ->  | G34: =IFERROR(INDEX('WINBUGS data'!$F$17:$ZZ$65,MATCH($C34,'WINBUGS data'!$F$17:$F$65,0),MATCH("t[,"&G$4 &"]",'WINBUGS data'!$F$16:$ZZ$16,0)),"") ->  | H34: =IFERROR(INDEX('WINBUGS data'!$F$17:$ZZ$65,MATCH($C34,'WINBUGS data'!$F$17:$F$65,0),MATCH("t[,"&H$4 &"]",'WINBUGS data'!$F$16:$ZZ$16,0)),"") ->  | I34: =IFERROR(INDEX('WINBUGS data'!$F$17:$ZZ$65,MATCH($C34,'WINBUGS data'!$F$17:$F$65,0),MATCH("t[,"&I$4 &"]",'WINBUGS data'!$F$16:$ZZ$16,0)),"") ->  | J34: =IFERROR(INDEX('WINBUGS data'!$F$17:$ZZ$65,MATCH($C34,'WINBUGS data'!$F$17:$F$65,0),MATCH("t[,"&J$4 &"]",'WINBUGS data'!$F$16:$ZZ$16,0)),"") ->  | K34: =IFERROR(INDEX('WINBUGS data'!$F$17:$ZZ$65,MATCH($C34,'WINBUGS data'!$F$17:$F$65,0),MATCH("t[,"&K$4 &"]",'WINBUGS data'!$F$16:$ZZ$16,0)),"") ->  | L34: =IFERROR(INDEX('WINBUGS data'!$F$17:$ZZ$65,MATCH($C34,'WINBUGS data'!$F$17:$F$65,0),MATCH("t[,"&L$4 &"]",'WINBUGS data'!$F$16:$ZZ$16,0)),"") ->  | M34: =IFERROR(INDEX('WINBUGS data'!$F$17:$ZZ$65,MATCH($C34,'WINBUGS data'!$F$17:$F$65,0),MATCH("t[,"&M$4 &"]",'WINBUGS data'!$F$16:$ZZ$16,0)),"") ->  | N34: =IFERROR(INDEX('WINBUGS data'!$F$17:$ZZ$65,MATCH($C34,'WINBUGS data'!$F$17:$F$65,0),MATCH("t[,"&N$4 &"]",'WINBUGS data'!$F$16:$ZZ$16,0)),"") ->  | O34: =IFERROR(INDEX('WINBUGS data'!$F$17:$ZZ$65,MATCH($C34,'WINBUGS data'!$F$17:$F$65,0),MATCH("t[,"&O$4 &"]",'WINBUGS data'!$F$16:$ZZ$16,0)),"") ->  | P34: =IFERROR(INDEX('WINBUGS data'!$F$17:$ZZ$65,MATCH($C34,'WINBUGS data'!$F$17:$F$65,0),MATCH("t[,"&P$4 &"]",'WINBUGS data'!$F$16:$ZZ$16,0)),"") ->  | Q34: =IFERROR(INDEX('WINBUGS data'!$F$17:$ZZ$65,MATCH($C34,'WINBUGS data'!$F$17:$F$65,0),MATCH("t[,"&Q$4 &"]",'WINBUGS data'!$F$16:$ZZ$16,0)),"") ->  | R34: =IFERROR(INDEX('WINBUGS data'!$F$17:$ZZ$65,MATCH($C34,'WINBUGS data'!$F$17:$F$65,0),MATCH("t[,"&R$4 &"]",'WINBUGS data'!$F$16:$ZZ$16,0)),"") ->  | S34: =IFERROR(INDEX('WINBUGS data'!$F$17:$ZZ$65,MATCH($C34,'WINBUGS data'!$F$17:$F$65,0),MATCH("t[,"&S$4 &"]",'WINBUGS data'!$F$16:$ZZ$16,0)),"") ->  | T34: =IFERROR(INDEX('WINBUGS data'!$F$17:$ZZ$65,MATCH($C34,'WINBUGS data'!$F$17:$F$65,0),MATCH("t[,"&T$4 &"]",'WINBUGS data'!$F$16:$ZZ$16,0)),"") -> 
C35: =IF('WINBUGS data'!F47<>"",'WINBUGS data'!F47,"") ->  | D35: =IFERROR(INDEX('WINBUGS data'!$F$17:$ZZ$65,MATCH(C35,'WINBUGS data'!$F$17:$F$65,0),MATCH("na[]",'WINBUGS data'!$F$16:$ZZ$16,0)),"") ->  | F35: =IFERROR(INDEX('WINBUGS data'!$F$17:$ZZ$65,MATCH($C35,'WINBUGS data'!$F$17:$F$65,0),MATCH("t[,"&F$4 &"]",'WINBUGS data'!$F$16:$ZZ$16,0)),"") ->  | G35: =IFERROR(INDEX('WINBUGS data'!$F$17:$ZZ$65,MATCH($C35,'WINBUGS data'!$F$17:$F$65,0),MATCH("t[,"&G$4 &"]",'WINBUGS data'!$F$16:$ZZ$16,0)),"") ->  | H35: =IFERROR(INDEX('WINBUGS data'!$F$17:$ZZ$65,MATCH($C35,'WINBUGS data'!$F$17:$F$65,0),MATCH("t[,"&H$4 &"]",'WINBUGS data'!$F$16:$ZZ$16,0)),"") ->  | I35: =IFERROR(INDEX('WINBUGS data'!$F$17:$ZZ$65,MATCH($C35,'WINBUGS data'!$F$17:$F$65,0),MATCH("t[,"&I$4 &"]",'WINBUGS data'!$F$16:$ZZ$16,0)),"") ->  | J35: =IFERROR(INDEX('WINBUGS data'!$F$17:$ZZ$65,MATCH($C35,'WINBUGS data'!$F$17:$F$65,0),MATCH("t[,"&J$4 &"]",'WINBUGS data'!$F$16:$ZZ$16,0)),"") ->  | K35: =IFERROR(INDEX('WINBUGS data'!$F$17:$ZZ$65,MATCH($C35,'WINBUGS data'!$F$17:$F$65,0),MATCH("t[,"&K$4 &"]",'WINBUGS data'!$F$16:$ZZ$16,0)),"") ->  | L35: =IFERROR(INDEX('WINBUGS data'!$F$17:$ZZ$65,MATCH($C35,'WINBUGS data'!$F$17:$F$65,0),MATCH("t[,"&L$4 &"]",'WINBUGS data'!$F$16:$ZZ$16,0)),"") ->  | M35: =IFERROR(INDEX('WINBUGS data'!$F$17:$ZZ$65,MATCH($C35,'WINBUGS data'!$F$17:$F$65,0),MATCH("t[,"&M$4 &"]",'WINBUGS data'!$F$16:$ZZ$16,0)),"") ->  | N35: =IFERROR(INDEX('WINBUGS data'!$F$17:$ZZ$65,MATCH($C35,'WINBUGS data'!$F$17:$F$65,0),MATCH("t[,"&N$4 &"]",'WINBUGS data'!$F$16:$ZZ$16,0)),"") ->  | O35: =IFERROR(INDEX('WINBUGS data'!$F$17:$ZZ$65,MATCH($C35,'WINBUGS data'!$F$17:$F$65,0),MATCH("t[,"&O$4 &"]",'WINBUGS data'!$F$16:$ZZ$16,0)),"") ->  | P35: =IFERROR(INDEX('WINBUGS data'!$F$17:$ZZ$65,MATCH($C35,'WINBUGS data'!$F$17:$F$65,0),MATCH("t[,"&P$4 &"]",'WINBUGS data'!$F$16:$ZZ$16,0)),"") ->  | Q35: =IFERROR(INDEX('WINBUGS data'!$F$17:$ZZ$65,MATCH($C35,'WINBUGS data'!$F$17:$F$65,0),MATCH("t[,"&Q$4 &"]",'WINBUGS data'!$F$16:$ZZ$16,0)),"") ->  | R35: =IFERROR(INDEX('WINBUGS data'!$F$17:$ZZ$65,MATCH($C35,'WINBUGS data'!$F$17:$F$65,0),MATCH("t[,"&R$4 &"]",'WINBUGS data'!$F$16:$ZZ$16,0)),"") ->  | S35: =IFERROR(INDEX('WINBUGS data'!$F$17:$ZZ$65,MATCH($C35,'WINBUGS data'!$F$17:$F$65,0),MATCH("t[,"&S$4 &"]",'WINBUGS data'!$F$16:$ZZ$16,0)),"") ->  | T35: =IFERROR(INDEX('WINBUGS data'!$F$17:$ZZ$65,MATCH($C35,'WINBUGS data'!$F$17:$F$65,0),MATCH("t[,"&T$4 &"]",'WINBUGS data'!$F$16:$ZZ$16,0)),"") -> 
C36: =IF('WINBUGS data'!F48<>"",'WINBUGS data'!F48,"") ->  | D36: =IFERROR(INDEX('WINBUGS data'!$F$17:$ZZ$65,MATCH(C36,'WINBUGS data'!$F$17:$F$65,0),MATCH("na[]",'WINBUGS data'!$F$16:$ZZ$16,0)),"") ->  | F36: =IFERROR(INDEX('WINBUGS data'!$F$17:$ZZ$65,MATCH($C36,'WINBUGS data'!$F$17:$F$65,0),MATCH("t[,"&F$4 &"]",'WINBUGS data'!$F$16:$ZZ$16,0)),"") ->  | G36: =IFERROR(INDEX('WINBUGS data'!$F$17:$ZZ$65,MATCH($C36,'WINBUGS data'!$F$17:$F$65,0),MATCH("t[,"&G$4 &"]",'WINBUGS data'!$F$16:$ZZ$16,0)),"") ->  | H36: =IFERROR(INDEX('WINBUGS data'!$F$17:$ZZ$65,MATCH($C36,'WINBUGS data'!$F$17:$F$65,0),MATCH("t[,"&H$4 &"]",'WINBUGS data'!$F$16:$ZZ$16,0)),"") ->  | I36: =IFERROR(INDEX('WINBUGS data'!$F$17:$ZZ$65,MATCH($C36,'WINBUGS data'!$F$17:$F$65,0),MATCH("t[,"&I$4 &"]",'WINBUGS data'!$F$16:$ZZ$16,0)),"") ->  | J36: =IFERROR(INDEX('WINBUGS data'!$F$17:$ZZ$65,MATCH($C36,'WINBUGS data'!$F$17:$F$65,0),MATCH("t[,"&J$4 &"]",'WINBUGS data'!$F$16:$ZZ$16,0)),"") ->  | K36: =IFERROR(INDEX('WINBUGS data'!$F$17:$ZZ$65,MATCH($C36,'WINBUGS data'!$F$17:$F$65,0),MATCH("t[,"&K$4 &"]",'WINBUGS data'!$F$16:$ZZ$16,0)),"") ->  | L36: =IFERROR(INDEX('WINBUGS data'!$F$17:$ZZ$65,MATCH($C36,'WINBUGS data'!$F$17:$F$65,0),MATCH("t[,"&L$4 &"]",'WINBUGS data'!$F$16:$ZZ$16,0)),"") ->  | M36: =IFERROR(INDEX('WINBUGS data'!$F$17:$ZZ$65,MATCH($C36,'WINBUGS data'!$F$17:$F$65,0),MATCH("t[,"&M$4 &"]",'WINBUGS data'!$F$16:$ZZ$16,0)),"") ->  | N36: =IFERROR(INDEX('WINBUGS data'!$F$17:$ZZ$65,MATCH($C36,'WINBUGS data'!$F$17:$F$65,0),MATCH("t[,"&N$4 &"]",'WINBUGS data'!$F$16:$ZZ$16,0)),"") ->  | O36: =IFERROR(INDEX('WINBUGS data'!$F$17:$ZZ$65,MATCH($C36,'WINBUGS data'!$F$17:$F$65,0),MATCH("t[,"&O$4 &"]",'WINBUGS data'!$F$16:$ZZ$16,0)),"") ->  | P36: =IFERROR(INDEX('WINBUGS data'!$F$17:$ZZ$65,MATCH($C36,'WINBUGS data'!$F$17:$F$65,0),MATCH("t[,"&P$4 &"]",'WINBUGS data'!$F$16:$ZZ$16,0)),"") ->  | Q36: =IFERROR(INDEX('WINBUGS data'!$F$17:$ZZ$65,MATCH($C36,'WINBUGS data'!$F$17:$F$65,0),MATCH("t[,"&Q$4 &"]",'WINBUGS data'!$F$16:$ZZ$16,0)),"") ->  | R36: =IFERROR(INDEX('WINBUGS data'!$F$17:$ZZ$65,MATCH($C36,'WINBUGS data'!$F$17:$F$65,0),MATCH("t[,"&R$4 &"]",'WINBUGS data'!$F$16:$ZZ$16,0)),"") ->  | S36: =IFERROR(INDEX('WINBUGS data'!$F$17:$ZZ$65,MATCH($C36,'WINBUGS data'!$F$17:$F$65,0),MATCH("t[,"&S$4 &"]",'WINBUGS data'!$F$16:$ZZ$16,0)),"") ->  | T36: =IFERROR(INDEX('WINBUGS data'!$F$17:$ZZ$65,MATCH($C36,'WINBUGS data'!$F$17:$F$65,0),MATCH("t[,"&T$4 &"]",'WINBUGS data'!$F$16:$ZZ$16,0)),"") -> 
C37: =IF('WINBUGS data'!F49<>"",'WINBUGS data'!F49,"") ->  | D37: =IFERROR(INDEX('WINBUGS data'!$F$17:$ZZ$65,MATCH(C37,'WINBUGS data'!$F$17:$F$65,0),MATCH("na[]",'WINBUGS data'!$F$16:$ZZ$16,0)),"") ->  | F37: =IFERROR(INDEX('WINBUGS data'!$F$17:$ZZ$65,MATCH($C37,'WINBUGS data'!$F$17:$F$65,0),MATCH("t[,"&F$4 &"]",'WINBUGS data'!$F$16:$ZZ$16,0)),"") ->  | G37: =IFERROR(INDEX('WINBUGS data'!$F$17:$ZZ$65,MATCH($C37,'WINBUGS data'!$F$17:$F$65,0),MATCH("t[,"&G$4 &"]",'WINBUGS data'!$F$16:$ZZ$16,0)),"") ->  | H37: =IFERROR(INDEX('WINBUGS data'!$F$17:$ZZ$65,MATCH($C37,'WINBUGS data'!$F$17:$F$65,0),MATCH("t[,"&H$4 &"]",'WINBUGS data'!$F$16:$ZZ$16,0)),"") ->  | I37: =IFERROR(INDEX('WINBUGS data'!$F$17:$ZZ$65,MATCH($C37,'WINBUGS data'!$F$17:$F$65,0),MATCH("t[,"&I$4 &"]",'WINBUGS data'!$F$16:$ZZ$16,0)),"") ->  | J37: =IFERROR(INDEX('WINBUGS data'!$F$17:$ZZ$65,MATCH($C37,'WINBUGS data'!$F$17:$F$65,0),MATCH("t[,"&J$4 &"]",'WINBUGS data'!$F$16:$ZZ$16,0)),"") ->  | K37: =IFERROR(INDEX('WINBUGS data'!$F$17:$ZZ$65,MATCH($C37,'WINBUGS data'!$F$17:$F$65,0),MATCH("t[,"&K$4 &"]",'WINBUGS data'!$F$16:$ZZ$16,0)),"") ->  | L37: =IFERROR(INDEX('WINBUGS data'!$F$17:$ZZ$65,MATCH($C37,'WINBUGS data'!$F$17:$F$65,0),MATCH("t[,"&L$4 &"]",'WINBUGS data'!$F$16:$ZZ$16,0)),"") ->  | M37: =IFERROR(INDEX('WINBUGS data'!$F$17:$ZZ$65,MATCH($C37,'WINBUGS data'!$F$17:$F$65,0),MATCH("t[,"&M$4 &"]",'WINBUGS data'!$F$16:$ZZ$16,0)),"") ->  | N37: =IFERROR(INDEX('WINBUGS data'!$F$17:$ZZ$65,MATCH($C37,'WINBUGS data'!$F$17:$F$65,0),MATCH("t[,"&N$4 &"]",'WINBUGS data'!$F$16:$ZZ$16,0)),"") ->  | O37: =IFERROR(INDEX('WINBUGS data'!$F$17:$ZZ$65,MATCH($C37,'WINBUGS data'!$F$17:$F$65,0),MATCH("t[,"&O$4 &"]",'WINBUGS data'!$F$16:$ZZ$16,0)),"") ->  | P37: =IFERROR(INDEX('WINBUGS data'!$F$17:$ZZ$65,MATCH($C37,'WINBUGS data'!$F$17:$F$65,0),MATCH("t[,"&P$4 &"]",'WINBUGS data'!$F$16:$ZZ$16,0)),"") ->  | Q37: =IFERROR(INDEX('WINBUGS data'!$F$17:$ZZ$65,MATCH($C37,'WINBUGS data'!$F$17:$F$65,0),MATCH("t[,"&Q$4 &"]",'WINBUGS data'!$F$16:$ZZ$16,0)),"") ->  | R37: =IFERROR(INDEX('WINBUGS data'!$F$17:$ZZ$65,MATCH($C37,'WINBUGS data'!$F$17:$F$65,0),MATCH("t[,"&R$4 &"]",'WINBUGS data'!$F$16:$ZZ$16,0)),"") ->  | S37: =IFERROR(INDEX('WINBUGS data'!$F$17:$ZZ$65,MATCH($C37,'WINBUGS data'!$F$17:$F$65,0),MATCH("t[,"&S$4 &"]",'WINBUGS data'!$F$16:$ZZ$16,0)),"") ->  | T37: =IFERROR(INDEX('WINBUGS data'!$F$17:$ZZ$65,MATCH($C37,'WINBUGS data'!$F$17:$F$65,0),MATCH("t[,"&T$4 &"]",'WINBUGS data'!$F$16:$ZZ$16,0)),"") -> 
C38: =IF('WINBUGS data'!F50<>"",'WINBUGS data'!F50,"") ->  | D38: =IFERROR(INDEX('WINBUGS data'!$F$17:$ZZ$65,MATCH(C38,'WINBUGS data'!$F$17:$F$65,0),MATCH("na[]",'WINBUGS data'!$F$16:$ZZ$16,0)),"") ->  | F38: =IFERROR(INDEX('WINBUGS data'!$F$17:$ZZ$65,MATCH($C38,'WINBUGS data'!$F$17:$F$65,0),MATCH("t[,"&F$4 &"]",'WINBUGS data'!$F$16:$ZZ$16,0)),"") ->  | G38: =IFERROR(INDEX('WINBUGS data'!$F$17:$ZZ$65,MATCH($C38,'WINBUGS data'!$F$17:$F$65,0),MATCH("t[,"&G$4 &"]",'WINBUGS data'!$F$16:$ZZ$16,0)),"") ->  | H38: =IFERROR(INDEX('WINBUGS data'!$F$17:$ZZ$65,MATCH($C38,'WINBUGS data'!$F$17:$F$65,0),MATCH("t[,"&H$4 &"]",'WINBUGS data'!$F$16:$ZZ$16,0)),"") ->  | I38: =IFERROR(INDEX('WINBUGS data'!$F$17:$ZZ$65,MATCH($C38,'WINBUGS data'!$F$17:$F$65,0),MATCH("t[,"&I$4 &"]",'WINBUGS data'!$F$16:$ZZ$16,0)),"") ->  | J38: =IFERROR(INDEX('WINBUGS data'!$F$17:$ZZ$65,MATCH($C38,'WINBUGS data'!$F$17:$F$65,0),MATCH("t[,"&J$4 &"]",'WINBUGS data'!$F$16:$ZZ$16,0)),"") ->  | K38: =IFERROR(INDEX('WINBUGS data'!$F$17:$ZZ$65,MATCH($C38,'WINBUGS data'!$F$17:$F$65,0),MATCH("t[,"&K$4 &"]",'WINBUGS data'!$F$16:$ZZ$16,0)),"") ->  | L38: =IFERROR(INDEX('WINBUGS data'!$F$17:$ZZ$65,MATCH($C38,'WINBUGS data'!$F$17:$F$65,0),MATCH("t[,"&L$4 &"]",'WINBUGS data'!$F$16:$ZZ$16,0)),"") ->  | M38: =IFERROR(INDEX('WINBUGS data'!$F$17:$ZZ$65,MATCH($C38,'WINBUGS data'!$F$17:$F$65,0),MATCH("t[,"&M$4 &"]",'WINBUGS data'!$F$16:$ZZ$16,0)),"") ->  | N38: =IFERROR(INDEX('WINBUGS data'!$F$17:$ZZ$65,MATCH($C38,'WINBUGS data'!$F$17:$F$65,0),MATCH("t[,"&N$4 &"]",'WINBUGS data'!$F$16:$ZZ$16,0)),"") ->  | O38: =IFERROR(INDEX('WINBUGS data'!$F$17:$ZZ$65,MATCH($C38,'WINBUGS data'!$F$17:$F$65,0),MATCH("t[,"&O$4 &"]",'WINBUGS data'!$F$16:$ZZ$16,0)),"") ->  | P38: =IFERROR(INDEX('WINBUGS data'!$F$17:$ZZ$65,MATCH($C38,'WINBUGS data'!$F$17:$F$65,0),MATCH("t[,"&P$4 &"]",'WINBUGS data'!$F$16:$ZZ$16,0)),"") ->  | Q38: =IFERROR(INDEX('WINBUGS data'!$F$17:$ZZ$65,MATCH($C38,'WINBUGS data'!$F$17:$F$65,0),MATCH("t[,"&Q$4 &"]",'WINBUGS data'!$F$16:$ZZ$16,0)),"") ->  | R38: =IFERROR(INDEX('WINBUGS data'!$F$17:$ZZ$65,MATCH($C38,'WINBUGS data'!$F$17:$F$65,0),MATCH("t[,"&R$4 &"]",'WINBUGS data'!$F$16:$ZZ$16,0)),"") ->  | S38: =IFERROR(INDEX('WINBUGS data'!$F$17:$ZZ$65,MATCH($C38,'WINBUGS data'!$F$17:$F$65,0),MATCH("t[,"&S$4 &"]",'WINBUGS data'!$F$16:$ZZ$16,0)),"") ->  | T38: =IFERROR(INDEX('WINBUGS data'!$F$17:$ZZ$65,MATCH($C38,'WINBUGS data'!$F$17:$F$65,0),MATCH("t[,"&T$4 &"]",'WINBUGS data'!$F$16:$ZZ$16,0)),"") -> 
C39: =IF('WINBUGS data'!F51<>"",'WINBUGS data'!F51,"") ->  | D39: =IFERROR(INDEX('WINBUGS data'!$F$17:$ZZ$65,MATCH(C39,'WINBUGS data'!$F$17:$F$65,0),MATCH("na[]",'WINBUGS data'!$F$16:$ZZ$16,0)),"") ->  | F39: =IFERROR(INDEX('WINBUGS data'!$F$17:$ZZ$65,MATCH($C39,'WINBUGS data'!$F$17:$F$65,0),MATCH("t[,"&F$4 &"]",'WINBUGS data'!$F$16:$ZZ$16,0)),"") ->  | G39: =IFERROR(INDEX('WINBUGS data'!$F$17:$ZZ$65,MATCH($C39,'WINBUGS data'!$F$17:$F$65,0),MATCH("t[,"&G$4 &"]",'WINBUGS data'!$F$16:$ZZ$16,0)),"") ->  | H39: =IFERROR(INDEX('WINBUGS data'!$F$17:$ZZ$65,MATCH($C39,'WINBUGS data'!$F$17:$F$65,0),MATCH("t[,"&H$4 &"]",'WINBUGS data'!$F$16:$ZZ$16,0)),"") ->  | I39: =IFERROR(INDEX('WINBUGS data'!$F$17:$ZZ$65,MATCH($C39,'WINBUGS data'!$F$17:$F$65,0),MATCH("t[,"&I$4 &"]",'WINBUGS data'!$F$16:$ZZ$16,0)),"") ->  | J39: =IFERROR(INDEX('WINBUGS data'!$F$17:$ZZ$65,MATCH($C39,'WINBUGS data'!$F$17:$F$65,0),MATCH("t[,"&J$4 &"]",'WINBUGS data'!$F$16:$ZZ$16,0)),"") ->  | K39: =IFERROR(INDEX('WINBUGS data'!$F$17:$ZZ$65,MATCH($C39,'WINBUGS data'!$F$17:$F$65,0),MATCH("t[,"&K$4 &"]",'WINBUGS data'!$F$16:$ZZ$16,0)),"") ->  | L39: =IFERROR(INDEX('WINBUGS data'!$F$17:$ZZ$65,MATCH($C39,'WINBUGS data'!$F$17:$F$65,0),MATCH("t[,"&L$4 &"]",'WINBUGS data'!$F$16:$ZZ$16,0)),"") ->  | M39: =IFERROR(INDEX('WINBUGS data'!$F$17:$ZZ$65,MATCH($C39,'WINBUGS data'!$F$17:$F$65,0),MATCH("t[,"&M$4 &"]",'WINBUGS data'!$F$16:$ZZ$16,0)),"") ->  | N39: =IFERROR(INDEX('WINBUGS data'!$F$17:$ZZ$65,MATCH($C39,'WINBUGS data'!$F$17:$F$65,0),MATCH("t[,"&N$4 &"]",'WINBUGS data'!$F$16:$ZZ$16,0)),"") ->  | O39: =IFERROR(INDEX('WINBUGS data'!$F$17:$ZZ$65,MATCH($C39,'WINBUGS data'!$F$17:$F$65,0),MATCH("t[,"&O$4 &"]",'WINBUGS data'!$F$16:$ZZ$16,0)),"") ->  | P39: =IFERROR(INDEX('WINBUGS data'!$F$17:$ZZ$65,MATCH($C39,'WINBUGS data'!$F$17:$F$65,0),MATCH("t[,"&P$4 &"]",'WINBUGS data'!$F$16:$ZZ$16,0)),"") ->  | Q39: =IFERROR(INDEX('WINBUGS data'!$F$17:$ZZ$65,MATCH($C39,'WINBUGS data'!$F$17:$F$65,0),MATCH("t[,"&Q$4 &"]",'WINBUGS data'!$F$16:$ZZ$16,0)),"") ->  | R39: =IFERROR(INDEX('WINBUGS data'!$F$17:$ZZ$65,MATCH($C39,'WINBUGS data'!$F$17:$F$65,0),MATCH("t[,"&R$4 &"]",'WINBUGS data'!$F$16:$ZZ$16,0)),"") ->  | S39: =IFERROR(INDEX('WINBUGS data'!$F$17:$ZZ$65,MATCH($C39,'WINBUGS data'!$F$17:$F$65,0),MATCH("t[,"&S$4 &"]",'WINBUGS data'!$F$16:$ZZ$16,0)),"") ->  | T39: =IFERROR(INDEX('WINBUGS data'!$F$17:$ZZ$65,MATCH($C39,'WINBUGS data'!$F$17:$F$65,0),MATCH("t[,"&T$4 &"]",'WINBUGS data'!$F$16:$ZZ$16,0)),"") -> 
C40: =IF('WINBUGS data'!F52<>"",'WINBUGS data'!F52,"") ->  | D40: =IFERROR(INDEX('WINBUGS data'!$F$17:$ZZ$65,MATCH(C40,'WINBUGS data'!$F$17:$F$65,0),MATCH("na[]",'WINBUGS data'!$F$16:$ZZ$16,0)),"") ->  | F40: =IFERROR(INDEX('WINBUGS data'!$F$17:$ZZ$65,MATCH($C40,'WINBUGS data'!$F$17:$F$65,0),MATCH("t[,"&F$4 &"]",'WINBUGS data'!$F$16:$ZZ$16,0)),"") ->  | G40: =IFERROR(INDEX('WINBUGS data'!$F$17:$ZZ$65,MATCH($C40,'WINBUGS data'!$F$17:$F$65,0),MATCH("t[,"&G$4 &"]",'WINBUGS data'!$F$16:$ZZ$16,0)),"") ->  | H40: =IFERROR(INDEX('WINBUGS data'!$F$17:$ZZ$65,MATCH($C40,'WINBUGS data'!$F$17:$F$65,0),MATCH("t[,"&H$4 &"]",'WINBUGS data'!$F$16:$ZZ$16,0)),"") ->  | I40: =IFERROR(INDEX('WINBUGS data'!$F$17:$ZZ$65,MATCH($C40,'WINBUGS data'!$F$17:$F$65,0),MATCH("t[,"&I$4 &"]",'WINBUGS data'!$F$16:$ZZ$16,0)),"") ->  | J40: =IFERROR(INDEX('WINBUGS data'!$F$17:$ZZ$65,MATCH($C40,'WINBUGS data'!$F$17:$F$65,0),MATCH("t[,"&J$4 &"]",'WINBUGS data'!$F$16:$ZZ$16,0)),"") ->  | K40: =IFERROR(INDEX('WINBUGS data'!$F$17:$ZZ$65,MATCH($C40,'WINBUGS data'!$F$17:$F$65,0),MATCH("t[,"&K$4 &"]",'WINBUGS data'!$F$16:$ZZ$16,0)),"") ->  | L40: =IFERROR(INDEX('WINBUGS data'!$F$17:$ZZ$65,MATCH($C40,'WINBUGS data'!$F$17:$F$65,0),MATCH("t[,"&L$4 &"]",'WINBUGS data'!$F$16:$ZZ$16,0)),"") ->  | M40: =IFERROR(INDEX('WINBUGS data'!$F$17:$ZZ$65,MATCH($C40,'WINBUGS data'!$F$17:$F$65,0),MATCH("t[,"&M$4 &"]",'WINBUGS data'!$F$16:$ZZ$16,0)),"") ->  | N40: =IFERROR(INDEX('WINBUGS data'!$F$17:$ZZ$65,MATCH($C40,'WINBUGS data'!$F$17:$F$65,0),MATCH("t[,"&N$4 &"]",'WINBUGS data'!$F$16:$ZZ$16,0)),"") ->  | O40: =IFERROR(INDEX('WINBUGS data'!$F$17:$ZZ$65,MATCH($C40,'WINBUGS data'!$F$17:$F$65,0),MATCH("t[,"&O$4 &"]",'WINBUGS data'!$F$16:$ZZ$16,0)),"") ->  | P40: =IFERROR(INDEX('WINBUGS data'!$F$17:$ZZ$65,MATCH($C40,'WINBUGS data'!$F$17:$F$65,0),MATCH("t[,"&P$4 &"]",'WINBUGS data'!$F$16:$ZZ$16,0)),"") ->  | Q40: =IFERROR(INDEX('WINBUGS data'!$F$17:$ZZ$65,MATCH($C40,'WINBUGS data'!$F$17:$F$65,0),MATCH("t[,"&Q$4 &"]",'WINBUGS data'!$F$16:$ZZ$16,0)),"") ->  | R40: =IFERROR(INDEX('WINBUGS data'!$F$17:$ZZ$65,MATCH($C40,'WINBUGS data'!$F$17:$F$65,0),MATCH("t[,"&R$4 &"]",'WINBUGS data'!$F$16:$ZZ$16,0)),"") ->  | S40: =IFERROR(INDEX('WINBUGS data'!$F$17:$ZZ$65,MATCH($C40,'WINBUGS data'!$F$17:$F$65,0),MATCH("t[,"&S$4 &"]",'WINBUGS data'!$F$16:$ZZ$16,0)),"") ->  | T40: =IFERROR(INDEX('WINBUGS data'!$F$17:$ZZ$65,MATCH($C40,'WINBUGS data'!$F$17:$F$65,0),MATCH("t[,"&T$4 &"]",'WINBUGS data'!$F$16:$ZZ$16,0)),"") -> 
C41: =IF('WINBUGS data'!F53<>"",'WINBUGS data'!F53,"") ->  | D41: =IFERROR(INDEX('WINBUGS data'!$F$17:$ZZ$65,MATCH(C41,'WINBUGS data'!$F$17:$F$65,0),MATCH("na[]",'WINBUGS data'!$F$16:$ZZ$16,0)),"") ->  | F41: =IFERROR(INDEX('WINBUGS data'!$F$17:$ZZ$65,MATCH($C41,'WINBUGS data'!$F$17:$F$65,0),MATCH("t[,"&F$4 &"]",'WINBUGS data'!$F$16:$ZZ$16,0)),"") ->  | G41: =IFERROR(INDEX('WINBUGS data'!$F$17:$ZZ$65,MATCH($C41,'WINBUGS data'!$F$17:$F$65,0),MATCH("t[,"&G$4 &"]",'WINBUGS data'!$F$16:$ZZ$16,0)),"") ->  | H41: =IFERROR(INDEX('WINBUGS data'!$F$17:$ZZ$65,MATCH($C41,'WINBUGS data'!$F$17:$F$65,0),MATCH("t[,"&H$4 &"]",'WINBUGS data'!$F$16:$ZZ$16,0)),"") ->  | I41: =IFERROR(INDEX('WINBUGS data'!$F$17:$ZZ$65,MATCH($C41,'WINBUGS data'!$F$17:$F$65,0),MATCH("t[,"&I$4 &"]",'WINBUGS data'!$F$16:$ZZ$16,0)),"") ->  | J41: =IFERROR(INDEX('WINBUGS data'!$F$17:$ZZ$65,MATCH($C41,'WINBUGS data'!$F$17:$F$65,0),MATCH("t[,"&J$4 &"]",'WINBUGS data'!$F$16:$ZZ$16,0)),"") ->  | K41: =IFERROR(INDEX('WINBUGS data'!$F$17:$ZZ$65,MATCH($C41,'WINBUGS data'!$F$17:$F$65,0),MATCH("t[,"&K$4 &"]",'WINBUGS data'!$F$16:$ZZ$16,0)),"") ->  | L41: =IFERROR(INDEX('WINBUGS data'!$F$17:$ZZ$65,MATCH($C41,'WINBUGS data'!$F$17:$F$65,0),MATCH("t[,"&L$4 &"]",'WINBUGS data'!$F$16:$ZZ$16,0)),"") ->  | M41: =IFERROR(INDEX('WINBUGS data'!$F$17:$ZZ$65,MATCH($C41,'WINBUGS data'!$F$17:$F$65,0),MATCH("t[,"&M$4 &"]",'WINBUGS data'!$F$16:$ZZ$16,0)),"") ->  | N41: =IFERROR(INDEX('WINBUGS data'!$F$17:$ZZ$65,MATCH($C41,'WINBUGS data'!$F$17:$F$65,0),MATCH("t[,"&N$4 &"]",'WINBUGS data'!$F$16:$ZZ$16,0)),"") ->  | O41: =IFERROR(INDEX('WINBUGS data'!$F$17:$ZZ$65,MATCH($C41,'WINBUGS data'!$F$17:$F$65,0),MATCH("t[,"&O$4 &"]",'WINBUGS data'!$F$16:$ZZ$16,0)),"") ->  | P41: =IFERROR(INDEX('WINBUGS data'!$F$17:$ZZ$65,MATCH($C41,'WINBUGS data'!$F$17:$F$65,0),MATCH("t[,"&P$4 &"]",'WINBUGS data'!$F$16:$ZZ$16,0)),"") ->  | Q41: =IFERROR(INDEX('WINBUGS data'!$F$17:$ZZ$65,MATCH($C41,'WINBUGS data'!$F$17:$F$65,0),MATCH("t[,"&Q$4 &"]",'WINBUGS data'!$F$16:$ZZ$16,0)),"") ->  | R41: =IFERROR(INDEX('WINBUGS data'!$F$17:$ZZ$65,MATCH($C41,'WINBUGS data'!$F$17:$F$65,0),MATCH("t[,"&R$4 &"]",'WINBUGS data'!$F$16:$ZZ$16,0)),"") ->  | S41: =IFERROR(INDEX('WINBUGS data'!$F$17:$ZZ$65,MATCH($C41,'WINBUGS data'!$F$17:$F$65,0),MATCH("t[,"&S$4 &"]",'WINBUGS data'!$F$16:$ZZ$16,0)),"") ->  | T41: =IFERROR(INDEX('WINBUGS data'!$F$17:$ZZ$65,MATCH($C41,'WINBUGS data'!$F$17:$F$65,0),MATCH("t[,"&T$4 &"]",'WINBUGS data'!$F$16:$ZZ$16,0)),"") -> 
C42: =IF('WINBUGS data'!F54<>"",'WINBUGS data'!F54,"") ->  | D42: =IFERROR(INDEX('WINBUGS data'!$F$17:$ZZ$65,MATCH(C42,'WINBUGS data'!$F$17:$F$65,0),MATCH("na[]",'WINBUGS data'!$F$16:$ZZ$16,0)),"") ->  | F42: =IFERROR(INDEX('WINBUGS data'!$F$17:$ZZ$65,MATCH($C42,'WINBUGS data'!$F$17:$F$65,0),MATCH("t[,"&F$4 &"]",'WINBUGS data'!$F$16:$ZZ$16,0)),"") ->  | G42: =IFERROR(INDEX('WINBUGS data'!$F$17:$ZZ$65,MATCH($C42,'WINBUGS data'!$F$17:$F$65,0),MATCH("t[,"&G$4 &"]",'WINBUGS data'!$F$16:$ZZ$16,0)),"") ->  | H42: =IFERROR(INDEX('WINBUGS data'!$F$17:$ZZ$65,MATCH($C42,'WINBUGS data'!$F$17:$F$65,0),MATCH("t[,"&H$4 &"]",'WINBUGS data'!$F$16:$ZZ$16,0)),"") ->  | I42: =IFERROR(INDEX('WINBUGS data'!$F$17:$ZZ$65,MATCH($C42,'WINBUGS data'!$F$17:$F$65,0),MATCH("t[,"&I$4 &"]",'WINBUGS data'!$F$16:$ZZ$16,0)),"") ->  | J42: =IFERROR(INDEX('WINBUGS data'!$F$17:$ZZ$65,MATCH($C42,'WINBUGS data'!$F$17:$F$65,0),MATCH("t[,"&J$4 &"]",'WINBUGS data'!$F$16:$ZZ$16,0)),"") ->  | K42: =IFERROR(INDEX('WINBUGS data'!$F$17:$ZZ$65,MATCH($C42,'WINBUGS data'!$F$17:$F$65,0),MATCH("t[,"&K$4 &"]",'WINBUGS data'!$F$16:$ZZ$16,0)),"") ->  | L42: =IFERROR(INDEX('WINBUGS data'!$F$17:$ZZ$65,MATCH($C42,'WINBUGS data'!$F$17:$F$65,0),MATCH("t[,"&L$4 &"]",'WINBUGS data'!$F$16:$ZZ$16,0)),"") ->  | M42: =IFERROR(INDEX('WINBUGS data'!$F$17:$ZZ$65,MATCH($C42,'WINBUGS data'!$F$17:$F$65,0),MATCH("t[,"&M$4 &"]",'WINBUGS data'!$F$16:$ZZ$16,0)),"") ->  | N42: =IFERROR(INDEX('WINBUGS data'!$F$17:$ZZ$65,MATCH($C42,'WINBUGS data'!$F$17:$F$65,0),MATCH("t[,"&N$4 &"]",'WINBUGS data'!$F$16:$ZZ$16,0)),"") ->  | O42: =IFERROR(INDEX('WINBUGS data'!$F$17:$ZZ$65,MATCH($C42,'WINBUGS data'!$F$17:$F$65,0),MATCH("t[,"&O$4 &"]",'WINBUGS data'!$F$16:$ZZ$16,0)),"") ->  | P42: =IFERROR(INDEX('WINBUGS data'!$F$17:$ZZ$65,MATCH($C42,'WINBUGS data'!$F$17:$F$65,0),MATCH("t[,"&P$4 &"]",'WINBUGS data'!$F$16:$ZZ$16,0)),"") ->  | Q42: =IFERROR(INDEX('WINBUGS data'!$F$17:$ZZ$65,MATCH($C42,'WINBUGS data'!$F$17:$F$65,0),MATCH("t[,"&Q$4 &"]",'WINBUGS data'!$F$16:$ZZ$16,0)),"") ->  | R42: =IFERROR(INDEX('WINBUGS data'!$F$17:$ZZ$65,MATCH($C42,'WINBUGS data'!$F$17:$F$65,0),MATCH("t[,"&R$4 &"]",'WINBUGS data'!$F$16:$ZZ$16,0)),"") ->  | S42: =IFERROR(INDEX('WINBUGS data'!$F$17:$ZZ$65,MATCH($C42,'WINBUGS data'!$F$17:$F$65,0),MATCH("t[,"&S$4 &"]",'WINBUGS data'!$F$16:$ZZ$16,0)),"") ->  | T42: =IFERROR(INDEX('WINBUGS data'!$F$17:$ZZ$65,MATCH($C42,'WINBUGS data'!$F$17:$F$65,0),MATCH("t[,"&T$4 &"]",'WINBUGS data'!$F$16:$ZZ$16,0)),"") -> 
C43: =IF('WINBUGS data'!F55<>"",'WINBUGS data'!F55,"") ->  | D43: =IFERROR(INDEX('WINBUGS data'!$F$17:$ZZ$65,MATCH(C43,'WINBUGS data'!$F$17:$F$65,0),MATCH("na[]",'WINBUGS data'!$F$16:$ZZ$16,0)),"") ->  | F43: =IFERROR(INDEX('WINBUGS data'!$F$17:$ZZ$65,MATCH($C43,'WINBUGS data'!$F$17:$F$65,0),MATCH("t[,"&F$4 &"]",'WINBUGS data'!$F$16:$ZZ$16,0)),"") ->  | G43: =IFERROR(INDEX('WINBUGS data'!$F$17:$ZZ$65,MATCH($C43,'WINBUGS data'!$F$17:$F$65,0),MATCH("t[,"&G$4 &"]",'WINBUGS data'!$F$16:$ZZ$16,0)),"") ->  | H43: =IFERROR(INDEX('WINBUGS data'!$F$17:$ZZ$65,MATCH($C43,'WINBUGS data'!$F$17:$F$65,0),MATCH("t[,"&H$4 &"]",'WINBUGS data'!$F$16:$ZZ$16,0)),"") ->  | I43: =IFERROR(INDEX('WINBUGS data'!$F$17:$ZZ$65,MATCH($C43,'WINBUGS data'!$F$17:$F$65,0),MATCH("t[,"&I$4 &"]",'WINBUGS data'!$F$16:$ZZ$16,0)),"") ->  | J43: =IFERROR(INDEX('WINBUGS data'!$F$17:$ZZ$65,MATCH($C43,'WINBUGS data'!$F$17:$F$65,0),MATCH("t[,"&J$4 &"]",'WINBUGS data'!$F$16:$ZZ$16,0)),"") ->  | K43: =IFERROR(INDEX('WINBUGS data'!$F$17:$ZZ$65,MATCH($C43,'WINBUGS data'!$F$17:$F$65,0),MATCH("t[,"&K$4 &"]",'WINBUGS data'!$F$16:$ZZ$16,0)),"") ->  | L43: =IFERROR(INDEX('WINBUGS data'!$F$17:$ZZ$65,MATCH($C43,'WINBUGS data'!$F$17:$F$65,0),MATCH("t[,"&L$4 &"]",'WINBUGS data'!$F$16:$ZZ$16,0)),"") ->  | M43: =IFERROR(INDEX('WINBUGS data'!$F$17:$ZZ$65,MATCH($C43,'WINBUGS data'!$F$17:$F$65,0),MATCH("t[,"&M$4 &"]",'WINBUGS data'!$F$16:$ZZ$16,0)),"") ->  | N43: =IFERROR(INDEX('WINBUGS data'!$F$17:$ZZ$65,MATCH($C43,'WINBUGS data'!$F$17:$F$65,0),MATCH("t[,"&N$4 &"]",'WINBUGS data'!$F$16:$ZZ$16,0)),"") ->  | O43: =IFERROR(INDEX('WINBUGS data'!$F$17:$ZZ$65,MATCH($C43,'WINBUGS data'!$F$17:$F$65,0),MATCH("t[,"&O$4 &"]",'WINBUGS data'!$F$16:$ZZ$16,0)),"") ->  | P43: =IFERROR(INDEX('WINBUGS data'!$F$17:$ZZ$65,MATCH($C43,'WINBUGS data'!$F$17:$F$65,0),MATCH("t[,"&P$4 &"]",'WINBUGS data'!$F$16:$ZZ$16,0)),"") ->  | Q43: =IFERROR(INDEX('WINBUGS data'!$F$17:$ZZ$65,MATCH($C43,'WINBUGS data'!$F$17:$F$65,0),MATCH("t[,"&Q$4 &"]",'WINBUGS data'!$F$16:$ZZ$16,0)),"") ->  | R43: =IFERROR(INDEX('WINBUGS data'!$F$17:$ZZ$65,MATCH($C43,'WINBUGS data'!$F$17:$F$65,0),MATCH("t[,"&R$4 &"]",'WINBUGS data'!$F$16:$ZZ$16,0)),"") ->  | S43: =IFERROR(INDEX('WINBUGS data'!$F$17:$ZZ$65,MATCH($C43,'WINBUGS data'!$F$17:$F$65,0),MATCH("t[,"&S$4 &"]",'WINBUGS data'!$F$16:$ZZ$16,0)),"") ->  | T43: =IFERROR(INDEX('WINBUGS data'!$F$17:$ZZ$65,MATCH($C43,'WINBUGS data'!$F$17:$F$65,0),MATCH("t[,"&T$4 &"]",'WINBUGS data'!$F$16:$ZZ$16,0)),"") -> 
C44: =IF('WINBUGS data'!F56<>"",'WINBUGS data'!F56,"") ->  | D44: =IFERROR(INDEX('WINBUGS data'!$F$17:$ZZ$65,MATCH(C44,'WINBUGS data'!$F$17:$F$65,0),MATCH("na[]",'WINBUGS data'!$F$16:$ZZ$16,0)),"") ->  | F44: =IFERROR(INDEX('WINBUGS data'!$F$17:$ZZ$65,MATCH($C44,'WINBUGS data'!$F$17:$F$65,0),MATCH("t[,"&F$4 &"]",'WINBUGS data'!$F$16:$ZZ$16,0)),"") ->  | G44: =IFERROR(INDEX('WINBUGS data'!$F$17:$ZZ$65,MATCH($C44,'WINBUGS data'!$F$17:$F$65,0),MATCH("t[,"&G$4 &"]",'WINBUGS data'!$F$16:$ZZ$16,0)),"") ->  | H44: =IFERROR(INDEX('WINBUGS data'!$F$17:$ZZ$65,MATCH($C44,'WINBUGS data'!$F$17:$F$65,0),MATCH("t[,"&H$4 &"]",'WINBUGS data'!$F$16:$ZZ$16,0)),"") ->  | I44: =IFERROR(INDEX('WINBUGS data'!$F$17:$ZZ$65,MATCH($C44,'WINBUGS data'!$F$17:$F$65,0),MATCH("t[,"&I$4 &"]",'WINBUGS data'!$F$16:$ZZ$16,0)),"") ->  | J44: =IFERROR(INDEX('WINBUGS data'!$F$17:$ZZ$65,MATCH($C44,'WINBUGS data'!$F$17:$F$65,0),MATCH("t[,"&J$4 &"]",'WINBUGS data'!$F$16:$ZZ$16,0)),"") ->  | K44: =IFERROR(INDEX('WINBUGS data'!$F$17:$ZZ$65,MATCH($C44,'WINBUGS data'!$F$17:$F$65,0),MATCH("t[,"&K$4 &"]",'WINBUGS data'!$F$16:$ZZ$16,0)),"") ->  | L44: =IFERROR(INDEX('WINBUGS data'!$F$17:$ZZ$65,MATCH($C44,'WINBUGS data'!$F$17:$F$65,0),MATCH("t[,"&L$4 &"]",'WINBUGS data'!$F$16:$ZZ$16,0)),"") ->  | M44: =IFERROR(INDEX('WINBUGS data'!$F$17:$ZZ$65,MATCH($C44,'WINBUGS data'!$F$17:$F$65,0),MATCH("t[,"&M$4 &"]",'WINBUGS data'!$F$16:$ZZ$16,0)),"") ->  | N44: =IFERROR(INDEX('WINBUGS data'!$F$17:$ZZ$65,MATCH($C44,'WINBUGS data'!$F$17:$F$65,0),MATCH("t[,"&N$4 &"]",'WINBUGS data'!$F$16:$ZZ$16,0)),"") ->  | O44: =IFERROR(INDEX('WINBUGS data'!$F$17:$ZZ$65,MATCH($C44,'WINBUGS data'!$F$17:$F$65,0),MATCH("t[,"&O$4 &"]",'WINBUGS data'!$F$16:$ZZ$16,0)),"") ->  | P44: =IFERROR(INDEX('WINBUGS data'!$F$17:$ZZ$65,MATCH($C44,'WINBUGS data'!$F$17:$F$65,0),MATCH("t[,"&P$4 &"]",'WINBUGS data'!$F$16:$ZZ$16,0)),"") ->  | Q44: =IFERROR(INDEX('WINBUGS data'!$F$17:$ZZ$65,MATCH($C44,'WINBUGS data'!$F$17:$F$65,0),MATCH("t[,"&Q$4 &"]",'WINBUGS data'!$F$16:$ZZ$16,0)),"") ->  | R44: =IFERROR(INDEX('WINBUGS data'!$F$17:$ZZ$65,MATCH($C44,'WINBUGS data'!$F$17:$F$65,0),MATCH("t[,"&R$4 &"]",'WINBUGS data'!$F$16:$ZZ$16,0)),"") ->  | S44: =IFERROR(INDEX('WINBUGS data'!$F$17:$ZZ$65,MATCH($C44,'WINBUGS data'!$F$17:$F$65,0),MATCH("t[,"&S$4 &"]",'WINBUGS data'!$F$16:$ZZ$16,0)),"") ->  | T44: =IFERROR(INDEX('WINBUGS data'!$F$17:$ZZ$65,MATCH($C44,'WINBUGS data'!$F$17:$F$65,0),MATCH("t[,"&T$4 &"]",'WINBUGS data'!$F$16:$ZZ$16,0)),"") -> 
C45: =IF('WINBUGS data'!F57<>"",'WINBUGS data'!F57,"") ->  | D45: =IFERROR(INDEX('WINBUGS data'!$F$17:$ZZ$65,MATCH(C45,'WINBUGS data'!$F$17:$F$65,0),MATCH("na[]",'WINBUGS data'!$F$16:$ZZ$16,0)),"") ->  | F45: =IFERROR(INDEX('WINBUGS data'!$F$17:$ZZ$65,MATCH($C45,'WINBUGS data'!$F$17:$F$65,0),MATCH("t[,"&F$4 &"]",'WINBUGS data'!$F$16:$ZZ$16,0)),"") ->  | G45: =IFERROR(INDEX('WINBUGS data'!$F$17:$ZZ$65,MATCH($C45,'WINBUGS data'!$F$17:$F$65,0),MATCH("t[,"&G$4 &"]",'WINBUGS data'!$F$16:$ZZ$16,0)),"") ->  | H45: =IFERROR(INDEX('WINBUGS data'!$F$17:$ZZ$65,MATCH($C45,'WINBUGS data'!$F$17:$F$65,0),MATCH("t[,"&H$4 &"]",'WINBUGS data'!$F$16:$ZZ$16,0)),"") ->  | I45: =IFERROR(INDEX('WINBUGS data'!$F$17:$ZZ$65,MATCH($C45,'WINBUGS data'!$F$17:$F$65,0),MATCH("t[,"&I$4 &"]",'WINBUGS data'!$F$16:$ZZ$16,0)),"") ->  | J45: =IFERROR(INDEX('WINBUGS data'!$F$17:$ZZ$65,MATCH($C45,'WINBUGS data'!$F$17:$F$65,0),MATCH("t[,"&J$4 &"]",'WINBUGS data'!$F$16:$ZZ$16,0)),"") ->  | K45: =IFERROR(INDEX('WINBUGS data'!$F$17:$ZZ$65,MATCH($C45,'WINBUGS data'!$F$17:$F$65,0),MATCH("t[,"&K$4 &"]",'WINBUGS data'!$F$16:$ZZ$16,0)),"") ->  | L45: =IFERROR(INDEX('WINBUGS data'!$F$17:$ZZ$65,MATCH($C45,'WINBUGS data'!$F$17:$F$65,0),MATCH("t[,"&L$4 &"]",'WINBUGS data'!$F$16:$ZZ$16,0)),"") ->  | M45: =IFERROR(INDEX('WINBUGS data'!$F$17:$ZZ$65,MATCH($C45,'WINBUGS data'!$F$17:$F$65,0),MATCH("t[,"&M$4 &"]",'WINBUGS data'!$F$16:$ZZ$16,0)),"") ->  | N45: =IFERROR(INDEX('WINBUGS data'!$F$17:$ZZ$65,MATCH($C45,'WINBUGS data'!$F$17:$F$65,0),MATCH("t[,"&N$4 &"]",'WINBUGS data'!$F$16:$ZZ$16,0)),"") ->  | O45: =IFERROR(INDEX('WINBUGS data'!$F$17:$ZZ$65,MATCH($C45,'WINBUGS data'!$F$17:$F$65,0),MATCH("t[,"&O$4 &"]",'WINBUGS data'!$F$16:$ZZ$16,0)),"") ->  | P45: =IFERROR(INDEX('WINBUGS data'!$F$17:$ZZ$65,MATCH($C45,'WINBUGS data'!$F$17:$F$65,0),MATCH("t[,"&P$4 &"]",'WINBUGS data'!$F$16:$ZZ$16,0)),"") ->  | Q45: =IFERROR(INDEX('WINBUGS data'!$F$17:$ZZ$65,MATCH($C45,'WINBUGS data'!$F$17:$F$65,0),MATCH("t[,"&Q$4 &"]",'WINBUGS data'!$F$16:$ZZ$16,0)),"") ->  | R45: =IFERROR(INDEX('WINBUGS data'!$F$17:$ZZ$65,MATCH($C45,'WINBUGS data'!$F$17:$F$65,0),MATCH("t[,"&R$4 &"]",'WINBUGS data'!$F$16:$ZZ$16,0)),"") ->  | S45: =IFERROR(INDEX('WINBUGS data'!$F$17:$ZZ$65,MATCH($C45,'WINBUGS data'!$F$17:$F$65,0),MATCH("t[,"&S$4 &"]",'WINBUGS data'!$F$16:$ZZ$16,0)),"") ->  | T45: =IFERROR(INDEX('WINBUGS data'!$F$17:$ZZ$65,MATCH($C45,'WINBUGS data'!$F$17:$F$65,0),MATCH("t[,"&T$4 &"]",'WINBUGS data'!$F$16:$ZZ$16,0)),"") -> 
C46: =IF('WINBUGS data'!F58<>"",'WINBUGS data'!F58,"") ->  | D46: =IFERROR(INDEX('WINBUGS data'!$F$17:$ZZ$65,MATCH(C46,'WINBUGS data'!$F$17:$F$65,0),MATCH("na[]",'WINBUGS data'!$F$16:$ZZ$16,0)),"") ->  | F46: =IFERROR(INDEX('WINBUGS data'!$F$17:$ZZ$65,MATCH($C46,'WINBUGS data'!$F$17:$F$65,0),MATCH("t[,"&F$4 &"]",'WINBUGS data'!$F$16:$ZZ$16,0)),"") ->  | G46: =IFERROR(INDEX('WINBUGS data'!$F$17:$ZZ$65,MATCH($C46,'WINBUGS data'!$F$17:$F$65,0),MATCH("t[,"&G$4 &"]",'WINBUGS data'!$F$16:$ZZ$16,0)),"") ->  | H46: =IFERROR(INDEX('WINBUGS data'!$F$17:$ZZ$65,MATCH($C46,'WINBUGS data'!$F$17:$F$65,0),MATCH("t[,"&H$4 &"]",'WINBUGS data'!$F$16:$ZZ$16,0)),"") ->  | I46: =IFERROR(INDEX('WINBUGS data'!$F$17:$ZZ$65,MATCH($C46,'WINBUGS data'!$F$17:$F$65,0),MATCH("t[,"&I$4 &"]",'WINBUGS data'!$F$16:$ZZ$16,0)),"") ->  | J46: =IFERROR(INDEX('WINBUGS data'!$F$17:$ZZ$65,MATCH($C46,'WINBUGS data'!$F$17:$F$65,0),MATCH("t[,"&J$4 &"]",'WINBUGS data'!$F$16:$ZZ$16,0)),"") ->  | K46: =IFERROR(INDEX('WINBUGS data'!$F$17:$ZZ$65,MATCH($C46,'WINBUGS data'!$F$17:$F$65,0),MATCH("t[,"&K$4 &"]",'WINBUGS data'!$F$16:$ZZ$16,0)),"") ->  | L46: =IFERROR(INDEX('WINBUGS data'!$F$17:$ZZ$65,MATCH($C46,'WINBUGS data'!$F$17:$F$65,0),MATCH("t[,"&L$4 &"]",'WINBUGS data'!$F$16:$ZZ$16,0)),"") ->  | M46: =IFERROR(INDEX('WINBUGS data'!$F$17:$ZZ$65,MATCH($C46,'WINBUGS data'!$F$17:$F$65,0),MATCH("t[,"&M$4 &"]",'WINBUGS data'!$F$16:$ZZ$16,0)),"") ->  | N46: =IFERROR(INDEX('WINBUGS data'!$F$17:$ZZ$65,MATCH($C46,'WINBUGS data'!$F$17:$F$65,0),MATCH("t[,"&N$4 &"]",'WINBUGS data'!$F$16:$ZZ$16,0)),"") ->  | O46: =IFERROR(INDEX('WINBUGS data'!$F$17:$ZZ$65,MATCH($C46,'WINBUGS data'!$F$17:$F$65,0),MATCH("t[,"&O$4 &"]",'WINBUGS data'!$F$16:$ZZ$16,0)),"") ->  | P46: =IFERROR(INDEX('WINBUGS data'!$F$17:$ZZ$65,MATCH($C46,'WINBUGS data'!$F$17:$F$65,0),MATCH("t[,"&P$4 &"]",'WINBUGS data'!$F$16:$ZZ$16,0)),"") ->  | Q46: =IFERROR(INDEX('WINBUGS data'!$F$17:$ZZ$65,MATCH($C46,'WINBUGS data'!$F$17:$F$65,0),MATCH("t[,"&Q$4 &"]",'WINBUGS data'!$F$16:$ZZ$16,0)),"") ->  | R46: =IFERROR(INDEX('WINBUGS data'!$F$17:$ZZ$65,MATCH($C46,'WINBUGS data'!$F$17:$F$65,0),MATCH("t[,"&R$4 &"]",'WINBUGS data'!$F$16:$ZZ$16,0)),"") ->  | S46: =IFERROR(INDEX('WINBUGS data'!$F$17:$ZZ$65,MATCH($C46,'WINBUGS data'!$F$17:$F$65,0),MATCH("t[,"&S$4 &"]",'WINBUGS data'!$F$16:$ZZ$16,0)),"") ->  | T46: =IFERROR(INDEX('WINBUGS data'!$F$17:$ZZ$65,MATCH($C46,'WINBUGS data'!$F$17:$F$65,0),MATCH("t[,"&T$4 &"]",'WINBUGS data'!$F$16:$ZZ$16,0)),"") -> 
C47: =IF('WINBUGS data'!F59<>"",'WINBUGS data'!F59,"") ->  | D47: =IFERROR(INDEX('WINBUGS data'!$F$17:$ZZ$65,MATCH(C47,'WINBUGS data'!$F$17:$F$65,0),MATCH("na[]",'WINBUGS data'!$F$16:$ZZ$16,0)),"") ->  | F47: =IFERROR(INDEX('WINBUGS data'!$F$17:$ZZ$65,MATCH($C47,'WINBUGS data'!$F$17:$F$65,0),MATCH("t[,"&F$4 &"]",'WINBUGS data'!$F$16:$ZZ$16,0)),"") ->  | G47: =IFERROR(INDEX('WINBUGS data'!$F$17:$ZZ$65,MATCH($C47,'WINBUGS data'!$F$17:$F$65,0),MATCH("t[,"&G$4 &"]",'WINBUGS data'!$F$16:$ZZ$16,0)),"") ->  | H47: =IFERROR(INDEX('WINBUGS data'!$F$17:$ZZ$65,MATCH($C47,'WINBUGS data'!$F$17:$F$65,0),MATCH("t[,"&H$4 &"]",'WINBUGS data'!$F$16:$ZZ$16,0)),"") ->  | I47: =IFERROR(INDEX('WINBUGS data'!$F$17:$ZZ$65,MATCH($C47,'WINBUGS data'!$F$17:$F$65,0),MATCH("t[,"&I$4 &"]",'WINBUGS data'!$F$16:$ZZ$16,0)),"") ->  | J47: =IFERROR(INDEX('WINBUGS data'!$F$17:$ZZ$65,MATCH($C47,'WINBUGS data'!$F$17:$F$65,0),MATCH("t[,"&J$4 &"]",'WINBUGS data'!$F$16:$ZZ$16,0)),"") ->  | K47: =IFERROR(INDEX('WINBUGS data'!$F$17:$ZZ$65,MATCH($C47,'WINBUGS data'!$F$17:$F$65,0),MATCH("t[,"&K$4 &"]",'WINBUGS data'!$F$16:$ZZ$16,0)),"") ->  | L47: =IFERROR(INDEX('WINBUGS data'!$F$17:$ZZ$65,MATCH($C47,'WINBUGS data'!$F$17:$F$65,0),MATCH("t[,"&L$4 &"]",'WINBUGS data'!$F$16:$ZZ$16,0)),"") ->  | M47: =IFERROR(INDEX('WINBUGS data'!$F$17:$ZZ$65,MATCH($C47,'WINBUGS data'!$F$17:$F$65,0),MATCH("t[,"&M$4 &"]",'WINBUGS data'!$F$16:$ZZ$16,0)),"") ->  | N47: =IFERROR(INDEX('WINBUGS data'!$F$17:$ZZ$65,MATCH($C47,'WINBUGS data'!$F$17:$F$65,0),MATCH("t[,"&N$4 &"]",'WINBUGS data'!$F$16:$ZZ$16,0)),"") ->  | O47: =IFERROR(INDEX('WINBUGS data'!$F$17:$ZZ$65,MATCH($C47,'WINBUGS data'!$F$17:$F$65,0),MATCH("t[,"&O$4 &"]",'WINBUGS data'!$F$16:$ZZ$16,0)),"") ->  | P47: =IFERROR(INDEX('WINBUGS data'!$F$17:$ZZ$65,MATCH($C47,'WINBUGS data'!$F$17:$F$65,0),MATCH("t[,"&P$4 &"]",'WINBUGS data'!$F$16:$ZZ$16,0)),"") ->  | Q47: =IFERROR(INDEX('WINBUGS data'!$F$17:$ZZ$65,MATCH($C47,'WINBUGS data'!$F$17:$F$65,0),MATCH("t[,"&Q$4 &"]",'WINBUGS data'!$F$16:$ZZ$16,0)),"") ->  | R47: =IFERROR(INDEX('WINBUGS data'!$F$17:$ZZ$65,MATCH($C47,'WINBUGS data'!$F$17:$F$65,0),MATCH("t[,"&R$4 &"]",'WINBUGS data'!$F$16:$ZZ$16,0)),"") ->  | S47: =IFERROR(INDEX('WINBUGS data'!$F$17:$ZZ$65,MATCH($C47,'WINBUGS data'!$F$17:$F$65,0),MATCH("t[,"&S$4 &"]",'WINBUGS data'!$F$16:$ZZ$16,0)),"") ->  | T47: =IFERROR(INDEX('WINBUGS data'!$F$17:$ZZ$65,MATCH($C47,'WINBUGS data'!$F$17:$F$65,0),MATCH("t[,"&T$4 &"]",'WINBUGS data'!$F$16:$ZZ$16,0)),"") -> 
C48: =IF('WINBUGS data'!F60<>"",'WINBUGS data'!F60,"") ->  | D48: =IFERROR(INDEX('WINBUGS data'!$F$17:$ZZ$65,MATCH(C48,'WINBUGS data'!$F$17:$F$65,0),MATCH("na[]",'WINBUGS data'!$F$16:$ZZ$16,0)),"") ->  | F48: =IFERROR(INDEX('WINBUGS data'!$F$17:$ZZ$65,MATCH($C48,'WINBUGS data'!$F$17:$F$65,0),MATCH("t[,"&F$4 &"]",'WINBUGS data'!$F$16:$ZZ$16,0)),"") ->  | G48: =IFERROR(INDEX('WINBUGS data'!$F$17:$ZZ$65,MATCH($C48,'WINBUGS data'!$F$17:$F$65,0),MATCH("t[,"&G$4 &"]",'WINBUGS data'!$F$16:$ZZ$16,0)),"") ->  | H48: =IFERROR(INDEX('WINBUGS data'!$F$17:$ZZ$65,MATCH($C48,'WINBUGS data'!$F$17:$F$65,0),MATCH("t[,"&H$4 &"]",'WINBUGS data'!$F$16:$ZZ$16,0)),"") ->  | I48: =IFERROR(INDEX('WINBUGS data'!$F$17:$ZZ$65,MATCH($C48,'WINBUGS data'!$F$17:$F$65,0),MATCH("t[,"&I$4 &"]",'WINBUGS data'!$F$16:$ZZ$16,0)),"") ->  | J48: =IFERROR(INDEX('WINBUGS data'!$F$17:$ZZ$65,MATCH($C48,'WINBUGS data'!$F$17:$F$65,0),MATCH("t[,"&J$4 &"]",'WINBUGS data'!$F$16:$ZZ$16,0)),"") ->  | K48: =IFERROR(INDEX('WINBUGS data'!$F$17:$ZZ$65,MATCH($C48,'WINBUGS data'!$F$17:$F$65,0),MATCH("t[,"&K$4 &"]",'WINBUGS data'!$F$16:$ZZ$16,0)),"") ->  | L48: =IFERROR(INDEX('WINBUGS data'!$F$17:$ZZ$65,MATCH($C48,'WINBUGS data'!$F$17:$F$65,0),MATCH("t[,"&L$4 &"]",'WINBUGS data'!$F$16:$ZZ$16,0)),"") ->  | M48: =IFERROR(INDEX('WINBUGS data'!$F$17:$ZZ$65,MATCH($C48,'WINBUGS data'!$F$17:$F$65,0),MATCH("t[,"&M$4 &"]",'WINBUGS data'!$F$16:$ZZ$16,0)),"") ->  | N48: =IFERROR(INDEX('WINBUGS data'!$F$17:$ZZ$65,MATCH($C48,'WINBUGS data'!$F$17:$F$65,0),MATCH("t[,"&N$4 &"]",'WINBUGS data'!$F$16:$ZZ$16,0)),"") ->  | O48: =IFERROR(INDEX('WINBUGS data'!$F$17:$ZZ$65,MATCH($C48,'WINBUGS data'!$F$17:$F$65,0),MATCH("t[,"&O$4 &"]",'WINBUGS data'!$F$16:$ZZ$16,0)),"") ->  | P48: =IFERROR(INDEX('WINBUGS data'!$F$17:$ZZ$65,MATCH($C48,'WINBUGS data'!$F$17:$F$65,0),MATCH("t[,"&P$4 &"]",'WINBUGS data'!$F$16:$ZZ$16,0)),"") ->  | Q48: =IFERROR(INDEX('WINBUGS data'!$F$17:$ZZ$65,MATCH($C48,'WINBUGS data'!$F$17:$F$65,0),MATCH("t[,"&Q$4 &"]",'WINBUGS data'!$F$16:$ZZ$16,0)),"") ->  | R48: =IFERROR(INDEX('WINBUGS data'!$F$17:$ZZ$65,MATCH($C48,'WINBUGS data'!$F$17:$F$65,0),MATCH("t[,"&R$4 &"]",'WINBUGS data'!$F$16:$ZZ$16,0)),"") ->  | S48: =IFERROR(INDEX('WINBUGS data'!$F$17:$ZZ$65,MATCH($C48,'WINBUGS data'!$F$17:$F$65,0),MATCH("t[,"&S$4 &"]",'WINBUGS data'!$F$16:$ZZ$16,0)),"") ->  | T48: =IFERROR(INDEX('WINBUGS data'!$F$17:$ZZ$65,MATCH($C48,'WINBUGS data'!$F$17:$F$65,0),MATCH("t[,"&T$4 &"]",'WINBUGS data'!$F$16:$ZZ$16,0)),"") -> 
C49: =IF('WINBUGS data'!F61<>"",'WINBUGS data'!F61,"") ->  | D49: =IFERROR(INDEX('WINBUGS data'!$F$17:$ZZ$65,MATCH(C49,'WINBUGS data'!$F$17:$F$65,0),MATCH("na[]",'WINBUGS data'!$F$16:$ZZ$16,0)),"") ->  | F49: =IFERROR(INDEX('WINBUGS data'!$F$17:$ZZ$65,MATCH($C49,'WINBUGS data'!$F$17:$F$65,0),MATCH("t[,"&F$4 &"]",'WINBUGS data'!$F$16:$ZZ$16,0)),"") ->  | G49: =IFERROR(INDEX('WINBUGS data'!$F$17:$ZZ$65,MATCH($C49,'WINBUGS data'!$F$17:$F$65,0),MATCH("t[,"&G$4 &"]",'WINBUGS data'!$F$16:$ZZ$16,0)),"") ->  | H49: =IFERROR(INDEX('WINBUGS data'!$F$17:$ZZ$65,MATCH($C49,'WINBUGS data'!$F$17:$F$65,0),MATCH("t[,"&H$4 &"]",'WINBUGS data'!$F$16:$ZZ$16,0)),"") ->  | I49: =IFERROR(INDEX('WINBUGS data'!$F$17:$ZZ$65,MATCH($C49,'WINBUGS data'!$F$17:$F$65,0),MATCH("t[,"&I$4 &"]",'WINBUGS data'!$F$16:$ZZ$16,0)),"") ->  | J49: =IFERROR(INDEX('WINBUGS data'!$F$17:$ZZ$65,MATCH($C49,'WINBUGS data'!$F$17:$F$65,0),MATCH("t[,"&J$4 &"]",'WINBUGS data'!$F$16:$ZZ$16,0)),"") ->  | K49: =IFERROR(INDEX('WINBUGS data'!$F$17:$ZZ$65,MATCH($C49,'WINBUGS data'!$F$17:$F$65,0),MATCH("t[,"&K$4 &"]",'WINBUGS data'!$F$16:$ZZ$16,0)),"") ->  | L49: =IFERROR(INDEX('WINBUGS data'!$F$17:$ZZ$65,MATCH($C49,'WINBUGS data'!$F$17:$F$65,0),MATCH("t[,"&L$4 &"]",'WINBUGS data'!$F$16:$ZZ$16,0)),"") ->  | M49: =IFERROR(INDEX('WINBUGS data'!$F$17:$ZZ$65,MATCH($C49,'WINBUGS data'!$F$17:$F$65,0),MATCH("t[,"&M$4 &"]",'WINBUGS data'!$F$16:$ZZ$16,0)),"") ->  | N49: =IFERROR(INDEX('WINBUGS data'!$F$17:$ZZ$65,MATCH($C49,'WINBUGS data'!$F$17:$F$65,0),MATCH("t[,"&N$4 &"]",'WINBUGS data'!$F$16:$ZZ$16,0)),"") ->  | O49: =IFERROR(INDEX('WINBUGS data'!$F$17:$ZZ$65,MATCH($C49,'WINBUGS data'!$F$17:$F$65,0),MATCH("t[,"&O$4 &"]",'WINBUGS data'!$F$16:$ZZ$16,0)),"") ->  | P49: =IFERROR(INDEX('WINBUGS data'!$F$17:$ZZ$65,MATCH($C49,'WINBUGS data'!$F$17:$F$65,0),MATCH("t[,"&P$4 &"]",'WINBUGS data'!$F$16:$ZZ$16,0)),"") ->  | Q49: =IFERROR(INDEX('WINBUGS data'!$F$17:$ZZ$65,MATCH($C49,'WINBUGS data'!$F$17:$F$65,0),MATCH("t[,"&Q$4 &"]",'WINBUGS data'!$F$16:$ZZ$16,0)),"") ->  | R49: =IFERROR(INDEX('WINBUGS data'!$F$17:$ZZ$65,MATCH($C49,'WINBUGS data'!$F$17:$F$65,0),MATCH("t[,"&R$4 &"]",'WINBUGS data'!$F$16:$ZZ$16,0)),"") ->  | S49: =IFERROR(INDEX('WINBUGS data'!$F$17:$ZZ$65,MATCH($C49,'WINBUGS data'!$F$17:$F$65,0),MATCH("t[,"&S$4 &"]",'WINBUGS data'!$F$16:$ZZ$16,0)),"") ->  | T49: =IFERROR(INDEX('WINBUGS data'!$F$17:$ZZ$65,MATCH($C49,'WINBUGS data'!$F$17:$F$65,0),MATCH("t[,"&T$4 &"]",'WINBUGS data'!$F$16:$ZZ$16,0)),"") -> 
C50: =IF('WINBUGS data'!F62<>"",'WINBUGS data'!F62,"") ->  | D50: =IFERROR(INDEX('WINBUGS data'!$F$17:$ZZ$65,MATCH(C50,'WINBUGS data'!$F$17:$F$65,0),MATCH("na[]",'WINBUGS data'!$F$16:$ZZ$16,0)),"") ->  | F50: =IFERROR(INDEX('WINBUGS data'!$F$17:$ZZ$65,MATCH($C50,'WINBUGS data'!$F$17:$F$65,0),MATCH("t[,"&F$4 &"]",'WINBUGS data'!$F$16:$ZZ$16,0)),"") ->  | G50: =IFERROR(INDEX('WINBUGS data'!$F$17:$ZZ$65,MATCH($C50,'WINBUGS data'!$F$17:$F$65,0),MATCH("t[,"&G$4 &"]",'WINBUGS data'!$F$16:$ZZ$16,0)),"") ->  | H50: =IFERROR(INDEX('WINBUGS data'!$F$17:$ZZ$65,MATCH($C50,'WINBUGS data'!$F$17:$F$65,0),MATCH("t[,"&H$4 &"]",'WINBUGS data'!$F$16:$ZZ$16,0)),"") ->  | I50: =IFERROR(INDEX('WINBUGS data'!$F$17:$ZZ$65,MATCH($C50,'WINBUGS data'!$F$17:$F$65,0),MATCH("t[,"&I$4 &"]",'WINBUGS data'!$F$16:$ZZ$16,0)),"") ->  | J50: =IFERROR(INDEX('WINBUGS data'!$F$17:$ZZ$65,MATCH($C50,'WINBUGS data'!$F$17:$F$65,0),MATCH("t[,"&J$4 &"]",'WINBUGS data'!$F$16:$ZZ$16,0)),"") ->  | K50: =IFERROR(INDEX('WINBUGS data'!$F$17:$ZZ$65,MATCH($C50,'WINBUGS data'!$F$17:$F$65,0),MATCH("t[,"&K$4 &"]",'WINBUGS data'!$F$16:$ZZ$16,0)),"") ->  | L50: =IFERROR(INDEX('WINBUGS data'!$F$17:$ZZ$65,MATCH($C50,'WINBUGS data'!$F$17:$F$65,0),MATCH("t[,"&L$4 &"]",'WINBUGS data'!$F$16:$ZZ$16,0)),"") ->  | M50: =IFERROR(INDEX('WINBUGS data'!$F$17:$ZZ$65,MATCH($C50,'WINBUGS data'!$F$17:$F$65,0),MATCH("t[,"&M$4 &"]",'WINBUGS data'!$F$16:$ZZ$16,0)),"") ->  | N50: =IFERROR(INDEX('WINBUGS data'!$F$17:$ZZ$65,MATCH($C50,'WINBUGS data'!$F$17:$F$65,0),MATCH("t[,"&N$4 &"]",'WINBUGS data'!$F$16:$ZZ$16,0)),"") ->  | O50: =IFERROR(INDEX('WINBUGS data'!$F$17:$ZZ$65,MATCH($C50,'WINBUGS data'!$F$17:$F$65,0),MATCH("t[,"&O$4 &"]",'WINBUGS data'!$F$16:$ZZ$16,0)),"") ->  | P50: =IFERROR(INDEX('WINBUGS data'!$F$17:$ZZ$65,MATCH($C50,'WINBUGS data'!$F$17:$F$65,0),MATCH("t[,"&P$4 &"]",'WINBUGS data'!$F$16:$ZZ$16,0)),"") ->  | Q50: =IFERROR(INDEX('WINBUGS data'!$F$17:$ZZ$65,MATCH($C50,'WINBUGS data'!$F$17:$F$65,0),MATCH("t[,"&Q$4 &"]",'WINBUGS data'!$F$16:$ZZ$16,0)),"") ->  | R50: =IFERROR(INDEX('WINBUGS data'!$F$17:$ZZ$65,MATCH($C50,'WINBUGS data'!$F$17:$F$65,0),MATCH("t[,"&R$4 &"]",'WINBUGS data'!$F$16:$ZZ$16,0)),"") ->  | S50: =IFERROR(INDEX('WINBUGS data'!$F$17:$ZZ$65,MATCH($C50,'WINBUGS data'!$F$17:$F$65,0),MATCH("t[,"&S$4 &"]",'WINBUGS data'!$F$16:$ZZ$16,0)),"") ->  | T50: =IFERROR(INDEX('WINBUGS data'!$F$17:$ZZ$65,MATCH($C50,'WINBUGS data'!$F$17:$F$65,0),MATCH("t[,"&T$4 &"]",'WINBUGS data'!$F$16:$ZZ$16,0)),"") -> 
C51: =IF('WINBUGS data'!F63<>"",'WINBUGS data'!F63,"") ->  | D51: =IFERROR(INDEX('WINBUGS data'!$F$17:$ZZ$65,MATCH(C51,'WINBUGS data'!$F$17:$F$65,0),MATCH("na[]",'WINBUGS data'!$F$16:$ZZ$16,0)),"") ->  | F51: =IFERROR(INDEX('WINBUGS data'!$F$17:$ZZ$65,MATCH($C51,'WINBUGS data'!$F$17:$F$65,0),MATCH("t[,"&F$4 &"]",'WINBUGS data'!$F$16:$ZZ$16,0)),"") ->  | G51: =IFERROR(INDEX('WINBUGS data'!$F$17:$ZZ$65,MATCH($C51,'WINBUGS data'!$F$17:$F$65,0),MATCH("t[,"&G$4 &"]",'WINBUGS data'!$F$16:$ZZ$16,0)),"") ->  | H51: =IFERROR(INDEX('WINBUGS data'!$F$17:$ZZ$65,MATCH($C51,'WINBUGS data'!$F$17:$F$65,0),MATCH("t[,"&H$4 &"]",'WINBUGS data'!$F$16:$ZZ$16,0)),"") ->  | I51: =IFERROR(INDEX('WINBUGS data'!$F$17:$ZZ$65,MATCH($C51,'WINBUGS data'!$F$17:$F$65,0),MATCH("t[,"&I$4 &"]",'WINBUGS data'!$F$16:$ZZ$16,0)),"") ->  | J51: =IFERROR(INDEX('WINBUGS data'!$F$17:$ZZ$65,MATCH($C51,'WINBUGS data'!$F$17:$F$65,0),MATCH("t[,"&J$4 &"]",'WINBUGS data'!$F$16:$ZZ$16,0)),"") ->  | K51: =IFERROR(INDEX('WINBUGS data'!$F$17:$ZZ$65,MATCH($C51,'WINBUGS data'!$F$17:$F$65,0),MATCH("t[,"&K$4 &"]",'WINBUGS data'!$F$16:$ZZ$16,0)),"") ->  | L51: =IFERROR(INDEX('WINBUGS data'!$F$17:$ZZ$65,MATCH($C51,'WINBUGS data'!$F$17:$F$65,0),MATCH("t[,"&L$4 &"]",'WINBUGS data'!$F$16:$ZZ$16,0)),"") ->  | M51: =IFERROR(INDEX('WINBUGS data'!$F$17:$ZZ$65,MATCH($C51,'WINBUGS data'!$F$17:$F$65,0),MATCH("t[,"&M$4 &"]",'WINBUGS data'!$F$16:$ZZ$16,0)),"") ->  | N51: =IFERROR(INDEX('WINBUGS data'!$F$17:$ZZ$65,MATCH($C51,'WINBUGS data'!$F$17:$F$65,0),MATCH("t[,"&N$4 &"]",'WINBUGS data'!$F$16:$ZZ$16,0)),"") ->  | O51: =IFERROR(INDEX('WINBUGS data'!$F$17:$ZZ$65,MATCH($C51,'WINBUGS data'!$F$17:$F$65,0),MATCH("t[,"&O$4 &"]",'WINBUGS data'!$F$16:$ZZ$16,0)),"") ->  | P51: =IFERROR(INDEX('WINBUGS data'!$F$17:$ZZ$65,MATCH($C51,'WINBUGS data'!$F$17:$F$65,0),MATCH("t[,"&P$4 &"]",'WINBUGS data'!$F$16:$ZZ$16,0)),"") ->  | Q51: =IFERROR(INDEX('WINBUGS data'!$F$17:$ZZ$65,MATCH($C51,'WINBUGS data'!$F$17:$F$65,0),MATCH("t[,"&Q$4 &"]",'WINBUGS data'!$F$16:$ZZ$16,0)),"") ->  | R51: =IFERROR(INDEX('WINBUGS data'!$F$17:$ZZ$65,MATCH($C51,'WINBUGS data'!$F$17:$F$65,0),MATCH("t[,"&R$4 &"]",'WINBUGS data'!$F$16:$ZZ$16,0)),"") ->  | S51: =IFERROR(INDEX('WINBUGS data'!$F$17:$ZZ$65,MATCH($C51,'WINBUGS data'!$F$17:$F$65,0),MATCH("t[,"&S$4 &"]",'WINBUGS data'!$F$16:$ZZ$16,0)),"") ->  | T51: =IFERROR(INDEX('WINBUGS data'!$F$17:$ZZ$65,MATCH($C51,'WINBUGS data'!$F$17:$F$65,0),MATCH("t[,"&T$4 &"]",'WINBUGS data'!$F$16:$ZZ$16,0)),"") -> 
C52: =IF('WINBUGS data'!F64<>"",'WINBUGS data'!F64,"") ->  | D52: =IFERROR(INDEX('WINBUGS data'!$F$17:$ZZ$65,MATCH(C52,'WINBUGS data'!$F$17:$F$65,0),MATCH("na[]",'WINBUGS data'!$F$16:$ZZ$16,0)),"") ->  | F52: =IFERROR(INDEX('WINBUGS data'!$F$17:$ZZ$65,MATCH($C52,'WINBUGS data'!$F$17:$F$65,0),MATCH("t[,"&F$4 &"]",'WINBUGS data'!$F$16:$ZZ$16,0)),"") ->  | G52: =IFERROR(INDEX('WINBUGS data'!$F$17:$ZZ$65,MATCH($C52,'WINBUGS data'!$F$17:$F$65,0),MATCH("t[,"&G$4 &"]",'WINBUGS data'!$F$16:$ZZ$16,0)),"") ->  | H52: =IFERROR(INDEX('WINBUGS data'!$F$17:$ZZ$65,MATCH($C52,'WINBUGS data'!$F$17:$F$65,0),MATCH("t[,"&H$4 &"]",'WINBUGS data'!$F$16:$ZZ$16,0)),"") ->  | I52: =IFERROR(INDEX('WINBUGS data'!$F$17:$ZZ$65,MATCH($C52,'WINBUGS data'!$F$17:$F$65,0),MATCH("t[,"&I$4 &"]",'WINBUGS data'!$F$16:$ZZ$16,0)),"") ->  | J52: =IFERROR(INDEX('WINBUGS data'!$F$17:$ZZ$65,MATCH($C52,'WINBUGS data'!$F$17:$F$65,0),MATCH("t[,"&J$4 &"]",'WINBUGS data'!$F$16:$ZZ$16,0)),"") ->  | K52: =IFERROR(INDEX('WINBUGS data'!$F$17:$ZZ$65,MATCH($C52,'WINBUGS data'!$F$17:$F$65,0),MATCH("t[,"&K$4 &"]",'WINBUGS data'!$F$16:$ZZ$16,0)),"") ->  | L52: =IFERROR(INDEX('WINBUGS data'!$F$17:$ZZ$65,MATCH($C52,'WINBUGS data'!$F$17:$F$65,0),MATCH("t[,"&L$4 &"]",'WINBUGS data'!$F$16:$ZZ$16,0)),"") ->  | M52: =IFERROR(INDEX('WINBUGS data'!$F$17:$ZZ$65,MATCH($C52,'WINBUGS data'!$F$17:$F$65,0),MATCH("t[,"&M$4 &"]",'WINBUGS data'!$F$16:$ZZ$16,0)),"") ->  | N52: =IFERROR(INDEX('WINBUGS data'!$F$17:$ZZ$65,MATCH($C52,'WINBUGS data'!$F$17:$F$65,0),MATCH("t[,"&N$4 &"]",'WINBUGS data'!$F$16:$ZZ$16,0)),"") ->  | O52: =IFERROR(INDEX('WINBUGS data'!$F$17:$ZZ$65,MATCH($C52,'WINBUGS data'!$F$17:$F$65,0),MATCH("t[,"&O$4 &"]",'WINBUGS data'!$F$16:$ZZ$16,0)),"") ->  | P52: =IFERROR(INDEX('WINBUGS data'!$F$17:$ZZ$65,MATCH($C52,'WINBUGS data'!$F$17:$F$65,0),MATCH("t[,"&P$4 &"]",'WINBUGS data'!$F$16:$ZZ$16,0)),"") ->  | Q52: =IFERROR(INDEX('WINBUGS data'!$F$17:$ZZ$65,MATCH($C52,'WINBUGS data'!$F$17:$F$65,0),MATCH("t[,"&Q$4 &"]",'WINBUGS data'!$F$16:$ZZ$16,0)),"") ->  | R52: =IFERROR(INDEX('WINBUGS data'!$F$17:$ZZ$65,MATCH($C52,'WINBUGS data'!$F$17:$F$65,0),MATCH("t[,"&R$4 &"]",'WINBUGS data'!$F$16:$ZZ$16,0)),"") ->  | S52: =IFERROR(INDEX('WINBUGS data'!$F$17:$ZZ$65,MATCH($C52,'WINBUGS data'!$F$17:$F$65,0),MATCH("t[,"&S$4 &"]",'WINBUGS data'!$F$16:$ZZ$16,0)),"") ->  | T52: =IFERROR(INDEX('WINBUGS data'!$F$17:$ZZ$65,MATCH($C52,'WINBUGS data'!$F$17:$F$65,0),MATCH("t[,"&T$4 &"]",'WINBUGS data'!$F$16:$ZZ$16,0)),"") -> 
C53: =IF('WINBUGS data'!F65<>"",'WINBUGS data'!F65,"") ->  | D53: =IFERROR(INDEX('WINBUGS data'!$F$17:$ZZ$65,MATCH(C53,'WINBUGS data'!$F$17:$F$65,0),MATCH("na[]",'WINBUGS data'!$F$16:$ZZ$16,0)),"") ->  | F53: =IFERROR(INDEX('WINBUGS data'!$F$17:$ZZ$65,MATCH($C53,'WINBUGS data'!$F$17:$F$65,0),MATCH("t[,"&F$4 &"]",'WINBUGS data'!$F$16:$ZZ$16,0)),"") ->  | G53: =IFERROR(INDEX('WINBUGS data'!$F$17:$ZZ$65,MATCH($C53,'WINBUGS data'!$F$17:$F$65,0),MATCH("t[,"&G$4 &"]",'WINBUGS data'!$F$16:$ZZ$16,0)),"") ->  | H53: =IFERROR(INDEX('WINBUGS data'!$F$17:$ZZ$65,MATCH($C53,'WINBUGS data'!$F$17:$F$65,0),MATCH("t[,"&H$4 &"]",'WINBUGS data'!$F$16:$ZZ$16,0)),"") ->  | I53: =IFERROR(INDEX('WINBUGS data'!$F$17:$ZZ$65,MATCH($C53,'WINBUGS data'!$F$17:$F$65,0),MATCH("t[,"&I$4 &"]",'WINBUGS data'!$F$16:$ZZ$16,0)),"") ->  | J53: =IFERROR(INDEX('WINBUGS data'!$F$17:$ZZ$65,MATCH($C53,'WINBUGS data'!$F$17:$F$65,0),MATCH("t[,"&J$4 &"]",'WINBUGS data'!$F$16:$ZZ$16,0)),"") ->  | K53: =IFERROR(INDEX('WINBUGS data'!$F$17:$ZZ$65,MATCH($C53,'WINBUGS data'!$F$17:$F$65,0),MATCH("t[,"&K$4 &"]",'WINBUGS data'!$F$16:$ZZ$16,0)),"") ->  | L53: =IFERROR(INDEX('WINBUGS data'!$F$17:$ZZ$65,MATCH($C53,'WINBUGS data'!$F$17:$F$65,0),MATCH("t[,"&L$4 &"]",'WINBUGS data'!$F$16:$ZZ$16,0)),"") ->  | M53: =IFERROR(INDEX('WINBUGS data'!$F$17:$ZZ$65,MATCH($C53,'WINBUGS data'!$F$17:$F$65,0),MATCH("t[,"&M$4 &"]",'WINBUGS data'!$F$16:$ZZ$16,0)),"") ->  | N53: =IFERROR(INDEX('WINBUGS data'!$F$17:$ZZ$65,MATCH($C53,'WINBUGS data'!$F$17:$F$65,0),MATCH("t[,"&N$4 &"]",'WINBUGS data'!$F$16:$ZZ$16,0)),"") ->  | O53: =IFERROR(INDEX('WINBUGS data'!$F$17:$ZZ$65,MATCH($C53,'WINBUGS data'!$F$17:$F$65,0),MATCH("t[,"&O$4 &"]",'WINBUGS data'!$F$16:$ZZ$16,0)),"") ->  | P53: =IFERROR(INDEX('WINBUGS data'!$F$17:$ZZ$65,MATCH($C53,'WINBUGS data'!$F$17:$F$65,0),MATCH("t[,"&P$4 &"]",'WINBUGS data'!$F$16:$ZZ$16,0)),"") ->  | Q53: =IFERROR(INDEX('WINBUGS data'!$F$17:$ZZ$65,MATCH($C53,'WINBUGS data'!$F$17:$F$65,0),MATCH("t[,"&Q$4 &"]",'WINBUGS data'!$F$16:$ZZ$16,0)),"") ->  | R53: =IFERROR(INDEX('WINBUGS data'!$F$17:$ZZ$65,MATCH($C53,'WINBUGS data'!$F$17:$F$65,0),MATCH("t[,"&R$4 &"]",'WINBUGS data'!$F$16:$ZZ$16,0)),"") ->  | S53: =IFERROR(INDEX('WINBUGS data'!$F$17:$ZZ$65,MATCH($C53,'WINBUGS data'!$F$17:$F$65,0),MATCH("t[,"&S$4 &"]",'WINBUGS data'!$F$16:$ZZ$16,0)),"") ->  | T53: =IFERROR(INDEX('WINBUGS data'!$F$17:$ZZ$65,MATCH($C53,'WINBUGS data'!$F$17:$F$65,0),MATCH("t[,"&T$4 &"]",'WINBUGS data'!$F$16:$ZZ$16,0)),"") -> 
C54: =IF('WINBUGS data'!F62<>"",'WINBUGS data'!F62,"") ->  | D54: =IFERROR(INDEX('WINBUGS data'!$F$12:$AI$26,MATCH(C54,'WINBUGS data'!$F$12:$F$26,0),MATCH("na[]",'WINBUGS data'!$F$12:$AI$12,0)),"") ->  | E54: =CONCATENATE(IF(ISNUMBER(F54),F54,""),IF(ISNUMBER(G54),","&G54,""),IF(ISNUMBER(H54),","&H54,""),IF(ISNUMBER(I54),","&I54,""),IF(ISNUMBER(J54),","&J54,""),IF(ISNUMBER(K54),","&K54,""),IF(ISNUMBER(L54),","&L54,""),IF(ISNUMBER(M54),","&M54,""),IF(ISNUMBER(N54),","&N54,""),IF(ISNUMBER(O54),","&O54,""),IF(ISNUMBER(P54),","&P54,""),IF(ISNUMBER(Q54),","&Q54,""),IF(ISNUMBER(R54),","&R54,""),IF(ISNUMBER(S54),","&S54,""),IF(ISNUMBER(T54),","&T54,"")) ->  | F54: =IFERROR(INDEX('WINBUGS data'!$F$12:$AI$26,MATCH($C54,'WINBUGS data'!$F$12:$F$26,0),MATCH("t[,"&F$4 &"]",'WINBUGS data'!$F$12:$AI$12,0)),"") ->  | G54: =IFERROR(INDEX('WINBUGS data'!$F$12:$AI$26,MATCH($C54,'WINBUGS data'!$F$12:$F$26,0),MATCH("t[,"&G$4 &"]",'WINBUGS data'!$F$12:$AI$12,0)),"") ->  | H54: =IFERROR(INDEX('WINBUGS data'!$F$12:$AI$26,MATCH($C54,'WINBUGS data'!$F$12:$F$26,0),MATCH("t[,"&H$4 &"]",'WINBUGS data'!$F$12:$AI$12,0)),"") ->  | I54: =IFERROR(INDEX('WINBUGS data'!$F$12:$AI$26,MATCH($C54,'WINBUGS data'!$F$12:$F$26,0),MATCH("t[,"&I$4 &"]",'WINBUGS data'!$F$12:$AI$12,0)),"") ->  | J54: =IFERROR(INDEX('WINBUGS data'!$F$12:$AI$26,MATCH($C54,'WINBUGS data'!$F$12:$F$26,0),MATCH("t[,"&J$4 &"]",'WINBUGS data'!$F$12:$AI$12,0)),"") ->  | K54: =IFERROR(INDEX('WINBUGS data'!$F$12:$AI$26,MATCH($C54,'WINBUGS data'!$F$12:$F$26,0),MATCH("t[,"&K$4 &"]",'WINBUGS data'!$F$12:$AI$12,0)),"") ->  | L54: =IFERROR(INDEX('WINBUGS data'!$F$12:$AI$26,MATCH($C54,'WINBUGS data'!$F$12:$F$26,0),MATCH("t[,"&L$4 &"]",'WINBUGS data'!$F$12:$AI$12,0)),"") ->  | M54: =IFERROR(INDEX('WINBUGS data'!$F$12:$AI$26,MATCH($C54,'WINBUGS data'!$F$12:$F$26,0),MATCH("t[,"&M$4 &"]",'WINBUGS data'!$F$12:$AI$12,0)),"") ->  | N54: =IFERROR(INDEX('WINBUGS data'!$F$12:$AI$26,MATCH($C54,'WINBUGS data'!$F$12:$F$26,0),MATCH("t[,"&N$4 &"]",'WINBUGS data'!$F$12:$AI$12,0)),"") ->  | O54: =IFERROR(INDEX('WINBUGS data'!$F$12:$AI$26,MATCH($C54,'WINBUGS data'!$F$12:$F$26,0),MATCH("t[,"&O$4 &"]",'WINBUGS data'!$F$12:$AI$12,0)),"") ->  | P54: =IFERROR(INDEX('WINBUGS data'!$F$12:$AI$26,MATCH($C54,'WINBUGS data'!$F$12:$F$26,0),MATCH("t[,"&P$4 &"]",'WINBUGS data'!$F$12:$AI$12,0)),"") ->  | Q54: =IFERROR(INDEX('WINBUGS data'!$F$12:$AI$26,MATCH($C54,'WINBUGS data'!$F$12:$F$26,0),MATCH("t[,"&Q$4 &"]",'WINBUGS data'!$F$12:$AI$12,0)),"") ->  | R54: =IFERROR(INDEX('WINBUGS data'!$F$12:$AI$26,MATCH($C54,'WINBUGS data'!$F$12:$F$26,0),MATCH("t[,"&R$4 &"]",'WINBUGS data'!$F$12:$AI$12,0)),"") ->  | S54: =IFERROR(INDEX('WINBUGS data'!$F$12:$AI$26,MATCH($C54,'WINBUGS data'!$F$12:$F$26,0),MATCH("t[,"&S$4 &"]",'WINBUGS data'!$F$12:$AI$12,0)),"") ->  | T54: =IFERROR(INDEX('WINBUGS data'!$F$12:$AI$26,MATCH($C54,'WINBUGS data'!$F$12:$F$26,0),MATCH("t[,"&T$4 &"]",'WINBUGS data'!$F$12:$AI$12,0)),"") -> 
C55: =IF('WINBUGS data'!F63<>"",'WINBUGS data'!F63,"") ->  | D55: =IFERROR(INDEX('WINBUGS data'!$F$12:$AI$26,MATCH(C55,'WINBUGS data'!$F$12:$F$26,0),MATCH("na[]",'WINBUGS data'!$F$12:$AI$12,0)),"") ->  | F55: =IFERROR(INDEX('WINBUGS data'!$F$12:$AI$26,MATCH($C55,'WINBUGS data'!$F$12:$F$26,0),MATCH("t[,"&F$4 &"]",'WINBUGS data'!$F$12:$AI$12,0)),"") ->  | G55: =IFERROR(INDEX('WINBUGS data'!$F$12:$AI$26,MATCH($C55,'WINBUGS data'!$F$12:$F$26,0),MATCH("t[,"&G$4 &"]",'WINBUGS data'!$F$12:$AI$12,0)),"") ->  | H55: =IFERROR(INDEX('WINBUGS data'!$F$12:$AI$26,MATCH($C55,'WINBUGS data'!$F$12:$F$26,0),MATCH("t[,"&H$4 &"]",'WINBUGS data'!$F$12:$AI$12,0)),"") ->  | I55: =IFERROR(INDEX('WINBUGS data'!$F$12:$AI$26,MATCH($C55,'WINBUGS data'!$F$12:$F$26,0),MATCH("t[,"&I$4 &"]",'WINBUGS data'!$F$12:$AI$12,0)),"") ->  | J55: =IFERROR(INDEX('WINBUGS data'!$F$12:$AI$26,MATCH($C55,'WINBUGS data'!$F$12:$F$26,0),MATCH("t[,"&J$4 &"]",'WINBUGS data'!$F$12:$AI$12,0)),"") ->  | K55: =IFERROR(INDEX('WINBUGS data'!$F$12:$AI$26,MATCH($C55,'WINBUGS data'!$F$12:$F$26,0),MATCH("t[,"&K$4 &"]",'WINBUGS data'!$F$12:$AI$12,0)),"") ->  | L55: =IFERROR(INDEX('WINBUGS data'!$F$12:$AI$26,MATCH($C55,'WINBUGS data'!$F$12:$F$26,0),MATCH("t[,"&L$4 &"]",'WINBUGS data'!$F$12:$AI$12,0)),"") ->  | M55: =IFERROR(INDEX('WINBUGS data'!$F$12:$AI$26,MATCH($C55,'WINBUGS data'!$F$12:$F$26,0),MATCH("t[,"&M$4 &"]",'WINBUGS data'!$F$12:$AI$12,0)),"") ->  | N55: =IFERROR(INDEX('WINBUGS data'!$F$12:$AI$26,MATCH($C55,'WINBUGS data'!$F$12:$F$26,0),MATCH("t[,"&N$4 &"]",'WINBUGS data'!$F$12:$AI$12,0)),"") ->  | O55: =IFERROR(INDEX('WINBUGS data'!$F$12:$AI$26,MATCH($C55,'WINBUGS data'!$F$12:$F$26,0),MATCH("t[,"&O$4 &"]",'WINBUGS data'!$F$12:$AI$12,0)),"") ->  | P55: =IFERROR(INDEX('WINBUGS data'!$F$12:$AI$26,MATCH($C55,'WINBUGS data'!$F$12:$F$26,0),MATCH("t[,"&P$4 &"]",'WINBUGS data'!$F$12:$AI$12,0)),"") ->  | Q55: =IFERROR(INDEX('WINBUGS data'!$F$12:$AI$26,MATCH($C55,'WINBUGS data'!$F$12:$F$26,0),MATCH("t[,"&Q$4 &"]",'WINBUGS data'!$F$12:$AI$12,0)),"") ->  | R55: =IFERROR(INDEX('WINBUGS data'!$F$12:$AI$26,MATCH($C55,'WINBUGS data'!$F$12:$F$26,0),MATCH("t[,"&R$4 &"]",'WINBUGS data'!$F$12:$AI$12,0)),"") ->  | S55: =IFERROR(INDEX('WINBUGS data'!$F$12:$AI$26,MATCH($C55,'WINBUGS data'!$F$12:$F$26,0),MATCH("t[,"&S$4 &"]",'WINBUGS data'!$F$12:$AI$12,0)),"") ->  | T55: =IFERROR(INDEX('WINBUGS data'!$F$12:$AI$26,MATCH($C55,'WINBUGS data'!$F$12:$F$26,0),MATCH("t[,"&T$4 &"]",'WINBUGS data'!$F$12:$AI$12,0)),"") -> 
C56: =IF('WINBUGS data'!F64<>"",'WINBUGS data'!F64,"") ->  | D56: =IFERROR(INDEX('WINBUGS data'!$F$12:$AI$26,MATCH(C56,'WINBUGS data'!$F$12:$F$26,0),MATCH("na[]",'WINBUGS data'!$F$12:$AI$12,0)),"") ->  | F56: =IFERROR(INDEX('WINBUGS data'!$F$12:$AI$26,MATCH($C56,'WINBUGS data'!$F$12:$F$26,0),MATCH("t[,"&F$4 &"]",'WINBUGS data'!$F$12:$AI$12,0)),"") ->  | G56: =IFERROR(INDEX('WINBUGS data'!$F$12:$AI$26,MATCH($C56,'WINBUGS data'!$F$12:$F$26,0),MATCH("t[,"&G$4 &"]",'WINBUGS data'!$F$12:$AI$12,0)),"") ->  | H56: =IFERROR(INDEX('WINBUGS data'!$F$12:$AI$26,MATCH($C56,'WINBUGS data'!$F$12:$F$26,0),MATCH("t[,"&H$4 &"]",'WINBUGS data'!$F$12:$AI$12,0)),"") ->  | I56: =IFERROR(INDEX('WINBUGS data'!$F$12:$AI$26,MATCH($C56,'WINBUGS data'!$F$12:$F$26,0),MATCH("t[,"&I$4 &"]",'WINBUGS data'!$F$12:$AI$12,0)),"") ->  | J56: =IFERROR(INDEX('WINBUGS data'!$F$12:$AI$26,MATCH($C56,'WINBUGS data'!$F$12:$F$26,0),MATCH("t[,"&J$4 &"]",'WINBUGS data'!$F$12:$AI$12,0)),"") ->  | K56: =IFERROR(INDEX('WINBUGS data'!$F$12:$AI$26,MATCH($C56,'WINBUGS data'!$F$12:$F$26,0),MATCH("t[,"&K$4 &"]",'WINBUGS data'!$F$12:$AI$12,0)),"") ->  | L56: =IFERROR(INDEX('WINBUGS data'!$F$12:$AI$26,MATCH($C56,'WINBUGS data'!$F$12:$F$26,0),MATCH("t[,"&L$4 &"]",'WINBUGS data'!$F$12:$AI$12,0)),"") ->  | M56: =IFERROR(INDEX('WINBUGS data'!$F$12:$AI$26,MATCH($C56,'WINBUGS data'!$F$12:$F$26,0),MATCH("t[,"&M$4 &"]",'WINBUGS data'!$F$12:$AI$12,0)),"") ->  | N56: =IFERROR(INDEX('WINBUGS data'!$F$12:$AI$26,MATCH($C56,'WINBUGS data'!$F$12:$F$26,0),MATCH("t[,"&N$4 &"]",'WINBUGS data'!$F$12:$AI$12,0)),"") ->  | O56: =IFERROR(INDEX('WINBUGS data'!$F$12:$AI$26,MATCH($C56,'WINBUGS data'!$F$12:$F$26,0),MATCH("t[,"&O$4 &"]",'WINBUGS data'!$F$12:$AI$12,0)),"") ->  | P56: =IFERROR(INDEX('WINBUGS data'!$F$12:$AI$26,MATCH($C56,'WINBUGS data'!$F$12:$F$26,0),MATCH("t[,"&P$4 &"]",'WINBUGS data'!$F$12:$AI$12,0)),"") ->  | Q56: =IFERROR(INDEX('WINBUGS data'!$F$12:$AI$26,MATCH($C56,'WINBUGS data'!$F$12:$F$26,0),MATCH("t[,"&Q$4 &"]",'WINBUGS data'!$F$12:$AI$12,0)),"") ->  | R56: =IFERROR(INDEX('WINBUGS data'!$F$12:$AI$26,MATCH($C56,'WINBUGS data'!$F$12:$F$26,0),MATCH("t[,"&R$4 &"]",'WINBUGS data'!$F$12:$AI$12,0)),"") ->  | S56: =IFERROR(INDEX('WINBUGS data'!$F$12:$AI$26,MATCH($C56,'WINBUGS data'!$F$12:$F$26,0),MATCH("t[,"&S$4 &"]",'WINBUGS data'!$F$12:$AI$12,0)),"") ->  | T56: =IFERROR(INDEX('WINBUGS data'!$F$12:$AI$26,MATCH($C56,'WINBUGS data'!$F$12:$F$26,0),MATCH("t[,"&T$4 &"]",'WINBUGS data'!$F$12:$AI$12,0)),"") -> 
C57: =IF('WINBUGS data'!F65<>"",'WINBUGS data'!F65,"") ->  | D57: =IFERROR(INDEX('WINBUGS data'!$F$12:$AI$26,MATCH(C57,'WINBUGS data'!$F$12:$F$26,0),MATCH("na[]",'WINBUGS data'!$F$12:$AI$12,0)),"") ->  | F57: =IFERROR(INDEX('WINBUGS data'!$F$12:$AI$26,MATCH($C57,'WINBUGS data'!$F$12:$F$26,0),MATCH("t[,"&F$4 &"]",'WINBUGS data'!$F$12:$AI$12,0)),"") ->  | G57: =IFERROR(INDEX('WINBUGS data'!$F$12:$AI$26,MATCH($C57,'WINBUGS data'!$F$12:$F$26,0),MATCH("t[,"&G$4 &"]",'WINBUGS data'!$F$12:$AI$12,0)),"") ->  | H57: =IFERROR(INDEX('WINBUGS data'!$F$12:$AI$26,MATCH($C57,'WINBUGS data'!$F$12:$F$26,0),MATCH("t[,"&H$4 &"]",'WINBUGS data'!$F$12:$AI$12,0)),"") ->  | I57: =IFERROR(INDEX('WINBUGS data'!$F$12:$AI$26,MATCH($C57,'WINBUGS data'!$F$12:$F$26,0),MATCH("t[,"&I$4 &"]",'WINBUGS data'!$F$12:$AI$12,0)),"") ->  | J57: =IFERROR(INDEX('WINBUGS data'!$F$12:$AI$26,MATCH($C57,'WINBUGS data'!$F$12:$F$26,0),MATCH("t[,"&J$4 &"]",'WINBUGS data'!$F$12:$AI$12,0)),"") ->  | K57: =IFERROR(INDEX('WINBUGS data'!$F$12:$AI$26,MATCH($C57,'WINBUGS data'!$F$12:$F$26,0),MATCH("t[,"&K$4 &"]",'WINBUGS data'!$F$12:$AI$12,0)),"") ->  | L57: =IFERROR(INDEX('WINBUGS data'!$F$12:$AI$26,MATCH($C57,'WINBUGS data'!$F$12:$F$26,0),MATCH("t[,"&L$4 &"]",'WINBUGS data'!$F$12:$AI$12,0)),"") ->  | M57: =IFERROR(INDEX('WINBUGS data'!$F$12:$AI$26,MATCH($C57,'WINBUGS data'!$F$12:$F$26,0),MATCH("t[,"&M$4 &"]",'WINBUGS data'!$F$12:$AI$12,0)),"") ->  | N57: =IFERROR(INDEX('WINBUGS data'!$F$12:$AI$26,MATCH($C57,'WINBUGS data'!$F$12:$F$26,0),MATCH("t[,"&N$4 &"]",'WINBUGS data'!$F$12:$AI$12,0)),"") ->  | O57: =IFERROR(INDEX('WINBUGS data'!$F$12:$AI$26,MATCH($C57,'WINBUGS data'!$F$12:$F$26,0),MATCH("t[,"&O$4 &"]",'WINBUGS data'!$F$12:$AI$12,0)),"") ->  | P57: =IFERROR(INDEX('WINBUGS data'!$F$12:$AI$26,MATCH($C57,'WINBUGS data'!$F$12:$F$26,0),MATCH("t[,"&P$4 &"]",'WINBUGS data'!$F$12:$AI$12,0)),"") ->  | Q57: =IFERROR(INDEX('WINBUGS data'!$F$12:$AI$26,MATCH($C57,'WINBUGS data'!$F$12:$F$26,0),MATCH("t[,"&Q$4 &"]",'WINBUGS data'!$F$12:$AI$12,0)),"") ->  | R57: =IFERROR(INDEX('WINBUGS data'!$F$12:$AI$26,MATCH($C57,'WINBUGS data'!$F$12:$F$26,0),MATCH("t[,"&R$4 &"]",'WINBUGS data'!$F$12:$AI$12,0)),"") ->  | S57: =IFERROR(INDEX('WINBUGS data'!$F$12:$AI$26,MATCH($C57,'WINBUGS data'!$F$12:$F$26,0),MATCH("t[,"&S$4 &"]",'WINBUGS data'!$F$12:$AI$12,0)),"") ->  | T57: =IFERROR(INDEX('WINBUGS data'!$F$12:$AI$26,MATCH($C57,'WINBUGS data'!$F$12:$F$26,0),MATCH("t[,"&T$4 &"]",'WINBUGS data'!$F$12:$AI$12,0)),"") -> 
C58: =IF('WINBUGS data'!F66<>"",'WINBUGS data'!F66,"") ->  | D58: =IFERROR(INDEX('WINBUGS data'!$F$12:$AI$26,MATCH(C58,'WINBUGS data'!$F$12:$F$26,0),MATCH("na[]",'WINBUGS data'!$F$12:$AI$12,0)),"") ->  | F58: =IFERROR(INDEX('WINBUGS data'!$F$12:$AI$26,MATCH($C58,'WINBUGS data'!$F$12:$F$26,0),MATCH("t[,"&F$4 &"]",'WINBUGS data'!$F$12:$AI$12,0)),"") ->  | G58: =IFERROR(INDEX('WINBUGS data'!$F$12:$AI$26,MATCH($C58,'WINBUGS data'!$F$12:$F$26,0),MATCH("t[,"&G$4 &"]",'WINBUGS data'!$F$12:$AI$12,0)),"") ->  | H58: =IFERROR(INDEX('WINBUGS data'!$F$12:$AI$26,MATCH($C58,'WINBUGS data'!$F$12:$F$26,0),MATCH("t[,"&H$4 &"]",'WINBUGS data'!$F$12:$AI$12,0)),"") ->  | I58: =IFERROR(INDEX('WINBUGS data'!$F$12:$AI$26,MATCH($C58,'WINBUGS data'!$F$12:$F$26,0),MATCH("t[,"&I$4 &"]",'WINBUGS data'!$F$12:$AI$12,0)),"") ->  | J58: =IFERROR(INDEX('WINBUGS data'!$F$12:$AI$26,MATCH($C58,'WINBUGS data'!$F$12:$F$26,0),MATCH("t[,"&J$4 &"]",'WINBUGS data'!$F$12:$AI$12,0)),"") ->  | K58: =IFERROR(INDEX('WINBUGS data'!$F$12:$AI$26,MATCH($C58,'WINBUGS data'!$F$12:$F$26,0),MATCH("t[,"&K$4 &"]",'WINBUGS data'!$F$12:$AI$12,0)),"") ->  | L58: =IFERROR(INDEX('WINBUGS data'!$F$12:$AI$26,MATCH($C58,'WINBUGS data'!$F$12:$F$26,0),MATCH("t[,"&L$4 &"]",'WINBUGS data'!$F$12:$AI$12,0)),"") ->  | M58: =IFERROR(INDEX('WINBUGS data'!$F$12:$AI$26,MATCH($C58,'WINBUGS data'!$F$12:$F$26,0),MATCH("t[,"&M$4 &"]",'WINBUGS data'!$F$12:$AI$12,0)),"") ->  | N58: =IFERROR(INDEX('WINBUGS data'!$F$12:$AI$26,MATCH($C58,'WINBUGS data'!$F$12:$F$26,0),MATCH("t[,"&N$4 &"]",'WINBUGS data'!$F$12:$AI$12,0)),"") ->  | O58: =IFERROR(INDEX('WINBUGS data'!$F$12:$AI$26,MATCH($C58,'WINBUGS data'!$F$12:$F$26,0),MATCH("t[,"&O$4 &"]",'WINBUGS data'!$F$12:$AI$12,0)),"") ->  | P58: =IFERROR(INDEX('WINBUGS data'!$F$12:$AI$26,MATCH($C58,'WINBUGS data'!$F$12:$F$26,0),MATCH("t[,"&P$4 &"]",'WINBUGS data'!$F$12:$AI$12,0)),"") ->  | Q58: =IFERROR(INDEX('WINBUGS data'!$F$12:$AI$26,MATCH($C58,'WINBUGS data'!$F$12:$F$26,0),MATCH("t[,"&Q$4 &"]",'WINBUGS data'!$F$12:$AI$12,0)),"") ->  | R58: =IFERROR(INDEX('WINBUGS data'!$F$12:$AI$26,MATCH($C58,'WINBUGS data'!$F$12:$F$26,0),MATCH("t[,"&R$4 &"]",'WINBUGS data'!$F$12:$AI$12,0)),"") ->  | S58: =IFERROR(INDEX('WINBUGS data'!$F$12:$AI$26,MATCH($C58,'WINBUGS data'!$F$12:$F$26,0),MATCH("t[,"&S$4 &"]",'WINBUGS data'!$F$12:$AI$12,0)),"") ->  | T58: =IFERROR(INDEX('WINBUGS data'!$F$12:$AI$26,MATCH($C58,'WINBUGS data'!$F$12:$F$26,0),MATCH("t[,"&T$4 &"]",'WINBUGS data'!$F$12:$AI$12,0)),"") -> 
C59: =IF('WINBUGS data'!F67<>"",'WINBUGS data'!F67,"") ->  | D59: =IFERROR(INDEX('WINBUGS data'!$F$12:$AI$26,MATCH(C59,'WINBUGS data'!$F$12:$F$26,0),MATCH("na[]",'WINBUGS data'!$F$12:$AI$12,0)),"") ->  | F59: =IFERROR(INDEX('WINBUGS data'!$F$12:$AI$26,MATCH($C59,'WINBUGS data'!$F$12:$F$26,0),MATCH("t[,"&F$4 &"]",'WINBUGS data'!$F$12:$AI$12,0)),"") ->  | G59: =IFERROR(INDEX('WINBUGS data'!$F$12:$AI$26,MATCH($C59,'WINBUGS data'!$F$12:$F$26,0),MATCH("t[,"&G$4 &"]",'WINBUGS data'!$F$12:$AI$12,0)),"") ->  | H59: =IFERROR(INDEX('WINBUGS data'!$F$12:$AI$26,MATCH($C59,'WINBUGS data'!$F$12:$F$26,0),MATCH("t[,"&H$4 &"]",'WINBUGS data'!$F$12:$AI$12,0)),"") ->  | I59: =IFERROR(INDEX('WINBUGS data'!$F$12:$AI$26,MATCH($C59,'WINBUGS data'!$F$12:$F$26,0),MATCH("t[,"&I$4 &"]",'WINBUGS data'!$F$12:$AI$12,0)),"") ->  | J59: =IFERROR(INDEX('WINBUGS data'!$F$12:$AI$26,MATCH($C59,'WINBUGS data'!$F$12:$F$26,0),MATCH("t[,"&J$4 &"]",'WINBUGS data'!$F$12:$AI$12,0)),"") ->  | K59: =IFERROR(INDEX('WINBUGS data'!$F$12:$AI$26,MATCH($C59,'WINBUGS data'!$F$12:$F$26,0),MATCH("t[,"&K$4 &"]",'WINBUGS data'!$F$12:$AI$12,0)),"") ->  | L59: =IFERROR(INDEX('WINBUGS data'!$F$12:$AI$26,MATCH($C59,'WINBUGS data'!$F$12:$F$26,0),MATCH("t[,"&L$4 &"]",'WINBUGS data'!$F$12:$AI$12,0)),"") ->  | M59: =IFERROR(INDEX('WINBUGS data'!$F$12:$AI$26,MATCH($C59,'WINBUGS data'!$F$12:$F$26,0),MATCH("t[,"&M$4 &"]",'WINBUGS data'!$F$12:$AI$12,0)),"") ->  | N59: =IFERROR(INDEX('WINBUGS data'!$F$12:$AI$26,MATCH($C59,'WINBUGS data'!$F$12:$F$26,0),MATCH("t[,"&N$4 &"]",'WINBUGS data'!$F$12:$AI$12,0)),"") ->  | O59: =IFERROR(INDEX('WINBUGS data'!$F$12:$AI$26,MATCH($C59,'WINBUGS data'!$F$12:$F$26,0),MATCH("t[,"&O$4 &"]",'WINBUGS data'!$F$12:$AI$12,0)),"") ->  | P59: =IFERROR(INDEX('WINBUGS data'!$F$12:$AI$26,MATCH($C59,'WINBUGS data'!$F$12:$F$26,0),MATCH("t[,"&P$4 &"]",'WINBUGS data'!$F$12:$AI$12,0)),"") ->  | Q59: =IFERROR(INDEX('WINBUGS data'!$F$12:$AI$26,MATCH($C59,'WINBUGS data'!$F$12:$F$26,0),MATCH("t[,"&Q$4 &"]",'WINBUGS data'!$F$12:$AI$12,0)),"") ->  | R59: =IFERROR(INDEX('WINBUGS data'!$F$12:$AI$26,MATCH($C59,'WINBUGS data'!$F$12:$F$26,0),MATCH("t[,"&R$4 &"]",'WINBUGS data'!$F$12:$AI$12,0)),"") ->  | S59: =IFERROR(INDEX('WINBUGS data'!$F$12:$AI$26,MATCH($C59,'WINBUGS data'!$F$12:$F$26,0),MATCH("t[,"&S$4 &"]",'WINBUGS data'!$F$12:$AI$12,0)),"") ->  | T59: =IFERROR(INDEX('WINBUGS data'!$F$12:$AI$26,MATCH($C59,'WINBUGS data'!$F$12:$F$26,0),MATCH("t[,"&T$4 &"]",'WINBUGS data'!$F$12:$AI$12,0)),"") -> 

Sheet WINBUGS data
J1: Run WinBUGS
B2: Legend | H2: Inits Random Effects (Vague)
B3: Drug | C3: Treatment ID | H3: list(d=c(NA,1.5,0.5,0,1.5), sd=1, mu=c(2,2,1.5,1,1.5,1.5,2,1.5,1,1.5,0,0.5,1,2,0.5))
B4: =IF('DATA Input'!E5="","",'DATA Input'!E5) -> placebo | C4: =IF(B4="","",1) -> 1 | H4: list(d=c(NA,1,0.5,1.5,1.5), sd=2, mu=c(1.5,0.5,0,0.5,0.5,1.5,2,2,0,0,0,0,0.5,1,0.5))
B5: =IF('DATA Input'!G5="","",'DATA Input'!G5) -> warfarin-adjusted | C5: =IF(B5="","",C4+1) -> 2 | H5: list(d=c(NA,1,1.5,1.5,2), sd=1.5, mu=c(0,1,1,1,0.5,1,0.5,0.5,2,1,1.5,0.5,2,0.5,1.5))
B6: =IF('DATA Input'!I5="","",'DATA Input'!I5) -> aspirin | C6: =IF(B6="","",C5+1) -> 3 | H6: Inits Random Effects (Informative)
B7: =IF('DATA Input'!K$5="","",'DATA Input'!K$5) -> warfarin-fixed | C7: 4 | H7: list(d=c(NA,1,0.5,0.5,1.5), var=2, mu=c(2,1,1.5,0,1,1,1,0.5,1,0.5,1.5,2,1,1,1.5))
B8: =IF('DATA Input'!M$5="","",'DATA Input'!M$5) -> aspirin+warfarin | C8: 5 | H8: list(d=c(NA,1,1.5,1,1.5), var=2, mu=c(1.5,0,2,1,1.5,1,0.5,2,0.5,1,1,1.5,0,1.5,0))
B9: =IF('DATA Input'!O$5="","",'DATA Input'!O$5) ->  | H9: list(d=c(NA,1.5,0.5,0,1.5), var=1.5, mu=c(1.5,1,1.5,2,1,0.5,0,0,1,0.5,0.5,1,1.5,1,0.5))
B10: =IF('DATA Input'!Q$5="","",'DATA Input'!Q$5) ->  | H10: Inits Fixed Effects
B11: =IF('DATA Input'!S$5="","",'DATA Input'!S$5) ->  | H11: list(d=c(NA,0,0.5,1.5,0), mu=c(1,1.5,0,1,0.5,0.5,1,1.5,0.5,0.5,0.5,0.5,0.5,1.5,1))
B12: =IF('DATA Input'!U$5="","",'DATA Input'!U$5) ->  | F12: Hide | H12: list(d=c(NA,0,0,1,0.5), mu=c(0.5,2,1.5,1,0,2,0.5,0.5,0,1.5,1,0,1.5,2,0))
B13: =IF('DATA Input'!W$5="","",'DATA Input'!W$5) ->  | H13: list(d=c(NA,0.5,1,1.5,1.5), mu=c(0.5,1,1,0.5,1,0,1.5,1.5,0,0.5,0.5,1,1,0.5,1.5))
B14: =IF('DATA Input'!Y$5="","",'DATA Input'!Y$5) ->  | H14: WinBUGs Data Table and List Statement
B15: =IF('DATA Input'!AA$5="","",'DATA Input'!AA$5) ->  | H15: list(NS=15, NT=5)
B16: =IF('DATA Input'!AC$5="","",'DATA Input'!AC$5) ->  | F16: Study ID | G16: Study Name | H16: r[,1] | I16: n[,1] | J16: r[,2] | K16: n[,2] | L16: r[,3] | M16: n[,3] | N16: r[,4] | O16: n[,4] | P16: r[,5] | Q16: n[,5] | R16: t[,1] | S16: t[,2] | T16: t[,3] | U16: t[,4] | V16: t[,5] | W16: na[]
B17: =IF('DATA Input'!AE$5="","",'DATA Input'!AE$5) ->  | F17: 1 | G17: AFASAK | H17: 19 | I17: 336 | J17: 9 | K17: 335 | L17: 16 | M17: 336 | N17: NA | O17: 1 | P17: NA | Q17: 1 | R17: 1 | S17: 2 | T17: 3 | U17: NA | V17: NA | W17: 3
B18: =IF('DATA Input'!AG$5="","",'DATA Input'!AG$5) ->  | F18: 2 | G18: SPAF | H18: 19 | I18: 211 | J18: 8 | K18: 210 | L18: 25 | M18: 552 | N18: NA | O18: 1 | P18: NA | Q18: 1 | R18: 1 | S18: 2 | T18: 3 | U18: NA | V18: NA | W18: 3
F19: 3 | G19: BAATAF | H19: 13 | I19: 208 | J19: 3 | K19: 212 | L19: NA | M19: 1 | N19: NA | O19: 1 | P19: NA | Q19: 1 | R19: 1 | S19: 2 | T19: NA | U19: NA | V19: NA | W19: 2
F20: 4 | G20: CAFA | H20: 9 | I20: 191 | J20: 6 | K20: 187 | L20: NA | M20: 1 | N20: NA | O20: 1 | P20: NA | Q20: 1 | R20: 1 | S20: 2 | T20: NA | U20: NA | V20: NA | W20: 2
F21: 5 | G21: SPINAF | H21: 23 | I21: 290 | J21: 7 | K21: 281 | L21: NA | M21: 1 | N21: NA | O21: 1 | P21: NA | Q21: 1 | R21: 1 | S21: 2 | T21: NA | U21: NA | V21: NA | W21: 2
F22: 6 | G22: EAFT-1 | H22: 50 | I22: 214 | J22: 20 | K22: 225 | L22: 49 | M22: 230 | N22: NA | O22: 1 | P22: NA | Q22: 1 | R22: 1 | S22: 2 | T22: 3 | U22: NA | V22: NA | W22: 3
F23: 7 | G23: EAFT-2 | H23: 40 | I23: 164 | J23: 39 | K23: 174 | L23: NA | M23: 1 | N23: NA | O23: 1 | P23: NA | Q23: 1 | R23: 1 | S23: 3 | T23: NA | U23: NA | V23: NA | W23: 2
F24: 8 | G24: ESPS-2 | H24: 23 | I24: 107 | J24: 17 | K24: 104 | L24: NA | M24: 1 | N24: NA | O24: 1 | P24: NA | Q24: 1 | R24: 1 | S24: 3 | T24: NA | U24: NA | V24: NA | W24: 2
F25: 9 | G25: LASAF | H25: 6 | I25: 182 | J25: 5 | K25: 194 | L25: NA | M25: 1 | N25: NA | O25: 1 | P25: NA | Q25: 1 | R25: 1 | S25: 3 | T25: NA | U25: NA | V25: NA | W25: 2
F26: 10 | G26: UK-TIA | H26: 8 | I26: 30 | J26: 8 | K26: 34 | L26: NA | M26: 1 | N26: NA | O26: 1 | P26: NA | Q26: 1 | R26: 1 | S26: 3 | T26: NA | U26: NA | V26: NA | W26: 2
F27: 11 | G27: SPAF-2 | H27: 19 | I27: 358 | J27: 21 | K27: 357 | L27: NA | M27: 1 | N27: NA | O27: 1 | P27: NA | Q27: 1 | R27: 2 | S27: 3 | T27: NA | U27: NA | V27: NA | W27: 2
F28: 12 | G28: AFASAK-2 | H28: 11 | I28: 170 | J28: 9 | K28: 169 | L28: 14 | M28: 167 | N28: 11 | O28: 171 | P28: NA | Q28: 1 | R28: 2 | S28: 3 | T28: 4 | U28: 5 | V28: NA | W28: 4
F29: 13 | G29: PATAF | H29: 3 | I29: 131 | J29: 4 | K29: 141 | L29: 4 | M29: 122 | N29: NA | O29: 1 | P29: NA | Q29: 1 | R29: 2 | S29: 3 | T29: 4 | U29: NA | V29: NA | W29: 3
F30: 14 | G30: SPAF-3 | H30: 14 | I30: 523 | J30: 48 | K30: 521 | L30: NA | M30: 1 | N30: NA | O30: 1 | P30: NA | Q30: 1 | R30: 2 | S30: 5 | T30: NA | U30: NA | V30: NA | W30: 2
F31: 15 | G31: MWNAF | H31: 1 | I31: 153 | J31: 5 | K31: 150 | L31: NA | M31: 1 | N31: NA | O31: 1 | P31: NA | Q31: 1 | R31: 1 | S31: 4 | T31: NA | U31: NA | V31: NA | W31: 2
H32: END

Sheet WINBUGS Data Inconsistency
J1: Run WinBUGS
B2: Legend | H2: Inits Random Effects
B3: Drug | C3: Treatment ID | H3: list(mu=c(0.5,1,0.5,0.5,1,1.5,0,1,0,1.5,0.5,2), sd=1.5, d= structure(.Data = c(NA,1.5,1,1.5,1.5, NA,NA,1,1.5,0.5, NA,NA,NA,2,2, NA,NA,NA,NA,1), .Dim =c(4, 5)))
B4: =IF('DATA Input'!E5="","",'DATA Input'!E5) -> placebo | C4: =IF(B4="","",1) -> 1 | H4: list(mu=c(0.5,0.5,2,1.5,1.5,0.5,0,1,0.5,1,1,2), sd=1.5, d= structure(.Data = c(NA,0,0.5,1.5,0.5, NA,NA,2,0.5,0, NA,NA,NA,1,0.5, NA,NA,NA,NA,0.5), .Dim =c(4, 5)))
B5: =IF('DATA Input'!G5="","",'DATA Input'!G5) -> warfarin-adjusted | C5: =IF(B5="","",C4+1) -> 2 | H5: list(mu=c(0.5,1,1,1.5,0.5,2,1.5,0,0,1,1.5,1), sd=1.5, d= structure(.Data = c(NA,1,2,1,0.5, NA,NA,0,0,1, NA,NA,NA,1,1, NA,NA,NA,NA,1), .Dim =c(4, 5)))
B6: =IF('DATA Input'!I5="","",'DATA Input'!I5) -> aspirin | C6: =IF(B6="","",C5+1) -> 3 | H6: Inits Fixed Effects
B7: =IF('DATA Input'!K$5="","",'DATA Input'!K$5) -> warfarin-fixed | C7: 4 | H7: list(mu=c(1,1.5,0.5,0.5,0.5,0.5,0.5,1.5,1,1,2,0.5), d= structure(.Data = c(NA,2,0.5,1,1.5, NA,NA,2,1,1, NA,NA,NA,1,0.5, NA,NA,NA,NA,1.5, NA,NA,NA,NA,NA), .Dim =c(5, 5)))
B8: =IF('DATA Input'!M$5="","",'DATA Input'!M$5) -> aspirin+warfarin | C8: 5 | H8: list(mu=c(0.5,0.5,0,1.5,1,0,1.5,2,0,2,1,1), d= structure(.Data = c(NA,0.5,1,1,1.5, NA,NA,0.5,1.5,1, NA,NA,NA,1,1, NA,NA,NA,NA,2, NA,NA,NA,NA,NA), .Dim =c(5, 5)))
B9: =IF('DATA Input'!O$5="","",'DATA Input'!O$5) ->  | H9: list(mu=c(1.5,1.5,0,0.5,0.5,1,1,0.5,1.5,0,0.5,0.5), d= structure(.Data = c(NA,0,2,1.5,1.5, NA,NA,1,0.5,1.5, NA,NA,NA,1,1, NA,NA,NA,NA,0.5, NA,NA,NA,NA,NA), .Dim =c(5, 5)))
B10: =IF('DATA Input'!Q$5="","",'DATA Input'!Q$5) ->  | H10: WinBUGs Data Table and List Statement
B11: =IF('DATA Input'!S$5="","",'DATA Input'!S$5) ->  | H11: list(NS=12, NT=5)
B12: =IF('DATA Input'!U$5="","",'DATA Input'!U$5) -> 
B13: =IF('DATA Input'!W$5="","",'DATA Input'!W$5) -> 
B14: =IF('DATA Input'!Y$5="","",'DATA Input'!Y$5) -> 
B15: =IF('DATA Input'!AA$5="","",'DATA Input'!AA$5) -> 
B16: =IF('DATA Input'!AC$5="","",'DATA Input'!AC$5) -> 
B17: =IF('DATA Input'!AE$5="","",'DATA Input'!AE$5) -> 
B18: =IF('DATA Input'!AG$5="","",'DATA Input'!AG$5) -> 

Sheet Data Summary
D5: Network Characteristics
D6: Characteristic | E6: Number
D7: Number of Interventions | E7: =num_treatments -> 5
D8: Number of Studies | E8: =num_studies -> 15
D9: Total Number of Patients in Network | E9: =max_total -> 8140
D10: Total Number of Events in Network | E10: =SUM('DATA Input'!E7:E55,'DATA Input'!G7:G56,'DATA Input'!I7:I56,'DATA Input'!K7:K56,'DATA Input'!M7:M56,'DATA Input'!O7:O56,'DATA Input'!Q7:Q56,'DATA Input'!S7:S56,'DATA Input'!U7:U56,'DATA Input'!W7:W56,'DATA Input'!Y7:Y56,'DATA Input'!AA7:AA56,'DATA Input'!AC7:AC56,'DATA Input'!AE7:AE56,'DATA Input'!AG7:AG56) -> 586
D11: Total Possible Pairwise Comparisons | E11: =COMBIN(E7,2) -> 10
D12: Total Number Pairwise Comparisons With Direct Data | E12: =Unique_connections(list) -> 9
D13: Number of Two-arm Studies | E13: =COUNTIF(OFFSET('WINBUGS data'!G17:G66,0,MATCH("na[]",'WINBUGS data'!H16:BE16,0)),"2") -> 10
D14: Number of Multi-Arms Studies | E14: =COUNTIF(OFFSET('WINBUGS data'!G17:G66,0,MATCH("na[]",'WINBUGS data'!H16:BE16,0)),">2") -> 5
D15: Number of Studies With No Zero Events | E15: =No_zero('DATA Input'!E7:AH56) -> 15
D16: Number of Studies With At Least One Zero Event | E16: =num_studies-E15 -> 0
D17: Number of Studies with All Zero Events | E17: =All_zero('DATA Input'!E7:AH56) -> 0
D21: Intervention Characteristics
D22: Treatment
D23: Treatment | E23: # Studies | F23: # Events | G23: # Patients | H23: Aggregate Rate | I23: Min. Rate | J23: Max. Rate
D24: =IF('DATA Input'!$E$5="","",'DATA Input'!$E$5) -> placebo | E24: =COUNTIF('DATA Input'!$F$7:$F$56,"<>") -> 11 | F24: =SUM('DATA Input'!$E$7:$E$56) -> 211 | G24: =SUM('DATA Input'!$F$7:$F$56) -> 2086 | H24: =F24/G24 -> 0.1011505273 | I24: =MinRate(1,'DATA Input'!$E$7:$AH$56) -> 0.006535947789 | J24: =MaxRate(1,'DATA Input'!$E$7:$AH$56) -> 0.2666666806
D25: =IF('DATA Input'!$G$5="","",'DATA Input'!$G$5) -> warfarin-adjusted | E25: =COUNTIF('DATA Input'!$H$7:$H$56,"<>") -> 10 | F25: =SUM('DATA Input'!$G$7:$G$56) -> 100 | G25: =SUM('DATA Input'!$H$7:$H$56) -> 2632 | H25: =F25/G25 -> 0.03799392097 | I25: =MinRate(2,'DATA Input'!$E$7:$AH$56) -> 0.01415094361 | J25: =MaxRate(2,'DATA Input'!$E$7:$AH$56) -> 0.08888889104
D26: =IF('DATA Input'!$I$5="","",'DATA Input'!$I$5) -> aspirin | E26: =COUNTIF('DATA Input'!$J$7:$J$56,"<>") -> 10 | F26: =SUM('DATA Input'!$I$7:$I$56) -> 193 | G26: =SUM('DATA Input'!$J$7:$J$56) -> 2291 | H26: 0.08424268878 | I26: =MinRate(3,'DATA Input'!$E$7:$AH$56) -> 0.02577319555 | J26: =MaxRate(3,'DATA Input'!$E$7:$AH$56) -> 0.2352941185
D27: =IF('DATA Input'!$K$5="","",'DATA Input'!$K$5) -> warfarin-fixed | E27: =COUNTIF('DATA Input'!$L$7:$L$56,"<>") -> 3 | F27: =SUM('DATA Input'!$K$7:$K$56) -> 23 | G27: =SUM('DATA Input'!$L$7:$L$56) -> 439 | H27: 0.05239179954 | I27: =MinRate(4,'DATA Input'!$E$7:$AH$56) -> 0.03278688341 | J27: =MaxRate(4,'DATA Input'!$E$7:$AH$56) -> 0.08383233845
D28: =IF('DATA Input'!$M$5="","",'DATA Input'!$M$5) -> aspirin+warfarin | E28: =COUNTIF('DATA Input'!$N$7:$N$56,"<>") -> 2 | F28: =SUM('DATA Input'!$M$7:$M$56) -> 59 | G28: =SUM('DATA Input'!$N$7:$N$56) -> 692 | H28: 0.08526011561 | I28: =MinRate(5,'DATA Input'!$E$7:$AH$56) -> 0.06432748586 | J28: =MaxRate(5,'DATA Input'!$E$7:$AH$56) -> 0.09213051945
D29: =IF('DATA Input'!$O$5="","",'DATA Input'!$O$5) ->  | E29: =COUNTIF('DATA Input'!$P$7:$P$56,"<>") -> 0 | F29: =SUM('DATA Input'!$O$7:$O$56) -> 0 | G29: =SUM('DATA Input'!$P$7:$P$56) -> 0 | I29: =MinRate(6,'DATA Input'!$E$7:$AH$56) -> 1 | J29: =MaxRate(6,'DATA Input'!$E$7:$AH$56) -> 0
D30: =IF('DATA Input'!$Q$5="","",'DATA Input'!$Q$5) ->  | E30: =COUNTIF('DATA Input'!$R$7:$R$56,"<>") -> 0 | F30: =SUM('DATA Input'!$Q$7:$Q$56) -> 0 | G30: =SUM('DATA Input'!$R$7:$R$56) -> 0 | I30: =MinRate(7,'DATA Input'!$E$7:$AH$56) -> 1 | J30: =MaxRate(7,'DATA Input'!$E$7:$AH$56) -> 0
D31: =IF('DATA Input'!$S$5="","",'DATA Input'!$S$5) ->  | E31: =COUNTIF('DATA Input'!$T$7:$T$56,"<>") -> 0 | F31: =SUM('DATA Input'!$S$7:$S$56) -> 0 | G31: =SUM('DATA Input'!$T$7:$T$56) -> 0 | I31: =MinRate(8,'DATA Input'!$E$7:$AH$56) -> 1 | J31: =MaxRate(8,'DATA Input'!$E$7:$AH$56) -> 0
D32: =IF('DATA Input'!$U$5="","",'DATA Input'!$U$5) ->  | E32: =COUNTIF('DATA Input'!$V$7:$V$56,"<>") -> 0 | F32: =SUM('DATA Input'!$U$7:$U$56) -> 0 | G32: =SUM('DATA Input'!$V$7:$V$56) -> 0 | I32: =MinRate(9,'DATA Input'!$E$7:$AH$56) -> 1 | J32: =MaxRate(9,'DATA Input'!$E$7:$AH$56) -> 0
D33: =IF('DATA Input'!$W$5="","",'DATA Input'!$W$5) ->  | E33: =COUNTIF('DATA Input'!$X$7:$X$56,"<>") -> 0 | F33: =SUM('DATA Input'!$W$7:$W$56) -> 0 | G33: =SUM('DATA Input'!$X$7:$X$56) -> 0 | I33: =MinRate(10,'DATA Input'!$E$7:$AH$56) -> 1 | J33: =MaxRate(10,'DATA Input'!$E$7:$AH$56) -> 0
D34: =IF('DATA Input'!$Y$5="","",'DATA Input'!$Y$5) ->  | E34: =COUNTIF('DATA Input'!$Z$7:$Z$56,"<>") -> 0 | F34: =SUM('DATA Input'!$Y$7:$Y$56) -> 0 | G34: =SUM('DATA Input'!$Z$7:$Z$56) -> 0 | I34: =MinRate(11,'DATA Input'!$E$7:$AH$56) -> 1 | J34: =MaxRate(11,'DATA Input'!$E$7:$AH$56) -> 0
D35: =IF('DATA Input'!$AA$5="","",'DATA Input'!$AA$5) ->  | E35: =COUNTIF('DATA Input'!$AB$7:$AB$56,"<>") -> 0 | F35: =SUM('DATA Input'!$AA$7:$AA$56) -> 0 | G35: =SUM('DATA Input'!$AB$7:$AB$56) -> 0 | I35: =MinRate(12,'DATA Input'!$E$7:$AH$56) -> 1 | J35: =MaxRate(12,'DATA Input'!$E$7:$AH$56) -> 0
D36: =IF('DATA Input'!$AC$5="","",'DATA Input'!$AC$5) ->  | E36: =COUNTIF('DATA Input'!$AD$7:$AD$56,"<>") -> 0 | F36: =SUM('DATA Input'!$AC$7:$AC$56) -> 0 | G36: =SUM('DATA Input'!$AD$7:$AD$56) -> 0 | I36: =MinRate(13,'DATA Input'!$E$7:$AH$56) -> 1 | J36: =MaxRate(13,'DATA Input'!$E$7:$AH$56) -> 0
D37: =IF('DATA Input'!$AE$5="","",'DATA Input'!$AE$5) ->  | E37: =COUNTIF('DATA Input'!$AF$7:$AF$56,"<>") -> 0 | F37: =SUM('DATA Input'!$AE$7:$AE$56) -> 0 | G37: =SUM('DATA Input'!$AF$7:$AF$56) -> 0 | I37: =MinRate(14,'DATA Input'!$E$7:$AH$56) -> 1 | J37: =MaxRate(14,'DATA Input'!$E$7:$AH$56) -> 0
D38: =IF('DATA Input'!$AG$5="","",'DATA Input'!$AG$5) ->  | E38: =COUNTIF('DATA Input'!$AH$7:$AH$56,"<>") -> 0 | F38: =SUM('DATA Input'!$AG$7:$AG$56) -> 0 | G38: =SUM('DATA Input'!$AH$7:$AH$56) -> 0 | I38: =MinRate(15,'DATA Input'!$E$7:$AH$56) -> 1 | J38: =MaxRate(15,'DATA Input'!$E$7:$AH$56) -> 0
D41: Direct Comparison Characteristics
D42: Comparison | E42: # Studies | F42: # Patients | G42: # Events
D43: placebo vs. warfarin-adjusted | E43: 6 | F43: 2900 | G43: 186
D44: placebo vs. aspirin | E44: 7 | F44: 2868 | G44: 324
D45: warfarin-adjusted vs. aspirin | E45: 6 | F45: 3214 | G45: 194
D46: warfarin-adjusted vs. warfarin-fixed | E46: 2 | F46: 590 | G46: 32
D47: warfarin-adjusted vs. aspirin+warfarin | E47: 2 | F47: 1385 | G47: 84
D48: aspirin vs. warfarin-fixed | E48: 2 | F48: 599 | G48: 31
D49: aspirin vs. aspirin+warfarin | E49: 1 | F49: 340 | G49: 20
D50: warfarin-fixed vs. aspirin+warfarin | E50: 1 | F50: 338 | G50: 25
D51: placebo vs. warfarin-fixed | E51: 1 | F51: 303 | G51: 6

Sheet Network Diagram
B20: Base Node Size | C20: 30
B23: Legend
B24: Drug | C24: Abbreviation
B25: ='WINBUGS data'!B4 -> placebo | C25: A
B26: ='WINBUGS data'!B5 -> warfarin-adjusted | C26: B
B27: ='WINBUGS data'!B6 -> aspirin | C27: C
B28: ='WINBUGS data'!B7 -> warfarin-fixed | C28: D
B29: ='WINBUGS data'!B8 -> aspirin+warfarin | C29: E
B30: ='WINBUGS data'!B9 ->  | C30: F
B31: ='WINBUGS data'!B10 ->  | C31: G
B32: ='WINBUGS data'!B11 ->  | C32: H
B33: ='WINBUGS data'!B12 ->  | C33: I
B34: ='WINBUGS data'!B13 ->  | C34: J
B35: ='WINBUGS data'!B14 ->  | C35: K
B36: ='WINBUGS data'!B15 ->  | C36: L
B37: ='WINBUGS data'!B16 ->  | C37: M
B38: ='WINBUGS data'!B17 ->  | C38: N
B39: ='WINBUGS data'!B18 ->  | C39: O

Sheet Forest Plot
Y3: sheet11 | Z3: ='Fixed Effects'!A1 -> Fixed Effects
C4: Outcome | D4: OR | Y4: sheet20 | Z4: ='Random Effects (Vague)'!A1 -> Random Effects (Vague)
B5: Analyses | C5: Top | D5: Random Effects (Vague) | Y5: sheet15 | Z5: ='Random Effects (Informative)'!A1 -> Random Effects (Informative)
C6: Bottom | D6: None | Z6: None
C7: Comparison Spacing | D7: 2
C8: Marker Size | D8: 7
C9: Plot Size | D9: 375

Sheet League Table
B2: Outcome | C2: OR | Y2: =IF(events_bad,CONCATENATE(step," <1 Means the Treatment in Top Left is Better"),CONCATENATE(step," >1 Means the Treatment in Top Left is Better")) -> OR <1 Means the Treatment in Top Left is Better
B3: Analysis | C3: Fixed Effects | Y3: sheet11 | Z3: ='Fixed Effects'!A1 -> Fixed Effects
Y4: sheet20 | Z4: ='Random Effects (Vague)'!A1 -> Random Effects (Vague)
F5: warfarin-adjusted | Y5: sheet15 | Z5: ='Random Effects (Informative)'!A1 -> Random Effects (Informative)
F6: 0.56 (0.42 – 0.75) | G6: aspirin | Y6: OR <1 Means the Treatment in Top Left is Better
F7: 0.42 (0.32 – 0.55) | G7: 0.75 (0.59 – 0.94) | H7: placebo
F8: 0.37 (0.23 – 0.58) | G8: 0.66 (0.40 – 1.07) | H8: 0.89 (0.53 – 1.47) | I8: aspirin+warfarin
F9: 0.37 (0.20 – 0.65) | G9: 0.65 (0.36 – 1.15) | H9: 0.87 (0.47 – 1.58) | I9: 0.98 (0.54 – 1.79) | J9: warfarin-fixed

Sheet Rankogram
B2: Random Effects (Informative) Rankogram
B3: Fixed Effects
B4: Random Effects (Vague)
B5: Random Effects (Informative)
B7: Analysis | C7: Fixed Effects
B8: Chart Type | C8: Stacked Bar Chart (All Treatments)
B9: Treatment | C9: Medical
AD10: Stacked Bar Chart (All Treatments)
C11: Draw Rankogram | AD11: Line Graph (All Treatments)
AD12: Bar Chart (Individual Treatments)
AD13: Line Graph (Individual Treatments)
C14: Treatment | D14: SUCRA

Sheet Inconsistency Data (hidden)
D4: Fixed Effects | I4: Random Effects (Vague) | O4: Data Labels
D5: Inconsistency Model | F5: Consistency Model | H5: Difference | I5: Inconsistency Model | K5: Consistency Model | M5: Difference | O5: Study | P5: Treatment | R5: Study Name | T5: Treament Name | U5: Study Name, Treatment Name | V5: 1 | Z5: =R5 -> Study Name
A6: 0 | B6: 0 | H6: =IF(D6="","",G6-E6) ->  | M6: =IF(I6="","",L6-J6) ->  | O6: =IF(D6="","",MID(D6,FIND("[",D6)+1,FIND(",",D6)-FIND("[",D6)-1)) ->  | P6: =MID(D6,FIND(",",D6)+1,FIND("]",D6)-FIND(",",D6)-1) ->  | Q6: =CONCATENATE("t[,",P6,"]") ->  | R6: =IF(D6="","",INDEX('WINBUGS data'!$F$17:$AI$65,'Inconsistency Data'!O6,2)) ->  | S6: =INDEX('WINBUGS data'!$F$17:$AI$65,(O6*1),MATCH(Q6,'WINBUGS data'!$F$16:$AI$16,0)) ->  | T6: =IF(D6="","",INDEX('WINBUGS data'!$B$4:$C$18,'Inconsistency Data'!S6,1)) ->  | U6: =IF(D6="","",R6& ", "&T6) ->  | V6: =CHOOSE($V$5,R6,T6,U6) ->  | Z6: =T5 -> Treament Name
A7: 2 | B7: 2 | H7: =IF(D7="","",G7-E7) ->  | M7: =IF(I7="","",L7-J7) ->  | R7: =IF(D7="","",INDEX('WINBUGS data'!$F$17:$AI$65,'Inconsistency Data'!O7,2)) ->  | S7: =INDEX('WINBUGS data'!$F$17:$AI$65,(O7*1),MATCH(Q7,'WINBUGS data'!$F$16:$AI$16,0)) ->  | T7: =IF(D7="","",INDEX('WINBUGS Data Inconsistency'!$B$4:$C$18,'Inconsistency Data'!S7,1)) ->  | V7: =CHOOSE($V$5,R7,T7,U7) ->  | Z7: =U5 -> Study Name, Treatment Name
R8: =IF(D8="","",INDEX('WINBUGS data'!$F$17:$AI$65,'Inconsistency Data'!O8,2)) ->  | S8: =INDEX('WINBUGS data'!$F$17:$AI$65,(O8*1),MATCH(Q8,'WINBUGS data'!$F$16:$AI$16,0)) ->  | T8: =IF(D8="","",INDEX('WINBUGS Data Inconsistency'!$B$4:$C$18,'Inconsistency Data'!S8,1)) -> 
R9: =IF(D9="","",INDEX('WINBUGS data'!$F$17:$AI$65,'Inconsistency Data'!O9,2)) ->  | S9: =INDEX('WINBUGS data'!$F$17:$AI$65,(O9*1),MATCH(Q9,'WINBUGS data'!$F$16:$AI$16,0)) ->  | T9: =IF(D9="","",INDEX('WINBUGS Data Inconsistency'!$B$4:$C$18,'Inconsistency Data'!S9,1)) -> 
R10: =IF(D10="","",INDEX('WINBUGS data'!$F$17:$AI$65,'Inconsistency Data'!O10,2)) ->  | S10: =INDEX('WINBUGS data'!$F$17:$AI$65,(O10*1),MATCH(Q10,'WINBUGS data'!$F$16:$AI$16,0)) ->  | T10: =IF(D10="","",INDEX('WINBUGS Data Inconsistency'!$B$4:$C$18,'Inconsistency Data'!S10,1)) -> 
R11: =IF(D11="","",INDEX('WINBUGS data'!$F$17:$AI$65,'Inconsistency Data'!O11,2)) ->  | S11: =INDEX('WINBUGS data'!$F$17:$AI$65,(O11*1),MATCH(Q11,'WINBUGS data'!$F$16:$AI$16,0)) ->  | T11: =IF(D11="","",INDEX('WINBUGS Data Inconsistency'!$B$4:$C$18,'Inconsistency Data'!S11,1)) -> 
R12: =IF(D12="","",INDEX('WINBUGS data'!$F$17:$AI$65,'Inconsistency Data'!O12,2)) ->  | S12: =INDEX('WINBUGS data'!$F$17:$AI$65,(O12*1),MATCH(Q12,'WINBUGS data'!$F$16:$AI$16,0)) ->  | T12: =IF(D12="","",INDEX('WINBUGS Data Inconsistency'!$B$4:$C$18,'Inconsistency Data'!S12,1)) -> 
R13: =IF(D13="","",INDEX('WINBUGS data'!$F$17:$AI$65,'Inconsistency Data'!O13,2)) ->  | S13: =INDEX('WINBUGS data'!$F$17:$AI$65,(O13*1),MATCH(Q13,'WINBUGS data'!$F$16:$AI$16,0)) ->  | T13: =IF(D13="","",INDEX('WINBUGS Data Inconsistency'!$B$4:$C$18,'Inconsistency Data'!S13,1)) -> 
R14: =IF(D14="","",INDEX('WINBUGS data'!$F$17:$AI$65,'Inconsistency Data'!O14,2)) ->  | S14: =INDEX('WINBUGS data'!$F$17:$AI$65,(O14*1),MATCH(Q14,'WINBUGS data'!$F$16:$AI$16,0)) ->  | T14: =IF(D14="","",INDEX('WINBUGS Data Inconsistency'!$B$4:$C$18,'Inconsistency Data'!S14,1)) -> 
R15: =IF(D15="","",INDEX('WINBUGS data'!$F$17:$AI$65,'Inconsistency Data'!O15,2)) ->  | S15: =INDEX('WINBUGS data'!$F$17:$AI$65,(O15*1),MATCH(Q15,'WINBUGS data'!$F$16:$AI$16,0)) ->  | T15: =IF(D15="","",INDEX('WINBUGS Data Inconsistency'!$B$4:$C$18,'Inconsistency Data'!S15,1)) -> 
R16: =IF(D16="","",INDEX('WINBUGS data'!$F$17:$AI$65,'Inconsistency Data'!O16,2)) ->  | S16: =INDEX('WINBUGS data'!$F$17:$AI$65,(O16*1),MATCH(Q16,'WINBUGS data'!$F$16:$AI$16,0)) ->  | T16: =IF(D16="","",INDEX('WINBUGS Data Inconsistency'!$B$4:$C$18,'Inconsistency Data'!S16,1)) -> 
R17: =IF(D17="","",INDEX('WINBUGS data'!$F$17:$AI$65,'Inconsistency Data'!O17,2)) ->  | S17: =INDEX('WINBUGS data'!$F$17:$AI$65,(O17*1),MATCH(Q17,'WINBUGS data'!$F$16:$AI$16,0)) ->  | T17: =IF(D17="","",INDEX('WINBUGS Data Inconsistency'!$B$4:$C$18,'Inconsistency Data'!S17,1)) -> 
R18: =IF(D18="","",INDEX('WINBUGS data'!$F$17:$AI$65,'Inconsistency Data'!O18,2)) ->  | S18: =INDEX('WINBUGS data'!$F$17:$AI$65,(O18*1),MATCH(Q18,'WINBUGS data'!$F$16:$AI$16,0)) ->  | T18: =IF(D18="","",INDEX('WINBUGS Data Inconsistency'!$B$4:$C$18,'Inconsistency Data'!S18,1)) -> 
R19: =IF(D19="","",INDEX('WINBUGS data'!$F$17:$AI$65,'Inconsistency Data'!O19,2)) ->  | S19: =INDEX('WINBUGS data'!$F$17:$AI$65,(O19*1),MATCH(Q19,'WINBUGS data'!$F$16:$AI$16,0)) ->  | T19: =IF(D19="","",INDEX('WINBUGS Data Inconsistency'!$B$4:$C$18,'Inconsistency Data'!S19,1)) -> 
R20: =IF(D20="","",INDEX('WINBUGS data'!$F$17:$AI$65,'Inconsistency Data'!O20,2)) ->  | S20: =INDEX('WINBUGS data'!$F$17:$AI$65,(O20*1),MATCH(Q20,'WINBUGS data'!$F$16:$AI$16,0)) ->  | T20: =IF(D20="","",INDEX('WINBUGS Data Inconsistency'!$B$4:$C$18,'Inconsistency Data'!S20,1)) -> 
R21: =IF(D21="","",INDEX('WINBUGS data'!$F$17:$AI$65,'Inconsistency Data'!O21,2)) ->  | S21: =INDEX('WINBUGS data'!$F$17:$AI$65,(O21*1),MATCH(Q21,'WINBUGS data'!$F$16:$AI$16,0)) ->  | T21: =IF(D21="","",INDEX('WINBUGS Data Inconsistency'!$B$4:$C$18,'Inconsistency Data'!S21,1)) -> 
R22: =IF(D22="","",INDEX('WINBUGS data'!$F$17:$AI$65,'Inconsistency Data'!O22,2)) ->  | S22: =INDEX('WINBUGS data'!$F$17:$AI$65,(O22*1),MATCH(Q22,'WINBUGS data'!$F$16:$AI$16,0)) ->  | T22: =IF(D22="","",INDEX('WINBUGS Data Inconsistency'!$B$4:$C$18,'Inconsistency Data'!S22,1)) -> 
R23: =IF(D23="","",INDEX('WINBUGS data'!$F$17:$AI$65,'Inconsistency Data'!O23,2)) ->  | S23: =INDEX('WINBUGS data'!$F$17:$AI$65,(O23*1),MATCH(Q23,'WINBUGS data'!$F$16:$AI$16,0)) ->  | T23: =IF(D23="","",INDEX('WINBUGS Data Inconsistency'!$B$4:$C$18,'Inconsistency Data'!S23,1)) -> 
R24: =IF(D24="","",INDEX('WINBUGS data'!$F$17:$AI$65,'Inconsistency Data'!O24,2)) ->  | S24: =INDEX('WINBUGS data'!$F$17:$AI$65,(O24*1),MATCH(Q24,'WINBUGS data'!$F$16:$AI$16,0)) ->  | T24: =IF(D24="","",INDEX('WINBUGS Data Inconsistency'!$B$4:$C$18,'Inconsistency Data'!S24,1)) -> 
R25: =IF(D25="","",INDEX('WINBUGS data'!$F$17:$AI$65,'Inconsistency Data'!O25,2)) ->  | S25: =INDEX('WINBUGS data'!$F$17:$AI$65,(O25*1),MATCH(Q25,'WINBUGS data'!$F$16:$AI$16,0)) ->  | T25: =IF(D25="","",INDEX('WINBUGS Data Inconsistency'!$B$4:$C$18,'Inconsistency Data'!S25,1)) -> 
R26: =IF(D26="","",INDEX('WINBUGS data'!$F$17:$AI$65,'Inconsistency Data'!O26,2)) ->  | S26: =INDEX('WINBUGS data'!$F$17:$AI$65,(O26*1),MATCH(Q26,'WINBUGS data'!$F$16:$AI$16,0)) ->  | T26: =IF(D26="","",INDEX('WINBUGS Data Inconsistency'!$B$4:$C$18,'Inconsistency Data'!S26,1)) -> 
R27: =IF(D27="","",INDEX('WINBUGS data'!$F$17:$AI$65,'Inconsistency Data'!O27,2)) ->  | S27: =INDEX('WINBUGS data'!$F$17:$AI$65,(O27*1),MATCH(Q27,'WINBUGS data'!$F$16:$AI$16,0)) ->  | T27: =IF(D27="","",INDEX('WINBUGS Data Inconsistency'!$B$4:$C$18,'Inconsistency Data'!S27,1)) -> 
R28: =IF(D28="","",INDEX('WINBUGS data'!$F$17:$AI$65,'Inconsistency Data'!O28,2)) ->  | S28: =INDEX('WINBUGS data'!$F$17:$AI$65,(O28*1),MATCH(Q28,'WINBUGS data'!$F$16:$AI$16,0)) ->  | T28: =IF(D28="","",INDEX('WINBUGS Data Inconsistency'!$B$4:$C$18,'Inconsistency Data'!S28,1)) -> 
R29: =IF(D29="","",INDEX('WINBUGS data'!$F$17:$AI$65,'Inconsistency Data'!O29,2)) ->  | S29: =INDEX('WINBUGS data'!$F$17:$AI$65,(O29*1),MATCH(Q29,'WINBUGS data'!$F$16:$AI$16,0)) ->  | T29: =IF(D29="","",INDEX('WINBUGS Data Inconsistency'!$B$4:$C$18,'Inconsistency Data'!S29,1)) -> 
R30: =IF(D30="","",INDEX('WINBUGS data'!$F$17:$AI$65,'Inconsistency Data'!O30,2)) ->  | S30: =INDEX('WINBUGS data'!$F$17:$AI$65,(O30*1),MATCH(Q30,'WINBUGS data'!$F$16:$AI$16,0)) ->  | T30: =IF(D30="","",INDEX('WINBUGS Data Inconsistency'!$B$4:$C$18,'Inconsistency Data'!S30,1)) -> 
R31: =IF(D31="","",INDEX('WINBUGS data'!$F$17:$AI$65,'Inconsistency Data'!O31,2)) ->  | S31: =INDEX('WINBUGS data'!$F$17:$AI$65,(O31*1),MATCH(Q31,'WINBUGS data'!$F$16:$AI$16,0)) ->  | T31: =IF(D31="","",INDEX('WINBUGS Data Inconsistency'!$B$4:$C$18,'Inconsistency Data'!S31,1)) -> 
R32: =IF(D32="","",INDEX('WINBUGS data'!$F$17:$AI$65,'Inconsistency Data'!O32,2)) ->  | S32: =INDEX('WINBUGS data'!$F$17:$AI$65,(O32*1),MATCH(Q32,'WINBUGS data'!$F$16:$AI$16,0)) ->  | T32: =IF(D32="","",INDEX('WINBUGS Data Inconsistency'!$B$4:$C$18,'Inconsistency Data'!S32,1)) -> 
R33: =IF(D33="","",INDEX('WINBUGS data'!$F$17:$AI$65,'Inconsistency Data'!O33,2)) ->  | S33: =INDEX('WINBUGS data'!$F$17:$AI$65,(O33*1),MATCH(Q33,'WINBUGS data'!$F$16:$AI$16,0)) ->  | T33: =IF(D33="","",INDEX('WINBUGS Data Inconsistency'!$B$4:$C$18,'Inconsistency Data'!S33,1)) -> 
R34: =IF(D34="","",INDEX('WINBUGS data'!$F$17:$AI$65,'Inconsistency Data'!O34,2)) ->  | S34: =INDEX('WINBUGS data'!$F$17:$AI$65,(O34*1),MATCH(Q34,'WINBUGS data'!$F$16:$AI$16,0)) ->  | T34: =IF(D34="","",INDEX('WINBUGS Data Inconsistency'!$B$4:$C$18,'Inconsistency Data'!S34,1)) -> 
R35: =IF(D35="","",INDEX('WINBUGS data'!$F$17:$AI$65,'Inconsistency Data'!O35,2)) ->  | S35: =INDEX('WINBUGS data'!$F$17:$AI$65,(O35*1),MATCH(Q35,'WINBUGS data'!$F$16:$AI$16,0)) ->  | T35: =IF(D35="","",INDEX('WINBUGS Data Inconsistency'!$B$4:$C$18,'Inconsistency Data'!S35,1)) -> 
R36: =IF(D36="","",INDEX('WINBUGS data'!$F$17:$AI$65,'Inconsistency Data'!O36,2)) ->  | S36: =INDEX('WINBUGS data'!$F$17:$AI$65,(O36*1),MATCH(Q36,'WINBUGS data'!$F$16:$AI$16,0)) ->  | T36: =IF(D36="","",INDEX('WINBUGS Data Inconsistency'!$B$4:$C$18,'Inconsistency Data'!S36,1)) -> 
R37: =IF(D37="","",INDEX('WINBUGS data'!$F$17:$AI$65,'Inconsistency Data'!O37,2)) ->  | S37: =INDEX('WINBUGS data'!$F$17:$AI$65,(O37*1),MATCH(Q37,'WINBUGS data'!$F$16:$AI$16,0)) ->  | T37: =IF(D37="","",INDEX('WINBUGS Data Inconsistency'!$B$4:$C$18,'Inconsistency Data'!S37,1)) -> 
R38: =IF(D38="","",INDEX('WINBUGS data'!$F$17:$AI$65,'Inconsistency Data'!O38,2)) ->  | S38: =INDEX('WINBUGS data'!$F$17:$AI$65,(O38*1),MATCH(Q38,'WINBUGS data'!$F$16:$AI$16,0)) ->  | T38: =IF(D38="","",INDEX('WINBUGS Data Inconsistency'!$B$4:$C$18,'Inconsistency Data'!S38,1)) -> 
R39: =IF(D39="","",INDEX('WINBUGS data'!$F$17:$AI$65,'Inconsistency Data'!O39,2)) ->  | S39: =INDEX('WINBUGS data'!$F$17:$AI$65,(O39*1),MATCH(Q39,'WINBUGS data'!$F$16:$AI$16,0)) ->  | T39: =IF(D39="","",INDEX('WINBUGS Data Inconsistency'!$B$4:$C$18,'Inconsistency Data'!S39,1)) -> 
R40: =IF(D40="","",INDEX('WINBUGS data'!$F$17:$AI$65,'Inconsistency Data'!O40,2)) ->  | S40: =INDEX('WINBUGS data'!$F$17:$AI$65,(O40*1),MATCH(Q40,'WINBUGS data'!$F$16:$AI$16,0)) ->  | T40: =IF(D40="","",INDEX('WINBUGS Data Inconsistency'!$B$4:$C$18,'Inconsistency Data'!S40,1)) -> 
R41: =IF(D41="","",INDEX('WINBUGS data'!$F$17:$AI$65,'Inconsistency Data'!O41,2)) ->  | S41: =INDEX('WINBUGS data'!$F$17:$AI$65,(O41*1),MATCH(Q41,'WINBUGS data'!$F$16:$AI$16,0)) ->  | T41: =IF(D41="","",INDEX('WINBUGS Data Inconsistency'!$B$4:$C$18,'Inconsistency Data'!S41,1)) -> 
R42: =IF(D42="","",INDEX('WINBUGS data'!$F$17:$AI$65,'Inconsistency Data'!O42,2)) ->  | S42: =INDEX('WINBUGS data'!$F$17:$AI$65,(O42*1),MATCH(Q42,'WINBUGS data'!$F$16:$AI$16,0)) ->  | T42: =IF(D42="","",INDEX('WINBUGS Data Inconsistency'!$B$4:$C$18,'Inconsistency Data'!S42,1)) -> 
R43: =IF(D43="","",INDEX('WINBUGS data'!$F$17:$AI$65,'Inconsistency Data'!O43,2)) ->  | S43: =INDEX('WINBUGS data'!$F$17:$AI$65,(O43*1),MATCH(Q43,'WINBUGS data'!$F$16:$AI$16,0)) ->  | T43: =IF(D43="","",INDEX('WINBUGS Data Inconsistency'!$B$4:$C$18,'Inconsistency Data'!S43,1)) -> 
R44: =IF(D44="","",INDEX('WINBUGS data'!$F$17:$AI$65,'Inconsistency Data'!O44,2)) ->  | S44: =INDEX('WINBUGS data'!$F$17:$AI$65,(O44*1),MATCH(Q44,'WINBUGS data'!$F$16:$AI$16,0)) ->  | T44: =IF(D44="","",INDEX('WINBUGS Data Inconsistency'!$B$4:$C$18,'Inconsistency Data'!S44,1)) -> 
R45: =IF(D45="","",INDEX('WINBUGS data'!$F$17:$AI$65,'Inconsistency Data'!O45,2)) ->  | S45: =INDEX('WINBUGS data'!$F$17:$AI$65,(O45*1),MATCH(Q45,'WINBUGS data'!$F$16:$AI$16,0)) ->  | T45: =IF(D45="","",INDEX('WINBUGS Data Inconsistency'!$B$4:$C$18,'Inconsistency Data'!S45,1)) -> 
R46: =IF(D46="","",INDEX('WINBUGS data'!$F$17:$AI$65,'Inconsistency Data'!O46,2)) ->  | S46: =INDEX('WINBUGS data'!$F$17:$AI$65,(O46*1),MATCH(Q46,'WINBUGS data'!$F$16:$AI$16,0)) ->  | T46: =IF(D46="","",INDEX('WINBUGS Data Inconsistency'!$B$4:$C$18,'Inconsistency Data'!S46,1)) -> 
R47: =IF(D47="","",INDEX('WINBUGS data'!$F$17:$AI$65,'Inconsistency Data'!O47,2)) ->  | S47: =INDEX('WINBUGS data'!$F$17:$AI$65,(O47*1),MATCH(Q47,'WINBUGS data'!$F$16:$AI$16,0)) ->  | T47: =IF(D47="","",INDEX('WINBUGS Data Inconsistency'!$B$4:$C$18,'Inconsistency Data'!S47,1)) -> 
R48: =IF(D48="","",INDEX('WINBUGS data'!$F$17:$AI$65,'Inconsistency Data'!O48,2)) ->  | S48: =INDEX('WINBUGS data'!$F$17:$AI$65,(O48*1),MATCH(Q48,'WINBUGS data'!$F$16:$AI$16,0)) ->  | T48: =IF(D48="","",INDEX('WINBUGS Data Inconsistency'!$B$4:$C$18,'Inconsistency Data'!S48,1)) -> 
R49: =IF(D49="","",INDEX('WINBUGS data'!$F$17:$AI$65,'Inconsistency Data'!O49,2)) ->  | S49: =INDEX('WINBUGS data'!$F$17:$AI$65,(O49*1),MATCH(Q49,'WINBUGS data'!$F$16:$AI$16,0)) ->  | T49: =IF(D49="","",INDEX('WINBUGS Data Inconsistency'!$B$4:$C$18,'Inconsistency Data'!S49,1)) -> 
R50: =IF(D50="","",INDEX('WINBUGS data'!$F$17:$AI$65,'Inconsistency Data'!O50,2)) ->  | S50: =INDEX('WINBUGS data'!$F$17:$AI$65,(O50*1),MATCH(Q50,'WINBUGS data'!$F$16:$AI$16,0)) ->  | T50: =IF(D50="","",INDEX('WINBUGS Data Inconsistency'!$B$4:$C$18,'Inconsistency Data'!S50,1)) -> 
R51: =IF(D51="","",INDEX('WINBUGS data'!$F$17:$AI$65,'Inconsistency Data'!O51,2)) ->  | S51: =INDEX('WINBUGS data'!$F$17:$AI$65,(O51*1),MATCH(Q51,'WINBUGS data'!$F$16:$AI$16,0)) ->  | T51: =IF(D51="","",INDEX('WINBUGS Data Inconsistency'!$B$4:$C$18,'Inconsistency Data'!S51,1)) -> 
R52: =IF(D52="","",INDEX('WINBUGS data'!$F$17:$AI$65,'Inconsistency Data'!O52,2)) ->  | S52: =INDEX('WINBUGS data'!$F$17:$AI$65,(O52*1),MATCH(Q52,'WINBUGS data'!$F$16:$AI$16,0)) ->  | T52: =IF(D52="","",INDEX('WINBUGS Data Inconsistency'!$B$4:$C$18,'Inconsistency Data'!S52,1)) -> 
R53: =IF(D53="","",INDEX('WINBUGS data'!$F$17:$AI$65,'Inconsistency Data'!O53,2)) ->  | S53: =INDEX('WINBUGS data'!$F$17:$AI$65,(O53*1),MATCH(Q53,'WINBUGS data'!$F$16:$AI$16,0)) ->  | T53: =IF(D53="","",INDEX('WINBUGS Data Inconsistency'!$B$4:$C$18,'Inconsistency Data'!S53,1)) -> 
R54: =IF(D54="","",INDEX('WINBUGS data'!$F$17:$AI$65,'Inconsistency Data'!O54,2)) ->  | S54: =INDEX('WINBUGS data'!$F$17:$AI$65,(O54*1),MATCH(Q54,'WINBUGS data'!$F$16:$AI$16,0)) ->  | T54: =IF(D54="","",INDEX('WINBUGS Data Inconsistency'!$B$4:$C$18,'Inconsistency Data'!S54,1)) -> 
R55: =IF(D55="","",INDEX('WINBUGS data'!$F$17:$AI$65,'Inconsistency Data'!O55,2)) ->  | S55: =INDEX('WINBUGS data'!$F$17:$AI$65,(O55*1),MATCH(Q55,'WINBUGS data'!$F$16:$AI$16,0)) ->  | T55: =IF(D55="","",INDEX('WINBUGS Data Inconsistency'!$B$4:$C$18,'Inconsistency Data'!S55,1)) -> 
R56: =IF(D56="","",INDEX('WINBUGS data'!$F$17:$AI$65,'Inconsistency Data'!O56,2)) ->  | S56: =INDEX('WINBUGS data'!$F$17:$AI$65,(O56*1),MATCH(Q56,'WINBUGS data'!$F$16:$AI$16,0)) ->  | T56: =IF(D56="","",INDEX('WINBUGS Data Inconsistency'!$B$4:$C$18,'Inconsistency Data'!S56,1)) -> 
R57: =IF(D57="","",INDEX('WINBUGS data'!$F$17:$AI$65,'Inconsistency Data'!O57,2)) ->  | S57: =INDEX('WINBUGS data'!$F$17:$AI$65,(O57*1),MATCH(Q57,'WINBUGS data'!$F$16:$AI$16,0)) ->  | T57: =IF(D57="","",INDEX('WINBUGS Data Inconsistency'!$B$4:$C$18,'Inconsistency Data'!S57,1)) -> 
R58: =IF(D58="","",INDEX('WINBUGS data'!$F$17:$AI$65,'Inconsistency Data'!O58,2)) ->  | S58: =INDEX('WINBUGS data'!$F$17:$AI$65,(O58*1),MATCH(Q58,'WINBUGS data'!$F$16:$AI$16,0)) ->  | T58: =IF(D58="","",INDEX('WINBUGS Data Inconsistency'!$B$4:$C$18,'Inconsistency Data'!S58,1)) -> 
R59: =IF(D59="","",INDEX('WINBUGS data'!$F$17:$AI$65,'Inconsistency Data'!O59,2)) ->  | S59: =INDEX('WINBUGS data'!$F$17:$AI$65,(O59*1),MATCH(Q59,'WINBUGS data'!$F$16:$AI$16,0)) ->  | T59: =IF(D59="","",INDEX('WINBUGS Data Inconsistency'!$B$4:$C$18,'Inconsistency Data'!S59,1)) -> 
R60: =IF(D60="","",INDEX('WINBUGS data'!$F$17:$AI$65,'Inconsistency Data'!O60,2)) ->  | S60: =INDEX('WINBUGS data'!$F$17:$AI$65,(O60*1),MATCH(Q60,'WINBUGS data'!$F$16:$AI$16,0)) ->  | T60: =IF(D60="","",INDEX('WINBUGS Data Inconsistency'!$B$4:$C$18,'Inconsistency Data'!S60,1)) -> 
R61: =IF(D61="","",INDEX('WINBUGS data'!$F$17:$AI$65,'Inconsistency Data'!O61,2)) ->  | S61: =INDEX('WINBUGS data'!$F$17:$AI$65,(O61*1),MATCH(Q61,'WINBUGS data'!$F$16:$AI$16,0)) ->  | T61: =IF(D61="","",INDEX('WINBUGS Data Inconsistency'!$B$4:$C$18,'Inconsistency Data'!S61,1)) -> 
R62: =IF(D62="","",INDEX('WINBUGS data'!$F$17:$AI$65,'Inconsistency Data'!O62,2)) ->  | S62: =INDEX('WINBUGS data'!$F$17:$AI$65,(O62*1),MATCH(Q62,'WINBUGS data'!$F$16:$AI$16,0)) ->  | T62: =IF(D62="","",INDEX('WINBUGS Data Inconsistency'!$B$4:$C$18,'Inconsistency Data'!S62,1)) -> 
R63: =IF(D63="","",INDEX('WINBUGS data'!$F$17:$AI$65,'Inconsistency Data'!O63,2)) ->  | S63: =INDEX('WINBUGS data'!$F$17:$AI$65,(O63*1),MATCH(Q63,'WINBUGS data'!$F$16:$AI$16,0)) ->  | T63: =IF(D63="","",INDEX('WINBUGS Data Inconsistency'!$B$4:$C$18,'Inconsistency Data'!S63,1)) -> 
R64: =IF(D64="","",INDEX('WINBUGS data'!$F$17:$AI$65,'Inconsistency Data'!O64,2)) ->  | S64: =INDEX('WINBUGS data'!$F$17:$AI$65,(O64*1),MATCH(Q64,'WINBUGS data'!$F$16:$AI$16,0)) ->  | T64: =IF(D64="","",INDEX('WINBUGS Data Inconsistency'!$B$4:$C$18,'Inconsistency Data'!S64,1)) -> 
R65: =IF(D65="","",INDEX('WINBUGS data'!$F$17:$AI$65,'Inconsistency Data'!O65,2)) ->  | S65: =INDEX('WINBUGS data'!$F$17:$AI$65,(O65*1),MATCH(Q65,'WINBUGS data'!$F$16:$AI$16,0)) ->  | T65: =IF(D65="","",INDEX('WINBUGS Data Inconsistency'!$B$4:$C$18,'Inconsistency Data'!S65,1)) -> 
R66: =IF(D66="","",INDEX('WINBUGS data'!$F$17:$AI$65,'Inconsistency Data'!O66,2)) ->  | S66: =INDEX('WINBUGS data'!$F$17:$AI$65,(O66*1),MATCH(Q66,'WINBUGS data'!$F$16:$AI$16,0)) ->  | T66: =IF(D66="","",INDEX('WINBUGS Data Inconsistency'!$B$4:$C$18,'Inconsistency Data'!S66,1)) -> 
R67: =IF(D67="","",INDEX('WINBUGS data'!$F$17:$AI$65,'Inconsistency Data'!O67,2)) ->  | S67: =INDEX('WINBUGS data'!$F$17:$AI$65,(O67*1),MATCH(Q67,'WINBUGS data'!$F$16:$AI$16,0)) ->  | T67: =IF(D67="","",INDEX('WINBUGS Data Inconsistency'!$B$4:$C$18,'Inconsistency Data'!S67,1)) -> 
R68: =IF(D68="","",INDEX('WINBUGS data'!$F$17:$AI$65,'Inconsistency Data'!O68,2)) ->  | S68: =INDEX('WINBUGS data'!$F$17:$AI$65,(O68*1),MATCH(Q68,'WINBUGS data'!$F$16:$AI$16,0)) ->  | T68: =IF(D68="","",INDEX('WINBUGS Data Inconsistency'!$B$4:$C$18,'Inconsistency Data'!S68,1)) -> 
R69: =IF(D69="","",INDEX('WINBUGS data'!$F$17:$AI$65,'Inconsistency Data'!O69,2)) ->  | S69: =INDEX('WINBUGS data'!$F$17:$AI$65,(O69*1),MATCH(Q69,'WINBUGS data'!$F$16:$AI$16,0)) ->  | T69: =IF(D69="","",INDEX('WINBUGS Data Inconsistency'!$B$4:$C$18,'Inconsistency Data'!S69,1)) -> 
O70: =IF(D70="","",MID(D70,FIND("[",D70)+1,FIND(",",D70)-FIND("[",D70)-1)) ->  | P70: =MID(D70,FIND(",",D70)+1,FIND("]",D70)-FIND(",",D70)-1) ->  | Q70: =CONCATENATE("t[,",P70,"]") ->  | R70: =IF(D70="","",INDEX('WINBUGS data'!$F$17:$AI$65,'Inconsistency Data'!O70,2)) ->  | S70: =INDEX('WINBUGS data'!$F$17:$AI$65,(O70*1),MATCH(Q70,'WINBUGS data'!$F$16:$AI$16,0)) ->  | T70: =IF(D70="","",INDEX('WINBUGS Data Inconsistency'!$B$4:$C$18,'Inconsistency Data'!S70,1)) ->  | U70: =IF(D70="","",R70& ", "&T70) -> 
H71: =IF(D71="","",G71-E71) ->  | M71: =IF(I71="","",L71-J71) ->  | R71: =IF(D71="","",INDEX('WINBUGS data'!$F$17:$AI$65,'Inconsistency Data'!O71,2)) ->  | S71: =INDEX('WINBUGS data'!$F$17:$AI$65,(O71*1),MATCH(Q71,'WINBUGS data'!$F$16:$AI$16,0)) ->  | T71: =IF(D71="","",INDEX('WINBUGS Data Inconsistency'!$B$4:$C$18,'Inconsistency Data'!S71,1)) ->  | V71: =CHOOSE($V$5,R71,T71,U71) -> 
R72: =IF(D72="","",INDEX('WINBUGS data'!$F$17:$AI$65,'Inconsistency Data'!O72,2)) ->  | S72: =INDEX('WINBUGS data'!$F$17:$AI$65,(O72*1),MATCH(Q72,'WINBUGS data'!$F$16:$AI$16,0)) ->  | T72: =IF(D72="","",INDEX('WINBUGS Data Inconsistency'!$B$4:$C$18,'Inconsistency Data'!S72,1)) -> 
R73: =IF(D73="","",INDEX('WINBUGS data'!$F$17:$AI$65,'Inconsistency Data'!O73,2)) ->  | S73: =INDEX('WINBUGS data'!$F$17:$AI$65,(O73*1),MATCH(Q73,'WINBUGS data'!$F$16:$AI$16,0)) ->  | T73: =IF(D73="","",INDEX('WINBUGS Data Inconsistency'!$B$4:$C$18,'Inconsistency Data'!S73,1)) -> 
R74: =IF(D74="","",INDEX('WINBUGS data'!$F$17:$AI$65,'Inconsistency Data'!O74,2)) ->  | S74: =INDEX('WINBUGS data'!$F$17:$AI$65,(O74*1),MATCH(Q74,'WINBUGS data'!$F$16:$AI$16,0)) ->  | T74: =IF(D74="","",INDEX('WINBUGS Data Inconsistency'!$B$4:$C$18,'Inconsistency Data'!S74,1)) -> 
R75: =IF(D75="","",INDEX('WINBUGS data'!$F$17:$AI$65,'Inconsistency Data'!O75,2)) ->  | S75: =INDEX('WINBUGS data'!$F$17:$AI$65,(O75*1),MATCH(Q75,'WINBUGS data'!$F$16:$AI$16,0)) ->  | T75: =IF(D75="","",INDEX('WINBUGS Data Inconsistency'!$B$4:$C$18,'Inconsistency Data'!S75,1)) -> 
R76: =IF(D76="","",INDEX('WINBUGS data'!$F$17:$AI$65,'Inconsistency Data'!O76,2)) ->  | S76: =INDEX('WINBUGS data'!$F$17:$AI$65,(O76*1),MATCH(Q76,'WINBUGS data'!$F$16:$AI$16,0)) ->  | T76: =IF(D76="","",INDEX('WINBUGS Data Inconsistency'!$B$4:$C$18,'Inconsistency Data'!S76,1)) -> 
R77: =IF(D77="","",INDEX('WINBUGS data'!$F$17:$AI$65,'Inconsistency Data'!O77,2)) ->  | S77: =INDEX('WINBUGS data'!$F$17:$AI$65,(O77*1),MATCH(Q77,'WINBUGS data'!$F$16:$AI$16,0)) ->  | T77: =IF(D77="","",INDEX('WINBUGS Data Inconsistency'!$B$4:$C$18,'Inconsistency Data'!S77,1)) -> 
R78: =IF(D78="","",INDEX('WINBUGS data'!$F$17:$AI$65,'Inconsistency Data'!O78,2)) ->  | S78: =INDEX('WINBUGS data'!$F$17:$AI$65,(O78*1),MATCH(Q78,'WINBUGS data'!$F$16:$AI$16,0)) ->  | T78: =IF(D78="","",INDEX('WINBUGS Data Inconsistency'!$B$4:$C$18,'Inconsistency Data'!S78,1)) -> 
R79: =IF(D79="","",INDEX('WINBUGS data'!$F$17:$AI$65,'Inconsistency Data'!O79,2)) ->  | S79: =INDEX('WINBUGS data'!$F$17:$AI$65,(O79*1),MATCH(Q79,'WINBUGS data'!$F$16:$AI$16,0)) ->  | T79: =IF(D79="","",INDEX('WINBUGS Data Inconsistency'!$B$4:$C$18,'Inconsistency Data'!S79,1)) -> 
R80: =IF(D80="","",INDEX('WINBUGS data'!$F$17:$AI$65,'Inconsistency Data'!O80,2)) ->  | S80: =INDEX('WINBUGS data'!$F$17:$AI$65,(O80*1),MATCH(Q80,'WINBUGS data'!$F$16:$AI$16,0)) ->  | T80: =IF(D80="","",INDEX('WINBUGS Data Inconsistency'!$B$4:$C$18,'Inconsistency Data'!S80,1)) -> 
R81: =IF(D81="","",INDEX('WINBUGS data'!$F$17:$AI$65,'Inconsistency Data'!O81,2)) ->  | S81: =INDEX('WINBUGS data'!$F$17:$AI$65,(O81*1),MATCH(Q81,'WINBUGS data'!$F$16:$AI$16,0)) ->  | T81: =IF(D81="","",INDEX('WINBUGS Data Inconsistency'!$B$4:$C$18,'Inconsistency Data'!S81,1)) -> 
R82: =IF(D82="","",INDEX('WINBUGS data'!$F$17:$AI$65,'Inconsistency Data'!O82,2)) ->  | S82: =INDEX('WINBUGS data'!$F$17:$AI$65,(O82*1),MATCH(Q82,'WINBUGS data'!$F$16:$AI$16,0)) ->  | T82: =IF(D82="","",INDEX('WINBUGS Data Inconsistency'!$B$4:$C$18,'Inconsistency Data'!S82,1)) -> 
R83: =IF(D83="","",INDEX('WINBUGS data'!$F$17:$AI$65,'Inconsistency Data'!O83,2)) ->  | S83: =INDEX('WINBUGS data'!$F$17:$AI$65,(O83*1),MATCH(Q83,'WINBUGS data'!$F$16:$AI$16,0)) ->  | T83: =IF(D83="","",INDEX('WINBUGS Data Inconsistency'!$B$4:$C$18,'Inconsistency Data'!S83,1)) -> 
R84: =IF(D84="","",INDEX('WINBUGS data'!$F$17:$AI$65,'Inconsistency Data'!O84,2)) ->  | S84: =INDEX('WINBUGS data'!$F$17:$AI$65,(O84*1),MATCH(Q84,'WINBUGS data'!$F$16:$AI$16,0)) ->  | T84: =IF(D84="","",INDEX('WINBUGS Data Inconsistency'!$B$4:$C$18,'Inconsistency Data'!S84,1)) -> 
R85: =IF(D85="","",INDEX('WINBUGS data'!$F$17:$AI$65,'Inconsistency Data'!O85,2)) ->  | S85: =INDEX('WINBUGS data'!$F$17:$AI$65,(O85*1),MATCH(Q85,'WINBUGS data'!$F$16:$AI$16,0)) ->  | T85: =IF(D85="","",INDEX('WINBUGS Data Inconsistency'!$B$4:$C$18,'Inconsistency Data'!S85,1)) -> 
R86: =IF(D86="","",INDEX('WINBUGS data'!$F$17:$AI$65,'Inconsistency Data'!O86,2)) ->  | S86: =INDEX('WINBUGS data'!$F$17:$AI$65,(O86*1),MATCH(Q86,'WINBUGS data'!$F$16:$AI$16,0)) ->  | T86: =IF(D86="","",INDEX('WINBUGS Data Inconsistency'!$B$4:$C$18,'Inconsistency Data'!S86,1)) -> 
R87: =IF(D87="","",INDEX('WINBUGS data'!$F$17:$AI$65,'Inconsistency Data'!O87,2)) ->  | S87: =INDEX('WINBUGS data'!$F$17:$AI$65,(O87*1),MATCH(Q87,'WINBUGS data'!$F$16:$AI$16,0)) ->  | T87: =IF(D87="","",INDEX('WINBUGS Data Inconsistency'!$B$4:$C$18,'Inconsistency Data'!S87,1)) -> 
R88: =IF(D88="","",INDEX('WINBUGS data'!$F$17:$AI$65,'Inconsistency Data'!O88,2)) ->  | S88: =INDEX('WINBUGS data'!$F$17:$AI$65,(O88*1),MATCH(Q88,'WINBUGS data'!$F$16:$AI$16,0)) ->  | T88: =IF(D88="","",INDEX('WINBUGS Data Inconsistency'!$B$4:$C$18,'Inconsistency Data'!S88,1)) -> 
R89: =IF(D89="","",INDEX('WINBUGS data'!$F$17:$AI$65,'Inconsistency Data'!O89,2)) ->  | S89: =INDEX('WINBUGS data'!$F$17:$AI$65,(O89*1),MATCH(Q89,'WINBUGS data'!$F$16:$AI$16,0)) ->  | T89: =IF(D89="","",INDEX('WINBUGS Data Inconsistency'!$B$4:$C$18,'Inconsistency Data'!S89,1)) -> 
R90: =IF(D90="","",INDEX('WINBUGS data'!$F$17:$AI$65,'Inconsistency Data'!O90,2)) ->  | S90: =INDEX('WINBUGS data'!$F$17:$AI$65,(O90*1),MATCH(Q90,'WINBUGS data'!$F$16:$AI$16,0)) ->  | T90: =IF(D90="","",INDEX('WINBUGS Data Inconsistency'!$B$4:$C$18,'Inconsistency Data'!S90,1)) -> 
R91: =IF(D91="","",INDEX('WINBUGS data'!$F$17:$AI$65,'Inconsistency Data'!O91,2)) ->  | S91: =INDEX('WINBUGS data'!$F$17:$AI$65,(O91*1),MATCH(Q91,'WINBUGS data'!$F$16:$AI$16,0)) ->  | T91: =IF(D91="","",INDEX('WINBUGS Data Inconsistency'!$B$4:$C$18,'Inconsistency Data'!S91,1)) -> 
R92: =IF(D92="","",INDEX('WINBUGS data'!$F$17:$AI$65,'Inconsistency Data'!O92,2)) ->  | S92: =INDEX('WINBUGS data'!$F$17:$AI$65,(O92*1),MATCH(Q92,'WINBUGS data'!$F$16:$AI$16,0)) ->  | T92: =IF(D92="","",INDEX('WINBUGS Data Inconsistency'!$B$4:$C$18,'Inconsistency Data'!S92,1)) -> 
R93: =IF(D93="","",INDEX('WINBUGS data'!$F$17:$AI$65,'Inconsistency Data'!O93,2)) ->  | S93: =INDEX('WINBUGS data'!$F$17:$AI$65,(O93*1),MATCH(Q93,'WINBUGS data'!$F$16:$AI$16,0)) ->  | T93: =IF(D93="","",INDEX('WINBUGS Data Inconsistency'!$B$4:$C$18,'Inconsistency Data'!S93,1)) -> 
R94: =IF(D94="","",INDEX('WINBUGS data'!$F$17:$AI$65,'Inconsistency Data'!O94,2)) ->  | S94: =INDEX('WINBUGS data'!$F$17:$AI$65,(O94*1),MATCH(Q94,'WINBUGS data'!$F$16:$AI$16,0)) ->  | T94: =IF(D94="","",INDEX('WINBUGS Data Inconsistency'!$B$4:$C$18,'Inconsistency Data'!S94,1)) -> 
R95: =IF(D95="","",INDEX('WINBUGS data'!$F$17:$AI$65,'Inconsistency Data'!O95,2)) ->  | S95: =INDEX('WINBUGS data'!$F$17:$AI$65,(O95*1),MATCH(Q95,'WINBUGS data'!$F$16:$AI$16,0)) ->  | T95: =IF(D95="","",INDEX('WINBUGS Data Inconsistency'!$B$4:$C$18,'Inconsistency Data'!S95,1)) -> 
R96: =IF(D96="","",INDEX('WINBUGS data'!$F$17:$AI$65,'Inconsistency Data'!O96,2)) ->  | S96: =INDEX('WINBUGS data'!$F$17:$AI$65,(O96*1),MATCH(Q96,'WINBUGS data'!$F$16:$AI$16,0)) ->  | T96: =IF(D96="","",INDEX('WINBUGS Data Inconsistency'!$B$4:$C$18,'Inconsistency Data'!S96,1)) -> 
R97: =IF(D97="","",INDEX('WINBUGS data'!$F$17:$AI$65,'Inconsistency Data'!O97,2)) ->  | S97: =INDEX('WINBUGS data'!$F$17:$AI$65,(O97*1),MATCH(Q97,'WINBUGS data'!$F$16:$AI$16,0)) ->  | T97: =IF(D97="","",INDEX('WINBUGS Data Inconsistency'!$B$4:$C$18,'Inconsistency Data'!S97,1)) -> 
R98: =IF(D98="","",INDEX('WINBUGS data'!$F$17:$AI$65,'Inconsistency Data'!O98,2)) ->  | S98: =INDEX('WINBUGS data'!$F$17:$AI$65,(O98*1),MATCH(Q98,'WINBUGS data'!$F$16:$AI$16,0)) ->  | T98: =IF(D98="","",INDEX('WINBUGS Data Inconsistency'!$B$4:$C$18,'Inconsistency Data'!S98,1)) -> 
R99: =IF(D99="","",INDEX('WINBUGS data'!$F$17:$AI$65,'Inconsistency Data'!O99,2)) ->  | S99: =INDEX('WINBUGS data'!$F$17:$AI$65,(O99*1),MATCH(Q99,'WINBUGS data'!$F$16:$AI$16,0)) ->  | T99: =IF(D99="","",INDEX('WINBUGS Data Inconsistency'!$B$4:$C$18,'Inconsistency Data'!S99,1)) -> 
R100: =IF(D100="","",INDEX('WINBUGS data'!$F$17:$AI$65,'Inconsistency Data'!O100,2)) ->  | S100: =INDEX('WINBUGS data'!$F$17:$AI$65,(O100*1),MATCH(Q100,'WINBUGS data'!$F$16:$AI$16,0)) ->  | T100: =IF(D100="","",INDEX('WINBUGS Data Inconsistency'!$B$4:$C$18,'Inconsistency Data'!S100,1)) -> 
R101: =IF(D101="","",INDEX('WINBUGS data'!$F$17:$AI$65,'Inconsistency Data'!O101,2)) ->  | S101: =INDEX('WINBUGS data'!$F$17:$AI$65,(O101*1),MATCH(Q101,'WINBUGS data'!$F$16:$AI$16,0)) ->  | T101: =IF(D101="","",INDEX('WINBUGS Data Inconsistency'!$B$4:$C$18,'Inconsistency Data'!S101,1)) -> 
R102: =IF(D102="","",INDEX('WINBUGS data'!$F$17:$AI$65,'Inconsistency Data'!O102,2)) ->  | S102: =INDEX('WINBUGS data'!$F$17:$AI$65,(O102*1),MATCH(Q102,'WINBUGS data'!$F$16:$AI$16,0)) ->  | T102: =IF(D102="","",INDEX('WINBUGS Data Inconsistency'!$B$4:$C$18,'Inconsistency Data'!S102,1)) -> 
R103: =IF(D103="","",INDEX('WINBUGS data'!$F$17:$AI$65,'Inconsistency Data'!O103,2)) ->  | S103: =INDEX('WINBUGS data'!$F$17:$AI$65,(O103*1),MATCH(Q103,'WINBUGS data'!$F$16:$AI$16,0)) ->  | T103: =IF(D103="","",INDEX('WINBUGS Data Inconsistency'!$B$4:$C$18,'Inconsistency Data'!S103,1)) -> 
R104: =IF(D104="","",INDEX('WINBUGS data'!$F$17:$AI$65,'Inconsistency Data'!O104,2)) ->  | S104: =INDEX('WINBUGS data'!$F$17:$AI$65,(O104*1),MATCH(Q104,'WINBUGS data'!$F$16:$AI$16,0)) ->  | T104: =IF(D104="","",INDEX('WINBUGS Data Inconsistency'!$B$4:$C$18,'Inconsistency Data'!S104,1)) -> 
R105: =IF(D105="","",INDEX('WINBUGS data'!$F$17:$AI$65,'Inconsistency Data'!O105,2)) ->  | S105: =INDEX('WINBUGS data'!$F$17:$AI$65,(O105*1),MATCH(Q105,'WINBUGS data'!$F$16:$AI$16,0)) ->  | T105: =IF(D105="","",INDEX('WINBUGS Data Inconsistency'!$B$4:$C$18,'Inconsistency Data'!S105,1)) -> 

Sheet Inconsistency Results (hidden)
E3: Fixed Effects Odds Ratios | J3: Random Effects Odds Ratios
E4: Treatment Comparisons | F4: Consistency Model | G4: InConsistency Model | J4: Treatment Comparisons | K4: Consistency Model | L4: InConsistency Model
D5: =IF('Fixed Effects'!N5="","",'Fixed Effects'!N5) ->  | E5: =IF('Fixed Effects'!O5="","",'Fixed Effects'!O5) ->  | F5: =IF('Fixed Effects'!Q5="","",'Fixed Effects'!Q5) ->  | G5: =IF(D5="","",IF((INDEX('FE Inconsistency Results'!$H$1:$H$500,MATCH(SUBSTITUTE(D5,"OR","d"),'FE Inconsistency Results'!$B$1:$B$500,0),1))-(INDEX('FE Inconsistency Results'!$F$1:$F$500,MATCH(SUBSTITUTE(D5,"OR","d"),'FE Inconsistency Results'!$B$1:$B$500,0),1))>50,"N/A",EXP(INDEX('FE Inconsistency Results'!$G$1:$G$500,MATCH(SUBSTITUTE(D5,"OR","d"),'FE Inconsistency Results'!$B$1:$B$500,0),1)))) ->  | I5: =IF(INDIRECT(CONCATENATE("'",'Inconsistency Data'!$I$4,"'!N5"))="","",INDIRECT(CONCATENATE("'",'Inconsistency Data'!$I$4,"'!N5"))) ->  | J5: =IF(INDIRECT(CONCATENATE("'",'Inconsistency Data'!$I$4,"'!O5"))="","",INDIRECT(CONCATENATE("'",'Inconsistency Data'!$I$4,"'!O5"))) ->  | K5: =IF(INDIRECT(CONCATENATE("'",'Inconsistency Data'!$I$4,"'!Q5"))="","",INDIRECT(CONCATENATE("'",'Inconsistency Data'!$I$4,"'!Q5"))) ->  | L5: =IF(D5="","",IF((INDEX('RE Inconsistency Results'!$H$1:$H$500,MATCH(SUBSTITUTE(D5,"OR","d"),'RE Inconsistency Results'!$B$1:$B$500,0),1))-(INDEX('RE Inconsistency Results'!$F$1:$F$500,MATCH(SUBSTITUTE(D5,"OR","d"),'RE Inconsistency Results'!$B$1:$B$500,0),1))>50,"N/A",EXP(INDEX('RE Inconsistency Results'!$G$1:$G$500,MATCH(SUBSTITUTE(D5,"OR","d"),'RE Inconsistency Results'!$B$1:$B$500,0),1)))) -> 
D6: =IF('Fixed Effects'!N6="","",'Fixed Effects'!N6) ->  | E6: =IF('Fixed Effects'!O6="","",'Fixed Effects'!O6) ->  | F6: =IF('Fixed Effects'!Q6="","",'Fixed Effects'!Q6) ->  | G6: =IF(D6="","",IF((INDEX('FE Inconsistency Results'!$H$1:$H$500,MATCH(SUBSTITUTE(D6,"OR","d"),'FE Inconsistency Results'!$B$1:$B$500,0),1))-(INDEX('FE Inconsistency Results'!$F$1:$F$500,MATCH(SUBSTITUTE(D6,"OR","d"),'FE Inconsistency Results'!$B$1:$B$500,0),1))>50,"N/A",EXP(INDEX('FE Inconsistency Results'!$G$1:$G$500,MATCH(SUBSTITUTE(D6,"OR","d"),'FE Inconsistency Results'!$B$1:$B$500,0),1)))) ->  | I6: =IF(INDIRECT(CONCATENATE("'",'Inconsistency Data'!$I$4,"'!N6"))="","",INDIRECT(CONCATENATE("'",'Inconsistency Data'!$I$4,"'!N6"))) ->  | J6: =IF(INDIRECT(CONCATENATE("'",'Inconsistency Data'!$I$4,"'!O6"))="","",INDIRECT(CONCATENATE("'",'Inconsistency Data'!$I$4,"'!O6"))) ->  | K6: =IF(INDIRECT(CONCATENATE("'",'Inconsistency Data'!$I$4,"'!Q6"))="","",INDIRECT(CONCATENATE("'",'Inconsistency Data'!$I$4,"'!Q6"))) ->  | L6: =IF(D6="","",IF((INDEX('RE Inconsistency Results'!$H$1:$H$500,MATCH(SUBSTITUTE(D6,"OR","d"),'RE Inconsistency Results'!$B$1:$B$500,0),1))-(INDEX('RE Inconsistency Results'!$F$1:$F$500,MATCH(SUBSTITUTE(D6,"OR","d"),'RE Inconsistency Results'!$B$1:$B$500,0),1))>50,"N/A",EXP(INDEX('RE Inconsistency Results'!$G$1:$G$500,MATCH(SUBSTITUTE(D6,"OR","d"),'RE Inconsistency Results'!$B$1:$B$500,0),1)))) -> 
D7: =IF('Fixed Effects'!N7="","",'Fixed Effects'!N7) ->  | E7: =IF('Fixed Effects'!O7="","",'Fixed Effects'!O7) ->  | F7: =IF('Fixed Effects'!Q7="","",'Fixed Effects'!Q7) ->  | G7: =IF(D7="","",IF((INDEX('FE Inconsistency Results'!$H$1:$H$500,MATCH(SUBSTITUTE(D7,"OR","d"),'FE Inconsistency Results'!$B$1:$B$500,0),1))-(INDEX('FE Inconsistency Results'!$F$1:$F$500,MATCH(SUBSTITUTE(D7,"OR","d"),'FE Inconsistency Results'!$B$1:$B$500,0),1))>50,"N/A",EXP(INDEX('FE Inconsistency Results'!$G$1:$G$500,MATCH(SUBSTITUTE(D7,"OR","d"),'FE Inconsistency Results'!$B$1:$B$500,0),1)))) ->  | I7: =IF(INDIRECT(CONCATENATE("'",'Inconsistency Data'!$I$4,"'!N7"))="","",INDIRECT(CONCATENATE("'",'Inconsistency Data'!$I$4,"'!N7"))) ->  | J7: =IF(INDIRECT(CONCATENATE("'",'Inconsistency Data'!$I$4,"'!O7"))="","",INDIRECT(CONCATENATE("'",'Inconsistency Data'!$I$4,"'!O7"))) ->  | K7: =IF(INDIRECT(CONCATENATE("'",'Inconsistency Data'!$I$4,"'!Q7"))="","",INDIRECT(CONCATENATE("'",'Inconsistency Data'!$I$4,"'!Q7"))) ->  | L7: =IF(D7="","",IF((INDEX('RE Inconsistency Results'!$H$1:$H$500,MATCH(SUBSTITUTE(D7,"OR","d"),'RE Inconsistency Results'!$B$1:$B$500,0),1))-(INDEX('RE Inconsistency Results'!$F$1:$F$500,MATCH(SUBSTITUTE(D7,"OR","d"),'RE Inconsistency Results'!$B$1:$B$500,0),1))>50,"N/A",EXP(INDEX('RE Inconsistency Results'!$G$1:$G$500,MATCH(SUBSTITUTE(D7,"OR","d"),'RE Inconsistency Results'!$B$1:$B$500,0),1)))) -> 
D8: =IF('Fixed Effects'!N8="","",'Fixed Effects'!N8) ->  | E8: =IF('Fixed Effects'!O8="","",'Fixed Effects'!O8) ->  | F8: =IF('Fixed Effects'!Q8="","",'Fixed Effects'!Q8) ->  | G8: =IF(D8="","",IF((INDEX('FE Inconsistency Results'!$H$1:$H$500,MATCH(SUBSTITUTE(D8,"OR","d"),'FE Inconsistency Results'!$B$1:$B$500,0),1))-(INDEX('FE Inconsistency Results'!$F$1:$F$500,MATCH(SUBSTITUTE(D8,"OR","d"),'FE Inconsistency Results'!$B$1:$B$500,0),1))>50,"N/A",EXP(INDEX('FE Inconsistency Results'!$G$1:$G$500,MATCH(SUBSTITUTE(D8,"OR","d"),'FE Inconsistency Results'!$B$1:$B$500,0),1)))) ->  | I8: =IF(INDIRECT(CONCATENATE("'",'Inconsistency Data'!$I$4,"'!N8"))="","",INDIRECT(CONCATENATE("'",'Inconsistency Data'!$I$4,"'!N8"))) ->  | J8: =IF(INDIRECT(CONCATENATE("'",'Inconsistency Data'!$I$4,"'!O8"))="","",INDIRECT(CONCATENATE("'",'Inconsistency Data'!$I$4,"'!O8"))) ->  | K8: =IF(INDIRECT(CONCATENATE("'",'Inconsistency Data'!$I$4,"'!Q8"))="","",INDIRECT(CONCATENATE("'",'Inconsistency Data'!$I$4,"'!Q8"))) ->  | L8: =IF(D8="","",IF((INDEX('RE Inconsistency Results'!$H$1:$H$500,MATCH(SUBSTITUTE(D8,"OR","d"),'RE Inconsistency Results'!$B$1:$B$500,0),1))-(INDEX('RE Inconsistency Results'!$F$1:$F$500,MATCH(SUBSTITUTE(D8,"OR","d"),'RE Inconsistency Results'!$B$1:$B$500,0),1))>50,"N/A",EXP(INDEX('RE Inconsistency Results'!$G$1:$G$500,MATCH(SUBSTITUTE(D8,"OR","d"),'RE Inconsistency Results'!$B$1:$B$500,0),1)))) -> 
D9: =IF('Fixed Effects'!N9="","",'Fixed Effects'!N9) ->  | E9: =IF('Fixed Effects'!O9="","",'Fixed Effects'!O9) ->  | F9: =IF('Fixed Effects'!Q9="","",'Fixed Effects'!Q9) ->  | G9: =IF(D9="","",IF((INDEX('FE Inconsistency Results'!$H$1:$H$500,MATCH(SUBSTITUTE(D9,"OR","d"),'FE Inconsistency Results'!$B$1:$B$500,0),1))-(INDEX('FE Inconsistency Results'!$F$1:$F$500,MATCH(SUBSTITUTE(D9,"OR","d"),'FE Inconsistency Results'!$B$1:$B$500,0),1))>50,"N/A",EXP(INDEX('FE Inconsistency Results'!$G$1:$G$500,MATCH(SUBSTITUTE(D9,"OR","d"),'FE Inconsistency Results'!$B$1:$B$500,0),1)))) ->  | I9: =IF(INDIRECT(CONCATENATE("'",'Inconsistency Data'!$I$4,"'!N9"))="","",INDIRECT(CONCATENATE("'",'Inconsistency Data'!$I$4,"'!N9"))) ->  | J9: =IF(INDIRECT(CONCATENATE("'",'Inconsistency Data'!$I$4,"'!O9"))="","",INDIRECT(CONCATENATE("'",'Inconsistency Data'!$I$4,"'!O9"))) ->  | K9: =IF(INDIRECT(CONCATENATE("'",'Inconsistency Data'!$I$4,"'!Q9"))="","",INDIRECT(CONCATENATE("'",'Inconsistency Data'!$I$4,"'!Q9"))) ->  | L9: =IF(D9="","",IF((INDEX('RE Inconsistency Results'!$H$1:$H$500,MATCH(SUBSTITUTE(D9,"OR","d"),'RE Inconsistency Results'!$B$1:$B$500,0),1))-(INDEX('RE Inconsistency Results'!$F$1:$F$500,MATCH(SUBSTITUTE(D9,"OR","d"),'RE Inconsistency Results'!$B$1:$B$500,0),1))>50,"N/A",EXP(INDEX('RE Inconsistency Results'!$G$1:$G$500,MATCH(SUBSTITUTE(D9,"OR","d"),'RE Inconsistency Results'!$B$1:$B$500,0),1)))) -> 
D10: =IF('Fixed Effects'!N10="","",'Fixed Effects'!N10) ->  | E10: =IF('Fixed Effects'!O10="","",'Fixed Effects'!O10) ->  | F10: =IF('Fixed Effects'!Q10="","",'Fixed Effects'!Q10) ->  | G10: =IF(D10="","",IF((INDEX('FE Inconsistency Results'!$H$1:$H$500,MATCH(SUBSTITUTE(D10,"OR","d"),'FE Inconsistency Results'!$B$1:$B$500,0),1))-(INDEX('FE Inconsistency Results'!$F$1:$F$500,MATCH(SUBSTITUTE(D10,"OR","d"),'FE Inconsistency Results'!$B$1:$B$500,0),1))>50,"N/A",EXP(INDEX('FE Inconsistency Results'!$G$1:$G$500,MATCH(SUBSTITUTE(D10,"OR","d"),'FE Inconsistency Results'!$B$1:$B$500,0),1)))) ->  | I10: =IF(INDIRECT(CONCATENATE("'",'Inconsistency Data'!$I$4,"'!N10"))="","",INDIRECT(CONCATENATE("'",'Inconsistency Data'!$I$4,"'!N10"))) ->  | J10: =IF(INDIRECT(CONCATENATE("'",'Inconsistency Data'!$I$4,"'!O10"))="","",INDIRECT(CONCATENATE("'",'Inconsistency Data'!$I$4,"'!O10"))) ->  | K10: =IF(INDIRECT(CONCATENATE("'",'Inconsistency Data'!$I$4,"'!Q10"))="","",INDIRECT(CONCATENATE("'",'Inconsistency Data'!$I$4,"'!Q10"))) ->  | L10: =IF(D10="","",IF((INDEX('RE Inconsistency Results'!$H$1:$H$500,MATCH(SUBSTITUTE(D10,"OR","d"),'RE Inconsistency Results'!$B$1:$B$500,0),1))-(INDEX('RE Inconsistency Results'!$F$1:$F$500,MATCH(SUBSTITUTE(D10,"OR","d"),'RE Inconsistency Results'!$B$1:$B$500,0),1))>50,"N/A",EXP(INDEX('RE Inconsistency Results'!$G$1:$G$500,MATCH(SUBSTITUTE(D10,"OR","d"),'RE Inconsistency Results'!$B$1:$B$500,0),1)))) -> 
D11: =IF('Fixed Effects'!N11="","",'Fixed Effects'!N11) ->  | E11: =IF('Fixed Effects'!O11="","",'Fixed Effects'!O11) ->  | F11: =IF('Fixed Effects'!Q11="","",'Fixed Effects'!Q11) ->  | G11: =IF(D11="","",IF((INDEX('FE Inconsistency Results'!$H$1:$H$500,MATCH(SUBSTITUTE(D11,"OR","d"),'FE Inconsistency Results'!$B$1:$B$500,0),1))-(INDEX('FE Inconsistency Results'!$F$1:$F$500,MATCH(SUBSTITUTE(D11,"OR","d"),'FE Inconsistency Results'!$B$1:$B$500,0),1))>50,"N/A",EXP(INDEX('FE Inconsistency Results'!$G$1:$G$500,MATCH(SUBSTITUTE(D11,"OR","d"),'FE Inconsistency Results'!$B$1:$B$500,0),1)))) ->  | I11: =IF(INDIRECT(CONCATENATE("'",'Inconsistency Data'!$I$4,"'!N11"))="","",INDIRECT(CONCATENATE("'",'Inconsistency Data'!$I$4,"'!N11"))) ->  | J11: =IF(INDIRECT(CONCATENATE("'",'Inconsistency Data'!$I$4,"'!O11"))="","",INDIRECT(CONCATENATE("'",'Inconsistency Data'!$I$4,"'!O11"))) ->  | K11: =IF(INDIRECT(CONCATENATE("'",'Inconsistency Data'!$I$4,"'!Q11"))="","",INDIRECT(CONCATENATE("'",'Inconsistency Data'!$I$4,"'!Q11"))) ->  | L11: =IF(D11="","",IF((INDEX('RE Inconsistency Results'!$H$1:$H$500,MATCH(SUBSTITUTE(D11,"OR","d"),'RE Inconsistency Results'!$B$1:$B$500,0),1))-(INDEX('RE Inconsistency Results'!$F$1:$F$500,MATCH(SUBSTITUTE(D11,"OR","d"),'RE Inconsistency Results'!$B$1:$B$500,0),1))>50,"N/A",EXP(INDEX('RE Inconsistency Results'!$G$1:$G$500,MATCH(SUBSTITUTE(D11,"OR","d"),'RE Inconsistency Results'!$B$1:$B$500,0),1)))) -> 
D12: =IF('Fixed Effects'!N12="","",'Fixed Effects'!N12) ->  | E12: =IF('Fixed Effects'!O12="","",'Fixed Effects'!O12) ->  | F12: =IF('Fixed Effects'!Q12="","",'Fixed Effects'!Q12) ->  | G12: =IF(D12="","",IF((INDEX('FE Inconsistency Results'!$H$1:$H$500,MATCH(SUBSTITUTE(D12,"OR","d"),'FE Inconsistency Results'!$B$1:$B$500,0),1))-(INDEX('FE Inconsistency Results'!$F$1:$F$500,MATCH(SUBSTITUTE(D12,"OR","d"),'FE Inconsistency Results'!$B$1:$B$500,0),1))>50,"N/A",EXP(INDEX('FE Inconsistency Results'!$G$1:$G$500,MATCH(SUBSTITUTE(D12,"OR","d"),'FE Inconsistency Results'!$B$1:$B$500,0),1)))) ->  | I12: =IF(INDIRECT(CONCATENATE("'",'Inconsistency Data'!$I$4,"'!N12"))="","",INDIRECT(CONCATENATE("'",'Inconsistency Data'!$I$4,"'!N12"))) ->  | J12: =IF(INDIRECT(CONCATENATE("'",'Inconsistency Data'!$I$4,"'!O12"))="","",INDIRECT(CONCATENATE("'",'Inconsistency Data'!$I$4,"'!O12"))) ->  | K12: =IF(INDIRECT(CONCATENATE("'",'Inconsistency Data'!$I$4,"'!Q12"))="","",INDIRECT(CONCATENATE("'",'Inconsistency Data'!$I$4,"'!Q12"))) ->  | L12: =IF(D12="","",IF((INDEX('RE Inconsistency Results'!$H$1:$H$500,MATCH(SUBSTITUTE(D12,"OR","d"),'RE Inconsistency Results'!$B$1:$B$500,0),1))-(INDEX('RE Inconsistency Results'!$F$1:$F$500,MATCH(SUBSTITUTE(D12,"OR","d"),'RE Inconsistency Results'!$B$1:$B$500,0),1))>50,"N/A",EXP(INDEX('RE Inconsistency Results'!$G$1:$G$500,MATCH(SUBSTITUTE(D12,"OR","d"),'RE Inconsistency Results'!$B$1:$B$500,0),1)))) -> 
D13: =IF('Fixed Effects'!N13="","",'Fixed Effects'!N13) ->  | E13: =IF('Fixed Effects'!O13="","",'Fixed Effects'!O13) ->  | F13: =IF('Fixed Effects'!Q13="","",'Fixed Effects'!Q13) ->  | G13: =IF(D13="","",IF((INDEX('FE Inconsistency Results'!$H$1:$H$500,MATCH(SUBSTITUTE(D13,"OR","d"),'FE Inconsistency Results'!$B$1:$B$500,0),1))-(INDEX('FE Inconsistency Results'!$F$1:$F$500,MATCH(SUBSTITUTE(D13,"OR","d"),'FE Inconsistency Results'!$B$1:$B$500,0),1))>50,"N/A",EXP(INDEX('FE Inconsistency Results'!$G$1:$G$500,MATCH(SUBSTITUTE(D13,"OR","d"),'FE Inconsistency Results'!$B$1:$B$500,0),1)))) ->  | I13: =IF(INDIRECT(CONCATENATE("'",'Inconsistency Data'!$I$4,"'!N13"))="","",INDIRECT(CONCATENATE("'",'Inconsistency Data'!$I$4,"'!N13"))) ->  | J13: =IF(INDIRECT(CONCATENATE("'",'Inconsistency Data'!$I$4,"'!O13"))="","",INDIRECT(CONCATENATE("'",'Inconsistency Data'!$I$4,"'!O13"))) ->  | K13: =IF(INDIRECT(CONCATENATE("'",'Inconsistency Data'!$I$4,"'!Q13"))="","",INDIRECT(CONCATENATE("'",'Inconsistency Data'!$I$4,"'!Q13"))) ->  | L13: =IF(D13="","",IF((INDEX('RE Inconsistency Results'!$H$1:$H$500,MATCH(SUBSTITUTE(D13,"OR","d"),'RE Inconsistency Results'!$B$1:$B$500,0),1))-(INDEX('RE Inconsistency Results'!$F$1:$F$500,MATCH(SUBSTITUTE(D13,"OR","d"),'RE Inconsistency Results'!$B$1:$B$500,0),1))>50,"N/A",EXP(INDEX('RE Inconsistency Results'!$G$1:$G$500,MATCH(SUBSTITUTE(D13,"OR","d"),'RE Inconsistency Results'!$B$1:$B$500,0),1)))) -> 
D14: =IF('Fixed Effects'!N14="","",'Fixed Effects'!N14) ->  | E14: =IF('Fixed Effects'!O14="","",'Fixed Effects'!O14) ->  | F14: =IF('Fixed Effects'!Q14="","",'Fixed Effects'!Q14) ->  | G14: =IF(D14="","",IF((INDEX('FE Inconsistency Results'!$H$1:$H$500,MATCH(SUBSTITUTE(D14,"OR","d"),'FE Inconsistency Results'!$B$1:$B$500,0),1))-(INDEX('FE Inconsistency Results'!$F$1:$F$500,MATCH(SUBSTITUTE(D14,"OR","d"),'FE Inconsistency Results'!$B$1:$B$500,0),1))>50,"N/A",EXP(INDEX('FE Inconsistency Results'!$G$1:$G$500,MATCH(SUBSTITUTE(D14,"OR","d"),'FE Inconsistency Results'!$B$1:$B$500,0),1)))) ->  | I14: =IF(INDIRECT(CONCATENATE("'",'Inconsistency Data'!$I$4,"'!N14"))="","",INDIRECT(CONCATENATE("'",'Inconsistency Data'!$I$4,"'!N14"))) ->  | J14: =IF(INDIRECT(CONCATENATE("'",'Inconsistency Data'!$I$4,"'!O14"))="","",INDIRECT(CONCATENATE("'",'Inconsistency Data'!$I$4,"'!O14"))) ->  | K14: =IF(INDIRECT(CONCATENATE("'",'Inconsistency Data'!$I$4,"'!Q14"))="","",INDIRECT(CONCATENATE("'",'Inconsistency Data'!$I$4,"'!Q14"))) ->  | L14: =IF(D14="","",IF((INDEX('RE Inconsistency Results'!$H$1:$H$500,MATCH(SUBSTITUTE(D14,"OR","d"),'RE Inconsistency Results'!$B$1:$B$500,0),1))-(INDEX('RE Inconsistency Results'!$F$1:$F$500,MATCH(SUBSTITUTE(D14,"OR","d"),'RE Inconsistency Results'!$B$1:$B$500,0),1))>50,"N/A",EXP(INDEX('RE Inconsistency Results'!$G$1:$G$500,MATCH(SUBSTITUTE(D14,"OR","d"),'RE Inconsistency Results'!$B$1:$B$500,0),1)))) -> 
D15: =IF('Fixed Effects'!N15="","",'Fixed Effects'!N15) ->  | E15: =IF('Fixed Effects'!O15="","",'Fixed Effects'!O15) ->  | F15: =IF('Fixed Effects'!Q15="","",'Fixed Effects'!Q15) ->  | G15: =IF(D15="","",IF((INDEX('FE Inconsistency Results'!$H$1:$H$500,MATCH(SUBSTITUTE(D15,"OR","d"),'FE Inconsistency Results'!$B$1:$B$500,0),1))-(INDEX('FE Inconsistency Results'!$F$1:$F$500,MATCH(SUBSTITUTE(D15,"OR","d"),'FE Inconsistency Results'!$B$1:$B$500,0),1))>50,"N/A",EXP(INDEX('FE Inconsistency Results'!$G$1:$G$500,MATCH(SUBSTITUTE(D15,"OR","d"),'FE Inconsistency Results'!$B$1:$B$500,0),1)))) ->  | I15: =IF(INDIRECT(CONCATENATE("'",'Inconsistency Data'!$I$4,"'!N15"))="","",INDIRECT(CONCATENATE("'",'Inconsistency Data'!$I$4,"'!N15"))) ->  | J15: =IF(INDIRECT(CONCATENATE("'",'Inconsistency Data'!$I$4,"'!O15"))="","",INDIRECT(CONCATENATE("'",'Inconsistency Data'!$I$4,"'!O15"))) ->  | K15: =IF(INDIRECT(CONCATENATE("'",'Inconsistency Data'!$I$4,"'!Q15"))="","",INDIRECT(CONCATENATE("'",'Inconsistency Data'!$I$4,"'!Q15"))) ->  | L15: =IF(D15="","",IF((INDEX('RE Inconsistency Results'!$H$1:$H$500,MATCH(SUBSTITUTE(D15,"OR","d"),'RE Inconsistency Results'!$B$1:$B$500,0),1))-(INDEX('RE Inconsistency Results'!$F$1:$F$500,MATCH(SUBSTITUTE(D15,"OR","d"),'RE Inconsistency Results'!$B$1:$B$500,0),1))>50,"N/A",EXP(INDEX('RE Inconsistency Results'!$G$1:$G$500,MATCH(SUBSTITUTE(D15,"OR","d"),'RE Inconsistency Results'!$B$1:$B$500,0),1)))) -> 
D16: =IF('Fixed Effects'!N16="","",'Fixed Effects'!N16) ->  | E16: =IF('Fixed Effects'!O16="","",'Fixed Effects'!O16) ->  | F16: =IF('Fixed Effects'!Q16="","",'Fixed Effects'!Q16) ->  | G16: =IF(D16="","",IF((INDEX('FE Inconsistency Results'!$H$1:$H$500,MATCH(SUBSTITUTE(D16,"OR","d"),'FE Inconsistency Results'!$B$1:$B$500,0),1))-(INDEX('FE Inconsistency Results'!$F$1:$F$500,MATCH(SUBSTITUTE(D16,"OR","d"),'FE Inconsistency Results'!$B$1:$B$500,0),1))>50,"N/A",EXP(INDEX('FE Inconsistency Results'!$G$1:$G$500,MATCH(SUBSTITUTE(D16,"OR","d"),'FE Inconsistency Results'!$B$1:$B$500,0),1)))) ->  | I16: =IF(INDIRECT(CONCATENATE("'",'Inconsistency Data'!$I$4,"'!N16"))="","",INDIRECT(CONCATENATE("'",'Inconsistency Data'!$I$4,"'!N16"))) ->  | J16: =IF(INDIRECT(CONCATENATE("'",'Inconsistency Data'!$I$4,"'!O16"))="","",INDIRECT(CONCATENATE("'",'Inconsistency Data'!$I$4,"'!O16"))) ->  | K16: =IF(INDIRECT(CONCATENATE("'",'Inconsistency Data'!$I$4,"'!Q16"))="","",INDIRECT(CONCATENATE("'",'Inconsistency Data'!$I$4,"'!Q16"))) ->  | L16: =IF(D16="","",IF((INDEX('RE Inconsistency Results'!$H$1:$H$500,MATCH(SUBSTITUTE(D16,"OR","d"),'RE Inconsistency Results'!$B$1:$B$500,0),1))-(INDEX('RE Inconsistency Results'!$F$1:$F$500,MATCH(SUBSTITUTE(D16,"OR","d"),'RE Inconsistency Results'!$B$1:$B$500,0),1))>50,"N/A",EXP(INDEX('RE Inconsistency Results'!$G$1:$G$500,MATCH(SUBSTITUTE(D16,"OR","d"),'RE Inconsistency Results'!$B$1:$B$500,0),1)))) -> 
D17: =IF('Fixed Effects'!N17="","",'Fixed Effects'!N17) ->  | E17: =IF('Fixed Effects'!O17="","",'Fixed Effects'!O17) ->  | F17: =IF('Fixed Effects'!Q17="","",'Fixed Effects'!Q17) ->  | G17: =IF(D17="","",IF((INDEX('FE Inconsistency Results'!$H$1:$H$500,MATCH(SUBSTITUTE(D17,"OR","d"),'FE Inconsistency Results'!$B$1:$B$500,0),1))-(INDEX('FE Inconsistency Results'!$F$1:$F$500,MATCH(SUBSTITUTE(D17,"OR","d"),'FE Inconsistency Results'!$B$1:$B$500,0),1))>50,"N/A",EXP(INDEX('FE Inconsistency Results'!$G$1:$G$500,MATCH(SUBSTITUTE(D17,"OR","d"),'FE Inconsistency Results'!$B$1:$B$500,0),1)))) ->  | I17: =IF(INDIRECT(CONCATENATE("'",'Inconsistency Data'!$I$4,"'!N17"))="","",INDIRECT(CONCATENATE("'",'Inconsistency Data'!$I$4,"'!N17"))) ->  | J17: =IF(INDIRECT(CONCATENATE("'",'Inconsistency Data'!$I$4,"'!O17"))="","",INDIRECT(CONCATENATE("'",'Inconsistency Data'!$I$4,"'!O17"))) ->  | K17: =IF(INDIRECT(CONCATENATE("'",'Inconsistency Data'!$I$4,"'!Q17"))="","",INDIRECT(CONCATENATE("'",'Inconsistency Data'!$I$4,"'!Q17"))) ->  | L17: =IF(D17="","",IF((INDEX('RE Inconsistency Results'!$H$1:$H$500,MATCH(SUBSTITUTE(D17,"OR","d"),'RE Inconsistency Results'!$B$1:$B$500,0),1))-(INDEX('RE Inconsistency Results'!$F$1:$F$500,MATCH(SUBSTITUTE(D17,"OR","d"),'RE Inconsistency Results'!$B$1:$B$500,0),1))>50,"N/A",EXP(INDEX('RE Inconsistency Results'!$G$1:$G$500,MATCH(SUBSTITUTE(D17,"OR","d"),'RE Inconsistency Results'!$B$1:$B$500,0),1)))) -> 
D18: =IF('Fixed Effects'!N18="","",'Fixed Effects'!N18) ->  | E18: =IF('Fixed Effects'!O18="","",'Fixed Effects'!O18) ->  | F18: =IF('Fixed Effects'!Q18="","",'Fixed Effects'!Q18) ->  | G18: =IF(D18="","",IF((INDEX('FE Inconsistency Results'!$H$1:$H$500,MATCH(SUBSTITUTE(D18,"OR","d"),'FE Inconsistency Results'!$B$1:$B$500,0),1))-(INDEX('FE Inconsistency Results'!$F$1:$F$500,MATCH(SUBSTITUTE(D18,"OR","d"),'FE Inconsistency Results'!$B$1:$B$500,0),1))>50,"N/A",EXP(INDEX('FE Inconsistency Results'!$G$1:$G$500,MATCH(SUBSTITUTE(D18,"OR","d"),'FE Inconsistency Results'!$B$1:$B$500,0),1)))) ->  | I18: =IF(INDIRECT(CONCATENATE("'",'Inconsistency Data'!$I$4,"'!N18"))="","",INDIRECT(CONCATENATE("'",'Inconsistency Data'!$I$4,"'!N18"))) ->  | J18: =IF(INDIRECT(CONCATENATE("'",'Inconsistency Data'!$I$4,"'!O18"))="","",INDIRECT(CONCATENATE("'",'Inconsistency Data'!$I$4,"'!O18"))) ->  | K18: =IF(INDIRECT(CONCATENATE("'",'Inconsistency Data'!$I$4,"'!Q18"))="","",INDIRECT(CONCATENATE("'",'Inconsistency Data'!$I$4,"'!Q18"))) ->  | L18: =IF(D18="","",IF((INDEX('RE Inconsistency Results'!$H$1:$H$500,MATCH(SUBSTITUTE(D18,"OR","d"),'RE Inconsistency Results'!$B$1:$B$500,0),1))-(INDEX('RE Inconsistency Results'!$F$1:$F$500,MATCH(SUBSTITUTE(D18,"OR","d"),'RE Inconsistency Results'!$B$1:$B$500,0),1))>50,"N/A",EXP(INDEX('RE Inconsistency Results'!$G$1:$G$500,MATCH(SUBSTITUTE(D18,"OR","d"),'RE Inconsistency Results'!$B$1:$B$500,0),1)))) -> 
D19: =IF('Fixed Effects'!N19="","",'Fixed Effects'!N19) ->  | E19: =IF('Fixed Effects'!O19="","",'Fixed Effects'!O19) ->  | F19: =IF('Fixed Effects'!Q19="","",'Fixed Effects'!Q19) ->  | G19: =IF(D19="","",IF((INDEX('FE Inconsistency Results'!$H$1:$H$500,MATCH(SUBSTITUTE(D19,"OR","d"),'FE Inconsistency Results'!$B$1:$B$500,0),1))-(INDEX('FE Inconsistency Results'!$F$1:$F$500,MATCH(SUBSTITUTE(D19,"OR","d"),'FE Inconsistency Results'!$B$1:$B$500,0),1))>50,"N/A",EXP(INDEX('FE Inconsistency Results'!$G$1:$G$500,MATCH(SUBSTITUTE(D19,"OR","d"),'FE Inconsistency Results'!$B$1:$B$500,0),1)))) ->  | I19: =IF(INDIRECT(CONCATENATE("'",'Inconsistency Data'!$I$4,"'!N19"))="","",INDIRECT(CONCATENATE("'",'Inconsistency Data'!$I$4,"'!N19"))) ->  | J19: =IF(INDIRECT(CONCATENATE("'",'Inconsistency Data'!$I$4,"'!O19"))="","",INDIRECT(CONCATENATE("'",'Inconsistency Data'!$I$4,"'!O19"))) ->  | K19: =IF(INDIRECT(CONCATENATE("'",'Inconsistency Data'!$I$4,"'!Q19"))="","",INDIRECT(CONCATENATE("'",'Inconsistency Data'!$I$4,"'!Q19"))) ->  | L19: =IF(D19="","",IF((INDEX('RE Inconsistency Results'!$H$1:$H$500,MATCH(SUBSTITUTE(D19,"OR","d"),'RE Inconsistency Results'!$B$1:$B$500,0),1))-(INDEX('RE Inconsistency Results'!$F$1:$F$500,MATCH(SUBSTITUTE(D19,"OR","d"),'RE Inconsistency Results'!$B$1:$B$500,0),1))>50,"N/A",EXP(INDEX('RE Inconsistency Results'!$G$1:$G$500,MATCH(SUBSTITUTE(D19,"OR","d"),'RE Inconsistency Results'!$B$1:$B$500,0),1)))) -> 
D20: =IF('Fixed Effects'!N20="","",'Fixed Effects'!N20) ->  | E20: =IF('Fixed Effects'!O20="","",'Fixed Effects'!O20) ->  | F20: =IF('Fixed Effects'!Q20="","",'Fixed Effects'!Q20) ->  | G20: =IF(D20="","",IF((INDEX('FE Inconsistency Results'!$H$1:$H$500,MATCH(SUBSTITUTE(D20,"OR","d"),'FE Inconsistency Results'!$B$1:$B$500,0),1))-(INDEX('FE Inconsistency Results'!$F$1:$F$500,MATCH(SUBSTITUTE(D20,"OR","d"),'FE Inconsistency Results'!$B$1:$B$500,0),1))>50,"N/A",EXP(INDEX('FE Inconsistency Results'!$G$1:$G$500,MATCH(SUBSTITUTE(D20,"OR","d"),'FE Inconsistency Results'!$B$1:$B$500,0),1)))) ->  | I20: =IF(INDIRECT(CONCATENATE("'",'Inconsistency Data'!$I$4,"'!N20"))="","",INDIRECT(CONCATENATE("'",'Inconsistency Data'!$I$4,"'!N20"))) ->  | J20: =IF(INDIRECT(CONCATENATE("'",'Inconsistency Data'!$I$4,"'!O20"))="","",INDIRECT(CONCATENATE("'",'Inconsistency Data'!$I$4,"'!O20"))) ->  | K20: =IF(INDIRECT(CONCATENATE("'",'Inconsistency Data'!$I$4,"'!Q20"))="","",INDIRECT(CONCATENATE("'",'Inconsistency Data'!$I$4,"'!Q20"))) ->  | L20: =IF(D20="","",IF((INDEX('RE Inconsistency Results'!$H$1:$H$500,MATCH(SUBSTITUTE(D20,"OR","d"),'RE Inconsistency Results'!$B$1:$B$500,0),1))-(INDEX('RE Inconsistency Results'!$F$1:$F$500,MATCH(SUBSTITUTE(D20,"OR","d"),'RE Inconsistency Results'!$B$1:$B$500,0),1))>50,"N/A",EXP(INDEX('RE Inconsistency Results'!$G$1:$G$500,MATCH(SUBSTITUTE(D20,"OR","d"),'RE Inconsistency Results'!$B$1:$B$500,0),1)))) -> 
D21: =IF('Fixed Effects'!N21="","",'Fixed Effects'!N21) ->  | E21: =IF('Fixed Effects'!O21="","",'Fixed Effects'!O21) ->  | F21: =IF('Fixed Effects'!Q21="","",'Fixed Effects'!Q21) ->  | G21: =IF(D21="","",IF((INDEX('FE Inconsistency Results'!$H$1:$H$500,MATCH(SUBSTITUTE(D21,"OR","d"),'FE Inconsistency Results'!$B$1:$B$500,0),1))-(INDEX('FE Inconsistency Results'!$F$1:$F$500,MATCH(SUBSTITUTE(D21,"OR","d"),'FE Inconsistency Results'!$B$1:$B$500,0),1))>50,"N/A",EXP(INDEX('FE Inconsistency Results'!$G$1:$G$500,MATCH(SUBSTITUTE(D21,"OR","d"),'FE Inconsistency Results'!$B$1:$B$500,0),1)))) ->  | I21: =IF(INDIRECT(CONCATENATE("'",'Inconsistency Data'!$I$4,"'!N21"))="","",INDIRECT(CONCATENATE("'",'Inconsistency Data'!$I$4,"'!N21"))) ->  | J21: =IF(INDIRECT(CONCATENATE("'",'Inconsistency Data'!$I$4,"'!O21"))="","",INDIRECT(CONCATENATE("'",'Inconsistency Data'!$I$4,"'!O21"))) ->  | K21: =IF(INDIRECT(CONCATENATE("'",'Inconsistency Data'!$I$4,"'!Q21"))="","",INDIRECT(CONCATENATE("'",'Inconsistency Data'!$I$4,"'!Q21"))) ->  | L21: =IF(D21="","",IF((INDEX('RE Inconsistency Results'!$H$1:$H$500,MATCH(SUBSTITUTE(D21,"OR","d"),'RE Inconsistency Results'!$B$1:$B$500,0),1))-(INDEX('RE Inconsistency Results'!$F$1:$F$500,MATCH(SUBSTITUTE(D21,"OR","d"),'RE Inconsistency Results'!$B$1:$B$500,0),1))>50,"N/A",EXP(INDEX('RE Inconsistency Results'!$G$1:$G$500,MATCH(SUBSTITUTE(D21,"OR","d"),'RE Inconsistency Results'!$B$1:$B$500,0),1)))) -> 
D22: =IF('Fixed Effects'!N22="","",'Fixed Effects'!N22) ->  | E22: =IF('Fixed Effects'!O22="","",'Fixed Effects'!O22) ->  | F22: =IF('Fixed Effects'!Q22="","",'Fixed Effects'!Q22) ->  | G22: =IF(D22="","",IF((INDEX('FE Inconsistency Results'!$H$1:$H$500,MATCH(SUBSTITUTE(D22,"OR","d"),'FE Inconsistency Results'!$B$1:$B$500,0),1))-(INDEX('FE Inconsistency Results'!$F$1:$F$500,MATCH(SUBSTITUTE(D22,"OR","d"),'FE Inconsistency Results'!$B$1:$B$500,0),1))>50,"N/A",EXP(INDEX('FE Inconsistency Results'!$G$1:$G$500,MATCH(SUBSTITUTE(D22,"OR","d"),'FE Inconsistency Results'!$B$1:$B$500,0),1)))) ->  | I22: =IF(INDIRECT(CONCATENATE("'",'Inconsistency Data'!$I$4,"'!N22"))="","",INDIRECT(CONCATENATE("'",'Inconsistency Data'!$I$4,"'!N22"))) ->  | J22: =IF(INDIRECT(CONCATENATE("'",'Inconsistency Data'!$I$4,"'!O22"))="","",INDIRECT(CONCATENATE("'",'Inconsistency Data'!$I$4,"'!O22"))) ->  | K22: =IF(INDIRECT(CONCATENATE("'",'Inconsistency Data'!$I$4,"'!Q22"))="","",INDIRECT(CONCATENATE("'",'Inconsistency Data'!$I$4,"'!Q22"))) ->  | L22: =IF(D22="","",IF((INDEX('RE Inconsistency Results'!$H$1:$H$500,MATCH(SUBSTITUTE(D22,"OR","d"),'RE Inconsistency Results'!$B$1:$B$500,0),1))-(INDEX('RE Inconsistency Results'!$F$1:$F$500,MATCH(SUBSTITUTE(D22,"OR","d"),'RE Inconsistency Results'!$B$1:$B$500,0),1))>50,"N/A",EXP(INDEX('RE Inconsistency Results'!$G$1:$G$500,MATCH(SUBSTITUTE(D22,"OR","d"),'RE Inconsistency Results'!$B$1:$B$500,0),1)))) -> 
D23: =IF('Fixed Effects'!N23="","",'Fixed Effects'!N23) ->  | E23: =IF('Fixed Effects'!O23="","",'Fixed Effects'!O23) ->  | F23: =IF('Fixed Effects'!Q23="","",'Fixed Effects'!Q23) ->  | G23: =IF(D23="","",IF((INDEX('FE Inconsistency Results'!$H$1:$H$500,MATCH(SUBSTITUTE(D23,"OR","d"),'FE Inconsistency Results'!$B$1:$B$500,0),1))-(INDEX('FE Inconsistency Results'!$F$1:$F$500,MATCH(SUBSTITUTE(D23,"OR","d"),'FE Inconsistency Results'!$B$1:$B$500,0),1))>50,"N/A",EXP(INDEX('FE Inconsistency Results'!$G$1:$G$500,MATCH(SUBSTITUTE(D23,"OR","d"),'FE Inconsistency Results'!$B$1:$B$500,0),1)))) ->  | I23: =IF(INDIRECT(CONCATENATE("'",'Inconsistency Data'!$I$4,"'!N23"))="","",INDIRECT(CONCATENATE("'",'Inconsistency Data'!$I$4,"'!N23"))) ->  | J23: =IF(INDIRECT(CONCATENATE("'",'Inconsistency Data'!$I$4,"'!O23"))="","",INDIRECT(CONCATENATE("'",'Inconsistency Data'!$I$4,"'!O23"))) ->  | K23: =IF(INDIRECT(CONCATENATE("'",'Inconsistency Data'!$I$4,"'!Q23"))="","",INDIRECT(CONCATENATE("'",'Inconsistency Data'!$I$4,"'!Q23"))) ->  | L23: =IF(D23="","",IF((INDEX('RE Inconsistency Results'!$H$1:$H$500,MATCH(SUBSTITUTE(D23,"OR","d"),'RE Inconsistency Results'!$B$1:$B$500,0),1))-(INDEX('RE Inconsistency Results'!$F$1:$F$500,MATCH(SUBSTITUTE(D23,"OR","d"),'RE Inconsistency Results'!$B$1:$B$500,0),1))>50,"N/A",EXP(INDEX('RE Inconsistency Results'!$G$1:$G$500,MATCH(SUBSTITUTE(D23,"OR","d"),'RE Inconsistency Results'!$B$1:$B$500,0),1)))) -> 
D24: =IF('Fixed Effects'!N24="","",'Fixed Effects'!N24) ->  | E24: =IF('Fixed Effects'!O24="","",'Fixed Effects'!O24) ->  | F24: =IF('Fixed Effects'!Q24="","",'Fixed Effects'!Q24) ->  | G24: =IF(D24="","",IF((INDEX('FE Inconsistency Results'!$H$1:$H$500,MATCH(SUBSTITUTE(D24,"OR","d"),'FE Inconsistency Results'!$B$1:$B$500,0),1))-(INDEX('FE Inconsistency Results'!$F$1:$F$500,MATCH(SUBSTITUTE(D24,"OR","d"),'FE Inconsistency Results'!$B$1:$B$500,0),1))>50,"N/A",EXP(INDEX('FE Inconsistency Results'!$G$1:$G$500,MATCH(SUBSTITUTE(D24,"OR","d"),'FE Inconsistency Results'!$B$1:$B$500,0),1)))) ->  | I24: =IF(INDIRECT(CONCATENATE("'",'Inconsistency Data'!$I$4,"'!N24"))="","",INDIRECT(CONCATENATE("'",'Inconsistency Data'!$I$4,"'!N24"))) ->  | J24: =IF(INDIRECT(CONCATENATE("'",'Inconsistency Data'!$I$4,"'!O24"))="","",INDIRECT(CONCATENATE("'",'Inconsistency Data'!$I$4,"'!O24"))) ->  | K24: =IF(INDIRECT(CONCATENATE("'",'Inconsistency Data'!$I$4,"'!Q24"))="","",INDIRECT(CONCATENATE("'",'Inconsistency Data'!$I$4,"'!Q24"))) ->  | L24: =IF(D24="","",IF((INDEX('RE Inconsistency Results'!$H$1:$H$500,MATCH(SUBSTITUTE(D24,"OR","d"),'RE Inconsistency Results'!$B$1:$B$500,0),1))-(INDEX('RE Inconsistency Results'!$F$1:$F$500,MATCH(SUBSTITUTE(D24,"OR","d"),'RE Inconsistency Results'!$B$1:$B$500,0),1))>50,"N/A",EXP(INDEX('RE Inconsistency Results'!$G$1:$G$500,MATCH(SUBSTITUTE(D24,"OR","d"),'RE Inconsistency Results'!$B$1:$B$500,0),1)))) -> 
D25: =IF('Fixed Effects'!N25="","",'Fixed Effects'!N25) ->  | E25: =IF('Fixed Effects'!O25="","",'Fixed Effects'!O25) ->  | F25: =IF('Fixed Effects'!Q25="","",'Fixed Effects'!Q25) ->  | G25: =IF(D25="","",IF((INDEX('FE Inconsistency Results'!$H$1:$H$500,MATCH(SUBSTITUTE(D25,"OR","d"),'FE Inconsistency Results'!$B$1:$B$500,0),1))-(INDEX('FE Inconsistency Results'!$F$1:$F$500,MATCH(SUBSTITUTE(D25,"OR","d"),'FE Inconsistency Results'!$B$1:$B$500,0),1))>50,"N/A",EXP(INDEX('FE Inconsistency Results'!$G$1:$G$500,MATCH(SUBSTITUTE(D25,"OR","d"),'FE Inconsistency Results'!$B$1:$B$500,0),1)))) ->  | I25: =IF(INDIRECT(CONCATENATE("'",'Inconsistency Data'!$I$4,"'!N25"))="","",INDIRECT(CONCATENATE("'",'Inconsistency Data'!$I$4,"'!N25"))) ->  | J25: =IF(INDIRECT(CONCATENATE("'",'Inconsistency Data'!$I$4,"'!O25"))="","",INDIRECT(CONCATENATE("'",'Inconsistency Data'!$I$4,"'!O25"))) ->  | K25: =IF(INDIRECT(CONCATENATE("'",'Inconsistency Data'!$I$4,"'!Q25"))="","",INDIRECT(CONCATENATE("'",'Inconsistency Data'!$I$4,"'!Q25"))) ->  | L25: =IF(D25="","",IF((INDEX('RE Inconsistency Results'!$H$1:$H$500,MATCH(SUBSTITUTE(D25,"OR","d"),'RE Inconsistency Results'!$B$1:$B$500,0),1))-(INDEX('RE Inconsistency Results'!$F$1:$F$500,MATCH(SUBSTITUTE(D25,"OR","d"),'RE Inconsistency Results'!$B$1:$B$500,0),1))>50,"N/A",EXP(INDEX('RE Inconsistency Results'!$G$1:$G$500,MATCH(SUBSTITUTE(D25,"OR","d"),'RE Inconsistency Results'!$B$1:$B$500,0),1)))) -> 
D26: =IF('Fixed Effects'!N26="","",'Fixed Effects'!N26) ->  | E26: =IF('Fixed Effects'!O26="","",'Fixed Effects'!O26) ->  | F26: =IF('Fixed Effects'!Q26="","",'Fixed Effects'!Q26) ->  | G26: =IF(D26="","",IF((INDEX('FE Inconsistency Results'!$H$1:$H$500,MATCH(SUBSTITUTE(D26,"OR","d"),'FE Inconsistency Results'!$B$1:$B$500,0),1))-(INDEX('FE Inconsistency Results'!$F$1:$F$500,MATCH(SUBSTITUTE(D26,"OR","d"),'FE Inconsistency Results'!$B$1:$B$500,0),1))>50,"N/A",EXP(INDEX('FE Inconsistency Results'!$G$1:$G$500,MATCH(SUBSTITUTE(D26,"OR","d"),'FE Inconsistency Results'!$B$1:$B$500,0),1)))) ->  | I26: =IF(INDIRECT(CONCATENATE("'",'Inconsistency Data'!$I$4,"'!N26"))="","",INDIRECT(CONCATENATE("'",'Inconsistency Data'!$I$4,"'!N26"))) ->  | J26: =IF(INDIRECT(CONCATENATE("'",'Inconsistency Data'!$I$4,"'!O26"))="","",INDIRECT(CONCATENATE("'",'Inconsistency Data'!$I$4,"'!O26"))) ->  | K26: =IF(INDIRECT(CONCATENATE("'",'Inconsistency Data'!$I$4,"'!Q26"))="","",INDIRECT(CONCATENATE("'",'Inconsistency Data'!$I$4,"'!Q26"))) ->  | L26: =IF(D26="","",IF((INDEX('RE Inconsistency Results'!$H$1:$H$500,MATCH(SUBSTITUTE(D26,"OR","d"),'RE Inconsistency Results'!$B$1:$B$500,0),1))-(INDEX('RE Inconsistency Results'!$F$1:$F$500,MATCH(SUBSTITUTE(D26,"OR","d"),'RE Inconsistency Results'!$B$1:$B$500,0),1))>50,"N/A",EXP(INDEX('RE Inconsistency Results'!$G$1:$G$500,MATCH(SUBSTITUTE(D26,"OR","d"),'RE Inconsistency Results'!$B$1:$B$500,0),1)))) -> 
D27: =IF('Fixed Effects'!N27="","",'Fixed Effects'!N27) ->  | E27: =IF('Fixed Effects'!O27="","",'Fixed Effects'!O27) ->  | F27: =IF('Fixed Effects'!Q27="","",'Fixed Effects'!Q27) ->  | G27: =IF(D27="","",IF((INDEX('FE Inconsistency Results'!$H$1:$H$500,MATCH(SUBSTITUTE(D27,"OR","d"),'FE Inconsistency Results'!$B$1:$B$500,0),1))-(INDEX('FE Inconsistency Results'!$F$1:$F$500,MATCH(SUBSTITUTE(D27,"OR","d"),'FE Inconsistency Results'!$B$1:$B$500,0),1))>50,"N/A",EXP(INDEX('FE Inconsistency Results'!$G$1:$G$500,MATCH(SUBSTITUTE(D27,"OR","d"),'FE Inconsistency Results'!$B$1:$B$500,0),1)))) ->  | I27: =IF(INDIRECT(CONCATENATE("'",'Inconsistency Data'!$I$4,"'!N27"))="","",INDIRECT(CONCATENATE("'",'Inconsistency Data'!$I$4,"'!N27"))) ->  | J27: =IF(INDIRECT(CONCATENATE("'",'Inconsistency Data'!$I$4,"'!O27"))="","",INDIRECT(CONCATENATE("'",'Inconsistency Data'!$I$4,"'!O27"))) ->  | K27: =IF(INDIRECT(CONCATENATE("'",'Inconsistency Data'!$I$4,"'!Q27"))="","",INDIRECT(CONCATENATE("'",'Inconsistency Data'!$I$4,"'!Q27"))) ->  | L27: =IF(D27="","",IF((INDEX('RE Inconsistency Results'!$H$1:$H$500,MATCH(SUBSTITUTE(D27,"OR","d"),'RE Inconsistency Results'!$B$1:$B$500,0),1))-(INDEX('RE Inconsistency Results'!$F$1:$F$500,MATCH(SUBSTITUTE(D27,"OR","d"),'RE Inconsistency Results'!$B$1:$B$500,0),1))>50,"N/A",EXP(INDEX('RE Inconsistency Results'!$G$1:$G$500,MATCH(SUBSTITUTE(D27,"OR","d"),'RE Inconsistency Results'!$B$1:$B$500,0),1)))) -> 
D28: =IF('Fixed Effects'!N28="","",'Fixed Effects'!N28) ->  | E28: =IF('Fixed Effects'!O28="","",'Fixed Effects'!O28) ->  | F28: =IF('Fixed Effects'!Q28="","",'Fixed Effects'!Q28) ->  | G28: =IF(D28="","",IF((INDEX('FE Inconsistency Results'!$H$1:$H$500,MATCH(SUBSTITUTE(D28,"OR","d"),'FE Inconsistency Results'!$B$1:$B$500,0),1))-(INDEX('FE Inconsistency Results'!$F$1:$F$500,MATCH(SUBSTITUTE(D28,"OR","d"),'FE Inconsistency Results'!$B$1:$B$500,0),1))>50,"N/A",EXP(INDEX('FE Inconsistency Results'!$G$1:$G$500,MATCH(SUBSTITUTE(D28,"OR","d"),'FE Inconsistency Results'!$B$1:$B$500,0),1)))) ->  | I28: =IF(INDIRECT(CONCATENATE("'",'Inconsistency Data'!$I$4,"'!N28"))="","",INDIRECT(CONCATENATE("'",'Inconsistency Data'!$I$4,"'!N28"))) ->  | J28: =IF(INDIRECT(CONCATENATE("'",'Inconsistency Data'!$I$4,"'!O28"))="","",INDIRECT(CONCATENATE("'",'Inconsistency Data'!$I$4,"'!O28"))) ->  | K28: =IF(INDIRECT(CONCATENATE("'",'Inconsistency Data'!$I$4,"'!Q28"))="","",INDIRECT(CONCATENATE("'",'Inconsistency Data'!$I$4,"'!Q28"))) ->  | L28: =IF(D28="","",IF((INDEX('RE Inconsistency Results'!$H$1:$H$500,MATCH(SUBSTITUTE(D28,"OR","d"),'RE Inconsistency Results'!$B$1:$B$500,0),1))-(INDEX('RE Inconsistency Results'!$F$1:$F$500,MATCH(SUBSTITUTE(D28,"OR","d"),'RE Inconsistency Results'!$B$1:$B$500,0),1))>50,"N/A",EXP(INDEX('RE Inconsistency Results'!$G$1:$G$500,MATCH(SUBSTITUTE(D28,"OR","d"),'RE Inconsistency Results'!$B$1:$B$500,0),1)))) -> 
D29: =IF('Fixed Effects'!N29="","",'Fixed Effects'!N29) ->  | E29: =IF('Fixed Effects'!O29="","",'Fixed Effects'!O29) ->  | F29: =IF('Fixed Effects'!Q29="","",'Fixed Effects'!Q29) ->  | G29: =IF(D29="","",IF((INDEX('FE Inconsistency Results'!$H$1:$H$500,MATCH(SUBSTITUTE(D29,"OR","d"),'FE Inconsistency Results'!$B$1:$B$500,0),1))-(INDEX('FE Inconsistency Results'!$F$1:$F$500,MATCH(SUBSTITUTE(D29,"OR","d"),'FE Inconsistency Results'!$B$1:$B$500,0),1))>50,"N/A",EXP(INDEX('FE Inconsistency Results'!$G$1:$G$500,MATCH(SUBSTITUTE(D29,"OR","d"),'FE Inconsistency Results'!$B$1:$B$500,0),1)))) ->  | I29: =IF(INDIRECT(CONCATENATE("'",'Inconsistency Data'!$I$4,"'!N29"))="","",INDIRECT(CONCATENATE("'",'Inconsistency Data'!$I$4,"'!N29"))) ->  | J29: =IF(INDIRECT(CONCATENATE("'",'Inconsistency Data'!$I$4,"'!O29"))="","",INDIRECT(CONCATENATE("'",'Inconsistency Data'!$I$4,"'!O29"))) ->  | K29: =IF(INDIRECT(CONCATENATE("'",'Inconsistency Data'!$I$4,"'!Q29"))="","",INDIRECT(CONCATENATE("'",'Inconsistency Data'!$I$4,"'!Q29"))) ->  | L29: =IF(D29="","",IF((INDEX('RE Inconsistency Results'!$H$1:$H$500,MATCH(SUBSTITUTE(D29,"OR","d"),'RE Inconsistency Results'!$B$1:$B$500,0),1))-(INDEX('RE Inconsistency Results'!$F$1:$F$500,MATCH(SUBSTITUTE(D29,"OR","d"),'RE Inconsistency Results'!$B$1:$B$500,0),1))>50,"N/A",EXP(INDEX('RE Inconsistency Results'!$G$1:$G$500,MATCH(SUBSTITUTE(D29,"OR","d"),'RE Inconsistency Results'!$B$1:$B$500,0),1)))) -> 
D30: =IF('Fixed Effects'!N30="","",'Fixed Effects'!N30) ->  | E30: =IF('Fixed Effects'!O30="","",'Fixed Effects'!O30) ->  | F30: =IF('Fixed Effects'!Q30="","",'Fixed Effects'!Q30) ->  | G30: =IF(D30="","",IF((INDEX('FE Inconsistency Results'!$H$1:$H$500,MATCH(SUBSTITUTE(D30,"OR","d"),'FE Inconsistency Results'!$B$1:$B$500,0),1))-(INDEX('FE Inconsistency Results'!$F$1:$F$500,MATCH(SUBSTITUTE(D30,"OR","d"),'FE Inconsistency Results'!$B$1:$B$500,0),1))>50,"N/A",EXP(INDEX('FE Inconsistency Results'!$G$1:$G$500,MATCH(SUBSTITUTE(D30,"OR","d"),'FE Inconsistency Results'!$B$1:$B$500,0),1)))) ->  | I30: =IF(INDIRECT(CONCATENATE("'",'Inconsistency Data'!$I$4,"'!N30"))="","",INDIRECT(CONCATENATE("'",'Inconsistency Data'!$I$4,"'!N30"))) ->  | J30: =IF(INDIRECT(CONCATENATE("'",'Inconsistency Data'!$I$4,"'!O30"))="","",INDIRECT(CONCATENATE("'",'Inconsistency Data'!$I$4,"'!O30"))) ->  | K30: =IF(INDIRECT(CONCATENATE("'",'Inconsistency Data'!$I$4,"'!Q30"))="","",INDIRECT(CONCATENATE("'",'Inconsistency Data'!$I$4,"'!Q30"))) ->  | L30: =IF(D30="","",IF((INDEX('RE Inconsistency Results'!$H$1:$H$500,MATCH(SUBSTITUTE(D30,"OR","d"),'RE Inconsistency Results'!$B$1:$B$500,0),1))-(INDEX('RE Inconsistency Results'!$F$1:$F$500,MATCH(SUBSTITUTE(D30,"OR","d"),'RE Inconsistency Results'!$B$1:$B$500,0),1))>50,"N/A",EXP(INDEX('RE Inconsistency Results'!$G$1:$G$500,MATCH(SUBSTITUTE(D30,"OR","d"),'RE Inconsistency Results'!$B$1:$B$500,0),1)))) -> 
D31: =IF('Fixed Effects'!N31="","",'Fixed Effects'!N31) ->  | E31: =IF('Fixed Effects'!O31="","",'Fixed Effects'!O31) ->  | F31: =IF('Fixed Effects'!Q31="","",'Fixed Effects'!Q31) ->  | G31: =IF(D31="","",IF((INDEX('FE Inconsistency Results'!$H$1:$H$500,MATCH(SUBSTITUTE(D31,"OR","d"),'FE Inconsistency Results'!$B$1:$B$500,0),1))-(INDEX('FE Inconsistency Results'!$F$1:$F$500,MATCH(SUBSTITUTE(D31,"OR","d"),'FE Inconsistency Results'!$B$1:$B$500,0),1))>50,"N/A",EXP(INDEX('FE Inconsistency Results'!$G$1:$G$500,MATCH(SUBSTITUTE(D31,"OR","d"),'FE Inconsistency Results'!$B$1:$B$500,0),1)))) ->  | I31: =IF(INDIRECT(CONCATENATE("'",'Inconsistency Data'!$I$4,"'!N31"))="","",INDIRECT(CONCATENATE("'",'Inconsistency Data'!$I$4,"'!N31"))) ->  | J31: =IF(INDIRECT(CONCATENATE("'",'Inconsistency Data'!$I$4,"'!O31"))="","",INDIRECT(CONCATENATE("'",'Inconsistency Data'!$I$4,"'!O31"))) ->  | K31: =IF(INDIRECT(CONCATENATE("'",'Inconsistency Data'!$I$4,"'!Q31"))="","",INDIRECT(CONCATENATE("'",'Inconsistency Data'!$I$4,"'!Q31"))) ->  | L31: =IF(D31="","",IF((INDEX('RE Inconsistency Results'!$H$1:$H$500,MATCH(SUBSTITUTE(D31,"OR","d"),'RE Inconsistency Results'!$B$1:$B$500,0),1))-(INDEX('RE Inconsistency Results'!$F$1:$F$500,MATCH(SUBSTITUTE(D31,"OR","d"),'RE Inconsistency Results'!$B$1:$B$500,0),1))>50,"N/A",EXP(INDEX('RE Inconsistency Results'!$G$1:$G$500,MATCH(SUBSTITUTE(D31,"OR","d"),'RE Inconsistency Results'!$B$1:$B$500,0),1)))) -> 
D32: =IF('Fixed Effects'!N32="","",'Fixed Effects'!N32) ->  | E32: =IF('Fixed Effects'!O32="","",'Fixed Effects'!O32) ->  | F32: =IF('Fixed Effects'!Q32="","",'Fixed Effects'!Q32) ->  | G32: =IF(D32="","",IF((INDEX('FE Inconsistency Results'!$H$1:$H$500,MATCH(SUBSTITUTE(D32,"OR","d"),'FE Inconsistency Results'!$B$1:$B$500,0),1))-(INDEX('FE Inconsistency Results'!$F$1:$F$500,MATCH(SUBSTITUTE(D32,"OR","d"),'FE Inconsistency Results'!$B$1:$B$500,0),1))>50,"N/A",EXP(INDEX('FE Inconsistency Results'!$G$1:$G$500,MATCH(SUBSTITUTE(D32,"OR","d"),'FE Inconsistency Results'!$B$1:$B$500,0),1)))) ->  | I32: =IF(INDIRECT(CONCATENATE("'",'Inconsistency Data'!$I$4,"'!N32"))="","",INDIRECT(CONCATENATE("'",'Inconsistency Data'!$I$4,"'!N32"))) ->  | J32: =IF(INDIRECT(CONCATENATE("'",'Inconsistency Data'!$I$4,"'!O32"))="","",INDIRECT(CONCATENATE("'",'Inconsistency Data'!$I$4,"'!O32"))) ->  | K32: =IF(INDIRECT(CONCATENATE("'",'Inconsistency Data'!$I$4,"'!Q32"))="","",INDIRECT(CONCATENATE("'",'Inconsistency Data'!$I$4,"'!Q32"))) ->  | L32: =IF(D32="","",IF((INDEX('RE Inconsistency Results'!$H$1:$H$500,MATCH(SUBSTITUTE(D32,"OR","d"),'RE Inconsistency Results'!$B$1:$B$500,0),1))-(INDEX('RE Inconsistency Results'!$F$1:$F$500,MATCH(SUBSTITUTE(D32,"OR","d"),'RE Inconsistency Results'!$B$1:$B$500,0),1))>50,"N/A",EXP(INDEX('RE Inconsistency Results'!$G$1:$G$500,MATCH(SUBSTITUTE(D32,"OR","d"),'RE Inconsistency Results'!$B$1:$B$500,0),1)))) -> 
D33: =IF('Fixed Effects'!N33="","",'Fixed Effects'!N33) ->  | E33: =IF('Fixed Effects'!O33="","",'Fixed Effects'!O33) ->  | F33: =IF('Fixed Effects'!Q33="","",'Fixed Effects'!Q33) ->  | G33: =IF(D33="","",IF((INDEX('FE Inconsistency Results'!$H$1:$H$500,MATCH(SUBSTITUTE(D33,"OR","d"),'FE Inconsistency Results'!$B$1:$B$500,0),1))-(INDEX('FE Inconsistency Results'!$F$1:$F$500,MATCH(SUBSTITUTE(D33,"OR","d"),'FE Inconsistency Results'!$B$1:$B$500,0),1))>50,"N/A",EXP(INDEX('FE Inconsistency Results'!$G$1:$G$500,MATCH(SUBSTITUTE(D33,"OR","d"),'FE Inconsistency Results'!$B$1:$B$500,0),1)))) ->  | I33: =IF(INDIRECT(CONCATENATE("'",'Inconsistency Data'!$I$4,"'!N33"))="","",INDIRECT(CONCATENATE("'",'Inconsistency Data'!$I$4,"'!N33"))) ->  | J33: =IF(INDIRECT(CONCATENATE("'",'Inconsistency Data'!$I$4,"'!O33"))="","",INDIRECT(CONCATENATE("'",'Inconsistency Data'!$I$4,"'!O33"))) ->  | K33: =IF(INDIRECT(CONCATENATE("'",'Inconsistency Data'!$I$4,"'!Q33"))="","",INDIRECT(CONCATENATE("'",'Inconsistency Data'!$I$4,"'!Q33"))) ->  | L33: =IF(D33="","",IF((INDEX('RE Inconsistency Results'!$H$1:$H$500,MATCH(SUBSTITUTE(D33,"OR","d"),'RE Inconsistency Results'!$B$1:$B$500,0),1))-(INDEX('RE Inconsistency Results'!$F$1:$F$500,MATCH(SUBSTITUTE(D33,"OR","d"),'RE Inconsistency Results'!$B$1:$B$500,0),1))>50,"N/A",EXP(INDEX('RE Inconsistency Results'!$G$1:$G$500,MATCH(SUBSTITUTE(D33,"OR","d"),'RE Inconsistency Results'!$B$1:$B$500,0),1)))) -> 
D34: =IF('Fixed Effects'!N34="","",'Fixed Effects'!N34) ->  | E34: =IF('Fixed Effects'!O34="","",'Fixed Effects'!O34) ->  | F34: =IF('Fixed Effects'!Q34="","",'Fixed Effects'!Q34) ->  | G34: =IF(D34="","",IF((INDEX('FE Inconsistency Results'!$H$1:$H$500,MATCH(SUBSTITUTE(D34,"OR","d"),'FE Inconsistency Results'!$B$1:$B$500,0),1))-(INDEX('FE Inconsistency Results'!$F$1:$F$500,MATCH(SUBSTITUTE(D34,"OR","d"),'FE Inconsistency Results'!$B$1:$B$500,0),1))>50,"N/A",EXP(INDEX('FE Inconsistency Results'!$G$1:$G$500,MATCH(SUBSTITUTE(D34,"OR","d"),'FE Inconsistency Results'!$B$1:$B$500,0),1)))) ->  | I34: =IF(INDIRECT(CONCATENATE("'",'Inconsistency Data'!$I$4,"'!N34"))="","",INDIRECT(CONCATENATE("'",'Inconsistency Data'!$I$4,"'!N34"))) ->  | J34: =IF(INDIRECT(CONCATENATE("'",'Inconsistency Data'!$I$4,"'!O34"))="","",INDIRECT(CONCATENATE("'",'Inconsistency Data'!$I$4,"'!O34"))) ->  | K34: =IF(INDIRECT(CONCATENATE("'",'Inconsistency Data'!$I$4,"'!Q34"))="","",INDIRECT(CONCATENATE("'",'Inconsistency Data'!$I$4,"'!Q34"))) ->  | L34: =IF(D34="","",IF((INDEX('RE Inconsistency Results'!$H$1:$H$500,MATCH(SUBSTITUTE(D34,"OR","d"),'RE Inconsistency Results'!$B$1:$B$500,0),1))-(INDEX('RE Inconsistency Results'!$F$1:$F$500,MATCH(SUBSTITUTE(D34,"OR","d"),'RE Inconsistency Results'!$B$1:$B$500,0),1))>50,"N/A",EXP(INDEX('RE Inconsistency Results'!$G$1:$G$500,MATCH(SUBSTITUTE(D34,"OR","d"),'RE Inconsistency Results'!$B$1:$B$500,0),1)))) -> 
D35: =IF('Fixed Effects'!N35="","",'Fixed Effects'!N35) ->  | E35: =IF('Fixed Effects'!O35="","",'Fixed Effects'!O35) ->  | F35: =IF('Fixed Effects'!Q35="","",'Fixed Effects'!Q35) ->  | G35: =IF(D35="","",IF((INDEX('FE Inconsistency Results'!$H$1:$H$500,MATCH(SUBSTITUTE(D35,"OR","d"),'FE Inconsistency Results'!$B$1:$B$500,0),1))-(INDEX('FE Inconsistency Results'!$F$1:$F$500,MATCH(SUBSTITUTE(D35,"OR","d"),'FE Inconsistency Results'!$B$1:$B$500,0),1))>50,"N/A",EXP(INDEX('FE Inconsistency Results'!$G$1:$G$500,MATCH(SUBSTITUTE(D35,"OR","d"),'FE Inconsistency Results'!$B$1:$B$500,0),1)))) ->  | I35: =IF(INDIRECT(CONCATENATE("'",'Inconsistency Data'!$I$4,"'!N35"))="","",INDIRECT(CONCATENATE("'",'Inconsistency Data'!$I$4,"'!N35"))) ->  | J35: =IF(INDIRECT(CONCATENATE("'",'Inconsistency Data'!$I$4,"'!O35"))="","",INDIRECT(CONCATENATE("'",'Inconsistency Data'!$I$4,"'!O35"))) ->  | K35: =IF(INDIRECT(CONCATENATE("'",'Inconsistency Data'!$I$4,"'!Q35"))="","",INDIRECT(CONCATENATE("'",'Inconsistency Data'!$I$4,"'!Q35"))) ->  | L35: =IF(D35="","",IF((INDEX('RE Inconsistency Results'!$H$1:$H$500,MATCH(SUBSTITUTE(D35,"OR","d"),'RE Inconsistency Results'!$B$1:$B$500,0),1))-(INDEX('RE Inconsistency Results'!$F$1:$F$500,MATCH(SUBSTITUTE(D35,"OR","d"),'RE Inconsistency Results'!$B$1:$B$500,0),1))>50,"N/A",EXP(INDEX('RE Inconsistency Results'!$G$1:$G$500,MATCH(SUBSTITUTE(D35,"OR","d"),'RE Inconsistency Results'!$B$1:$B$500,0),1)))) -> 
D36: =IF('Fixed Effects'!N36="","",'Fixed Effects'!N36) ->  | E36: =IF('Fixed Effects'!O36="","",'Fixed Effects'!O36) ->  | F36: =IF('Fixed Effects'!Q36="","",'Fixed Effects'!Q36) ->  | G36: =IF(D36="","",IF((INDEX('FE Inconsistency Results'!$H$1:$H$500,MATCH(SUBSTITUTE(D36,"OR","d"),'FE Inconsistency Results'!$B$1:$B$500,0),1))-(INDEX('FE Inconsistency Results'!$F$1:$F$500,MATCH(SUBSTITUTE(D36,"OR","d"),'FE Inconsistency Results'!$B$1:$B$500,0),1))>50,"N/A",EXP(INDEX('FE Inconsistency Results'!$G$1:$G$500,MATCH(SUBSTITUTE(D36,"OR","d"),'FE Inconsistency Results'!$B$1:$B$500,0),1)))) ->  | I36: =IF(INDIRECT(CONCATENATE("'",'Inconsistency Data'!$I$4,"'!N36"))="","",INDIRECT(CONCATENATE("'",'Inconsistency Data'!$I$4,"'!N36"))) ->  | J36: =IF(INDIRECT(CONCATENATE("'",'Inconsistency Data'!$I$4,"'!O36"))="","",INDIRECT(CONCATENATE("'",'Inconsistency Data'!$I$4,"'!O36"))) ->  | K36: =IF(INDIRECT(CONCATENATE("'",'Inconsistency Data'!$I$4,"'!Q36"))="","",INDIRECT(CONCATENATE("'",'Inconsistency Data'!$I$4,"'!Q36"))) ->  | L36: =IF(D36="","",IF((INDEX('RE Inconsistency Results'!$H$1:$H$500,MATCH(SUBSTITUTE(D36,"OR","d"),'RE Inconsistency Results'!$B$1:$B$500,0),1))-(INDEX('RE Inconsistency Results'!$F$1:$F$500,MATCH(SUBSTITUTE(D36,"OR","d"),'RE Inconsistency Results'!$B$1:$B$500,0),1))>50,"N/A",EXP(INDEX('RE Inconsistency Results'!$G$1:$G$500,MATCH(SUBSTITUTE(D36,"OR","d"),'RE Inconsistency Results'!$B$1:$B$500,0),1)))) -> 
D37: =IF('Fixed Effects'!N37="","",'Fixed Effects'!N37) ->  | E37: =IF('Fixed Effects'!O37="","",'Fixed Effects'!O37) ->  | F37: =IF('Fixed Effects'!Q37="","",'Fixed Effects'!Q37) ->  | G37: =IF(D37="","",IF((INDEX('FE Inconsistency Results'!$H$1:$H$500,MATCH(SUBSTITUTE(D37,"OR","d"),'FE Inconsistency Results'!$B$1:$B$500,0),1))-(INDEX('FE Inconsistency Results'!$F$1:$F$500,MATCH(SUBSTITUTE(D37,"OR","d"),'FE Inconsistency Results'!$B$1:$B$500,0),1))>50,"N/A",EXP(INDEX('FE Inconsistency Results'!$G$1:$G$500,MATCH(SUBSTITUTE(D37,"OR","d"),'FE Inconsistency Results'!$B$1:$B$500,0),1)))) ->  | I37: =IF(INDIRECT(CONCATENATE("'",'Inconsistency Data'!$I$4,"'!N37"))="","",INDIRECT(CONCATENATE("'",'Inconsistency Data'!$I$4,"'!N37"))) ->  | J37: =IF(INDIRECT(CONCATENATE("'",'Inconsistency Data'!$I$4,"'!O37"))="","",INDIRECT(CONCATENATE("'",'Inconsistency Data'!$I$4,"'!O37"))) ->  | K37: =IF(INDIRECT(CONCATENATE("'",'Inconsistency Data'!$I$4,"'!Q37"))="","",INDIRECT(CONCATENATE("'",'Inconsistency Data'!$I$4,"'!Q37"))) ->  | L37: =IF(D37="","",IF((INDEX('RE Inconsistency Results'!$H$1:$H$500,MATCH(SUBSTITUTE(D37,"OR","d"),'RE Inconsistency Results'!$B$1:$B$500,0),1))-(INDEX('RE Inconsistency Results'!$F$1:$F$500,MATCH(SUBSTITUTE(D37,"OR","d"),'RE Inconsistency Results'!$B$1:$B$500,0),1))>50,"N/A",EXP(INDEX('RE Inconsistency Results'!$G$1:$G$500,MATCH(SUBSTITUTE(D37,"OR","d"),'RE Inconsistency Results'!$B$1:$B$500,0),1)))) -> 
D38: =IF('Fixed Effects'!N38="","",'Fixed Effects'!N38) ->  | E38: =IF('Fixed Effects'!O38="","",'Fixed Effects'!O38) ->  | F38: =IF('Fixed Effects'!Q38="","",'Fixed Effects'!Q38) ->  | G38: =IF(D38="","",IF((INDEX('FE Inconsistency Results'!$H$1:$H$500,MATCH(SUBSTITUTE(D38,"OR","d"),'FE Inconsistency Results'!$B$1:$B$500,0),1))-(INDEX('FE Inconsistency Results'!$F$1:$F$500,MATCH(SUBSTITUTE(D38,"OR","d"),'FE Inconsistency Results'!$B$1:$B$500,0),1))>50,"N/A",EXP(INDEX('FE Inconsistency Results'!$G$1:$G$500,MATCH(SUBSTITUTE(D38,"OR","d"),'FE Inconsistency Results'!$B$1:$B$500,0),1)))) ->  | I38: =IF(INDIRECT(CONCATENATE("'",'Inconsistency Data'!$I$4,"'!N38"))="","",INDIRECT(CONCATENATE("'",'Inconsistency Data'!$I$4,"'!N38"))) ->  | J38: =IF(INDIRECT(CONCATENATE("'",'Inconsistency Data'!$I$4,"'!O38"))="","",INDIRECT(CONCATENATE("'",'Inconsistency Data'!$I$4,"'!O38"))) ->  | K38: =IF(INDIRECT(CONCATENATE("'",'Inconsistency Data'!$I$4,"'!Q38"))="","",INDIRECT(CONCATENATE("'",'Inconsistency Data'!$I$4,"'!Q38"))) ->  | L38: =IF(D38="","",IF((INDEX('RE Inconsistency Results'!$H$1:$H$500,MATCH(SUBSTITUTE(D38,"OR","d"),'RE Inconsistency Results'!$B$1:$B$500,0),1))-(INDEX('RE Inconsistency Results'!$F$1:$F$500,MATCH(SUBSTITUTE(D38,"OR","d"),'RE Inconsistency Results'!$B$1:$B$500,0),1))>50,"N/A",EXP(INDEX('RE Inconsistency Results'!$G$1:$G$500,MATCH(SUBSTITUTE(D38,"OR","d"),'RE Inconsistency Results'!$B$1:$B$500,0),1)))) -> 
D39: =IF('Fixed Effects'!N39="","",'Fixed Effects'!N39) ->  | E39: =IF('Fixed Effects'!O39="","",'Fixed Effects'!O39) ->  | F39: =IF('Fixed Effects'!Q39="","",'Fixed Effects'!Q39) ->  | G39: =IF(D39="","",IF((INDEX('FE Inconsistency Results'!$H$1:$H$500,MATCH(SUBSTITUTE(D39,"OR","d"),'FE Inconsistency Results'!$B$1:$B$500,0),1))-(INDEX('FE Inconsistency Results'!$F$1:$F$500,MATCH(SUBSTITUTE(D39,"OR","d"),'FE Inconsistency Results'!$B$1:$B$500,0),1))>50,"N/A",EXP(INDEX('FE Inconsistency Results'!$G$1:$G$500,MATCH(SUBSTITUTE(D39,"OR","d"),'FE Inconsistency Results'!$B$1:$B$500,0),1)))) ->  | I39: =IF(INDIRECT(CONCATENATE("'",'Inconsistency Data'!$I$4,"'!N39"))="","",INDIRECT(CONCATENATE("'",'Inconsistency Data'!$I$4,"'!N39"))) ->  | J39: =IF(INDIRECT(CONCATENATE("'",'Inconsistency Data'!$I$4,"'!O39"))="","",INDIRECT(CONCATENATE("'",'Inconsistency Data'!$I$4,"'!O39"))) ->  | K39: =IF(INDIRECT(CONCATENATE("'",'Inconsistency Data'!$I$4,"'!Q39"))="","",INDIRECT(CONCATENATE("'",'Inconsistency Data'!$I$4,"'!Q39"))) ->  | L39: =IF(D39="","",IF((INDEX('RE Inconsistency Results'!$H$1:$H$500,MATCH(SUBSTITUTE(D39,"OR","d"),'RE Inconsistency Results'!$B$1:$B$500,0),1))-(INDEX('RE Inconsistency Results'!$F$1:$F$500,MATCH(SUBSTITUTE(D39,"OR","d"),'RE Inconsistency Results'!$B$1:$B$500,0),1))>50,"N/A",EXP(INDEX('RE Inconsistency Results'!$G$1:$G$500,MATCH(SUBSTITUTE(D39,"OR","d"),'RE Inconsistency Results'!$B$1:$B$500,0),1)))) -> 
D40: =IF('Fixed Effects'!N40="","",'Fixed Effects'!N40) ->  | E40: =IF('Fixed Effects'!O40="","",'Fixed Effects'!O40) ->  | F40: =IF('Fixed Effects'!Q40="","",'Fixed Effects'!Q40) ->  | G40: =IF(D40="","",IF((INDEX('FE Inconsistency Results'!$H$1:$H$500,MATCH(SUBSTITUTE(D40,"OR","d"),'FE Inconsistency Results'!$B$1:$B$500,0),1))-(INDEX('FE Inconsistency Results'!$F$1:$F$500,MATCH(SUBSTITUTE(D40,"OR","d"),'FE Inconsistency Results'!$B$1:$B$500,0),1))>50,"N/A",EXP(INDEX('FE Inconsistency Results'!$G$1:$G$500,MATCH(SUBSTITUTE(D40,"OR","d"),'FE Inconsistency Results'!$B$1:$B$500,0),1)))) ->  | I40: =IF(INDIRECT(CONCATENATE("'",'Inconsistency Data'!$I$4,"'!N40"))="","",INDIRECT(CONCATENATE("'",'Inconsistency Data'!$I$4,"'!N40"))) ->  | J40: =IF(INDIRECT(CONCATENATE("'",'Inconsistency Data'!$I$4,"'!O40"))="","",INDIRECT(CONCATENATE("'",'Inconsistency Data'!$I$4,"'!O40"))) ->  | K40: =IF(INDIRECT(CONCATENATE("'",'Inconsistency Data'!$I$4,"'!Q40"))="","",INDIRECT(CONCATENATE("'",'Inconsistency Data'!$I$4,"'!Q40"))) ->  | L40: =IF(D40="","",IF((INDEX('RE Inconsistency Results'!$H$1:$H$500,MATCH(SUBSTITUTE(D40,"OR","d"),'RE Inconsistency Results'!$B$1:$B$500,0),1))-(INDEX('RE Inconsistency Results'!$F$1:$F$500,MATCH(SUBSTITUTE(D40,"OR","d"),'RE Inconsistency Results'!$B$1:$B$500,0),1))>50,"N/A",EXP(INDEX('RE Inconsistency Results'!$G$1:$G$500,MATCH(SUBSTITUTE(D40,"OR","d"),'RE Inconsistency Results'!$B$1:$B$500,0),1)))) -> 
D41: =IF('Fixed Effects'!N41="","",'Fixed Effects'!N41) ->  | E41: =IF('Fixed Effects'!O41="","",'Fixed Effects'!O41) ->  | F41: =IF('Fixed Effects'!Q41="","",'Fixed Effects'!Q41) ->  | G41: =IF(D41="","",IF((INDEX('FE Inconsistency Results'!$H$1:$H$500,MATCH(SUBSTITUTE(D41,"OR","d"),'FE Inconsistency Results'!$B$1:$B$500,0),1))-(INDEX('FE Inconsistency Results'!$F$1:$F$500,MATCH(SUBSTITUTE(D41,"OR","d"),'FE Inconsistency Results'!$B$1:$B$500,0),1))>50,"N/A",EXP(INDEX('FE Inconsistency Results'!$G$1:$G$500,MATCH(SUBSTITUTE(D41,"OR","d"),'FE Inconsistency Results'!$B$1:$B$500,0),1)))) ->  | I41: =IF(INDIRECT(CONCATENATE("'",'Inconsistency Data'!$I$4,"'!N41"))="","",INDIRECT(CONCATENATE("'",'Inconsistency Data'!$I$4,"'!N41"))) ->  | J41: =IF(INDIRECT(CONCATENATE("'",'Inconsistency Data'!$I$4,"'!O41"))="","",INDIRECT(CONCATENATE("'",'Inconsistency Data'!$I$4,"'!O41"))) ->  | K41: =IF(INDIRECT(CONCATENATE("'",'Inconsistency Data'!$I$4,"'!Q41"))="","",INDIRECT(CONCATENATE("'",'Inconsistency Data'!$I$4,"'!Q41"))) ->  | L41: =IF(D41="","",IF((INDEX('RE Inconsistency Results'!$H$1:$H$500,MATCH(SUBSTITUTE(D41,"OR","d"),'RE Inconsistency Results'!$B$1:$B$500,0),1))-(INDEX('RE Inconsistency Results'!$F$1:$F$500,MATCH(SUBSTITUTE(D41,"OR","d"),'RE Inconsistency Results'!$B$1:$B$500,0),1))>50,"N/A",EXP(INDEX('RE Inconsistency Results'!$G$1:$G$500,MATCH(SUBSTITUTE(D41,"OR","d"),'RE Inconsistency Results'!$B$1:$B$500,0),1)))) -> 
D42: =IF('Fixed Effects'!N42="","",'Fixed Effects'!N42) ->  | E42: =IF('Fixed Effects'!O42="","",'Fixed Effects'!O42) ->  | F42: =IF('Fixed Effects'!Q42="","",'Fixed Effects'!Q42) ->  | G42: =IF(D42="","",IF((INDEX('FE Inconsistency Results'!$H$1:$H$500,MATCH(SUBSTITUTE(D42,"OR","d"),'FE Inconsistency Results'!$B$1:$B$500,0),1))-(INDEX('FE Inconsistency Results'!$F$1:$F$500,MATCH(SUBSTITUTE(D42,"OR","d"),'FE Inconsistency Results'!$B$1:$B$500,0),1))>50,"N/A",EXP(INDEX('FE Inconsistency Results'!$G$1:$G$500,MATCH(SUBSTITUTE(D42,"OR","d"),'FE Inconsistency Results'!$B$1:$B$500,0),1)))) ->  | I42: =IF(INDIRECT(CONCATENATE("'",'Inconsistency Data'!$I$4,"'!N42"))="","",INDIRECT(CONCATENATE("'",'Inconsistency Data'!$I$4,"'!N42"))) ->  | J42: =IF(INDIRECT(CONCATENATE("'",'Inconsistency Data'!$I$4,"'!O42"))="","",INDIRECT(CONCATENATE("'",'Inconsistency Data'!$I$4,"'!O42"))) ->  | K42: =IF(INDIRECT(CONCATENATE("'",'Inconsistency Data'!$I$4,"'!Q42"))="","",INDIRECT(CONCATENATE("'",'Inconsistency Data'!$I$4,"'!Q42"))) ->  | L42: =IF(D42="","",IF((INDEX('RE Inconsistency Results'!$H$1:$H$500,MATCH(SUBSTITUTE(D42,"OR","d"),'RE Inconsistency Results'!$B$1:$B$500,0),1))-(INDEX('RE Inconsistency Results'!$F$1:$F$500,MATCH(SUBSTITUTE(D42,"OR","d"),'RE Inconsistency Results'!$B$1:$B$500,0),1))>50,"N/A",EXP(INDEX('RE Inconsistency Results'!$G$1:$G$500,MATCH(SUBSTITUTE(D42,"OR","d"),'RE Inconsistency Results'!$B$1:$B$500,0),1)))) -> 
D43: =IF('Fixed Effects'!N43="","",'Fixed Effects'!N43) ->  | E43: =IF('Fixed Effects'!O43="","",'Fixed Effects'!O43) ->  | F43: =IF('Fixed Effects'!Q43="","",'Fixed Effects'!Q43) ->  | G43: =IF(D43="","",IF((INDEX('FE Inconsistency Results'!$H$1:$H$500,MATCH(SUBSTITUTE(D43,"OR","d"),'FE Inconsistency Results'!$B$1:$B$500,0),1))-(INDEX('FE Inconsistency Results'!$F$1:$F$500,MATCH(SUBSTITUTE(D43,"OR","d"),'FE Inconsistency Results'!$B$1:$B$500,0),1))>50,"N/A",EXP(INDEX('FE Inconsistency Results'!$G$1:$G$500,MATCH(SUBSTITUTE(D43,"OR","d"),'FE Inconsistency Results'!$B$1:$B$500,0),1)))) ->  | I43: =IF(INDIRECT(CONCATENATE("'",'Inconsistency Data'!$I$4,"'!N43"))="","",INDIRECT(CONCATENATE("'",'Inconsistency Data'!$I$4,"'!N43"))) ->  | J43: =IF(INDIRECT(CONCATENATE("'",'Inconsistency Data'!$I$4,"'!O43"))="","",INDIRECT(CONCATENATE("'",'Inconsistency Data'!$I$4,"'!O43"))) ->  | K43: =IF(INDIRECT(CONCATENATE("'",'Inconsistency Data'!$I$4,"'!Q43"))="","",INDIRECT(CONCATENATE("'",'Inconsistency Data'!$I$4,"'!Q43"))) ->  | L43: =IF(D43="","",IF((INDEX('RE Inconsistency Results'!$H$1:$H$500,MATCH(SUBSTITUTE(D43,"OR","d"),'RE Inconsistency Results'!$B$1:$B$500,0),1))-(INDEX('RE Inconsistency Results'!$F$1:$F$500,MATCH(SUBSTITUTE(D43,"OR","d"),'RE Inconsistency Results'!$B$1:$B$500,0),1))>50,"N/A",EXP(INDEX('RE Inconsistency Results'!$G$1:$G$500,MATCH(SUBSTITUTE(D43,"OR","d"),'RE Inconsistency Results'!$B$1:$B$500,0),1)))) -> 
D44: =IF('Fixed Effects'!N44="","",'Fixed Effects'!N44) ->  | E44: =IF('Fixed Effects'!O44="","",'Fixed Effects'!O44) ->  | F44: =IF('Fixed Effects'!Q44="","",'Fixed Effects'!Q44) ->  | G44: =IF(D44="","",IF((INDEX('FE Inconsistency Results'!$H$1:$H$500,MATCH(SUBSTITUTE(D44,"OR","d"),'FE Inconsistency Results'!$B$1:$B$500,0),1))-(INDEX('FE Inconsistency Results'!$F$1:$F$500,MATCH(SUBSTITUTE(D44,"OR","d"),'FE Inconsistency Results'!$B$1:$B$500,0),1))>50,"N/A",EXP(INDEX('FE Inconsistency Results'!$G$1:$G$500,MATCH(SUBSTITUTE(D44,"OR","d"),'FE Inconsistency Results'!$B$1:$B$500,0),1)))) ->  | I44: =IF(INDIRECT(CONCATENATE("'",'Inconsistency Data'!$I$4,"'!N44"))="","",INDIRECT(CONCATENATE("'",'Inconsistency Data'!$I$4,"'!N44"))) ->  | J44: =IF(INDIRECT(CONCATENATE("'",'Inconsistency Data'!$I$4,"'!O44"))="","",INDIRECT(CONCATENATE("'",'Inconsistency Data'!$I$4,"'!O44"))) ->  | K44: =IF(INDIRECT(CONCATENATE("'",'Inconsistency Data'!$I$4,"'!Q44"))="","",INDIRECT(CONCATENATE("'",'Inconsistency Data'!$I$4,"'!Q44"))) ->  | L44: =IF(D44="","",IF((INDEX('RE Inconsistency Results'!$H$1:$H$500,MATCH(SUBSTITUTE(D44,"OR","d"),'RE Inconsistency Results'!$B$1:$B$500,0),1))-(INDEX('RE Inconsistency Results'!$F$1:$F$500,MATCH(SUBSTITUTE(D44,"OR","d"),'RE Inconsistency Results'!$B$1:$B$500,0),1))>50,"N/A",EXP(INDEX('RE Inconsistency Results'!$G$1:$G$500,MATCH(SUBSTITUTE(D44,"OR","d"),'RE Inconsistency Results'!$B$1:$B$500,0),1)))) -> 
D45: =IF('Fixed Effects'!N45="","",'Fixed Effects'!N45) ->  | E45: =IF('Fixed Effects'!O45="","",'Fixed Effects'!O45) ->  | F45: =IF('Fixed Effects'!Q45="","",'Fixed Effects'!Q45) ->  | G45: =IF(D45="","",IF((INDEX('FE Inconsistency Results'!$H$1:$H$500,MATCH(SUBSTITUTE(D45,"OR","d"),'FE Inconsistency Results'!$B$1:$B$500,0),1))-(INDEX('FE Inconsistency Results'!$F$1:$F$500,MATCH(SUBSTITUTE(D45,"OR","d"),'FE Inconsistency Results'!$B$1:$B$500,0),1))>50,"N/A",EXP(INDEX('FE Inconsistency Results'!$G$1:$G$500,MATCH(SUBSTITUTE(D45,"OR","d"),'FE Inconsistency Results'!$B$1:$B$500,0),1)))) ->  | I45: =IF(INDIRECT(CONCATENATE("'",'Inconsistency Data'!$I$4,"'!N45"))="","",INDIRECT(CONCATENATE("'",'Inconsistency Data'!$I$4,"'!N45"))) ->  | J45: =IF(INDIRECT(CONCATENATE("'",'Inconsistency Data'!$I$4,"'!O45"))="","",INDIRECT(CONCATENATE("'",'Inconsistency Data'!$I$4,"'!O45"))) ->  | K45: =IF(INDIRECT(CONCATENATE("'",'Inconsistency Data'!$I$4,"'!Q45"))="","",INDIRECT(CONCATENATE("'",'Inconsistency Data'!$I$4,"'!Q45"))) ->  | L45: =IF(D45="","",IF((INDEX('RE Inconsistency Results'!$H$1:$H$500,MATCH(SUBSTITUTE(D45,"OR","d"),'RE Inconsistency Results'!$B$1:$B$500,0),1))-(INDEX('RE Inconsistency Results'!$F$1:$F$500,MATCH(SUBSTITUTE(D45,"OR","d"),'RE Inconsistency Results'!$B$1:$B$500,0),1))>50,"N/A",EXP(INDEX('RE Inconsistency Results'!$G$1:$G$500,MATCH(SUBSTITUTE(D45,"OR","d"),'RE Inconsistency Results'!$B$1:$B$500,0),1)))) -> 
D46: =IF('Fixed Effects'!N46="","",'Fixed Effects'!N46) ->  | E46: =IF('Fixed Effects'!O46="","",'Fixed Effects'!O46) ->  | F46: =IF('Fixed Effects'!Q46="","",'Fixed Effects'!Q46) ->  | G46: =IF(D46="","",IF((INDEX('FE Inconsistency Results'!$H$1:$H$500,MATCH(SUBSTITUTE(D46,"OR","d"),'FE Inconsistency Results'!$B$1:$B$500,0),1))-(INDEX('FE Inconsistency Results'!$F$1:$F$500,MATCH(SUBSTITUTE(D46,"OR","d"),'FE Inconsistency Results'!$B$1:$B$500,0),1))>50,"N/A",EXP(INDEX('FE Inconsistency Results'!$G$1:$G$500,MATCH(SUBSTITUTE(D46,"OR","d"),'FE Inconsistency Results'!$B$1:$B$500,0),1)))) ->  | I46: =IF(INDIRECT(CONCATENATE("'",'Inconsistency Data'!$I$4,"'!N46"))="","",INDIRECT(CONCATENATE("'",'Inconsistency Data'!$I$4,"'!N46"))) ->  | J46: =IF(INDIRECT(CONCATENATE("'",'Inconsistency Data'!$I$4,"'!O46"))="","",INDIRECT(CONCATENATE("'",'Inconsistency Data'!$I$4,"'!O46"))) ->  | K46: =IF(INDIRECT(CONCATENATE("'",'Inconsistency Data'!$I$4,"'!Q46"))="","",INDIRECT(CONCATENATE("'",'Inconsistency Data'!$I$4,"'!Q46"))) ->  | L46: =IF(D46="","",IF((INDEX('RE Inconsistency Results'!$H$1:$H$500,MATCH(SUBSTITUTE(D46,"OR","d"),'RE Inconsistency Results'!$B$1:$B$500,0),1))-(INDEX('RE Inconsistency Results'!$F$1:$F$500,MATCH(SUBSTITUTE(D46,"OR","d"),'RE Inconsistency Results'!$B$1:$B$500,0),1))>50,"N/A",EXP(INDEX('RE Inconsistency Results'!$G$1:$G$500,MATCH(SUBSTITUTE(D46,"OR","d"),'RE Inconsistency Results'!$B$1:$B$500,0),1)))) -> 
D47: =IF('Fixed Effects'!N47="","",'Fixed Effects'!N47) ->  | E47: =IF('Fixed Effects'!O47="","",'Fixed Effects'!O47) ->  | F47: =IF('Fixed Effects'!Q47="","",'Fixed Effects'!Q47) ->  | G47: =IF(D47="","",IF((INDEX('FE Inconsistency Results'!$H$1:$H$500,MATCH(SUBSTITUTE(D47,"OR","d"),'FE Inconsistency Results'!$B$1:$B$500,0),1))-(INDEX('FE Inconsistency Results'!$F$1:$F$500,MATCH(SUBSTITUTE(D47,"OR","d"),'FE Inconsistency Results'!$B$1:$B$500,0),1))>50,"N/A",EXP(INDEX('FE Inconsistency Results'!$G$1:$G$500,MATCH(SUBSTITUTE(D47,"OR","d"),'FE Inconsistency Results'!$B$1:$B$500,0),1)))) ->  | I47: =IF(INDIRECT(CONCATENATE("'",'Inconsistency Data'!$I$4,"'!N47"))="","",INDIRECT(CONCATENATE("'",'Inconsistency Data'!$I$4,"'!N47"))) ->  | J47: =IF(INDIRECT(CONCATENATE("'",'Inconsistency Data'!$I$4,"'!O47"))="","",INDIRECT(CONCATENATE("'",'Inconsistency Data'!$I$4,"'!O47"))) ->  | K47: =IF(INDIRECT(CONCATENATE("'",'Inconsistency Data'!$I$4,"'!Q47"))="","",INDIRECT(CONCATENATE("'",'Inconsistency Data'!$I$4,"'!Q47"))) ->  | L47: =IF(D47="","",IF((INDEX('RE Inconsistency Results'!$H$1:$H$500,MATCH(SUBSTITUTE(D47,"OR","d"),'RE Inconsistency Results'!$B$1:$B$500,0),1))-(INDEX('RE Inconsistency Results'!$F$1:$F$500,MATCH(SUBSTITUTE(D47,"OR","d"),'RE Inconsistency Results'!$B$1:$B$500,0),1))>50,"N/A",EXP(INDEX('RE Inconsistency Results'!$G$1:$G$500,MATCH(SUBSTITUTE(D47,"OR","d"),'RE Inconsistency Results'!$B$1:$B$500,0),1)))) -> 
D48: =IF('Fixed Effects'!N48="","",'Fixed Effects'!N48) ->  | E48: =IF('Fixed Effects'!O48="","",'Fixed Effects'!O48) ->  | F48: =IF('Fixed Effects'!Q48="","",'Fixed Effects'!Q48) ->  | G48: =IF(D48="","",IF((INDEX('FE Inconsistency Results'!$H$1:$H$500,MATCH(SUBSTITUTE(D48,"OR","d"),'FE Inconsistency Results'!$B$1:$B$500,0),1))-(INDEX('FE Inconsistency Results'!$F$1:$F$500,MATCH(SUBSTITUTE(D48,"OR","d"),'FE Inconsistency Results'!$B$1:$B$500,0),1))>50,"N/A",EXP(INDEX('FE Inconsistency Results'!$G$1:$G$500,MATCH(SUBSTITUTE(D48,"OR","d"),'FE Inconsistency Results'!$B$1:$B$500,0),1)))) ->  | I48: =IF(INDIRECT(CONCATENATE("'",'Inconsistency Data'!$I$4,"'!N48"))="","",INDIRECT(CONCATENATE("'",'Inconsistency Data'!$I$4,"'!N48"))) ->  | J48: =IF(INDIRECT(CONCATENATE("'",'Inconsistency Data'!$I$4,"'!O48"))="","",INDIRECT(CONCATENATE("'",'Inconsistency Data'!$I$4,"'!O48"))) ->  | K48: =IF(INDIRECT(CONCATENATE("'",'Inconsistency Data'!$I$4,"'!Q48"))="","",INDIRECT(CONCATENATE("'",'Inconsistency Data'!$I$4,"'!Q48"))) ->  | L48: =IF(D48="","",IF((INDEX('RE Inconsistency Results'!$H$1:$H$500,MATCH(SUBSTITUTE(D48,"OR","d"),'RE Inconsistency Results'!$B$1:$B$500,0),1))-(INDEX('RE Inconsistency Results'!$F$1:$F$500,MATCH(SUBSTITUTE(D48,"OR","d"),'RE Inconsistency Results'!$B$1:$B$500,0),1))>50,"N/A",EXP(INDEX('RE Inconsistency Results'!$G$1:$G$500,MATCH(SUBSTITUTE(D48,"OR","d"),'RE Inconsistency Results'!$B$1:$B$500,0),1)))) -> 
D49: =IF('Fixed Effects'!N49="","",'Fixed Effects'!N49) ->  | E49: =IF('Fixed Effects'!O49="","",'Fixed Effects'!O49) ->  | F49: =IF('Fixed Effects'!Q49="","",'Fixed Effects'!Q49) ->  | G49: =IF(D49="","",IF((INDEX('FE Inconsistency Results'!$H$1:$H$500,MATCH(SUBSTITUTE(D49,"OR","d"),'FE Inconsistency Results'!$B$1:$B$500,0),1))-(INDEX('FE Inconsistency Results'!$F$1:$F$500,MATCH(SUBSTITUTE(D49,"OR","d"),'FE Inconsistency Results'!$B$1:$B$500,0),1))>50,"N/A",EXP(INDEX('FE Inconsistency Results'!$G$1:$G$500,MATCH(SUBSTITUTE(D49,"OR","d"),'FE Inconsistency Results'!$B$1:$B$500,0),1)))) ->  | I49: =IF(INDIRECT(CONCATENATE("'",'Inconsistency Data'!$I$4,"'!N49"))="","",INDIRECT(CONCATENATE("'",'Inconsistency Data'!$I$4,"'!N49"))) ->  | J49: =IF(INDIRECT(CONCATENATE("'",'Inconsistency Data'!$I$4,"'!O49"))="","",INDIRECT(CONCATENATE("'",'Inconsistency Data'!$I$4,"'!O49"))) ->  | K49: =IF(INDIRECT(CONCATENATE("'",'Inconsistency Data'!$I$4,"'!Q49"))="","",INDIRECT(CONCATENATE("'",'Inconsistency Data'!$I$4,"'!Q49"))) ->  | L49: =IF(D49="","",IF((INDEX('RE Inconsistency Results'!$H$1:$H$500,MATCH(SUBSTITUTE(D49,"OR","d"),'RE Inconsistency Results'!$B$1:$B$500,0),1))-(INDEX('RE Inconsistency Results'!$F$1:$F$500,MATCH(SUBSTITUTE(D49,"OR","d"),'RE Inconsistency Results'!$B$1:$B$500,0),1))>50,"N/A",EXP(INDEX('RE Inconsistency Results'!$G$1:$G$500,MATCH(SUBSTITUTE(D49,"OR","d"),'RE Inconsistency Results'!$B$1:$B$500,0),1)))) -> 
D50: =IF('Fixed Effects'!N50="","",'Fixed Effects'!N50) ->  | E50: =IF('Fixed Effects'!O50="","",'Fixed Effects'!O50) ->  | F50: =IF('Fixed Effects'!Q50="","",'Fixed Effects'!Q50) ->  | G50: =IF(D50="","",IF((INDEX('FE Inconsistency Results'!$H$1:$H$500,MATCH(SUBSTITUTE(D50,"OR","d"),'FE Inconsistency Results'!$B$1:$B$500,0),1))-(INDEX('FE Inconsistency Results'!$F$1:$F$500,MATCH(SUBSTITUTE(D50,"OR","d"),'FE Inconsistency Results'!$B$1:$B$500,0),1))>50,"N/A",EXP(INDEX('FE Inconsistency Results'!$G$1:$G$500,MATCH(SUBSTITUTE(D50,"OR","d"),'FE Inconsistency Results'!$B$1:$B$500,0),1)))) ->  | I50: =IF(INDIRECT(CONCATENATE("'",'Inconsistency Data'!$I$4,"'!N50"))="","",INDIRECT(CONCATENATE("'",'Inconsistency Data'!$I$4,"'!N50"))) ->  | J50: =IF(INDIRECT(CONCATENATE("'",'Inconsistency Data'!$I$4,"'!O50"))="","",INDIRECT(CONCATENATE("'",'Inconsistency Data'!$I$4,"'!O50"))) ->  | K50: =IF(INDIRECT(CONCATENATE("'",'Inconsistency Data'!$I$4,"'!Q50"))="","",INDIRECT(CONCATENATE("'",'Inconsistency Data'!$I$4,"'!Q50"))) ->  | L50: =IF(D50="","",IF((INDEX('RE Inconsistency Results'!$H$1:$H$500,MATCH(SUBSTITUTE(D50,"OR","d"),'RE Inconsistency Results'!$B$1:$B$500,0),1))-(INDEX('RE Inconsistency Results'!$F$1:$F$500,MATCH(SUBSTITUTE(D50,"OR","d"),'RE Inconsistency Results'!$B$1:$B$500,0),1))>50,"N/A",EXP(INDEX('RE Inconsistency Results'!$G$1:$G$500,MATCH(SUBSTITUTE(D50,"OR","d"),'RE Inconsistency Results'!$B$1:$B$500,0),1)))) -> 
D51: =IF('Fixed Effects'!N51="","",'Fixed Effects'!N51) ->  | E51: =IF('Fixed Effects'!O51="","",'Fixed Effects'!O51) ->  | F51: =IF('Fixed Effects'!Q51="","",'Fixed Effects'!Q51) ->  | G51: =IF(D51="","",IF((INDEX('FE Inconsistency Results'!$H$1:$H$500,MATCH(SUBSTITUTE(D51,"OR","d"),'FE Inconsistency Results'!$B$1:$B$500,0),1))-(INDEX('FE Inconsistency Results'!$F$1:$F$500,MATCH(SUBSTITUTE(D51,"OR","d"),'FE Inconsistency Results'!$B$1:$B$500,0),1))>50,"N/A",EXP(INDEX('FE Inconsistency Results'!$G$1:$G$500,MATCH(SUBSTITUTE(D51,"OR","d"),'FE Inconsistency Results'!$B$1:$B$500,0),1)))) ->  | I51: =IF(INDIRECT(CONCATENATE("'",'Inconsistency Data'!$I$4,"'!N51"))="","",INDIRECT(CONCATENATE("'",'Inconsistency Data'!$I$4,"'!N51"))) ->  | J51: =IF(INDIRECT(CONCATENATE("'",'Inconsistency Data'!$I$4,"'!O51"))="","",INDIRECT(CONCATENATE("'",'Inconsistency Data'!$I$4,"'!O51"))) ->  | K51: =IF(INDIRECT(CONCATENATE("'",'Inconsistency Data'!$I$4,"'!Q51"))="","",INDIRECT(CONCATENATE("'",'Inconsistency Data'!$I$4,"'!Q51"))) ->  | L51: =IF(D51="","",IF((INDEX('RE Inconsistency Results'!$H$1:$H$500,MATCH(SUBSTITUTE(D51,"OR","d"),'RE Inconsistency Results'!$B$1:$B$500,0),1))-(INDEX('RE Inconsistency Results'!$F$1:$F$500,MATCH(SUBSTITUTE(D51,"OR","d"),'RE Inconsistency Results'!$B$1:$B$500,0),1))>50,"N/A",EXP(INDEX('RE Inconsistency Results'!$G$1:$G$500,MATCH(SUBSTITUTE(D51,"OR","d"),'RE Inconsistency Results'!$B$1:$B$500,0),1)))) -> 
D52: =IF('Fixed Effects'!N52="","",'Fixed Effects'!N52) ->  | E52: =IF('Fixed Effects'!O52="","",'Fixed Effects'!O52) ->  | F52: =IF('Fixed Effects'!Q52="","",'Fixed Effects'!Q52) ->  | G52: =IF(D52="","",IF((INDEX('FE Inconsistency Results'!$H$1:$H$500,MATCH(SUBSTITUTE(D52,"OR","d"),'FE Inconsistency Results'!$B$1:$B$500,0),1))-(INDEX('FE Inconsistency Results'!$F$1:$F$500,MATCH(SUBSTITUTE(D52,"OR","d"),'FE Inconsistency Results'!$B$1:$B$500,0),1))>50,"N/A",EXP(INDEX('FE Inconsistency Results'!$G$1:$G$500,MATCH(SUBSTITUTE(D52,"OR","d"),'FE Inconsistency Results'!$B$1:$B$500,0),1)))) ->  | I52: =IF(INDIRECT(CONCATENATE("'",'Inconsistency Data'!$I$4,"'!N52"))="","",INDIRECT(CONCATENATE("'",'Inconsistency Data'!$I$4,"'!N52"))) ->  | J52: =IF(INDIRECT(CONCATENATE("'",'Inconsistency Data'!$I$4,"'!O52"))="","",INDIRECT(CONCATENATE("'",'Inconsistency Data'!$I$4,"'!O52"))) ->  | K52: =IF(INDIRECT(CONCATENATE("'",'Inconsistency Data'!$I$4,"'!Q52"))="","",INDIRECT(CONCATENATE("'",'Inconsistency Data'!$I$4,"'!Q52"))) ->  | L52: =IF(D52="","",IF((INDEX('RE Inconsistency Results'!$H$1:$H$500,MATCH(SUBSTITUTE(D52,"OR","d"),'RE Inconsistency Results'!$B$1:$B$500,0),1))-(INDEX('RE Inconsistency Results'!$F$1:$F$500,MATCH(SUBSTITUTE(D52,"OR","d"),'RE Inconsistency Results'!$B$1:$B$500,0),1))>50,"N/A",EXP(INDEX('RE Inconsistency Results'!$G$1:$G$500,MATCH(SUBSTITUTE(D52,"OR","d"),'RE Inconsistency Results'!$B$1:$B$500,0),1)))) -> 
D53: =IF('Fixed Effects'!N53="","",'Fixed Effects'!N53) ->  | E53: =IF('Fixed Effects'!O53="","",'Fixed Effects'!O53) ->  | F53: =IF('Fixed Effects'!Q53="","",'Fixed Effects'!Q53) ->  | G53: =IF(D53="","",IF((INDEX('FE Inconsistency Results'!$H$1:$H$500,MATCH(SUBSTITUTE(D53,"OR","d"),'FE Inconsistency Results'!$B$1:$B$500,0),1))-(INDEX('FE Inconsistency Results'!$F$1:$F$500,MATCH(SUBSTITUTE(D53,"OR","d"),'FE Inconsistency Results'!$B$1:$B$500,0),1))>50,"N/A",EXP(INDEX('FE Inconsistency Results'!$G$1:$G$500,MATCH(SUBSTITUTE(D53,"OR","d"),'FE Inconsistency Results'!$B$1:$B$500,0),1)))) ->  | I53: =IF(INDIRECT(CONCATENATE("'",'Inconsistency Data'!$I$4,"'!N53"))="","",INDIRECT(CONCATENATE("'",'Inconsistency Data'!$I$4,"'!N53"))) ->  | J53: =IF(INDIRECT(CONCATENATE("'",'Inconsistency Data'!$I$4,"'!O53"))="","",INDIRECT(CONCATENATE("'",'Inconsistency Data'!$I$4,"'!O53"))) ->  | K53: =IF(INDIRECT(CONCATENATE("'",'Inconsistency Data'!$I$4,"'!Q53"))="","",INDIRECT(CONCATENATE("'",'Inconsistency Data'!$I$4,"'!Q53"))) ->  | L53: =IF(D53="","",IF((INDEX('RE Inconsistency Results'!$H$1:$H$500,MATCH(SUBSTITUTE(D53,"OR","d"),'RE Inconsistency Results'!$B$1:$B$500,0),1))-(INDEX('RE Inconsistency Results'!$F$1:$F$500,MATCH(SUBSTITUTE(D53,"OR","d"),'RE Inconsistency Results'!$B$1:$B$500,0),1))>50,"N/A",EXP(INDEX('RE Inconsistency Results'!$G$1:$G$500,MATCH(SUBSTITUTE(D53,"OR","d"),'RE Inconsistency Results'!$B$1:$B$500,0),1)))) -> 
D54: =IF('Fixed Effects'!N54="","",'Fixed Effects'!N54) ->  | E54: =IF('Fixed Effects'!O54="","",'Fixed Effects'!O54) ->  | F54: =IF('Fixed Effects'!Q54="","",'Fixed Effects'!Q54) ->  | G54: =IF(D54="","",IF((INDEX('FE Inconsistency Results'!$H$1:$H$500,MATCH(SUBSTITUTE(D54,"OR","d"),'FE Inconsistency Results'!$B$1:$B$500,0),1))-(INDEX('FE Inconsistency Results'!$F$1:$F$500,MATCH(SUBSTITUTE(D54,"OR","d"),'FE Inconsistency Results'!$B$1:$B$500,0),1))>50,"N/A",EXP(INDEX('FE Inconsistency Results'!$G$1:$G$500,MATCH(SUBSTITUTE(D54,"OR","d"),'FE Inconsistency Results'!$B$1:$B$500,0),1)))) ->  | I54: =IF(INDIRECT(CONCATENATE("'",'Inconsistency Data'!$I$4,"'!N54"))="","",INDIRECT(CONCATENATE("'",'Inconsistency Data'!$I$4,"'!N54"))) ->  | J54: =IF(INDIRECT(CONCATENATE("'",'Inconsistency Data'!$I$4,"'!O54"))="","",INDIRECT(CONCATENATE("'",'Inconsistency Data'!$I$4,"'!O54"))) ->  | K54: =IF(INDIRECT(CONCATENATE("'",'Inconsistency Data'!$I$4,"'!Q54"))="","",INDIRECT(CONCATENATE("'",'Inconsistency Data'!$I$4,"'!Q54"))) ->  | L54: =IF(D54="","",IF((INDEX('RE Inconsistency Results'!$H$1:$H$500,MATCH(SUBSTITUTE(D54,"OR","d"),'RE Inconsistency Results'!$B$1:$B$500,0),1))-(INDEX('RE Inconsistency Results'!$F$1:$F$500,MATCH(SUBSTITUTE(D54,"OR","d"),'RE Inconsistency Results'!$B$1:$B$500,0),1))>50,"N/A",EXP(INDEX('RE Inconsistency Results'!$G$1:$G$500,MATCH(SUBSTITUTE(D54,"OR","d"),'RE Inconsistency Results'!$B$1:$B$500,0),1)))) -> 
D55: =IF('Fixed Effects'!N55="","",'Fixed Effects'!N55) ->  | E55: =IF('Fixed Effects'!O55="","",'Fixed Effects'!O55) ->  | F55: =IF('Fixed Effects'!Q55="","",'Fixed Effects'!Q55) ->  | G55: =IF(D55="","",IF((INDEX('FE Inconsistency Results'!$H$1:$H$500,MATCH(SUBSTITUTE(D55,"OR","d"),'FE Inconsistency Results'!$B$1:$B$500,0),1))-(INDEX('FE Inconsistency Results'!$F$1:$F$500,MATCH(SUBSTITUTE(D55,"OR","d"),'FE Inconsistency Results'!$B$1:$B$500,0),1))>50,"N/A",EXP(INDEX('FE Inconsistency Results'!$G$1:$G$500,MATCH(SUBSTITUTE(D55,"OR","d"),'FE Inconsistency Results'!$B$1:$B$500,0),1)))) ->  | I55: =IF(INDIRECT(CONCATENATE("'",'Inconsistency Data'!$I$4,"'!N55"))="","",INDIRECT(CONCATENATE("'",'Inconsistency Data'!$I$4,"'!N55"))) ->  | J55: =IF(INDIRECT(CONCATENATE("'",'Inconsistency Data'!$I$4,"'!O55"))="","",INDIRECT(CONCATENATE("'",'Inconsistency Data'!$I$4,"'!O55"))) ->  | K55: =IF(INDIRECT(CONCATENATE("'",'Inconsistency Data'!$I$4,"'!Q55"))="","",INDIRECT(CONCATENATE("'",'Inconsistency Data'!$I$4,"'!Q55"))) ->  | L55: =IF(D55="","",IF((INDEX('RE Inconsistency Results'!$H$1:$H$500,MATCH(SUBSTITUTE(D55,"OR","d"),'RE Inconsistency Results'!$B$1:$B$500,0),1))-(INDEX('RE Inconsistency Results'!$F$1:$F$500,MATCH(SUBSTITUTE(D55,"OR","d"),'RE Inconsistency Results'!$B$1:$B$500,0),1))>50,"N/A",EXP(INDEX('RE Inconsistency Results'!$G$1:$G$500,MATCH(SUBSTITUTE(D55,"OR","d"),'RE Inconsistency Results'!$B$1:$B$500,0),1)))) -> 
D56: =IF('Fixed Effects'!N56="","",'Fixed Effects'!N56) ->  | E56: =IF('Fixed Effects'!O56="","",'Fixed Effects'!O56) ->  | F56: =IF('Fixed Effects'!Q56="","",'Fixed Effects'!Q56) ->  | G56: =IF(D56="","",IF((INDEX('FE Inconsistency Results'!$H$1:$H$500,MATCH(SUBSTITUTE(D56,"OR","d"),'FE Inconsistency Results'!$B$1:$B$500,0),1))-(INDEX('FE Inconsistency Results'!$F$1:$F$500,MATCH(SUBSTITUTE(D56,"OR","d"),'FE Inconsistency Results'!$B$1:$B$500,0),1))>50,"N/A",EXP(INDEX('FE Inconsistency Results'!$G$1:$G$500,MATCH(SUBSTITUTE(D56,"OR","d"),'FE Inconsistency Results'!$B$1:$B$500,0),1)))) ->  | I56: =IF(INDIRECT(CONCATENATE("'",'Inconsistency Data'!$I$4,"'!N56"))="","",INDIRECT(CONCATENATE("'",'Inconsistency Data'!$I$4,"'!N56"))) ->  | J56: =IF(INDIRECT(CONCATENATE("'",'Inconsistency Data'!$I$4,"'!O56"))="","",INDIRECT(CONCATENATE("'",'Inconsistency Data'!$I$4,"'!O56"))) ->  | K56: =IF(INDIRECT(CONCATENATE("'",'Inconsistency Data'!$I$4,"'!Q56"))="","",INDIRECT(CONCATENATE("'",'Inconsistency Data'!$I$4,"'!Q56"))) ->  | L56: =IF(D56="","",IF((INDEX('RE Inconsistency Results'!$H$1:$H$500,MATCH(SUBSTITUTE(D56,"OR","d"),'RE Inconsistency Results'!$B$1:$B$500,0),1))-(INDEX('RE Inconsistency Results'!$F$1:$F$500,MATCH(SUBSTITUTE(D56,"OR","d"),'RE Inconsistency Results'!$B$1:$B$500,0),1))>50,"N/A",EXP(INDEX('RE Inconsistency Results'!$G$1:$G$500,MATCH(SUBSTITUTE(D56,"OR","d"),'RE Inconsistency Results'!$B$1:$B$500,0),1)))) -> 
D57: =IF('Fixed Effects'!N57="","",'Fixed Effects'!N57) ->  | E57: =IF('Fixed Effects'!O57="","",'Fixed Effects'!O57) ->  | F57: =IF('Fixed Effects'!Q57="","",'Fixed Effects'!Q57) ->  | G57: =IF(D57="","",IF((INDEX('FE Inconsistency Results'!$H$1:$H$500,MATCH(SUBSTITUTE(D57,"OR","d"),'FE Inconsistency Results'!$B$1:$B$500,0),1))-(INDEX('FE Inconsistency Results'!$F$1:$F$500,MATCH(SUBSTITUTE(D57,"OR","d"),'FE Inconsistency Results'!$B$1:$B$500,0),1))>50,"N/A",EXP(INDEX('FE Inconsistency Results'!$G$1:$G$500,MATCH(SUBSTITUTE(D57,"OR","d"),'FE Inconsistency Results'!$B$1:$B$500,0),1)))) ->  | I57: =IF(INDIRECT(CONCATENATE("'",'Inconsistency Data'!$I$4,"'!N57"))="","",INDIRECT(CONCATENATE("'",'Inconsistency Data'!$I$4,"'!N57"))) ->  | J57: =IF(INDIRECT(CONCATENATE("'",'Inconsistency Data'!$I$4,"'!O57"))="","",INDIRECT(CONCATENATE("'",'Inconsistency Data'!$I$4,"'!O57"))) ->  | K57: =IF(INDIRECT(CONCATENATE("'",'Inconsistency Data'!$I$4,"'!Q57"))="","",INDIRECT(CONCATENATE("'",'Inconsistency Data'!$I$4,"'!Q57"))) ->  | L57: =IF(D57="","",IF((INDEX('RE Inconsistency Results'!$H$1:$H$500,MATCH(SUBSTITUTE(D57,"OR","d"),'RE Inconsistency Results'!$B$1:$B$500,0),1))-(INDEX('RE Inconsistency Results'!$F$1:$F$500,MATCH(SUBSTITUTE(D57,"OR","d"),'RE Inconsistency Results'!$B$1:$B$500,0),1))>50,"N/A",EXP(INDEX('RE Inconsistency Results'!$G$1:$G$500,MATCH(SUBSTITUTE(D57,"OR","d"),'RE Inconsistency Results'!$B$1:$B$500,0),1)))) -> 
D58: =IF('Fixed Effects'!N58="","",'Fixed Effects'!N58) ->  | E58: =IF('Fixed Effects'!O58="","",'Fixed Effects'!O58) ->  | F58: =IF('Fixed Effects'!Q58="","",'Fixed Effects'!Q58) ->  | G58: =IF(D58="","",IF((INDEX('FE Inconsistency Results'!$H$1:$H$500,MATCH(SUBSTITUTE(D58,"OR","d"),'FE Inconsistency Results'!$B$1:$B$500,0),1))-(INDEX('FE Inconsistency Results'!$F$1:$F$500,MATCH(SUBSTITUTE(D58,"OR","d"),'FE Inconsistency Results'!$B$1:$B$500,0),1))>50,"N/A",EXP(INDEX('FE Inconsistency Results'!$G$1:$G$500,MATCH(SUBSTITUTE(D58,"OR","d"),'FE Inconsistency Results'!$B$1:$B$500,0),1)))) ->  | I58: =IF(INDIRECT(CONCATENATE("'",'Inconsistency Data'!$I$4,"'!N58"))="","",INDIRECT(CONCATENATE("'",'Inconsistency Data'!$I$4,"'!N58"))) ->  | J58: =IF(INDIRECT(CONCATENATE("'",'Inconsistency Data'!$I$4,"'!O58"))="","",INDIRECT(CONCATENATE("'",'Inconsistency Data'!$I$4,"'!O58"))) ->  | K58: =IF(INDIRECT(CONCATENATE("'",'Inconsistency Data'!$I$4,"'!Q58"))="","",INDIRECT(CONCATENATE("'",'Inconsistency Data'!$I$4,"'!Q58"))) ->  | L58: =IF(D58="","",IF((INDEX('RE Inconsistency Results'!$H$1:$H$500,MATCH(SUBSTITUTE(D58,"OR","d"),'RE Inconsistency Results'!$B$1:$B$500,0),1))-(INDEX('RE Inconsistency Results'!$F$1:$F$500,MATCH(SUBSTITUTE(D58,"OR","d"),'RE Inconsistency Results'!$B$1:$B$500,0),1))>50,"N/A",EXP(INDEX('RE Inconsistency Results'!$G$1:$G$500,MATCH(SUBSTITUTE(D58,"OR","d"),'RE Inconsistency Results'!$B$1:$B$500,0),1)))) -> 
D59: =IF('Fixed Effects'!N59="","",'Fixed Effects'!N59) ->  | E59: =IF('Fixed Effects'!O59="","",'Fixed Effects'!O59) ->  | F59: =IF('Fixed Effects'!Q59="","",'Fixed Effects'!Q59) ->  | G59: =IF(D59="","",IF((INDEX('FE Inconsistency Results'!$H$1:$H$500,MATCH(SUBSTITUTE(D59,"OR","d"),'FE Inconsistency Results'!$B$1:$B$500,0),1))-(INDEX('FE Inconsistency Results'!$F$1:$F$500,MATCH(SUBSTITUTE(D59,"OR","d"),'FE Inconsistency Results'!$B$1:$B$500,0),1))>50,"N/A",EXP(INDEX('FE Inconsistency Results'!$G$1:$G$500,MATCH(SUBSTITUTE(D59,"OR","d"),'FE Inconsistency Results'!$B$1:$B$500,0),1)))) ->  | I59: =IF(INDIRECT(CONCATENATE("'",'Inconsistency Data'!$I$4,"'!N59"))="","",INDIRECT(CONCATENATE("'",'Inconsistency Data'!$I$4,"'!N59"))) ->  | J59: =IF(INDIRECT(CONCATENATE("'",'Inconsistency Data'!$I$4,"'!O59"))="","",INDIRECT(CONCATENATE("'",'Inconsistency Data'!$I$4,"'!O59"))) ->  | K59: =IF(INDIRECT(CONCATENATE("'",'Inconsistency Data'!$I$4,"'!Q59"))="","",INDIRECT(CONCATENATE("'",'Inconsistency Data'!$I$4,"'!Q59"))) ->  | L59: =IF(D59="","",IF((INDEX('RE Inconsistency Results'!$H$1:$H$500,MATCH(SUBSTITUTE(D59,"OR","d"),'RE Inconsistency Results'!$B$1:$B$500,0),1))-(INDEX('RE Inconsistency Results'!$F$1:$F$500,MATCH(SUBSTITUTE(D59,"OR","d"),'RE Inconsistency Results'!$B$1:$B$500,0),1))>50,"N/A",EXP(INDEX('RE Inconsistency Results'!$G$1:$G$500,MATCH(SUBSTITUTE(D59,"OR","d"),'RE Inconsistency Results'!$B$1:$B$500,0),1)))) -> 
D60: =IF('Fixed Effects'!N60="","",'Fixed Effects'!N60) ->  | E60: =IF('Fixed Effects'!O60="","",'Fixed Effects'!O60) ->  | F60: =IF('Fixed Effects'!Q60="","",'Fixed Effects'!Q60) ->  | G60: =IF(D60="","",IF((INDEX('FE Inconsistency Results'!$H$1:$H$500,MATCH(SUBSTITUTE(D60,"OR","d"),'FE Inconsistency Results'!$B$1:$B$500,0),1))-(INDEX('FE Inconsistency Results'!$F$1:$F$500,MATCH(SUBSTITUTE(D60,"OR","d"),'FE Inconsistency Results'!$B$1:$B$500,0),1))>50,"N/A",EXP(INDEX('FE Inconsistency Results'!$G$1:$G$500,MATCH(SUBSTITUTE(D60,"OR","d"),'FE Inconsistency Results'!$B$1:$B$500,0),1)))) ->  | I60: =IF(INDIRECT(CONCATENATE("'",'Inconsistency Data'!$I$4,"'!N60"))="","",INDIRECT(CONCATENATE("'",'Inconsistency Data'!$I$4,"'!N60"))) ->  | J60: =IF(INDIRECT(CONCATENATE("'",'Inconsistency Data'!$I$4,"'!O60"))="","",INDIRECT(CONCATENATE("'",'Inconsistency Data'!$I$4,"'!O60"))) ->  | K60: =IF(INDIRECT(CONCATENATE("'",'Inconsistency Data'!$I$4,"'!Q60"))="","",INDIRECT(CONCATENATE("'",'Inconsistency Data'!$I$4,"'!Q60"))) ->  | L60: =IF(D60="","",IF((INDEX('RE Inconsistency Results'!$H$1:$H$500,MATCH(SUBSTITUTE(D60,"OR","d"),'RE Inconsistency Results'!$B$1:$B$500,0),1))-(INDEX('RE Inconsistency Results'!$F$1:$F$500,MATCH(SUBSTITUTE(D60,"OR","d"),'RE Inconsistency Results'!$B$1:$B$500,0),1))>50,"N/A",EXP(INDEX('RE Inconsistency Results'!$G$1:$G$500,MATCH(SUBSTITUTE(D60,"OR","d"),'RE Inconsistency Results'!$B$1:$B$500,0),1)))) -> 
D61: =IF('Fixed Effects'!N61="","",'Fixed Effects'!N61) ->  | E61: =IF('Fixed Effects'!O61="","",'Fixed Effects'!O61) ->  | F61: =IF('Fixed Effects'!Q61="","",'Fixed Effects'!Q61) ->  | G61: =IF(D61="","",IF((INDEX('FE Inconsistency Results'!$H$1:$H$500,MATCH(SUBSTITUTE(D61,"OR","d"),'FE Inconsistency Results'!$B$1:$B$500,0),1))-(INDEX('FE Inconsistency Results'!$F$1:$F$500,MATCH(SUBSTITUTE(D61,"OR","d"),'FE Inconsistency Results'!$B$1:$B$500,0),1))>50,"N/A",EXP(INDEX('FE Inconsistency Results'!$G$1:$G$500,MATCH(SUBSTITUTE(D61,"OR","d"),'FE Inconsistency Results'!$B$1:$B$500,0),1)))) ->  | I61: =IF(INDIRECT(CONCATENATE("'",'Inconsistency Data'!$I$4,"'!N61"))="","",INDIRECT(CONCATENATE("'",'Inconsistency Data'!$I$4,"'!N61"))) ->  | J61: =IF(INDIRECT(CONCATENATE("'",'Inconsistency Data'!$I$4,"'!O61"))="","",INDIRECT(CONCATENATE("'",'Inconsistency Data'!$I$4,"'!O61"))) ->  | K61: =IF(INDIRECT(CONCATENATE("'",'Inconsistency Data'!$I$4,"'!Q61"))="","",INDIRECT(CONCATENATE("'",'Inconsistency Data'!$I$4,"'!Q61"))) ->  | L61: =IF(D61="","",IF((INDEX('RE Inconsistency Results'!$H$1:$H$500,MATCH(SUBSTITUTE(D61,"OR","d"),'RE Inconsistency Results'!$B$1:$B$500,0),1))-(INDEX('RE Inconsistency Results'!$F$1:$F$500,MATCH(SUBSTITUTE(D61,"OR","d"),'RE Inconsistency Results'!$B$1:$B$500,0),1))>50,"N/A",EXP(INDEX('RE Inconsistency Results'!$G$1:$G$500,MATCH(SUBSTITUTE(D61,"OR","d"),'RE Inconsistency Results'!$B$1:$B$500,0),1)))) -> 
D62: =IF('Fixed Effects'!N62="","",'Fixed Effects'!N62) ->  | E62: =IF('Fixed Effects'!O62="","",'Fixed Effects'!O62) ->  | F62: =IF('Fixed Effects'!Q62="","",'Fixed Effects'!Q62) ->  | G62: =IF(D62="","",IF((INDEX('FE Inconsistency Results'!$H$1:$H$500,MATCH(SUBSTITUTE(D62,"OR","d"),'FE Inconsistency Results'!$B$1:$B$500,0),1))-(INDEX('FE Inconsistency Results'!$F$1:$F$500,MATCH(SUBSTITUTE(D62,"OR","d"),'FE Inconsistency Results'!$B$1:$B$500,0),1))>50,"N/A",EXP(INDEX('FE Inconsistency Results'!$G$1:$G$500,MATCH(SUBSTITUTE(D62,"OR","d"),'FE Inconsistency Results'!$B$1:$B$500,0),1)))) ->  | I62: =IF(INDIRECT(CONCATENATE("'",'Inconsistency Data'!$I$4,"'!N62"))="","",INDIRECT(CONCATENATE("'",'Inconsistency Data'!$I$4,"'!N62"))) ->  | J62: =IF(INDIRECT(CONCATENATE("'",'Inconsistency Data'!$I$4,"'!O62"))="","",INDIRECT(CONCATENATE("'",'Inconsistency Data'!$I$4,"'!O62"))) ->  | K62: =IF(INDIRECT(CONCATENATE("'",'Inconsistency Data'!$I$4,"'!Q62"))="","",INDIRECT(CONCATENATE("'",'Inconsistency Data'!$I$4,"'!Q62"))) ->  | L62: =IF(D62="","",IF((INDEX('RE Inconsistency Results'!$H$1:$H$500,MATCH(SUBSTITUTE(D62,"OR","d"),'RE Inconsistency Results'!$B$1:$B$500,0),1))-(INDEX('RE Inconsistency Results'!$F$1:$F$500,MATCH(SUBSTITUTE(D62,"OR","d"),'RE Inconsistency Results'!$B$1:$B$500,0),1))>50,"N/A",EXP(INDEX('RE Inconsistency Results'!$G$1:$G$500,MATCH(SUBSTITUTE(D62,"OR","d"),'RE Inconsistency Results'!$B$1:$B$500,0),1)))) -> 
D63: =IF('Fixed Effects'!N63="","",'Fixed Effects'!N63) ->  | E63: =IF('Fixed Effects'!O63="","",'Fixed Effects'!O63) ->  | F63: =IF('Fixed Effects'!Q63="","",'Fixed Effects'!Q63) ->  | G63: =IF(D63="","",IF((INDEX('FE Inconsistency Results'!$H$1:$H$500,MATCH(SUBSTITUTE(D63,"OR","d"),'FE Inconsistency Results'!$B$1:$B$500,0),1))-(INDEX('FE Inconsistency Results'!$F$1:$F$500,MATCH(SUBSTITUTE(D63,"OR","d"),'FE Inconsistency Results'!$B$1:$B$500,0),1))>50,"N/A",EXP(INDEX('FE Inconsistency Results'!$G$1:$G$500,MATCH(SUBSTITUTE(D63,"OR","d"),'FE Inconsistency Results'!$B$1:$B$500,0),1)))) ->  | I63: =IF(INDIRECT(CONCATENATE("'",'Inconsistency Data'!$I$4,"'!N63"))="","",INDIRECT(CONCATENATE("'",'Inconsistency Data'!$I$4,"'!N63"))) ->  | J63: =IF(INDIRECT(CONCATENATE("'",'Inconsistency Data'!$I$4,"'!O63"))="","",INDIRECT(CONCATENATE("'",'Inconsistency Data'!$I$4,"'!O63"))) ->  | K63: =IF(INDIRECT(CONCATENATE("'",'Inconsistency Data'!$I$4,"'!Q63"))="","",INDIRECT(CONCATENATE("'",'Inconsistency Data'!$I$4,"'!Q63"))) ->  | L63: =IF(D63="","",IF((INDEX('RE Inconsistency Results'!$H$1:$H$500,MATCH(SUBSTITUTE(D63,"OR","d"),'RE Inconsistency Results'!$B$1:$B$500,0),1))-(INDEX('RE Inconsistency Results'!$F$1:$F$500,MATCH(SUBSTITUTE(D63,"OR","d"),'RE Inconsistency Results'!$B$1:$B$500,0),1))>50,"N/A",EXP(INDEX('RE Inconsistency Results'!$G$1:$G$500,MATCH(SUBSTITUTE(D63,"OR","d"),'RE Inconsistency Results'!$B$1:$B$500,0),1)))) -> 
D64: =IF('Fixed Effects'!N64="","",'Fixed Effects'!N64) ->  | E64: =IF('Fixed Effects'!O64="","",'Fixed Effects'!O64) ->  | F64: =IF('Fixed Effects'!Q64="","",'Fixed Effects'!Q64) ->  | G64: =IF(D64="","",IF((INDEX('FE Inconsistency Results'!$H$1:$H$500,MATCH(SUBSTITUTE(D64,"OR","d"),'FE Inconsistency Results'!$B$1:$B$500,0),1))-(INDEX('FE Inconsistency Results'!$F$1:$F$500,MATCH(SUBSTITUTE(D64,"OR","d"),'FE Inconsistency Results'!$B$1:$B$500,0),1))>50,"N/A",EXP(INDEX('FE Inconsistency Results'!$G$1:$G$500,MATCH(SUBSTITUTE(D64,"OR","d"),'FE Inconsistency Results'!$B$1:$B$500,0),1)))) ->  | I64: =IF(INDIRECT(CONCATENATE("'",'Inconsistency Data'!$I$4,"'!N64"))="","",INDIRECT(CONCATENATE("'",'Inconsistency Data'!$I$4,"'!N64"))) ->  | J64: =IF(INDIRECT(CONCATENATE("'",'Inconsistency Data'!$I$4,"'!O64"))="","",INDIRECT(CONCATENATE("'",'Inconsistency Data'!$I$4,"'!O64"))) ->  | K64: =IF(INDIRECT(CONCATENATE("'",'Inconsistency Data'!$I$4,"'!Q64"))="","",INDIRECT(CONCATENATE("'",'Inconsistency Data'!$I$4,"'!Q64"))) ->  | L64: =IF(D64="","",IF((INDEX('RE Inconsistency Results'!$H$1:$H$500,MATCH(SUBSTITUTE(D64,"OR","d"),'RE Inconsistency Results'!$B$1:$B$500,0),1))-(INDEX('RE Inconsistency Results'!$F$1:$F$500,MATCH(SUBSTITUTE(D64,"OR","d"),'RE Inconsistency Results'!$B$1:$B$500,0),1))>50,"N/A",EXP(INDEX('RE Inconsistency Results'!$G$1:$G$500,MATCH(SUBSTITUTE(D64,"OR","d"),'RE Inconsistency Results'!$B$1:$B$500,0),1)))) -> 
D65: =IF('Fixed Effects'!N65="","",'Fixed Effects'!N65) ->  | E65: =IF('Fixed Effects'!O65="","",'Fixed Effects'!O65) ->  | F65: =IF('Fixed Effects'!Q65="","",'Fixed Effects'!Q65) ->  | G65: =IF(D65="","",IF((INDEX('FE Inconsistency Results'!$H$1:$H$500,MATCH(SUBSTITUTE(D65,"OR","d"),'FE Inconsistency Results'!$B$1:$B$500,0),1))-(INDEX('FE Inconsistency Results'!$F$1:$F$500,MATCH(SUBSTITUTE(D65,"OR","d"),'FE Inconsistency Results'!$B$1:$B$500,0),1))>50,"N/A",EXP(INDEX('FE Inconsistency Results'!$G$1:$G$500,MATCH(SUBSTITUTE(D65,"OR","d"),'FE Inconsistency Results'!$B$1:$B$500,0),1)))) ->  | I65: =IF(INDIRECT(CONCATENATE("'",'Inconsistency Data'!$I$4,"'!N65"))="","",INDIRECT(CONCATENATE("'",'Inconsistency Data'!$I$4,"'!N65"))) ->  | J65: =IF(INDIRECT(CONCATENATE("'",'Inconsistency Data'!$I$4,"'!O65"))="","",INDIRECT(CONCATENATE("'",'Inconsistency Data'!$I$4,"'!O65"))) ->  | K65: =IF(INDIRECT(CONCATENATE("'",'Inconsistency Data'!$I$4,"'!Q65"))="","",INDIRECT(CONCATENATE("'",'Inconsistency Data'!$I$4,"'!Q65"))) ->  | L65: =IF(D65="","",IF((INDEX('RE Inconsistency Results'!$H$1:$H$500,MATCH(SUBSTITUTE(D65,"OR","d"),'RE Inconsistency Results'!$B$1:$B$500,0),1))-(INDEX('RE Inconsistency Results'!$F$1:$F$500,MATCH(SUBSTITUTE(D65,"OR","d"),'RE Inconsistency Results'!$B$1:$B$500,0),1))>50,"N/A",EXP(INDEX('RE Inconsistency Results'!$G$1:$G$500,MATCH(SUBSTITUTE(D65,"OR","d"),'RE Inconsistency Results'!$B$1:$B$500,0),1)))) -> 
D66: =IF('Fixed Effects'!N66="","",'Fixed Effects'!N66) ->  | E66: =IF('Fixed Effects'!O66="","",'Fixed Effects'!O66) ->  | F66: =IF('Fixed Effects'!Q66="","",'Fixed Effects'!Q66) ->  | G66: =IF(D66="","",IF((INDEX('FE Inconsistency Results'!$H$1:$H$500,MATCH(SUBSTITUTE(D66,"OR","d"),'FE Inconsistency Results'!$B$1:$B$500,0),1))-(INDEX('FE Inconsistency Results'!$F$1:$F$500,MATCH(SUBSTITUTE(D66,"OR","d"),'FE Inconsistency Results'!$B$1:$B$500,0),1))>50,"N/A",EXP(INDEX('FE Inconsistency Results'!$G$1:$G$500,MATCH(SUBSTITUTE(D66,"OR","d"),'FE Inconsistency Results'!$B$1:$B$500,0),1)))) ->  | I66: =IF(INDIRECT(CONCATENATE("'",'Inconsistency Data'!$I$4,"'!N66"))="","",INDIRECT(CONCATENATE("'",'Inconsistency Data'!$I$4,"'!N66"))) ->  | J66: =IF(INDIRECT(CONCATENATE("'",'Inconsistency Data'!$I$4,"'!O66"))="","",INDIRECT(CONCATENATE("'",'Inconsistency Data'!$I$4,"'!O66"))) ->  | K66: =IF(INDIRECT(CONCATENATE("'",'Inconsistency Data'!$I$4,"'!Q66"))="","",INDIRECT(CONCATENATE("'",'Inconsistency Data'!$I$4,"'!Q66"))) ->  | L66: =IF(D66="","",IF((INDEX('RE Inconsistency Results'!$H$1:$H$500,MATCH(SUBSTITUTE(D66,"OR","d"),'RE Inconsistency Results'!$B$1:$B$500,0),1))-(INDEX('RE Inconsistency Results'!$F$1:$F$500,MATCH(SUBSTITUTE(D66,"OR","d"),'RE Inconsistency Results'!$B$1:$B$500,0),1))>50,"N/A",EXP(INDEX('RE Inconsistency Results'!$G$1:$G$500,MATCH(SUBSTITUTE(D66,"OR","d"),'RE Inconsistency Results'!$B$1:$B$500,0),1)))) -> 
D67: =IF('Fixed Effects'!N67="","",'Fixed Effects'!N67) ->  | E67: =IF('Fixed Effects'!O67="","",'Fixed Effects'!O67) ->  | F67: =IF('Fixed Effects'!Q67="","",'Fixed Effects'!Q67) ->  | G67: =IF(D67="","",IF((INDEX('FE Inconsistency Results'!$H$1:$H$500,MATCH(SUBSTITUTE(D67,"OR","d"),'FE Inconsistency Results'!$B$1:$B$500,0),1))-(INDEX('FE Inconsistency Results'!$F$1:$F$500,MATCH(SUBSTITUTE(D67,"OR","d"),'FE Inconsistency Results'!$B$1:$B$500,0),1))>50,"N/A",EXP(INDEX('FE Inconsistency Results'!$G$1:$G$500,MATCH(SUBSTITUTE(D67,"OR","d"),'FE Inconsistency Results'!$B$1:$B$500,0),1)))) ->  | I67: =IF(INDIRECT(CONCATENATE("'",'Inconsistency Data'!$I$4,"'!N67"))="","",INDIRECT(CONCATENATE("'",'Inconsistency Data'!$I$4,"'!N67"))) ->  | J67: =IF(INDIRECT(CONCATENATE("'",'Inconsistency Data'!$I$4,"'!O67"))="","",INDIRECT(CONCATENATE("'",'Inconsistency Data'!$I$4,"'!O67"))) ->  | K67: =IF(INDIRECT(CONCATENATE("'",'Inconsistency Data'!$I$4,"'!Q67"))="","",INDIRECT(CONCATENATE("'",'Inconsistency Data'!$I$4,"'!Q67"))) ->  | L67: =IF(D67="","",IF((INDEX('RE Inconsistency Results'!$H$1:$H$500,MATCH(SUBSTITUTE(D67,"OR","d"),'RE Inconsistency Results'!$B$1:$B$500,0),1))-(INDEX('RE Inconsistency Results'!$F$1:$F$500,MATCH(SUBSTITUTE(D67,"OR","d"),'RE Inconsistency Results'!$B$1:$B$500,0),1))>50,"N/A",EXP(INDEX('RE Inconsistency Results'!$G$1:$G$500,MATCH(SUBSTITUTE(D67,"OR","d"),'RE Inconsistency Results'!$B$1:$B$500,0),1)))) -> 
D68: =IF('Fixed Effects'!N68="","",'Fixed Effects'!N68) ->  | E68: =IF('Fixed Effects'!O68="","",'Fixed Effects'!O68) ->  | F68: =IF('Fixed Effects'!Q68="","",'Fixed Effects'!Q68) ->  | G68: =IF(D68="","",IF((INDEX('FE Inconsistency Results'!$H$1:$H$500,MATCH(SUBSTITUTE(D68,"OR","d"),'FE Inconsistency Results'!$B$1:$B$500,0),1))-(INDEX('FE Inconsistency Results'!$F$1:$F$500,MATCH(SUBSTITUTE(D68,"OR","d"),'FE Inconsistency Results'!$B$1:$B$500,0),1))>50,"N/A",EXP(INDEX('FE Inconsistency Results'!$G$1:$G$500,MATCH(SUBSTITUTE(D68,"OR","d"),'FE Inconsistency Results'!$B$1:$B$500,0),1)))) ->  | I68: =IF(INDIRECT(CONCATENATE("'",'Inconsistency Data'!$I$4,"'!N68"))="","",INDIRECT(CONCATENATE("'",'Inconsistency Data'!$I$4,"'!N68"))) ->  | J68: =IF(INDIRECT(CONCATENATE("'",'Inconsistency Data'!$I$4,"'!O68"))="","",INDIRECT(CONCATENATE("'",'Inconsistency Data'!$I$4,"'!O68"))) ->  | K68: =IF(INDIRECT(CONCATENATE("'",'Inconsistency Data'!$I$4,"'!Q68"))="","",INDIRECT(CONCATENATE("'",'Inconsistency Data'!$I$4,"'!Q68"))) ->  | L68: =IF(D68="","",IF((INDEX('RE Inconsistency Results'!$H$1:$H$500,MATCH(SUBSTITUTE(D68,"OR","d"),'RE Inconsistency Results'!$B$1:$B$500,0),1))-(INDEX('RE Inconsistency Results'!$F$1:$F$500,MATCH(SUBSTITUTE(D68,"OR","d"),'RE Inconsistency Results'!$B$1:$B$500,0),1))>50,"N/A",EXP(INDEX('RE Inconsistency Results'!$G$1:$G$500,MATCH(SUBSTITUTE(D68,"OR","d"),'RE Inconsistency Results'!$B$1:$B$500,0),1)))) -> 
D69: =IF('Fixed Effects'!N69="","",'Fixed Effects'!N69) ->  | E69: =IF('Fixed Effects'!O69="","",'Fixed Effects'!O69) ->  | F69: =IF('Fixed Effects'!Q69="","",'Fixed Effects'!Q69) ->  | G69: =IF(D69="","",IF((INDEX('FE Inconsistency Results'!$H$1:$H$500,MATCH(SUBSTITUTE(D69,"OR","d"),'FE Inconsistency Results'!$B$1:$B$500,0),1))-(INDEX('FE Inconsistency Results'!$F$1:$F$500,MATCH(SUBSTITUTE(D69,"OR","d"),'FE Inconsistency Results'!$B$1:$B$500,0),1))>50,"N/A",EXP(INDEX('FE Inconsistency Results'!$G$1:$G$500,MATCH(SUBSTITUTE(D69,"OR","d"),'FE Inconsistency Results'!$B$1:$B$500,0),1)))) ->  | I69: =IF(INDIRECT(CONCATENATE("'",'Inconsistency Data'!$I$4,"'!N69"))="","",INDIRECT(CONCATENATE("'",'Inconsistency Data'!$I$4,"'!N69"))) ->  | J69: =IF(INDIRECT(CONCATENATE("'",'Inconsistency Data'!$I$4,"'!O69"))="","",INDIRECT(CONCATENATE("'",'Inconsistency Data'!$I$4,"'!O69"))) ->  | K69: =IF(INDIRECT(CONCATENATE("'",'Inconsistency Data'!$I$4,"'!Q69"))="","",INDIRECT(CONCATENATE("'",'Inconsistency Data'!$I$4,"'!Q69"))) ->  | L69: =IF(D69="","",IF((INDEX('RE Inconsistency Results'!$H$1:$H$500,MATCH(SUBSTITUTE(D69,"OR","d"),'RE Inconsistency Results'!$B$1:$B$500,0),1))-(INDEX('RE Inconsistency Results'!$F$1:$F$500,MATCH(SUBSTITUTE(D69,"OR","d"),'RE Inconsistency Results'!$B$1:$B$500,0),1))>50,"N/A",EXP(INDEX('RE Inconsistency Results'!$G$1:$G$500,MATCH(SUBSTITUTE(D69,"OR","d"),'RE Inconsistency Results'!$B$1:$B$500,0),1)))) -> 
D70: =IF('Fixed Effects'!N70="","",'Fixed Effects'!N70) ->  | E70: =IF('Fixed Effects'!O70="","",'Fixed Effects'!O70) ->  | F70: =IF('Fixed Effects'!Q70="","",'Fixed Effects'!Q70) ->  | G70: =IF(D70="","",IF((INDEX('FE Inconsistency Results'!$H$1:$H$500,MATCH(SUBSTITUTE(D70,"OR","d"),'FE Inconsistency Results'!$B$1:$B$500,0),1))-(INDEX('FE Inconsistency Results'!$F$1:$F$500,MATCH(SUBSTITUTE(D70,"OR","d"),'FE Inconsistency Results'!$B$1:$B$500,0),1))>50,"N/A",EXP(INDEX('FE Inconsistency Results'!$G$1:$G$500,MATCH(SUBSTITUTE(D70,"OR","d"),'FE Inconsistency Results'!$B$1:$B$500,0),1)))) ->  | I70: =IF(INDIRECT(CONCATENATE("'",'Inconsistency Data'!$I$4,"'!N70"))="","",INDIRECT(CONCATENATE("'",'Inconsistency Data'!$I$4,"'!N70"))) ->  | J70: =IF(INDIRECT(CONCATENATE("'",'Inconsistency Data'!$I$4,"'!O70"))="","",INDIRECT(CONCATENATE("'",'Inconsistency Data'!$I$4,"'!O70"))) ->  | K70: =IF(INDIRECT(CONCATENATE("'",'Inconsistency Data'!$I$4,"'!Q70"))="","",INDIRECT(CONCATENATE("'",'Inconsistency Data'!$I$4,"'!Q70"))) ->  | L70: =IF(D70="","",IF((INDEX('RE Inconsistency Results'!$H$1:$H$500,MATCH(SUBSTITUTE(D70,"OR","d"),'RE Inconsistency Results'!$B$1:$B$500,0),1))-(INDEX('RE Inconsistency Results'!$F$1:$F$500,MATCH(SUBSTITUTE(D70,"OR","d"),'RE Inconsistency Results'!$B$1:$B$500,0),1))>50,"N/A",EXP(INDEX('RE Inconsistency Results'!$G$1:$G$500,MATCH(SUBSTITUTE(D70,"OR","d"),'RE Inconsistency Results'!$B$1:$B$500,0),1)))) -> 
D71: =IF('Fixed Effects'!N71="","",'Fixed Effects'!N71) ->  | E71: =IF('Fixed Effects'!O71="","",'Fixed Effects'!O71) ->  | F71: =IF('Fixed Effects'!Q71="","",'Fixed Effects'!Q71) ->  | G71: =IF(D71="","",IF((INDEX('FE Inconsistency Results'!$H$1:$H$500,MATCH(SUBSTITUTE(D71,"OR","d"),'FE Inconsistency Results'!$B$1:$B$500,0),1))-(INDEX('FE Inconsistency Results'!$F$1:$F$500,MATCH(SUBSTITUTE(D71,"OR","d"),'FE Inconsistency Results'!$B$1:$B$500,0),1))>50,"N/A",EXP(INDEX('FE Inconsistency Results'!$G$1:$G$500,MATCH(SUBSTITUTE(D71,"OR","d"),'FE Inconsistency Results'!$B$1:$B$500,0),1)))) ->  | I71: =IF(INDIRECT(CONCATENATE("'",'Inconsistency Data'!$I$4,"'!N71"))="","",INDIRECT(CONCATENATE("'",'Inconsistency Data'!$I$4,"'!N71"))) ->  | J71: =IF(INDIRECT(CONCATENATE("'",'Inconsistency Data'!$I$4,"'!O71"))="","",INDIRECT(CONCATENATE("'",'Inconsistency Data'!$I$4,"'!O71"))) ->  | K71: =IF(INDIRECT(CONCATENATE("'",'Inconsistency Data'!$I$4,"'!Q71"))="","",INDIRECT(CONCATENATE("'",'Inconsistency Data'!$I$4,"'!Q71"))) ->  | L71: =IF(D71="","",IF((INDEX('RE Inconsistency Results'!$H$1:$H$500,MATCH(SUBSTITUTE(D71,"OR","d"),'RE Inconsistency Results'!$B$1:$B$500,0),1))-(INDEX('RE Inconsistency Results'!$F$1:$F$500,MATCH(SUBSTITUTE(D71,"OR","d"),'RE Inconsistency Results'!$B$1:$B$500,0),1))>50,"N/A",EXP(INDEX('RE Inconsistency Results'!$G$1:$G$500,MATCH(SUBSTITUTE(D71,"OR","d"),'RE Inconsistency Results'!$B$1:$B$500,0),1)))) -> 
D72: =IF('Fixed Effects'!N72="","",'Fixed Effects'!N72) ->  | E72: =IF('Fixed Effects'!O72="","",'Fixed Effects'!O72) ->  | F72: =IF('Fixed Effects'!Q72="","",'Fixed Effects'!Q72) ->  | G72: =IF(D72="","",IF((INDEX('FE Inconsistency Results'!$H$1:$H$500,MATCH(SUBSTITUTE(D72,"OR","d"),'FE Inconsistency Results'!$B$1:$B$500,0),1))-(INDEX('FE Inconsistency Results'!$F$1:$F$500,MATCH(SUBSTITUTE(D72,"OR","d"),'FE Inconsistency Results'!$B$1:$B$500,0),1))>50,"N/A",EXP(INDEX('FE Inconsistency Results'!$G$1:$G$500,MATCH(SUBSTITUTE(D72,"OR","d"),'FE Inconsistency Results'!$B$1:$B$500,0),1)))) ->  | I72: =IF(INDIRECT(CONCATENATE("'",'Inconsistency Data'!$I$4,"'!N72"))="","",INDIRECT(CONCATENATE("'",'Inconsistency Data'!$I$4,"'!N72"))) ->  | J72: =IF(INDIRECT(CONCATENATE("'",'Inconsistency Data'!$I$4,"'!O72"))="","",INDIRECT(CONCATENATE("'",'Inconsistency Data'!$I$4,"'!O72"))) ->  | K72: =IF(INDIRECT(CONCATENATE("'",'Inconsistency Data'!$I$4,"'!Q72"))="","",INDIRECT(CONCATENATE("'",'Inconsistency Data'!$I$4,"'!Q72"))) ->  | L72: =IF(D72="","",IF((INDEX('RE Inconsistency Results'!$H$1:$H$500,MATCH(SUBSTITUTE(D72,"OR","d"),'RE Inconsistency Results'!$B$1:$B$500,0),1))-(INDEX('RE Inconsistency Results'!$F$1:$F$500,MATCH(SUBSTITUTE(D72,"OR","d"),'RE Inconsistency Results'!$B$1:$B$500,0),1))>50,"N/A",EXP(INDEX('RE Inconsistency Results'!$G$1:$G$500,MATCH(SUBSTITUTE(D72,"OR","d"),'RE Inconsistency Results'!$B$1:$B$500,0),1)))) -> 
D73: =IF('Fixed Effects'!N73="","",'Fixed Effects'!N73) ->  | E73: =IF('Fixed Effects'!O73="","",'Fixed Effects'!O73) ->  | F73: =IF('Fixed Effects'!Q73="","",'Fixed Effects'!Q73) ->  | G73: =IF(D73="","",IF((INDEX('FE Inconsistency Results'!$H$1:$H$500,MATCH(SUBSTITUTE(D73,"OR","d"),'FE Inconsistency Results'!$B$1:$B$500,0),1))-(INDEX('FE Inconsistency Results'!$F$1:$F$500,MATCH(SUBSTITUTE(D73,"OR","d"),'FE Inconsistency Results'!$B$1:$B$500,0),1))>50,"N/A",EXP(INDEX('FE Inconsistency Results'!$G$1:$G$500,MATCH(SUBSTITUTE(D73,"OR","d"),'FE Inconsistency Results'!$B$1:$B$500,0),1)))) ->  | I73: =IF(INDIRECT(CONCATENATE("'",'Inconsistency Data'!$I$4,"'!N73"))="","",INDIRECT(CONCATENATE("'",'Inconsistency Data'!$I$4,"'!N73"))) ->  | J73: =IF(INDIRECT(CONCATENATE("'",'Inconsistency Data'!$I$4,"'!O73"))="","",INDIRECT(CONCATENATE("'",'Inconsistency Data'!$I$4,"'!O73"))) ->  | K73: =IF(INDIRECT(CONCATENATE("'",'Inconsistency Data'!$I$4,"'!Q73"))="","",INDIRECT(CONCATENATE("'",'Inconsistency Data'!$I$4,"'!Q73"))) ->  | L73: =IF(D73="","",IF((INDEX('RE Inconsistency Results'!$H$1:$H$500,MATCH(SUBSTITUTE(D73,"OR","d"),'RE Inconsistency Results'!$B$1:$B$500,0),1))-(INDEX('RE Inconsistency Results'!$F$1:$F$500,MATCH(SUBSTITUTE(D73,"OR","d"),'RE Inconsistency Results'!$B$1:$B$500,0),1))>50,"N/A",EXP(INDEX('RE Inconsistency Results'!$G$1:$G$500,MATCH(SUBSTITUTE(D73,"OR","d"),'RE Inconsistency Results'!$B$1:$B$500,0),1)))) -> 
D74: =IF('Fixed Effects'!N74="","",'Fixed Effects'!N74) ->  | E74: =IF('Fixed Effects'!O74="","",'Fixed Effects'!O74) ->  | F74: =IF('Fixed Effects'!Q74="","",'Fixed Effects'!Q74) ->  | G74: =IF(D74="","",IF((INDEX('FE Inconsistency Results'!$H$1:$H$500,MATCH(SUBSTITUTE(D74,"OR","d"),'FE Inconsistency Results'!$B$1:$B$500,0),1))-(INDEX('FE Inconsistency Results'!$F$1:$F$500,MATCH(SUBSTITUTE(D74,"OR","d"),'FE Inconsistency Results'!$B$1:$B$500,0),1))>50,"N/A",EXP(INDEX('FE Inconsistency Results'!$G$1:$G$500,MATCH(SUBSTITUTE(D74,"OR","d"),'FE Inconsistency Results'!$B$1:$B$500,0),1)))) ->  | I74: =IF(INDIRECT(CONCATENATE("'",'Inconsistency Data'!$I$4,"'!N74"))="","",INDIRECT(CONCATENATE("'",'Inconsistency Data'!$I$4,"'!N74"))) ->  | J74: =IF(INDIRECT(CONCATENATE("'",'Inconsistency Data'!$I$4,"'!O74"))="","",INDIRECT(CONCATENATE("'",'Inconsistency Data'!$I$4,"'!O74"))) ->  | K74: =IF(INDIRECT(CONCATENATE("'",'Inconsistency Data'!$I$4,"'!Q74"))="","",INDIRECT(CONCATENATE("'",'Inconsistency Data'!$I$4,"'!Q74"))) ->  | L74: =IF(D74="","",IF((INDEX('RE Inconsistency Results'!$H$1:$H$500,MATCH(SUBSTITUTE(D74,"OR","d"),'RE Inconsistency Results'!$B$1:$B$500,0),1))-(INDEX('RE Inconsistency Results'!$F$1:$F$500,MATCH(SUBSTITUTE(D74,"OR","d"),'RE Inconsistency Results'!$B$1:$B$500,0),1))>50,"N/A",EXP(INDEX('RE Inconsistency Results'!$G$1:$G$500,MATCH(SUBSTITUTE(D74,"OR","d"),'RE Inconsistency Results'!$B$1:$B$500,0),1)))) -> 
D75: =IF('Fixed Effects'!N75="","",'Fixed Effects'!N75) ->  | E75: =IF('Fixed Effects'!O75="","",'Fixed Effects'!O75) ->  | F75: =IF('Fixed Effects'!Q75="","",'Fixed Effects'!Q75) ->  | G75: =IF(D75="","",IF((INDEX('FE Inconsistency Results'!$H$1:$H$500,MATCH(SUBSTITUTE(D75,"OR","d"),'FE Inconsistency Results'!$B$1:$B$500,0),1))-(INDEX('FE Inconsistency Results'!$F$1:$F$500,MATCH(SUBSTITUTE(D75,"OR","d"),'FE Inconsistency Results'!$B$1:$B$500,0),1))>50,"N/A",EXP(INDEX('FE Inconsistency Results'!$G$1:$G$500,MATCH(SUBSTITUTE(D75,"OR","d"),'FE Inconsistency Results'!$B$1:$B$500,0),1)))) ->  | I75: =IF(INDIRECT(CONCATENATE("'",'Inconsistency Data'!$I$4,"'!N75"))="","",INDIRECT(CONCATENATE("'",'Inconsistency Data'!$I$4,"'!N75"))) ->  | J75: =IF(INDIRECT(CONCATENATE("'",'Inconsistency Data'!$I$4,"'!O75"))="","",INDIRECT(CONCATENATE("'",'Inconsistency Data'!$I$4,"'!O75"))) ->  | K75: =IF(INDIRECT(CONCATENATE("'",'Inconsistency Data'!$I$4,"'!Q75"))="","",INDIRECT(CONCATENATE("'",'Inconsistency Data'!$I$4,"'!Q75"))) ->  | L75: =IF(D75="","",IF((INDEX('RE Inconsistency Results'!$H$1:$H$500,MATCH(SUBSTITUTE(D75,"OR","d"),'RE Inconsistency Results'!$B$1:$B$500,0),1))-(INDEX('RE Inconsistency Results'!$F$1:$F$500,MATCH(SUBSTITUTE(D75,"OR","d"),'RE Inconsistency Results'!$B$1:$B$500,0),1))>50,"N/A",EXP(INDEX('RE Inconsistency Results'!$G$1:$G$500,MATCH(SUBSTITUTE(D75,"OR","d"),'RE Inconsistency Results'!$B$1:$B$500,0),1)))) -> 
D76: =IF('Fixed Effects'!N76="","",'Fixed Effects'!N76) ->  | E76: =IF('Fixed Effects'!O76="","",'Fixed Effects'!O76) ->  | F76: =IF('Fixed Effects'!Q76="","",'Fixed Effects'!Q76) ->  | G76: =IF(D76="","",IF((INDEX('FE Inconsistency Results'!$H$1:$H$500,MATCH(SUBSTITUTE(D76,"OR","d"),'FE Inconsistency Results'!$B$1:$B$500,0),1))-(INDEX('FE Inconsistency Results'!$F$1:$F$500,MATCH(SUBSTITUTE(D76,"OR","d"),'FE Inconsistency Results'!$B$1:$B$500,0),1))>50,"N/A",EXP(INDEX('FE Inconsistency Results'!$G$1:$G$500,MATCH(SUBSTITUTE(D76,"OR","d"),'FE Inconsistency Results'!$B$1:$B$500,0),1)))) ->  | I76: =IF(INDIRECT(CONCATENATE("'",'Inconsistency Data'!$I$4,"'!N76"))="","",INDIRECT(CONCATENATE("'",'Inconsistency Data'!$I$4,"'!N76"))) ->  | J76: =IF(INDIRECT(CONCATENATE("'",'Inconsistency Data'!$I$4,"'!O76"))="","",INDIRECT(CONCATENATE("'",'Inconsistency Data'!$I$4,"'!O76"))) ->  | K76: =IF(INDIRECT(CONCATENATE("'",'Inconsistency Data'!$I$4,"'!Q76"))="","",INDIRECT(CONCATENATE("'",'Inconsistency Data'!$I$4,"'!Q76"))) ->  | L76: =IF(D76="","",IF((INDEX('RE Inconsistency Results'!$H$1:$H$500,MATCH(SUBSTITUTE(D76,"OR","d"),'RE Inconsistency Results'!$B$1:$B$500,0),1))-(INDEX('RE Inconsistency Results'!$F$1:$F$500,MATCH(SUBSTITUTE(D76,"OR","d"),'RE Inconsistency Results'!$B$1:$B$500,0),1))>50,"N/A",EXP(INDEX('RE Inconsistency Results'!$G$1:$G$500,MATCH(SUBSTITUTE(D76,"OR","d"),'RE Inconsistency Results'!$B$1:$B$500,0),1)))) -> 
D77: =IF('Fixed Effects'!N77="","",'Fixed Effects'!N77) ->  | E77: =IF('Fixed Effects'!O77="","",'Fixed Effects'!O77) ->  | F77: =IF('Fixed Effects'!Q77="","",'Fixed Effects'!Q77) ->  | G77: =IF(D77="","",IF((INDEX('FE Inconsistency Results'!$H$1:$H$500,MATCH(SUBSTITUTE(D77,"OR","d"),'FE Inconsistency Results'!$B$1:$B$500,0),1))-(INDEX('FE Inconsistency Results'!$F$1:$F$500,MATCH(SUBSTITUTE(D77,"OR","d"),'FE Inconsistency Results'!$B$1:$B$500,0),1))>50,"N/A",EXP(INDEX('FE Inconsistency Results'!$G$1:$G$500,MATCH(SUBSTITUTE(D77,"OR","d"),'FE Inconsistency Results'!$B$1:$B$500,0),1)))) ->  | I77: =IF(INDIRECT(CONCATENATE("'",'Inconsistency Data'!$I$4,"'!N77"))="","",INDIRECT(CONCATENATE("'",'Inconsistency Data'!$I$4,"'!N77"))) ->  | J77: =IF(INDIRECT(CONCATENATE("'",'Inconsistency Data'!$I$4,"'!O77"))="","",INDIRECT(CONCATENATE("'",'Inconsistency Data'!$I$4,"'!O77"))) ->  | K77: =IF(INDIRECT(CONCATENATE("'",'Inconsistency Data'!$I$4,"'!Q77"))="","",INDIRECT(CONCATENATE("'",'Inconsistency Data'!$I$4,"'!Q77"))) ->  | L77: =IF(D77="","",IF((INDEX('RE Inconsistency Results'!$H$1:$H$500,MATCH(SUBSTITUTE(D77,"OR","d"),'RE Inconsistency Results'!$B$1:$B$500,0),1))-(INDEX('RE Inconsistency Results'!$F$1:$F$500,MATCH(SUBSTITUTE(D77,"OR","d"),'RE Inconsistency Results'!$B$1:$B$500,0),1))>50,"N/A",EXP(INDEX('RE Inconsistency Results'!$G$1:$G$500,MATCH(SUBSTITUTE(D77,"OR","d"),'RE Inconsistency Results'!$B$1:$B$500,0),1)))) -> 
D78: =IF('Fixed Effects'!N78="","",'Fixed Effects'!N78) ->  | E78: =IF('Fixed Effects'!O78="","",'Fixed Effects'!O78) ->  | F78: =IF('Fixed Effects'!Q78="","",'Fixed Effects'!Q78) ->  | G78: =IF(D78="","",IF((INDEX('FE Inconsistency Results'!$H$1:$H$500,MATCH(SUBSTITUTE(D78,"OR","d"),'FE Inconsistency Results'!$B$1:$B$500,0),1))-(INDEX('FE Inconsistency Results'!$F$1:$F$500,MATCH(SUBSTITUTE(D78,"OR","d"),'FE Inconsistency Results'!$B$1:$B$500,0),1))>50,"N/A",EXP(INDEX('FE Inconsistency Results'!$G$1:$G$500,MATCH(SUBSTITUTE(D78,"OR","d"),'FE Inconsistency Results'!$B$1:$B$500,0),1)))) ->  | I78: =IF(INDIRECT(CONCATENATE("'",'Inconsistency Data'!$I$4,"'!N78"))="","",INDIRECT(CONCATENATE("'",'Inconsistency Data'!$I$4,"'!N78"))) ->  | J78: =IF(INDIRECT(CONCATENATE("'",'Inconsistency Data'!$I$4,"'!O78"))="","",INDIRECT(CONCATENATE("'",'Inconsistency Data'!$I$4,"'!O78"))) ->  | K78: =IF(INDIRECT(CONCATENATE("'",'Inconsistency Data'!$I$4,"'!Q78"))="","",INDIRECT(CONCATENATE("'",'Inconsistency Data'!$I$4,"'!Q78"))) ->  | L78: =IF(D78="","",IF((INDEX('RE Inconsistency Results'!$H$1:$H$500,MATCH(SUBSTITUTE(D78,"OR","d"),'RE Inconsistency Results'!$B$1:$B$500,0),1))-(INDEX('RE Inconsistency Results'!$F$1:$F$500,MATCH(SUBSTITUTE(D78,"OR","d"),'RE Inconsistency Results'!$B$1:$B$500,0),1))>50,"N/A",EXP(INDEX('RE Inconsistency Results'!$G$1:$G$500,MATCH(SUBSTITUTE(D78,"OR","d"),'RE Inconsistency Results'!$B$1:$B$500,0),1)))) -> 
D79: =IF('Fixed Effects'!N79="","",'Fixed Effects'!N79) ->  | E79: =IF('Fixed Effects'!O79="","",'Fixed Effects'!O79) ->  | F79: =IF('Fixed Effects'!Q79="","",'Fixed Effects'!Q79) ->  | G79: =IF(D79="","",IF((INDEX('FE Inconsistency Results'!$H$1:$H$500,MATCH(SUBSTITUTE(D79,"OR","d"),'FE Inconsistency Results'!$B$1:$B$500,0),1))-(INDEX('FE Inconsistency Results'!$F$1:$F$500,MATCH(SUBSTITUTE(D79,"OR","d"),'FE Inconsistency Results'!$B$1:$B$500,0),1))>50,"N/A",EXP(INDEX('FE Inconsistency Results'!$G$1:$G$500,MATCH(SUBSTITUTE(D79,"OR","d"),'FE Inconsistency Results'!$B$1:$B$500,0),1)))) ->  | I79: =IF(INDIRECT(CONCATENATE("'",'Inconsistency Data'!$I$4,"'!N79"))="","",INDIRECT(CONCATENATE("'",'Inconsistency Data'!$I$4,"'!N79"))) ->  | J79: =IF(INDIRECT(CONCATENATE("'",'Inconsistency Data'!$I$4,"'!O79"))="","",INDIRECT(CONCATENATE("'",'Inconsistency Data'!$I$4,"'!O79"))) ->  | K79: =IF(INDIRECT(CONCATENATE("'",'Inconsistency Data'!$I$4,"'!Q79"))="","",INDIRECT(CONCATENATE("'",'Inconsistency Data'!$I$4,"'!Q79"))) ->  | L79: =IF(D79="","",IF((INDEX('RE Inconsistency Results'!$H$1:$H$500,MATCH(SUBSTITUTE(D79,"OR","d"),'RE Inconsistency Results'!$B$1:$B$500,0),1))-(INDEX('RE Inconsistency Results'!$F$1:$F$500,MATCH(SUBSTITUTE(D79,"OR","d"),'RE Inconsistency Results'!$B$1:$B$500,0),1))>50,"N/A",EXP(INDEX('RE Inconsistency Results'!$G$1:$G$500,MATCH(SUBSTITUTE(D79,"OR","d"),'RE Inconsistency Results'!$B$1:$B$500,0),1)))) -> 
